Workbook

Sheet AFRSvsFRSapprops (hidden)
A1: Approp | B1: FMS Approp Index
A2: 011 | B2: 101
A3: 3E0 | B3: 3E0
A4: AC2 | B4: 123
A5: AC1 | B5: 123
A6: B01 | B6: B01
A7: BA1 | B7: BA1
A8: BA2 | B8: BA2
A9: BA0 | B9: BA0
A10: BD1 | B10: BD1
A11: BD2 | B11: BD2
A12: BG1 | B12: BG1
A13: BG2 | B13: BG2
A14: BJ1 | B14: BJ1
A15: BK1 | B15: BK1
A16: BK2 | B16: BK2
A17: BP1 | B17: BP1
A18: BP2 | B18: BP2
A19: BQ1 | B19: BQ1
A20: BQ2 | B20: BQ2
A21: BR1 | B21: BR1
A22: BR2 | B22: BR2
A23: CF1 | B23: CF1
A24: CG2 | B24: CG2
A25: DA0 | B25: DA0
A26: E01 | B26: E01
A27: T72 | B27: T72
A28: 430 | B28: 430

Sheet Pivot CurrentGrantDataRECON (hidden)
A1: OrgName | B1: (All) | D1: CURRENT GRANT DATA RECONCILIATION
F2: District Tabs | H2: Variance
A3: Sum of Amount
D4: Total
A5: Bates | D5: 1661280 | F5: =Bates!I164 -> 1661280 | H5: =D5-F5 -> 0
A6: Bellevue | D6: 3288652 | F6: =Bellevue!I164 -> 2306760 | H6: =D6-F6 -> 981892
A7: Bellingham | D7: 1822389 | F7: =Bellingham!I164 -> 1822389 | H7: =D7-F7 -> 0
A8: Big Bend | D8: 2192289 | F8: ='Big Bend'!I164 -> 2192289 | H8: 0
A9: Cascadia | D9: 964293 | F9: =Cascadia!I164 -> 964293 | H9: 0
A10: Clark | D10: 2859643 | F10: =Centralia!I164 -> 3484025 | H10: -624382
A11: Clover Park | D11: 2513843 | F11: =Clark!I164 -> 2859643 | H11: -345800
A12: Edmonds | D12: 4203651 | F12: ='Clover Park'!I164 -> 2513843 | H12: 1689808
A13: Everett | D13: 2007559 | F13: ='Columbia Basin'!I164 -> 1352568 | H13: 654991
A14: Grays Harbor | D14: 3328592 | F14: =Edmonds!I164 -> 4203651 | H14: -875059
A15: Green River | D15: 3924392 | F15: =Everett!I164 -> 2007559 | H15: 1916833
A16: Highline | D16: 2701377 | F16: ='Grays Harbor'!I164 -> 3328592 | H16: -627215
A17: Lake Washington | D17: 1507665 | F17: ='Green River'!I164 -> 3924392 | H17: -2416727
A18: Lower Columbia | D18: 2207634 | F18: =Highline!I164 -> 2294016 | H18: -86382
A19: Olympic | D19: 2453769 | F19: ='Lake Washington'!I164 -> 1507665 | H19: 946104
A20: Peninsula | D20: 2662280 | F20: ='Lower Columbia'!I164 -> 2207634 | H20: 454646
A21: Pierce | D21: 1976840 | F21: =Olympic!I164 -> 2453769 | H21: -476929
A22: Renton | D22: 1830641 | F22: =Peninsula!I164 -> 2662280 | H22: -831639
A23: Seattle | D23: 10685203 | F23: =Pierce!I164 -> 1976840 | H23: 8708363
A24: Shoreline | D24: 1508202 | F24: =Renton!I164 -> 1830641 | H24: -322439
A25: South Puget Sound | D25: 1288274 | F25: =Seattle!I166 -> 10456066 | H25: -9167792
A26: Spokane | D26: 3613828 | F26: =Shoreline!I164 -> 1508202 | H26: 2105626
A27: Centralia | B27: 112-BEDA-17 | C27: BEdA Master Grant | D27: 129953 | F27: ='Skagit Valley'!I164 -> 1901371 | H27: -1771418
A28: Centralia | B28: 112-BFET-16 | C28: Basic Food Employment and Training Grant | D28: 345541 | F28: ='South Puget Sound'!I164 -> 1288274 | H28: -942733
A29: Centralia | B29: 112-BLB-17 | C29: BEdA Leadership Block Grant | D29: 3984 | F29: =Spokane!I164 -> 6623831 | H29: -6619847
A30: Centralia | B30: 112-CE-17 | C30: Correctional Education Grant | D30: 1839246 | F30: =Tacoma!I164 -> 3840640 | H30: -2001394
A31: Centralia | B31: 112-EAG-17 | C31: Early Achievers Grant | D31: 58100 | F31: ='Walla Walla'!I164 -> 7969501 | H31: -7911401
A32: Centralia | B32: 112-IELC-17 | C32: BEdA Program – IEL/Civics Grant Budget | D32: 26385 | F32: ='Wenatchee Valley'!I164 -> 1306684 | H32: -1280299
A33: Centralia | B33: 112-JSP-16HL | C33: Job Skills Program Grant | D33: 46774 | F33: =Whatcom!I164 -> 1094755 | H33: -1047981
A34: Centralia | B34: 112-PLB-17 | C34: Perkins Leadership Block Grant | D34: 16000 | F34: ='Yakima Valley'!I164 -> 1974111 | H34: -1958111
A35: Centralia | B35: 112-PRK-17 | C35: Perkins Plan | D35: 213428
A36: Centralia | B36: 112-WFDA-17 | C36: WorkFirst Delivery Agreement | D36: 515112
A37: Centralia | B37: 112-BFET-17 | C37: Basic Food Employment and Training Grant | D37: 289502
A38: Columbia | B38: 119-B2C-17 | C38: Misc. General Grant | D38: 1000
A39: Columbia | B39: 119-BEDA-17 | C39: BEdA Master Grant | D39: 178184
A40: Columbia | B40: 119-BFET-16 | C40: Basic Food Employment and Training Grant | D40: 216553
A41: Columbia | B41: 119-BLB-17 | C41: BEdA Leadership Block Grant | D41: 4230
A42: Columbia | B42: 119-EAG-17 | C42: Early Achievers Grant | D42: 141100
A43: Columbia | B43: 119-IELC-17 | C43: BEdA Program – IEL/Civics Grant Budget | D43: 39202
A44: Columbia | B44: 119-PNT-17 | C44: Perkins Non-Traditional Employment & Training Gran | D44: 5000
A45: Columbia | B45: 119-PRK-17 | C45: Perkins Plan | D45: 282232
A46: Columbia | B46: 119-WFDA-17 | C46: WorkFirst Delivery Agreement | D46: 204673
A47: Columbia | B47: 119-BFET-17 | C47: Basic Food Employment and Training Grant | D47: 280394
A48: Skagit | B48: 104-BEDA-17 | C48: BEdA Master Grant | D48: 160575
A49: Skagit | B49: 104-BFET-16 | C49: Basic Food Employment and Training Grant | D49: 333948
A50: Skagit | B50: 104-BSP-16 | C50: BEdA Special Projects Grant | D50: 22800
A51: Skagit | B51: 104-EAG-17 | C51: Early Achievers Grant | D51: 91300
A52: Skagit | B52: 104-HS21-17 | C52: HS 21+ Technology Grant | D52: 20000
A53: Skagit | B53: 104-IELC-17 | C53: BEdA Program – IEL/Civics Grant Budget | D53: 31092
A54: Skagit | B54: 104-JSP-16DM | C54: Job Skills Program Grant | D54: 63700
A55: Skagit | B55: 104-PIP-17 | C55: Perkins Innovation Project | D55: 15000
A56: Skagit | B56: 104-PLB-17 | C56: Perkins Leadership Block Grant | D56: 16000
A57: Skagit | B57: 104-PNT-17 | C57: Perkins Non-Traditional Employment & Training Gran | D57: 5000
A58: Skagit | B58: 104-PRK-17 | C58: Perkins Plan | D58: 378082
A59: Skagit | B59: 104-WFDA-17 | C59: WorkFirst Delivery Agreement | D59: 398676
A60: Skagit | B60: 104-BLB-17 | C60: BEdA Leadership Block Grant | D60: 3984
A61: Skagit | B61: 104-BFET-17 | C61: Basic Food Employment and Training Grant | D61: 361214
A62: Grand Total | D62: 67940260

Sheet CurrentGrantData (hidden)
A1: OrgName | B1: District | C1: Grant Number | D1: ProgramName | E1: GrantNumber | F1: Adjustments | G1: Amount | H1: Starts | I1: Expires | J1: FinalBillingDate
A2: Bates Technical College | B2: Bates | C2: 1 | D2: Basic Food Employment and Training Grant | E2: 128-BFET-16 | F2: 0 | G2: 223926 | H2: 2015-10-01 | I2: 2016-09-30 | J2: 2016-10-31
A3: Bates Technical College | B3: Bates | C3: 2 | D3: Basic Food Employment and Training Grant | E3: 128-BFET-17 | F3: 161967 | G3: 161967 | H3: 2016-10-01 | I3: 2017-09-30 | J3: 2017-10-31
A4: Bates Technical College | B4: Bates | C4: 3 | D4: BEdA Leadership Block Grant | E4: 128-BLB-17 | F4: 0 | G4: 3984 | H4: 2016-07-01 | I4: 2017-06-30 | J4: 2017-07-13
A5: Bates Technical College | B5: Bates | C5: 4 | D5: BEdA Master Grant | E5: 128-BEDA-17 | F5: 0 | G5: 168089 | H5: 2016-07-01 | I5: 2017-06-30 | J5: 2017-07-13
A6: Bates Technical College | B6: Bates | C6: 5 | D6: Early Achievers Grant | E6: 128-EAG-17 | F6: 24900 | G6: 290500 | H6: 2016-07-01 | I6: 2017-06-30 | J6: 2017-07-13
A7: Bates Technical College | B7: Bates | C7: 6 | D7: Perkins Leadership Block Grant | E7: 128-PLB-17 | F7: 0 | G7: 16000 | H7: 2016-07-01 | I7: 2017-06-30 | J7: 2017-07-13
A8: Bates Technical College | B8: Bates | C8: 7 | D8: Perkins Non-Traditional Employment & Training Gran | E8: 128-PNT-17 | F8: 0 | G8: 4800 | H8: 2016-07-01 | I8: 2017-06-30 | J8: 2017-07-13
A9: Bates Technical College | B9: Bates | C9: 8 | D9: Perkins Plan | E9: 128-PRK-17 | F9: 2624 | G9: 230874 | H9: 2016-07-01 | I9: 2017-06-30 | J9: 2017-07-13
A10: Bates Technical College | B10: Bates | C10: 9 | D10: WorkFirst Delivery Agreement | E10: 128-WFDA-17 | F10: 0 | G10: 561140 | H10: 2016-07-01 | I10: 2017-06-30 | J10: 2017-07-14
A11: Bellevue College | B11: Bellevue | C11: 1 | D11: Basic Food Employment and Training Grant | E11: 108-BFET-16 | F11: 0 | G11: 1414732 | H11: 2015-10-01 | I11: 2016-09-30 | J11: 2016-10-31
A12: Bellevue College | B12: Bellevue | C12: 2 | D12: Basic Food Employment and Training Grant | E12: 108-BFET-17 | F12: 981892 | G12: 981892 | H12: 2016-10-01 | I12: 2017-09-30 | J12: 2017-10-31
A13: Bellevue College | B13: Bellevue | C13: 3 | D13: BEdA Leadership Block Grant | E13: 108-BLB-17 | F13: 0 | G13: 4230 | H13: 2016-07-01 | I13: 2017-06-30 | J13: 2017-07-13
A14: Bellevue College | B14: Bellevue | C14: 4 | D14: BEdA Master Grant | E14: 108-BEDA-17 | F14: 0 | G14: 192912 | H14: 2016-07-01 | I14: 2017-06-30 | J14: 2017-07-13
A15: Bellevue College | B15: Bellevue | C15: 5 | D15: BEdA Program – IEL/Civics Grant Budget | E15: 108-IELC-17 | F15: 0 | G15: 47553 | H15: 2016-07-01 | I15: 2017-06-30 | J15: 2017-07-13
A16: Bellevue College | B16: Bellevue | C16: 6 | D16: BEdA Special Projects Grant | E16: 108-BSP-16 | F16: 0 | G16: 8000 | H16: 2016-06-27 | I16: 2017-06-30 | J16: 2017-07-13
A17: Bellevue College | B17: Bellevue | C17: 7 | D17: Early Achievers Grant | E17: 108-EAG-17 | F17: 49800 | G17: 116200 | H17: 2016-07-01 | I17: 2017-06-30 | J17: 2017-07-13
A18: Bellevue College | B18: Bellevue | C18: 8 | D18: Perkins Leadership Block Grant | E18: 108-PLB-17 | F18: 0 | G18: 16000 | H18: 2016-07-01 | I18: 2017-06-30 | J18: 2017-07-13
A19: Bellevue College | B19: Bellevue | C19: 9 | D19: Perkins Plan | E19: 108-PRK-17 | F19: 3263 | G19: 260107 | H19: 2016-07-01 | I19: 2017-06-30 | J19: 2017-07-13
A20: Bellevue College | B20: Bellevue | C20: 10 | D20: WorkFirst Delivery Agreement | E20: 108-WFDA-17 | F20: 0 | G20: 247026 | H20: 2016-07-01 | I20: 2017-06-30 | J20: 2017-07-14
A21: Bellingham Technical College | B21: Bellingham | C21: 1 | D21: Basic Food Employment and Training Grant | E21: 125-BFET-16 | F21: 0 | G21: 499843 | H21: 2015-10-01 | I21: 2016-09-30 | J21: 2016-11-02
A22: Bellingham Technical College | B22: Bellingham | C22: 2 | D22: Basic Food Employment and Training Grant | E22: 125-BFET-17 | F22: 535797 | G22: 535797 | H22: 2016-10-01 | I22: 2017-09-30 | J22: 2017-10-31
A23: Bellingham Technical College | B23: Bellingham | C23: 3 | D23: BEdA Leadership Block Grant | E23: 125-BLB-17 | F23: 0 | G23: 4230 | H23: 2016-07-01 | I23: 2017-06-30 | J23: 2017-07-13
A24: Bellingham Technical College | B24: Bellingham | C24: 4 | D24: BEdA Master Grant | E24: 125-BEDA-17 | F24: 0 | G24: 94383 | H24: 2016-07-01 | I24: 2017-06-30 | J24: 2017-07-13
A25: Bellingham Technical College | B25: Bellingham | C25: 5 | D25: BEdA Program – IEL/Civics Grant Budget | E25: 125-IELC-17 | F25: 0 | G25: 17065 | H25: 2016-07-01 | I25: 2017-06-30 | J25: 2017-07-13
A26: Bellingham Technical College | B26: Bellingham | C26: 6 | D26: Faculty Learning Communities Initiative Grant | E26: 125-FLCE-17 | F26: 0 | G26: 5000 | H26: 2016-07-01 | I26: 2017-06-30 | J26: 2017-07-13
A27: Bellingham Technical College | B27: Bellingham | C27: 7 | D27: Job Skills Program Grant | E27: 125-JSP-16OX | F27: 0 | G27: 52731 | H27: 2016-03-15 | I27: 2017-06-30 | J27: 2017-07-15
A28: Bellingham Technical College | B28: Bellingham | C28: 8 | D28: Perkins Innovation Project | E28: 125-PIP-17 | F28: 0 | G28: 15000 | H28: 2016-07-01 | I28: 2017-06-30 | J28: 2017-07-13
A29: Bellingham Technical College | B29: Bellingham | C29: 9 | D29: Perkins Leadership Block Grant | E29: 125-PLB-17 | F29: 0 | G29: 16000 | H29: 2016-07-01 | I29: 2017-06-30 | J29: 2017-07-13
A30: Bellingham Technical College | B30: Bellingham | C30: 10 | D30: Perkins Non-Traditional Employment & Training Gran | E30: 125-PNT-17 | F30: 0 | G30: 5000 | H30: 2016-07-01 | I30: 2017-06-30 | J30: 2017-07-13
A31: Bellingham Technical College | B31: Bellingham | C31: 11 | D31: Perkins Plan | E31: 125-PRK-17 | F31: 2814 | G31: 403153 | H31: 2016-07-01 | I31: 2017-06-30 | J31: 2017-07-13
A32: Bellingham Technical College | B32: Bellingham | C32: 12 | D32: WorkFirst Delivery Agreement | E32: 125-WFDA-17 | F32: 0 | G32: 174187 | H32: 2016-07-01 | I32: 2017-06-30 | J32: 2017-07-14
A33: Big Bend Community College | B33: Big Bend | C33: 1 | D33: Basic Food Employment and Training Grant | E33: 118-BFET-16 | F33: 0 | G33: 403691 | H33: 2015-10-01 | I33: 2016-09-30 | J33: 2016-10-31
A34: Big Bend Community College | B34: Big Bend | C34: 2 | D34: Basic Food Employment and Training Grant | E34: 118-BFET-17 | F34: 387788 | G34: 387788 | H34: 2016-10-01 | I34: 2017-09-30 | J34: 2017-10-31
A35: Big Bend Community College | B35: Big Bend | C35: 3 | D35: BEdA Leadership Block Grant | E35: 118-BLB-17 | F35: 0 | G35: 4230 | H35: 2016-07-01 | I35: 2017-06-30 | J35: 2017-07-13
A36: Big Bend Community College | B36: Big Bend | C36: 4 | D36: BEdA Master Grant | E36: 118-BEDA-17 | F36: 0 | G36: 101431 | H36: 2016-07-01 | I36: 2017-06-30 | J36: 2017-07-13
A37: Big Bend Community College | B37: Big Bend | C37: 5 | D37: BEdA Program – IEL/Civics Grant Budget | E37: 118-IELC-17 | F37: 0 | G37: 18616 | H37: 2016-07-01 | I37: 2017-06-30 | J37: 2017-07-13
A38: Big Bend Community College | B38: Big Bend | C38: 6 | D38: BEdA Special Projects Grant | E38: 118-BSP2-16 | F38: 0 | G38: 4000 | H38: 2016-02-29 | I38: 2016-07-31 | J38: 2016-10-31
A39: Big Bend Community College | B39: Big Bend | C39: 7 | D39: BEdA Special Projects Grant | E39: 118-BSP3-16 | F39: 0 | G39: 3800 | H39: 2016-06-28 | I39: 2016-12-31 | J39: 2017-01-31
A40: Big Bend Community College | B40: Big Bend | C40: 8 | D40: BEdA Special Projects Grant | E40: 118-BSP-17 | F40: 3300 | G40: 3300 | H40: 2016-11-16 | I40: 2017-06-30 | J40: 2017-07-13
A41: Big Bend Community College | B41: Big Bend | C41: 9 | D41: Early Achievers Grant | E41: 118-EAG-17 | F41: 58100 | G41: 124500 | H41: 2016-07-01 | I41: 2017-06-30 | J41: 2017-07-13
A42: Big Bend Community College | B42: Big Bend | C42: 10 | D42: HS 21+ Technology Grant | E42: 118-HS21-17 | F42: 0 | G42: 20000 | H42: 2016-08-22 | I42: 2016-12-31 | J42: 2017-01-31
A43: Big Bend Community College | B43: Big Bend | C43: 11 | D43: Job Skills Program Grant | E43: 118-JSP-16SH | F43: -25419 | G43: 115122 | H43: 2015-07-01 | I43: 2017-06-30 | J43: 2017-07-15
A44: Big Bend Community College | B44: Big Bend | C44: 12 | D44: Job Skills Program Grant | E44: 118-JSP-16REC | F44: -13595 | G44: 128569 | H44: 2015-09-01 | I44: 2017-06-30 | J44: 2017-07-15
A45: Big Bend Community College | B45: Big Bend | C45: 13 | D45: Job Skills Program Grant | E45: 118-JSP-16MLI | F45: -2892 | G45: 95171 | H45: 2015-07-01 | I45: 2017-06-30 | J45: 2017-07-15
A46: Big Bend Community College | B46: Big Bend | C46: 14 | D46: Job Skills Program Grant | E46: 118-JSP-16LC | F46: -2712 | G46: 45697 | H46: 2015-07-01 | I46: 2017-06-30 | J46: 2017-07-15
A47: Big Bend Community College | B47: Big Bend | C47: 15 | D47: Job Skills Program Grant | E47: 118-JSP-16MCF | F47: 0 | G47: 158661 | H47: 2016-07-01 | I47: 2017-06-30 | J47: 2017-07-15
A48: Big Bend Community College | B48: Big Bend | C48: 16 | D48: Job Skills Program Grant | E48: 118-JSP-16TK | F48: 0 | G48: 150673 | H48: 2015-09-01 | I48: 2017-06-30 | J48: 2017-07-15
A49: Big Bend Community College | B49: Big Bend | C49: 17 | D49: Job Skills Program Grant | E49: 118-JSP-17TK | F49: 86750 | G49: 86750 | H49: 2016-09-01 | I49: 2017-06-30 | J49: 2017-07-13
A50: Big Bend Community College | B50: Big Bend | C50: 18 | D50: Perkins Leadership Block Grant | E50: 118-PLB-17 | F50: 16000 | G50: 16000 | H50: 2016-11-22 | I50: 2017-06-30 | J50: 2017-07-13
A51: Big Bend Community College | B51: Big Bend | C51: 19 | D51: Perkins Plan | E51: 118-PRK-17 | F51: 1438 | G51: 158371 | H51: 2016-07-01 | I51: 2017-06-30 | J51: 2017-07-13
A52: Big Bend Community College | B52: Big Bend | C52: 20 | D52: WorkFirst Delivery Agreement | E52: 118-WFDA-17 | F52: 0 | G52: 165919 | H52: 2016-07-01 | I52: 2017-06-30 | J52: 2017-07-14
A53: Cascadia College | B53: Cascadia | C53: 1 | D53: Basic Food Employment and Training Grant | E53: 130-BFET-16 | F53: 0 | G53: 60773 | H53: 2015-10-01 | I53: 2016-09-30 | J53: 2016-10-31
A54: Cascadia College | B54: Cascadia | C54: 2 | D54: Basic Food Employment and Training Grant | E54: 130-BFET-17 | F54: 47938 | G54: 47938 | H54: 2016-10-01 | I54: 2017-09-30 | J54: 2017-10-31
A55: Cascadia College | B55: Cascadia | C55: 3 | D55: BEdA Leadership Block Grant | E55: 130-BLB-17 | F55: 0 | G55: 4230 | H55: 2016-07-01 | I55: 2017-06-30 | J55: 2017-07-13
A56: Cascadia College | B56: Cascadia | C56: 4 | D56: BEdA Master Grant | E56: 130-BEDA-17 | F56: 0 | G56: 80169 | H56: 2016-07-01 | I56: 2017-06-30 | J56: 2017-07-13
A57: Cascadia College | B57: Cascadia | C57: 5 | D57: BEdA Program – IEL/Civics Grant Budget | E57: 130-IELC-17 | F57: -17871 | G57: 0 | H57: 2016-07-01 | I57: 2016-10-18 | J57: 2017-07-13
A58: Cascadia College | B58: Cascadia | C58: 6 | D58: BEdA Special Projects Grant | E58: 130-BSP-16 | F58: 0 | G58: 3800 | H58: 2016-06-23 | I58: 2016-12-31 | J58: 2017-01-31
A59: Cascadia College | B59: Cascadia | C59: 7 | D59: Job Skills Program Grant | E59: 130-JSP-16AR | F59: -49255 | G59: 168371 | H59: 2015-09-01 | I59: 2017-06-30 | J59: 2017-07-15
A60: Cascadia College | B60: Cascadia | C60: 8 | D60: Job Skills Program Grant | E60: 130-JSP-16AMT | F60: 0 | G60: 52050 | H60: 2015-08-01 | I60: 2017-06-30 | J60: 2017-07-15
A61: Cascadia College | B61: Cascadia | C61: 9 | D61: Job Skills Program Grant | E61: 130-JSP-16GT | F61: 0 | G61: 150780 | H61: 2015-07-01 | I61: 2017-06-30 | J61: 2017-07-15
A62: Cascadia College | B62: Cascadia | C62: 10 | D62: Job Skills Program Grant | E62: 130-JSP-16SA | F62: 0 | G62: 60504 | H62: 2015-09-01 | I62: 2017-06-30 | J62: 2017-07-15
A63: Cascadia College | B63: Cascadia | C63: 11 | D63: Job Skills Program Grant | E63: 130-JSP-17CC2 | F63: 0 | G63: 175248 | H63: 2016-07-01 | I63: 2017-06-30 | J63: 2017-07-13
A64: Cascadia College | B64: Cascadia | C64: 12 | D64: Job Skills Program Grant | E64: 130-JSP-17CCE | F64: 0 | G64: 92430 | H64: 2016-07-01 | I64: 2017-06-30 | J64: 2017-07-13
A65: Cascadia College | B65: Cascadia | C65: 13 | D65: Misc. General Grant | E65: 130-B2C-15 | F65: 0 | G65: 49500 | H65: 2014-12-04 | I65: 2017-06-30 | J65: 2017-07-13
A66: Cascadia College | B66: Cascadia | C66: 14 | D66: Misc. General Grant | E66: 130-ELRN-17 | F66: 2500 | G66: 2500 | H66: 2016-10-01 | I66: 2017-06-30 | J66: 2017-07-13
A67: Cascadia College | B67: Cascadia | C67: 15 | D67: Perkins Leadership Block Grant | E67: 130-PLB-17 | F67: 0 | G67: 16000 | H67: 2016-07-13 | I67: 2017-06-30 | J67: 2017-07-13
A68: Centralia College | B68: Centralia | C68: 1 | D68: Basic Food Employment and Training Grant | E68: 112-BFET-16 | F68: 0 | G68: 345541 | H68: 2015-10-01 | I68: 2016-09-30 | J68: 2016-10-31
A69: Centralia College | B69: Centralia | C69: 2 | D69: Basic Food Employment and Training Grant | E69: 112-BFET-17 | F69: 289502 | G69: 289502 | H69: 2016-10-01 | I69: 2017-09-30 | J69: 2017-10-31
A70: Centralia College | B70: Centralia | C70: 3 | D70: BEdA Leadership Block Grant | E70: 112-BLB-17 | F70: 0 | G70: 3984 | H70: 2016-07-01 | I70: 2017-06-30 | J70: 2017-07-13
A71: Centralia College | B71: Centralia | C71: 4 | D71: BEdA Master Grant | E71: 112-BEDA-17 | F71: 0 | G71: 129953 | H71: 2016-07-01 | I71: 2017-06-30 | J71: 2017-07-13
A72: Centralia College | B72: Centralia | C72: 5 | D72: BEdA Program – IEL/Civics Grant Budget | E72: 112-IELC-17 | F72: 0 | G72: 26385 | H72: 2016-07-01 | I72: 2017-06-30 | J72: 2017-07-13
A73: Centralia College | B73: Centralia | C73: 6 | D73: Correctional Education Grant | E73: 112-CE-17 | F73: 0 | G73: 1839246 | H73: 2016-07-01 | I73: 2017-06-30 | J73: 2017-07-13
A74: Centralia College | B74: Centralia | C74: 7 | D74: Early Achievers Grant | E74: 112-EAG-17 | F74: 24900 | G74: 58100 | H74: 2016-07-01 | I74: 2017-06-30 | J74: 2017-07-13
A75: Centralia College | B75: Centralia | C75: 8 | D75: Job Skills Program Grant | E75: 112-JSP-16HL | F75: -30814 | G75: 46774 | H75: 2015-11-01 | I75: 2017-06-30 | J75: 2017-07-15
A76: Centralia College | B76: Centralia | C76: 9 | D76: Perkins Leadership Block Grant | E76: 112-PLB-17 | F76: 0 | G76: 16000 | H76: 2016-07-01 | I76: 2017-06-30 | J76: 2017-07-13
A77: Centralia College | B77: Centralia | C77: 10 | D77: Perkins Plan | E77: 112-PRK-17 | F77: 1887 | G77: 213428 | H77: 2016-07-01 | I77: 2017-06-30 | J77: 2017-07-13
A78: Centralia College | B78: Centralia | C78: 11 | D78: WorkFirst Delivery Agreement | E78: 112-WFDA-17 | F78: 0 | G78: 515112 | H78: 2016-07-01 | I78: 2017-06-30 | J78: 2017-07-14
A79: Clark College | B79: Clark | C79: 1 | D79: Basic Food Employment and Training Grant | E79: 114-BFET-16 | F79: 0 | G79: 430081 | H79: 2015-10-01 | I79: 2016-09-30 | J79: 2016-11-01
A80: Clark College | B80: Clark | C80: 2 | D80: Basic Food Employment and Training Grant | E80: 114-BFET-17 | F80: 390283 | G80: 390283 | H80: 2016-10-01 | I80: 2017-09-30 | J80: 2017-10-31
A81: Clark College | B81: Clark | C81: 3 | D81: BEdA Leadership Block Grant | E81: 114-BLB-17 | F81: 0 | G81: 4477 | H81: 2016-07-01 | I81: 2017-06-30 | J81: 2017-07-13
A82: Clark College | B82: Clark | C82: 4 | D82: BEdA Master Grant | E82: 114-BEDA-17 | F82: 0 | G82: 249917 | H82: 2016-07-01 | I82: 2017-06-30 | J82: 2017-07-13
A83: Clark College | B83: Clark | C83: 5 | D83: BEdA Program – IEL/Civics Grant Budget | E83: 114-IELC-17 | F83: 0 | G83: 51222 | H83: 2016-07-01 | I83: 2017-06-30 | J83: 2017-07-13
A84: Clark College | B84: Clark | C84: 6 | D84: BEdA Special Projects Grant | E84: 114-BSP-17 | F84: 3800 | G84: 3800 | H84: 2016-11-02 | I84: 2017-06-30 | J84: 2017-07-13
A85: Clark College | B85: Clark | C85: 7 | D85: Correctional Education Grant | E85: 114-CE-17 | F85: 0 | G85: 458496 | H85: 2016-07-01 | I85: 2017-06-30 | J85: 2017-07-13
A86: Clark College | B86: Clark | C86: 8 | D86: Early Achievers Grant | E86: 114-EAG-17 | F86: 16600 | G86: 83000 | H86: 2016-07-01 | I86: 2017-06-30 | J86: 2017-07-13
A87: Clark College | B87: Clark | C87: 9 | D87: Faculty Learning Communities Initiative Grant | E87: 114-FLCA-17GP | F87: 0 | G87: 3563 | H87: 2016-07-01 | I87: 2017-06-30 | J87: 2017-07-13
A88: Clark College | B88: Clark | C88: 10 | D88: Faculty Learning Communities Initiative Grant | E88: 114-FLCA-17PP | F88: 0 | G88: 5000 | H88: 2016-07-01 | I88: 2017-06-30 | J88: 2017-07-13
A89: Clark College | B89: Clark | C89: 11 | D89: I-DEA Technology Expansion Grant | E89: 114-IDEA-17 | F89: 0 | G89: 20000 | H89: 2016-08-25 | I89: 2017-06-30 | J89: 2017-07-13
A90: Clark College | B90: Clark | C90: 12 | D90: Misc. General Grant | E90: 114-B2C-17 | F90: 0 | G90: 2500 | H90: 2016-08-01 | I90: 2017-06-30 | J90: 2017-07-13
A91: Clark College | B91: Clark | C91: 13 | D91: Misc. General Grant | E91: 114-B2C2-17 | F91: 1000 | G91: 1000 | H91: 2016-11-01 | I91: 2017-06-30 | J91: 2017-07-13
A92: Clark College | B92: Clark | C92: 14 | D92: Misc. General Grant | E92: 114-FOCM-17 | F92: 855 | G92: 855 | H92: 2016-09-29 | I92: 2016-10-14 | J92: 2017-01-31
A93: Clark College | B93: Clark | C93: 15 | D93: Misc. General Grant | E93: 114-FSOCC-17 | F93: 1600 | G93: 1600 | H93: 2016-12-01 | I93: 2017-01-31 | J93: 2017-04-30
A94: Clark College | B94: Clark | C94: 16 | D94: Perkins Leadership Block Grant | E94: 114-PLB-17 | F94: 16000 | G94: 16000 | H94: 2016-09-27 | I94: 2017-06-30 | J94: 2017-07-13
A95: Clark College | B95: Clark | C95: 17 | D95: Perkins Plan | E95: 114-PRK-17 | F95: 6760 | G95: 557909 | H95: 2016-07-01 | I95: 2017-06-30 | J95: 2017-07-13
A96: Clark College | B96: Clark | C96: 18 | D96: WorkFirst Delivery Agreement | E96: 114-WFDA-17 | F96: 0 | G96: 579940 | H96: 2016-07-01 | I96: 2017-06-30 | J96: 2017-07-14
A97: Clover Park Technical College | B97: Clover Park | C97: 1 | D97: Basic Food Employment and Training Grant | E97: 129-BFET-16 | F97: 0 | G97: 586602 | H97: 2015-10-01 | I97: 2016-09-30 | J97: 2016-11-01
A98: Clover Park Technical College | B98: Clover Park | C98: 2 | D98: Basic Food Employment and Training Grant | E98: 129-BFET-17 | F98: 632301 | G98: 632301 | H98: 2016-10-01 | I98: 2017-09-30 | J98: 2017-10-31
A99: Clover Park Technical College | B99: Clover Park | C99: 3 | D99: BEdA Leadership Block Grant | E99: 129-BLB-17 | F99: 0 | G99: 4477 | H99: 2016-07-01 | I99: 2017-06-30 | J99: 2017-07-13
A100: Clover Park Technical College | B100: Clover Park | C100: 4 | D100: BEdA Master Grant | E100: 129-BEDA-17 | F100: 0 | G100: 126876 | H100: 2016-07-01 | I100: 2017-06-30 | J100: 2017-07-13
A101: Clover Park Technical College | B101: Clover Park | C101: 5 | D101: BEdA Program – IEL/Civics Grant Budget | E101: 129-IELC-17 | F101: 0 | G101: 26392 | H101: 2016-07-01 | I101: 2017-06-30 | J101: 2017-07-13
A102: Clover Park Technical College | B102: Clover Park | C102: 6 | D102: BEdA Special Projects Grant | E102: 129-BSP-16 | F102: 0 | G102: 22800 | H102: 2016-06-22 | I102: 2017-06-30 | J102: 2017-07-13
A103: Clover Park Technical College | B103: Clover Park | C103: 7 | D103: Perkins Innovation Project | E103: 129-PIP-17 | F103: 0 | G103: 15000 | H103: 2016-08-10 | I103: 2017-06-30 | J103: 2017-07-13
A104: Clover Park Technical College | B104: Clover Park | C104: 8 | D104: Perkins Plan | E104: 129-PRK-17 | F104: 5561 | G104: 479163 | H104: 2016-07-01 | I104: 2017-06-30 | J104: 2017-07-13
A105: Clover Park Technical College | B105: Clover Park | C105: 9 | D105: WorkFirst Delivery Agreement | E105: 129-WFDA-17 | F105: 0 | G105: 620232 | H105: 2016-07-01 | I105: 2017-06-30 | J105: 2017-07-14
A106: Columbia Basin College | B106: Columbia | C106: 1 | D106: Basic Food Employment and Training Grant | E106: 119-BFET-16 | F106: 0 | G106: 216553 | H106: 2015-10-01 | I106: 2016-09-30 | J106: 2016-10-31
A107: Columbia Basin College | B107: Columbia | C107: 2 | D107: Basic Food Employment and Training Grant | E107: 119-BFET-17 | F107: 280394 | G107: 280394 | H107: 2016-10-01 | I107: 2017-09-30 | J107: 2017-10-31
A108: Columbia Basin College | B108: Columbia | C108: 3 | D108: BEdA Leadership Block Grant | E108: 119-BLB-17 | F108: 0 | G108: 4230 | H108: 2016-07-01 | I108: 2017-06-30 | J108: 2017-07-13
A109: Columbia Basin College | B109: Columbia | C109: 4 | D109: BEdA Master Grant | E109: 119-BEDA-17 | F109: 0 | G109: 178184 | H109: 2016-07-01 | I109: 2017-06-30 | J109: 2017-07-13
A110: Columbia Basin College | B110: Columbia | C110: 5 | D110: BEdA Program – IEL/Civics Grant Budget | E110: 119-IELC-17 | F110: 0 | G110: 39202 | H110: 2016-07-01 | I110: 2017-06-30 | J110: 2017-07-13
A111: Columbia Basin College | B111: Columbia | C111: 6 | D111: Early Achievers Grant | E111: 119-EAG-17 | F111: 49800 | G111: 141100 | H111: 2016-07-01 | I111: 2017-06-30 | J111: 2017-07-13
A112: Columbia Basin College | B112: Columbia | C112: 7 | D112: Misc. General Grant | E112: 119-B2C-17 | F112: 0 | G112: 1000 | H112: 2016-08-01 | I112: 2017-06-30 | J112: 2017-07-13
A113: Columbia Basin College | B113: Columbia | C113: 8 | D113: Perkins Non-Traditional Employment & Training Gran | E113: 119-PNT-17 | F113: 0 | G113: 5000 | H113: 2016-08-09 | I113: 2017-06-30 | J113: 2017-07-13
A114: Columbia Basin College | B114: Columbia | C114: 9 | D114: Perkins Plan | E114: 119-PRK-17 | F114: 3023 | G114: 282232 | H114: 2016-07-01 | I114: 2017-06-30 | J114: 2017-07-13
A115: Columbia Basin College | B115: Columbia | C115: 10 | D115: WorkFirst Delivery Agreement | E115: 119-WFDA-17 | F115: 0 | G115: 204673 | H115: 2016-07-01 | I115: 2017-06-30 | J115: 2017-07-14
A116: Edmonds Community College | B116: Edmonds | C116: 1 | D116: Basic Food Employment and Training Grant | E116: 123-BFET-16 | F116: 0 | G116: 600799 | H116: 2015-10-01 | I116: 2016-09-30 | J116: 2016-10-31
A117: Edmonds Community College | B117: Edmonds | C117: 2 | D117: Basic Food Employment and Training Grant | E117: 123-BFET-17 | F117: 631619 | G117: 631619 | H117: 2016-10-01 | I117: 2017-09-30 | J117: 2017-10-31
A118: Edmonds Community College | B118: Edmonds | C118: 3 | D118: BEdA Leadership Block Grant | E118: 123-BLB-17 | F118: 0 | G118: 4722 | H118: 2016-07-01 | I118: 2017-06-30 | J118: 2017-07-13
A119: Edmonds Community College | B119: Edmonds | C119: 4 | D119: BEdA Master Grant | E119: 123-BEDA-17 | F119: 0 | G119: 258899 | H119: 2016-07-01 | I119: 2017-06-30 | J119: 2017-07-13
A120: Edmonds Community College | B120: Edmonds | C120: 6 | D120: BEdA Program – IEL/Civics Grant Budget | E120: 123-IELC-17 | F120: 0 | G120: 62637 | H120: 2016-07-01 | I120: 2017-06-30 | J120: 2017-07-13
A121: Edmonds Community College | B121: Edmonds | C121: 7 | D121: BEdA Special Projects Grant | E121: 123-BSP-17 | F121: 3700 | G121: 3700 | H121: 2016-11-02 | I121: 2017-06-30 | J121: 2017-07-13
A122: Edmonds Community College | B122: Edmonds | C122: 8 | D122: Correctional Education Grant | E122: 123-CE-17 | F122: 0 | G122: 1699887 | H122: 2016-07-01 | I122: 2017-06-30 | J122: 2017-07-13
A123: Edmonds Community College | B123: Edmonds | C123: 9 | D123: Early Achievers Grant | E123: 123-EAG-17 | F123: 33200 | G123: 157700 | H123: 2016-07-01 | I123: 2017-06-30 | J123: 2017-07-13
A124: Edmonds Community College | B124: Edmonds | C124: 10 | D124: Faculty Learning Communities Initiative Grant | E124: 123-FLCA-17 | F124: 0 | G124: 3725 | H124: 2016-07-01 | I124: 2017-06-30 | J124: 2017-07-13
A125: Edmonds Community College | B125: Edmonds | C125: 11 | D125: Misc. General Grant | E125: 123-CC-17 | F125: 0 | G125: 4800 | H125: 2016-07-01 | I125: 2016-09-30 | J125: 2016-10-31
A126: Edmonds Community College | B126: Edmonds | C126: 12 | D126: Perkins Leadership Block Grant | E126: 123-PLB-17 | F126: 0 | G126: 16000 | H126: 2016-07-01 | I126: 2017-06-30 | J126: 2017-07-13
A127: Edmonds Community College | B127: Edmonds | C127: 13 | D127: Perkins Plan | E127: 123-PRK-17 | F127: 3168 | G127: 252594 | H127: 2016-07-01 | I127: 2017-06-30 | J127: 2017-07-13
A128: Edmonds Community College | B128: Edmonds | C128: 14 | D128: WorkFirst Delivery Agreement | E128: 123-WFDA-17 | F128: 10000 | G128: 506569 | H128: 2016-07-01 | I128: 2017-06-30 | J128: 2017-07-14
A129: Everett Community College | B129: Everett | C129: 1 | D129: Basic Food Employment and Training Grant | E129: 105-BFET-16 | F129: 0 | G129: 355437 | H129: 2015-10-01 | I129: 2016-09-30 | J129: 2016-10-31
A130: Everett Community College | B130: Everett | C130: 2 | D130: Basic Food Employment and Training Grant | E130: 105-BFET-17 | F130: 354385 | G130: 354385 | H130: 2016-10-01 | I130: 2017-09-30 | J130: 2017-10-31
A131: Everett Community College | B131: Everett | C131: 3 | D131: BEdA Leadership Block Grant | E131: 105-BLB-17 | F131: 0 | G131: 4230 | H131: 2016-07-01 | I131: 2017-06-30 | J131: 2017-07-13
A132: Everett Community College | B132: Everett | C132: 4 | D132: BEdA Master Grant | E132: 105-BEDA-17 | F132: 0 | G132: 207107 | H132: 2016-07-01 | I132: 2017-06-30 | J132: 2017-07-13
A133: Everett Community College | B133: Everett | C133: 6 | D133: BEdA Program – IEL/Civics Grant Budget | E133: 105-IELC-17 | F133: 0 | G133: 47484 | H133: 2016-07-01 | I133: 2017-06-30 | J133: 2017-07-13
A134: Everett Community College | B134: Everett | C134: 7 | D134: BEdA Special Projects Grant | E134: 105-BSP-16 | F134: 0 | G134: 30400 | H134: 2016-06-02 | I134: 2017-06-30 | J134: 2017-07-13
A135: Everett Community College | B135: Everett | C135: 8 | D135: Early Achievers Grant | E135: 105-EAG-17 | F135: 33200 | G135: 99600 | H135: 2016-07-01 | I135: 2017-06-30 | J135: 2017-07-13
A136: Everett Community College | B136: Everett | C136: 9 | D136: Job Skills Program Grant | E136: 105-JSP-16PM | F136: -4057 | G136: 22793 | H136: 2015-09-01 | I136: 2017-06-30 | J136: 2017-07-15
A137: Everett Community College | B137: Everett | C137: 10 | D137: Misc. General Grant | E137: 105-NGCC-15 | F137: 0 | G137: 5000 | H137: 2015-02-02 | I137: 2016-12-31 | J137: 2017-01-31
A138: Everett Community College | B138: Everett | C138: 11 | D138: Perkins Innovation Project | E138: 105-PIP-17 | F138: 15000 | G138: 15000 | H138: 2016-12-19 | I138: 2017-06-30 | J138: 2017-07-13
A139: Everett Community College | B139: Everett | C139: 12 | D139: Perkins Leadership Block Grant | E139: 105-PLB-17 | F139: 0 | G139: 16000 | H139: 2016-07-01 | I139: 2017-06-30 | J139: 2017-07-13
A140: Everett Community College | B140: Everett | C140: 13 | D140: Perkins Non-Traditional Employment & Training Gran | E140: 105-PNT-17 | F140: 0 | G140: 5000 | H140: 2016-08-25 | I140: 2017-06-30 | J140: 2017-07-13
A141: Everett Community College | B141: Everett | C141: 14 | D141: Perkins Plan | E141: 105-PRK-17 | F141: 3828 | G141: 305183 | H141: 2016-07-01 | I141: 2017-06-30 | J141: 2017-07-13
A142: Everett Community College | B142: Everett | C142: 15 | D142: WorkFirst Delivery Agreement | E142: 105-WFDA-17 | F142: 0 | G142: 539940 | H142: 2016-07-01 | I142: 2017-06-30 | J142: 2017-07-14
A143: Grays Harbor College | B143: Grays Harbor | C143: 1 | D143: Basic Food Employment and Training Grant | E143: 102-BFET-16 | F143: 0 | G143: 262683 | H143: 2015-10-01 | I143: 2016-09-30 | J143: 2016-10-31
A144: Grays Harbor College | B144: Grays Harbor | C144: 2 | D144: Basic Food Employment and Training Grant | E144: 102-BFET-17 | F144: 240363 | G144: 240363 | H144: 2016-10-01 | I144: 2017-09-30 | J144: 2017-10-31
A145: Grays Harbor College | B145: Grays Harbor | C145: 3 | D145: BEdA Leadership Block Grant | E145: 102-BLB-17 | F145: 0 | G145: 4477 | H145: 2016-07-01 | I145: 2017-06-30 | J145: 2017-07-13
A146: Grays Harbor College | B146: Grays Harbor | C146: 4 | D146: BEdA Master Grant | E146: 102-BEDA-17 | F146: 0 | G146: 122928 | H146: 2016-07-01 | I146: 2017-06-30 | J146: 2017-07-13
A147: Grays Harbor College | B147: Grays Harbor | C147: 5 | D147: BEdA Program – IEL/Civics Grant Budget | E147: 102-IELC-17 | F147: 0 | G147: 24061 | H147: 2016-07-01 | I147: 2017-06-30 | J147: 2017-07-13
A148: Grays Harbor College | B148: Grays Harbor | C148: 6 | D148: Correctional Education Grant | E148: 102-CE-17 | G148: 1753942 | H148: 2016-07-01 | I148: 2017-06-30 | J148: 2017-07-13
A149: Grays Harbor College | B149: Grays Harbor | C149: 7 | D149: Early Achievers Grant | E149: 102-EAG-17 | F149: 8300 | G149: 74700 | H149: 2016-07-01 | I149: 2017-06-30 | J149: 2017-07-13
A150: Grays Harbor College | B150: Grays Harbor | C150: 8 | D150: Job Skills Program Grant | E150: 102-JSP-16SD | F150: -2667 | G150: 15450 | H150: 2016-01-01 | I150: 2017-06-30 | J150: 2017-07-15
A151: Grays Harbor College | B151: Grays Harbor | C151: 9 | D151: Job Skills Program Grant | E151: 102-JSP-17SD | F151: 0 | G151: 66884 | H151: 2016-07-01 | I151: 2017-06-30 | J151: 2017-07-13
A152: Grays Harbor College | B152: Grays Harbor | C152: 10 | D152: Misc. General Grant | E152: 102-IDRV2-16 | F152: 0 | G152: 18000 | H152: 2016-04-25 | I152: 2016-07-31 | J152: 2016-07-31
A153: Grays Harbor College | B153: Grays Harbor | C153: 11 | D153: Perkins Leadership Block Grant | E153: 102-PLB-17 | F153: 0 | G153: 15000 | H153: 2016-07-01 | I153: 2017-06-30 | J153: 2017-07-13
A154: Grays Harbor College | B154: Grays Harbor | C154: 12 | D154: Perkins Plan | E154: 102-PRK-17 | F154: 1623 | G154: 198643 | H154: 2016-07-01 | I154: 2017-06-30 | J154: 2017-07-13
A155: Grays Harbor College | B155: Grays Harbor | C155: 13 | D155: WorkFirst Delivery Agreement | E155: 102-WFDA-17 | F155: 29350 | G155: 531461 | H155: 2016-07-01 | I155: 2017-06-30 | J155: 2017-07-14
A156: Green River College | B156: Green River | C156: 1 | D156: Basic Food Employment and Training Grant | E156: 110-BFET-16 | F156: 0 | G156: 481212 | H156: 2015-10-01 | I156: 2016-09-30 | J156: 2016-10-31
A157: Green River College | B157: Green River | C157: 2 | D157: Basic Food Employment and Training Grant | E157: 110-BFET-17 | F157: 469654 | G157: 469654 | H157: 2016-10-01 | I157: 2017-09-30 | J157: 2017-10-31
A158: Green River College | B158: Green River | C158: 3 | D158: BEdA Leadership Block Grant | E158: 110-BLB-17 | F158: 0 | G158: 3984 | H158: 2016-07-01 | I158: 2017-06-30 | J158: 2017-07-13
A159: Green River College | B159: Green River | C159: 4 | D159: BEdA Master Grant | E159: 110-BEDA-17 | F159: 0 | G159: 248675 | H159: 2016-07-01 | I159: 2017-06-30 | J159: 2017-07-13
A160: Green River College | B160: Green River | C160: 5 | D160: BEdA Program – IEL/Civics Grant Budget | E160: 110-IELC-17 | F160: 0 | G160: 51913 | H160: 2016-07-01 | I160: 2017-06-30 | J160: 2017-07-13
A161: Green River College | B161: Green River | C161: 6 | D161: Early Achievers Grant | E161: 110-EAG-17 | F161: 24900 | G161: 182600 | H161: 2016-07-01 | I161: 2017-06-30 | J161: 2017-07-13
A162: Green River College | B162: Green River | C162: 7 | D162: Job Skills Program Grant | E162: 110-JSP-16HEX | F162: -40000 | G162: 115100 | H162: 2015-07-01 | I162: 2017-06-30 | J162: 2017-07-15
A163: Green River College | B163: Green River | C163: 8 | D163: Job Skills Program Grant | E163: 110-JSP-16CGM | F163: -5603 | G163: 54697 | H163: 2015-08-01 | I163: 2017-06-30 | J163: 2017-07-15
A164: Green River College | B164: Green River | C164: 9 | D164: Job Skills Program Grant | E164: 110-JSP-16TAS | F164: -5191 | G164: 79709 | H164: 2015-07-25 | I164: 2017-06-30 | J164: 2017-07-15
A165: Green River College | B165: Green River | C165: 10 | D165: Job Skills Program Grant | E165: 110-JSP-16EK | F165: -1754 | G165: 87946 | H165: 2015-07-20 | I165: 2017-06-30 | J165: 2017-07-15
A166: Green River College | B166: Green River | C166: 11 | D166: Job Skills Program Grant | E166: 110-JSP-16BC | F166: -1021 | G166: 87679 | H166: 2015-08-01 | I166: 2017-06-30 | J166: 2017-07-15
A167: Green River College | B167: Green River | C167: 12 | D167: Job Skills Program Grant | E167: 110-JSP-16SS | F167: -171 | G167: 52629 | H167: 2015-07-01 | I167: 2017-06-30 | J167: 2017-07-15
A168: Green River College | B168: Green River | C168: 13 | D168: Job Skills Program Grant | E168: 110-JSP-16CG | F168: -117 | G168: 62883 | H168: 2015-07-15 | I168: 2017-06-30 | J168: 2017-07-15
A169: Green River College | B169: Green River | C169: 14 | D169: Job Skills Program Grant | E169: 110-JSP-16HC | F169: -90 | G169: 49410 | H169: 2015-07-15 | I169: 2017-06-30 | J169: 2017-07-15
A170: Green River College | B170: Green River | C170: 15 | D170: Job Skills Program Grant | E170: 110-JSP-16AVT | F170: 0 | G170: 123600 | H170: 2015-07-01 | I170: 2017-06-30 | J170: 2017-07-15
A171: Green River College | B171: Green River | C171: 16 | D171: Job Skills Program Grant | E171: 110-JSP-16ET | F171: 0 | G171: 133900 | H171: 2015-07-01 | I171: 2017-06-30 | J171: 2017-07-15
A172: Green River College | B172: Green River | C172: 17 | D172: Job Skills Program Grant | E172: 110-JSP-16HS | F172: 0 | G172: 118800 | H172: 2015-08-01 | I172: 2017-06-30 | J172: 2017-07-15
A173: Green River College | B173: Green River | C173: 18 | D173: Job Skills Program Grant | E173: 110-JSP-16NF | F173: 0 | G173: 59700 | H173: 2016-05-25 | I173: 2017-06-30 | J173: 2017-07-15
A174: Green River College | B174: Green River | C174: 19 | D174: Job Skills Program Grant | E174: 110-JSP-16RWD | F174: 0 | G174: 41400 | H174: 2015-11-01 | I174: 2017-06-30 | J174: 2017-07-15
A175: Green River College | B175: Green River | C175: 20 | D175: Job Skills Program Grant | E175: 110-JSP-16SS2 | F175: 0 | G175: 49200 | H175: 2016-04-01 | I175: 2017-06-30 | J175: 2017-07-15
A176: Green River College | B176: Green River | C176: 21 | D176: Job Skills Program Grant | E176: 110-JSP-16TT | F176: 0 | G176: 83300 | H176: 2015-10-16 | I176: 2017-06-30 | J176: 2017-07-15
A177: Green River College | B177: Green River | C177: 22 | D177: Job Skills Program Grant | E177: 110-JSP-17CG | F177: 76400 | G177: 76400 | H177: 2016-07-21 | I177: 2017-06-30 | J177: 2017-07-13
A178: Green River College | B178: Green River | C178: 23 | D178: Job Skills Program Grant | E178: 110-JSP-17PM | F178: 88100 | G178: 88100 | H178: 2016-07-01 | I178: 2017-06-30 | J178: 2017-07-13
A179: Green River College | B179: Green River | C179: 24 | D179: Job Skills Program Grant | E179: 110-JSP-17SS | F179: 48900 | G179: 48900 | H179: 2016-08-04 | I179: 2017-06-30 | J179: 2017-07-13
A180: Green River College | B180: Green River | C180: 25 | D180: Misc. General Grant | E180: 110-ACC-17 | F180: 1000 | G180: 1000 | H180: 2016-12-01 | I180: 2017-06-30 | J180: 2017-07-13
A181: Green River College | B181: Green River | C181: 26 | D181: Perkins Plan | E181: 110-PRK-17 | F181: 3845 | G181: 306519 | H181: 2016-07-01 | I181: 2017-06-30 | J181: 2017-07-13
A182: Green River College | B182: Green River | C182: 27 | D182: Perkins Special Project | E182: 110-PSP-17 | F182: 0 | G182: 10000 | H182: 2016-07-01 | I182: 2017-06-30 | J182: 2017-07-13
A183: Green River College | B183: Green River | C183: 28 | D183: WorkFirst Delivery Agreement | E183: 110-WFDA-17 | F183: 0 | G183: 755482 | H183: 2016-07-01 | I183: 2017-06-30 | J183: 2017-07-14
A184: Highline College | B184: Highline | C184: 1 | D184: Basic Food Employment and Training Grant | E184: 109-BFET-16 | F184: 0 | G184: 232735 | H184: 2015-10-01 | I184: 2016-09-30 | J184: 2016-10-31
A185: Highline College | B185: Highline | C185: 2 | D185: Basic Food Employment and Training Grant | E185: 109-BFET-17 | F185: 231609 | G185: 231609 | H185: 2016-10-01 | I185: 2017-09-30 | J185: 2017-10-31
A186: Highline College | B186: Highline | C186: 3 | D186: BEdA Leadership Block Grant | E186: 109-BLB-17 | F186: 0 | G186: 4230 | H186: 2016-07-01 | I186: 2017-06-30 | J186: 2017-07-13
A187: Highline College | B187: Highline | C187: 4 | D187: BEdA Master Grant | E187: 109-BEDA-17 | F187: 0 | G187: 461275 | H187: 2016-07-01 | I187: 2017-06-30 | J187: 2017-07-13
A188: Highline College | B188: Highline | C188: 5 | D188: BEdA Program – IEL/Civics Grant Budget | E188: 109-IELC-17 | F188: 0 | G188: 108140 | H188: 2016-07-01 | I188: 2017-06-30 | J188: 2017-07-13
A189: Highline College | B189: Highline | C189: 6 | D189: BEdA Special Projects Grant | E189: 109-BSP-16 | F189: 0 | G189: 1200 | H189: 2016-03-10 | I189: 2016-07-31 | J189: 2016-09-30
A190: Highline College | B190: Highline | C190: 7 | D190: Early Achievers Grant | E190: 109-EAG-17 | F190: 41500 | G190: 132800 | H190: 2016-07-01 | I190: 2017-06-30 | J190: 2017-07-13
A191: Highline College | B191: Highline | C191: 8 | D191: Faculty Learning Communities Initiative Grant | E191: 109-FLCA-17 | F191: 0 | G191: 1856 | H191: 2016-07-01 | I191: 2017-06-30 | J191: 2017-07-13
A192: Highline College | B192: Highline | C192: 9 | D192: I-DEA Technology Expansion Grant | E192: 109-IDEA-17 | F192: 0 | G192: 20000 | H192: 2016-08-25 | I192: 2017-06-30 | J192: 2017-07-13
A193: Highline College | B193: Highline | C193: 10 | D193: I-DEA Technology Expansion Grant | E193: 109-IDEA2-17 | F193: 0 | G193: 20000 | H193: 2016-08-25 | I193: 2017-06-30 | J193: 2017-07-13
A194: Highline College | B194: Highline | C194: 11 | D194: Misc. General Grant | E194: 109-B2C-17 | F194: 0 | G194: 2000 | H194: 2016-08-01 | I194: 2017-06-30 | J194: 2017-07-13
A195: Highline College | B195: Highline | C195: 12 | D195: Misc. General Grant | E195: 109-RISE-16 | F195: 0 | G195: 150252 | H195: 2015-10-01 | I195: 2016-09-30 | J195: 2016-10-15
A196: Highline College | B196: Highline | C196: 13 | D196: Perkins Leadership Block Grant | E196: 109-PLP-17 | F196: 0 | G196: 16000 | H196: 2016-07-25 | I196: 2017-06-30 | J196: 2017-07-13
A197: Highline College | B197: Highline | C197: 14 | D197: Perkins Plan | E197: 109-PRK-17 | F197: 3539 | G197: 282144 | H197: 2016-07-01 | I197: 2017-06-30 | J197: 2017-07-13
A198: Highline College | B198: Highline | C198: 15 | D198: RISE Grant | E198: 109-RISE-17 | F198: 175752 | G198: 175752 | H198: 2016-10-01 | I198: 2017-09-30 | J198: 2017-10-15
A199: Highline College | B199: Highline | C199: 16 | D199: WorkFirst Delivery Agreement | E199: 109-WFDA-17 | F199: 0 | G199: 861384 | H199: 2016-07-01 | I199: 2017-06-30 | J199: 2017-07-14
A200: Lake Washington Institute of Technology | B200: Lake Washington | C200: 1 | D200: Basic Food Employment and Training Grant | E200: 126-BFET-16 | F200: 0 | G200: 354231 | H200: 2015-10-01 | I200: 2016-09-30 | J200: 2016-10-31
... 238 more rows

Sheet district (hidden)
A1: DISTRICT | B1: NAME | E1: DISTRICT | F1: NAME | G1: DISTRICT | I1: This Tab is used to combine multiply Districts into ONE
A2: 28 | B2: Bates | E2: 28 | F2: Bates | G2: 28 | I2: Bates Technical College | J2: Bates
A3: 8 | B3: Bellevue | E3: 8 | F3: Bellevue | G3: 8 | I3: Bellevue College | J3: Bellevue
A4: 25 | B4: Bellingham | E4: 25 | F4: Bellingham | G4: 25 | I4: Bellingham Technical College | J4: Bellingham
A5: 18 | B5: Big Bend | E5: 18 | F5: Big Bend | G5: 18 | I5: Big Bend Community College | J5: Big Bend
A6: 30 | B6: Cascadia | E6: 30 | F6: Cascadia | G6: 30 | I6: Cascadia College | J6: Cascadia
A7: 12 | B7: Centralia | E7: 12 | F7: Centralia | G7: 12 | I7: Centralia College | J7: Centralia
A8: 14 | B8: Clark | E8: 14 | F8: Clark | G8: 14 | I8: Clark College | J8: Clark
A9: 29 | B9: Clover Park | E9: 29 | F9: Clover Park | G9: 29 | I9: Clover Park Technical College | J9: Clover Park
A10: 19 | B10: Columbia Basin | E10: 19 | F10: Columbia Basin | G10: 19 | I10: Columbia Basin College | J10: Columbia Basin
A11: 23 | B11: Edmonds | E11: 23 | F11: Edmonds | G11: 23 | I11: Edmonds Community College | J11: Edmonds
A12: 5 | B12: Everett | E12: 5 | F12: Everett | G12: 5 | I12: Everett Community College | J12: Everett
A13: 2 | B13: Grays Harbor | E13: 00 | F13: Future Allocations/Reserves | G13: 00 | I13: Grays Harbor College | J13: Grays Harbor
A14: 10 | B14: Green River | E14: 2 | F14: Grays Harbor | G14: 2 | I14: Green River College | J14: Green River
A15: 9 | B15: Highline | E15: 10 | F15: Green River | G15: 10 | I15: Highline College | J15: Highline
A16: 26 | B16: Lake Washington | E16: 9 | F16: Highline | G16: 9 | I16: Lake Washington Institute of Technology | J16: Lake Washington
A17: 13 | B17: Lower Columbia | E17: 26 | F17: Lake Washington | G17: 26 | I17: Lower Columbia College | J17: Lower Columbia
A18: 3 | B18: Olympic | E18: 13 | F18: Lower Columbia | G18: 13 | I18: North Seattle College | J18: Seattle
A19: 1 | B19: Peninsula | E19: 3 | F19: Olympic | G19: 3 | I19: Olympic College | J19: Olympic
A20: 11 | B20: Pierce | E20: 1 | F20: Peninsula | G20: 1 | I20: Peninsula College | J20: Peninsula
A21: 27 | B21: Renton | E21: 11 | F21: Pierce | G21: 11 | I21: Pierce College District | J21: Pierce
A22: 6 | B22: Seattle | E22: 27 | F22: Renton | G22: 27 | I22: Pierce College Fort Steilacoom | J22: Pierce
A23: 7 | B23: Shoreline | E23: 89 | F23: SBCTC Admin | G23: 89 | I23: Pierce College Puyallup | J23: Pierce
A24: 4 | B24: Skagit Valley | E24: 90 | F24: SBCTC Program | G24: 90 | I24: Renton Technical College | J24: Renton
A25: 24 | B25: South Puget Sound | E25: 6 | F25: Seattle | G25: 6 | I25: Seattle Central College | J25: Seattle
A26: 17 | B26: Spokane | E26: 7 | F26: Shoreline | G26: 7 | I26: Seattle College District | J26: Seattle
A27: 22 | B27: Tacoma | E27: 4 | F27: Skagit Valley | G27: 4 | I27: Seattle Vocational Institute | J27: Seattle
A28: 20 | B28: Walla Walla | E28: 24 | F28: South Puget Sound | G28: 24 | I28: Shoreline Community College | J28: Shoreline
A29: 15 | B29: Wenatchee Valley | E29: 17 | F29: Spokane | G29: 17 | I29: Skagit Valley College | J29: Skagit Valley
A30: 21 | B30: Whatcom | E30: 22 | F30: Tacoma | G30: 22 | I30: South Puget Sound Community College | J30: South Puget Sound
A31: 16 | B31: Yakima Valley | E31: 20 | F31: Walla Walla | G31: 20 | I31: South Seattle College | J31: Seattle
A32: 89 | B32: SBCTC Admin | E32: 15 | F32: Wenatchee Valley | G32: 15 | I32: Spokane District Office | J32: Spokane
A33: 90 | B33: SBCTC Program | E33: 21 | F33: Whatcom | G33: 21 | I33: Spokane Falls Community College | J33: Spokane
A34: 00 | B34: Future Allocations/Reserves | E34: 16 | F34: Yakima Valley | G34: 16 | I34: Tacoma Community College | J34: Tacoma
I35: Walla Walla Community College | J35: Walla Walla
I36: Wenatchee Valley College | J36: Wenatchee Valley
I37: Whatcom Community College | J37: Whatcom
I38: Yakima Valley College | J38: Yakima Valley

Sheet Grant#vlookup (hidden)
A1: ALL Grant #'s & Titles in Grant Order are on this TAB
D2: This function adds how many grant are in each District & Adds that many rows to the District Tab
A3: defined as "grant_id_to_name" - a cut and paste values from tab "pivot on currentgrantdata" with district column removed - sorted by first col | E3: defined as "column_assignments" | BC3: # of grants | BD3: col number
A4: 1 | B4: 2 | D4: College # | E4: number of grants | G4: 1 | H4: 2 | I4: 3 | J4: 4 | K4: 5 | L4: 6 | M4: 7 | N4: 8 | O4: 9 | P4: 10 | Q4: 11 | R4: 12 | S4: 13 | T4: 14 | U4: 15 | V4: 16 | W4: 17 | X4: 18 | Y4: 19 | Z4: 20 | AA4: 21 | AB4: 22 | AC4: 23 | AD4: 24 | AE4: 25 | AF4: 26 | AG4: 27 | AH4: 28 | AI4: 29 | AJ4: 30 | AK4: 31 | AL4: 32 | AM4: 33 | AN4: 34 | AO4: 35 | AP4: 36 | AQ4: 37 | AR4: 38 | AS4: 39 | AT4: 40 | AU4: 41 | AV4: 42 | AW4: 43 | AX4: 44 | AY4: 45 | AZ4: 46 | BA4: 47 | BC4: 1 | BD4: 3
A5: 102-CE-17 | B5: Correctional Education Grant | D5: 28 | E5: Bates | F5: =COUNTIF(GrantAwardSched!$E$2:$E$435,28) -> 9 | G5: =IF(($F5-G$4)>0,G$4,IF(($F5-G$4)=0,G$4,IF(($F5-G$4)<0,"","X"))) -> 1 | H5: =IF(($F5-H$4)>0,H$4,IF(($F5-H$4)=0,H$4,IF(($F5-H$4)<0,"","X"))) -> 2 | I5: 3 | J5: 4 | K5: 5 | L5: 6 | M5: 7 | N5: 8 | O5: 9 | BC5: 2 | BD5: 4
A6: 101-BEDA-17 | B6: BEdA Master Grant | D6: 8 | E6: Bellevue | F6: =COUNTIF(GrantAwardSched!$E$2:$E$435,8) -> 9 | G6: =IF(($F6-G$4)>0,G$4,IF(($F6-G$4)=0,G$4,IF(($F6-G$4)<0,"","X"))) -> 1 | H6: 2 | I6: 3 | J6: 4 | K6: 5 | L6: 6 | M6: 7 | N6: 8 | O6: 9 | BC6: 3 | BD6: 5
A7: 101-BFET-16 | B7: Basic Food Employment and Training Grant | D7: 25 | E7: Bellingham | F7: =COUNTIF(GrantAwardSched!$E$2:$E$435,25) -> 12 | G7: 1 | H7: 2 | I7: 3 | J7: 4 | K7: 5 | L7: 6 | M7: 7 | N7: 8 | O7: 9 | P7: 10 | Q7: 11 | R7: 12 | BC7: 4 | BD7: 6
A8: 101-BFET-17 | B8: Basic Food Employment and Training Grant | D8: 18 | E8: Big Bend | F8: =COUNTIF(GrantAwardSched!$E$2:$E$435,18) -> 20 | G8: 1 | H8: 2 | I8: 3 | J8: 4 | K8: 5 | L8: 6 | M8: 7 | N8: 8 | O8: 9 | P8: 10 | Q8: 11 | R8: 12 | S8: 13 | T8: 14 | U8: 15 | V8: 16 | W8: 17 | X8: 18 | Y8: 19 | Z8: 20 | BC8: 5 | BD8: 7
A9: 101-BLB-17 | B9: BEdA Leadership Block Grant | D9: 30 | E9: Cascadia | F9: =COUNTIF(GrantAwardSched!$E$2:$E$435,30) -> 15 | G9: 1 | H9: 2 | I9: 3 | J9: 4 | K9: 5 | L9: 6 | M9: 7 | N9: 8 | O9: 9 | P9: 10 | Q9: 11 | R9: 12 | S9: 13 | T9: 14 | U9: 15 | BC9: 6 | BD9: 8
A10: 101-CE-17 | B10: Correctional Education Grant | D10: 12 | E10: Centralia | F10: =COUNTIF(GrantAwardSched!$E$2:$E$435,12) -> 11 | G10: 1 | H10: 2 | I10: 3 | J10: 4 | K10: 5 | L10: 6 | M10: 7 | N10: 8 | O10: 9 | P10: 10 | Q10: 11 | AG10: =IF(($F10-AG$4)>0,AG$4,IF(($F10-AG$4)=0,AG$4,IF(($F10-AG$4)<0,"","X"))) ->  | AW10: =IF(($F10-AW$4)>0,AW$4,IF(($F10-AW$4)=0,AW$4,IF(($F10-AW$4)<0,"","X"))) ->  | BC10: 7 | BD10: 9
A11: 101-EAG-17 | B11: Early Achievers Grant | D11: 14 | E11: Clark | F11: =COUNTIF(GrantAwardSched!$E$2:$E$435,14) -> 18 | G11: 1 | H11: 2 | I11: 3 | J11: 4 | K11: 5 | L11: 6 | M11: 7 | N11: 8 | O11: 9 | P11: 10 | Q11: 11 | R11: 12 | S11: 13 | T11: 14 | U11: 15 | V11: 16 | W11: =IF(($F11-W$4)>0,W$4,IF(($F11-W$4)=0,W$4,IF(($F11-W$4)<0,"","X"))) -> 17 | X11: 18 | BC11: 8 | BD11: 10
A12: 101-FLCE-17 | B12: Faculty Learning Communities Initiative Grant | D12: 29 | E12: Clover Park | F12: =COUNTIF(GrantAwardSched!$E$2:$E$435,29) -> 9 | G12: 1 | H12: 2 | I12: 3 | J12: 4 | K12: 5 | L12: 6 | M12: 7 | N12: 8 | O12: 9 | BC12: 9 | BD12: 11
A13: 101-IELC-17 | B13: BEdA Program – IEL/Civics Grant Budget | D13: 19 | E13: Columbia Basin | F13: =COUNTIF(GrantAwardSched!$E$2:$E$435,19) -> 10 | G13: 1 | H13: 2 | I13: 3 | J13: 4 | K13: 5 | L13: 6 | M13: 7 | N13: 8 | O13: 9 | P13: 10 | BC13: 10 | BD13: 12
A14: 101-PRK-17 | B14: Perkins Plan | D14: 23 | E14: Edmonds | F14: =COUNTIF(GrantAwardSched!$E$2:$E$435,23) -> 13 | G14: 1 | H14: 2 | I14: 3 | J14: 4 | K14: 5 | L14: 6 | M14: 7 | N14: 8 | O14: 9 | P14: 10 | Q14: 11 | R14: 12 | S14: 13 | BC14: 11 | BD14: 13
A15: 101-WFDA-17 | B15: WorkFirst Delivery Agreement | D15: 5 | E15: Everett | F15: =COUNTIF(GrantAwardSched!$E$2:$E$435,5) -> 14 | G15: 1 | H15: 2 | I15: 3 | J15: 4 | K15: 5 | L15: 6 | M15: 7 | N15: 8 | O15: 9 | P15: 10 | Q15: 11 | R15: 12 | S15: 13 | T15: 14 | BC15: 12 | BD15: 14
A16: 101-PLB-17 | B16: Perkins Leadership Block Grant | D16: 00 | E16: Future Allocations/Reserves | F16: =COUNTIF(GrantAwardSched!$E$2:$E$435,0) -> 0 | BC16: 13 | BD16: 15
A17: 102-BEDA-17 | B17: BEdA Master Grant | D17: 2 | E17: Grays Harbor | F17: =COUNTIF(GrantAwardSched!$E$2:$E$435,2) -> 13 | G17: 1 | H17: 2 | I17: 3 | J17: 4 | K17: 5 | L17: 6 | M17: 7 | N17: 8 | O17: 9 | P17: 10 | Q17: 11 | R17: 12 | S17: 13 | BC17: 14 | BD17: 16
A18: 102-BFET-16 | B18: Basic Food Employment and Training Grant | D18: 10 | E18: Green River | F18: =COUNTIF(GrantAwardSched!$E$2:$E$435,10) -> 28 | G18: 1 | H18: 2 | I18: 3 | J18: 4 | K18: 5 | L18: 6 | M18: 7 | N18: 8 | O18: 9 | P18: 10 | Q18: 11 | R18: 12 | S18: 13 | T18: 14 | U18: 15 | V18: 16 | W18: 17 | X18: 18 | Y18: 19 | Z18: 20 | AA18: 21 | AB18: 22 | AC18: 23 | AD18: 24 | AE18: 25 | AF18: 26 | AG18: 27 | AH18: 28 | BC18: 15 | BD18: 17
A19: 102-BLB-17 | B19: BEdA Leadership Block Grant | D19: 9 | E19: Highline | F19: =COUNTIF(GrantAwardSched!$E$2:$E$435,9) -> 14 | G19: 1 | H19: 2 | I19: 3 | J19: 4 | K19: 5 | L19: 6 | M19: 7 | N19: 8 | O19: 9 | P19: 10 | Q19: 11 | R19: 12 | S19: 13 | T19: 14 | BC19: 16 | BD19: 18
A20: 102-EAG-17 | B20: Early Achievers Grant | D20: 26 | E20: Lake Washington | F20: =COUNTIF(GrantAwardSched!$E$2:$E$435,26) -> 11 | G20: 1 | H20: 2 | I20: 3 | J20: 4 | K20: 5 | L20: 6 | M20: 7 | N20: 8 | O20: 9 | P20: 10 | Q20: 11 | BC20: 17 | BD20: 19
A21: 102-IDRV2-16 | B21: Misc. General Grant | D21: 13 | E21: Lower Columbia | F21: =COUNTIF(GrantAwardSched!$E$2:$E$435,13) -> 16 | G21: 1 | H21: 2 | I21: 3 | J21: 4 | K21: 5 | L21: 6 | M21: 7 | N21: 8 | O21: 9 | P21: 10 | Q21: 11 | R21: 12 | S21: 13 | T21: 14 | U21: 15 | V21: 16 | BC21: 18 | BD21: 20
A22: 102-IELC-17 | B22: BEdA Program – IEL/Civics Grant Budget | D22: 3 | E22: Olympic | F22: =COUNTIF(GrantAwardSched!$E$2:$E$435,3) -> 14 | G22: 1 | H22: 2 | I22: 3 | J22: 4 | K22: 5 | L22: 6 | M22: 7 | N22: 8 | O22: 9 | P22: 10 | Q22: 11 | R22: 12 | S22: 13 | T22: 14 | BC22: 19 | BD22: 21
A23: 102-JSP-16SD | B23: Job Skills Program Grant | D23: 1 | E23: Peninsula | F23: =COUNTIF(GrantAwardSched!$E$2:$E$435,1) -> 11 | G23: 1 | H23: 2 | I23: 3 | J23: 4 | K23: 5 | L23: 6 | M23: 7 | N23: 8 | O23: 9 | P23: 10 | Q23: 11 | BC23: 20 | BD23: 22
A24: 102-PLB-17 | B24: Perkins Leadership Block Grant | D24: 11 | E24: Pierce | F24: =COUNTIF(GrantAwardSched!$E$2:$E$435,11) -> 11 | G24: 1 | H24: 2 | I24: 3 | J24: 4 | K24: 5 | L24: 6 | M24: 7 | N24: 8 | O24: 9 | P24: 10 | Q24: 11 | BC24: 21 | BD24: 23
A25: 102-PRK-17 | B25: Perkins Plan | D25: 27 | E25: Renton | F25: =COUNTIF(GrantAwardSched!$E$2:$E$435,27) -> 12 | G25: 1 | H25: 2 | I25: 3 | J25: 4 | K25: 5 | L25: 6 | M25: 7 | N25: 8 | O25: 9 | P25: 10 | Q25: 11 | R25: 12 | BC25: 22 | BD25: 24
A26: 102-WFDA-17 | B26: WorkFirst Delivery Agreement | D26: 89 | E26: SBCTC Admin | F26: =COUNTIF(GrantAwardSched!$E$2:$E$435,89) -> 0 | Q26: =IF(($F26-Q$4)>0,Q$4,IF(($F26-Q$4)=0,Q$4,IF(($F26-Q$4)<0,"","X"))) ->  | BC26: 23 | BD26: 25
A27: 103-BEDA-17 | B27: BEdA Master Grant | D27: 90 | E27: SBCTC Program | F27: =COUNTIF(GrantAwardSched!$E$2:$E$435,90) -> 0 | G27: =IF(($F27-G$4)>0,G$4,IF(($F27-G$4)=0,G$4,IF(($F27-G$4)<0,"","X"))) ->  | BC27: 24 | BD27: 26
A28: 103-BFET-16 | B28: Basic Food Employment and Training Grant | D28: 6 | E28: Seattle | F28: =COUNTIF(GrantAwardSched!$E$2:$E$435,6) -> 50 | G28: 1 | H28: 2 | I28: 3 | J28: 4 | K28: 5 | L28: 6 | M28: 7 | N28: 8 | O28: 9 | P28: 10 | Q28: 11 | R28: 12 | S28: 13 | T28: 14 | U28: 15 | V28: 16 | W28: 17 | X28: 18 | Y28: 19 | Z28: 20 | AA28: 21 | AB28: 22 | AC28: 23 | AD28: 24 | AE28: 25 | AF28: 26 | AG28: 27 | AH28: 28 | AI28: 29 | AJ28: =IF(($F28-AJ$4)>0,AJ$4,IF(($F28-AJ$4)=0,AJ$4,IF(($F28-AJ$4)<0,"","X"))) -> 30 | AK28: 31 | AL28: 32 | AM28: 33 | AN28: 34 | AO28: 35 | AP28: 36 | AQ28: 37 | AR28: 38 | AS28: 39 | AT28: 40 | AU28: 41 | AV28: 42 | AW28: 43 | AX28: 44 | AY28: 45 | AZ28: 46 | BA28: 47 | BC28: 25 | BD28: 27
A29: 103-BLB-17 | B29: BEdA Leadership Block Grant | D29: 7 | E29: Shoreline | F29: =COUNTIF(GrantAwardSched!$E$2:$E$435,7) -> 9 | G29: 1 | H29: 2 | I29: 3 | J29: 4 | K29: 5 | L29: 6 | M29: 7 | N29: 8 | O29: 9 | AG29: =IF(($F29-AG$4)>0,AG$4,IF(($F29-AG$4)=0,AG$4,IF(($F29-AG$4)<0,"","X"))) ->  | AW29: =IF(($F29-AW$4)>0,AW$4,IF(($F29-AW$4)=0,AW$4,IF(($F29-AW$4)<0,"","X"))) ->  | BC29: 26 | BD29: 28
A30: 103-EAG-17 | B30: Early Achievers Grant | D30: 4 | E30: Skagit Valley | F30: =COUNTIF(GrantAwardSched!$E$2:$E$435,4) -> 14 | G30: 1 | H30: 2 | I30: 3 | J30: 4 | K30: 5 | L30: 6 | M30: 7 | N30: 8 | O30: 9 | P30: 10 | Q30: 11 | R30: 12 | S30: 13 | T30: 14 | BC30: 27 | BD30: 29
A31: 103-IDRV2-16 | B31: Misc. General Grant | D31: 24 | E31: South Puget Sound | F31: =COUNTIF(GrantAwardSched!$E$2:$E$435,24) -> 10 | G31: 1 | H31: 2 | I31: 3 | J31: 4 | K31: 5 | L31: 6 | M31: 7 | N31: 8 | O31: 9 | P31: 10 | BC31: 28 | BD31: 30
A32: 103-IELC-17 | B32: BEdA Program – IEL/Civics Grant Budget | D32: 17 | E32: Spokane | F32: =COUNTIF(GrantAwardSched!$E$2:$E$435,17) -> 16 | G32: 1 | H32: 2 | I32: 3 | J32: 4 | K32: 5 | L32: 6 | M32: 7 | N32: 8 | O32: 9 | P32: 10 | Q32: 11 | R32: 12 | S32: 13 | T32: 14 | U32: 15 | V32: 16 | BC32: 29 | BD32: 31
A33: 103-PRK-17 | B33: Perkins Plan | D33: 22 | E33: Tacoma | F33: =COUNTIF(GrantAwardSched!$E$2:$E$435,22) -> 13 | G33: 1 | H33: 2 | I33: 3 | J33: 4 | K33: 5 | L33: 6 | M33: 7 | N33: 8 | O33: 9 | P33: 10 | Q33: 11 | R33: 12 | S33: 13 | BC33: 30 | BD33: 32
A34: 103-WFDA-17 | B34: WorkFirst Delivery Agreement | D34: 20 | E34: Walla Walla | F34: =COUNTIF(GrantAwardSched!$E$2:$E$435,20) -> 13 | G34: 1 | H34: 2 | I34: 3 | J34: 4 | K34: 5 | L34: 6 | M34: 7 | N34: 8 | O34: 9 | P34: 10 | Q34: 11 | R34: 12 | S34: 13 | BC34: 31 | BD34: 33
A35: 104-BEDA-17 | B35: BEdA Master Grant | D35: 15 | E35: Wenatchee Valley | F35: =COUNTIF(GrantAwardSched!$E$2:$E$435,15) -> 12 | G35: 1 | H35: 2 | I35: 3 | J35: 4 | K35: 5 | L35: 6 | M35: 7 | N35: 8 | O35: 9 | P35: 10 | Q35: 11 | R35: 12 | BC35: 32 | BD35: 34
A36: 104-BFET-16 | B36: Basic Food Employment and Training Grant | D36: 21 | E36: Whatcom | F36: =COUNTIF(GrantAwardSched!$E$2:$E$435,21) -> 16 | G36: 1 | H36: 2 | I36: 3 | J36: 4 | K36: 5 | L36: 6 | M36: 7 | N36: 8 | O36: 9 | P36: 10 | Q36: 11 | R36: 12 | S36: 13 | T36: 14 | U36: 15 | V36: 16 | BC36: 33 | BD36: 35
A37: 104-BSP-16 | B37: BEdA Special Projects Grant | D37: 16 | E37: Yakima Valley | F37: =COUNTIF(GrantAwardSched!$E$2:$E$435,16) -> 11 | G37: 1 | H37: 2 | I37: 3 | J37: 4 | K37: 5 | L37: 6 | M37: 7 | N37: 8 | O37: 9 | P37: 10 | Q37: 11 | BC37: 34 | BD37: 36
A38: 104-EAG-17 | B38: Early Achievers Grant | BC38: 35 | BD38: 37
A39: 104-IELC-17 | B39: BEdA Program – IEL/Civics Grant Budget | BC39: 36 | BD39: 38
A40: 104-JSP-16DM | B40: Job Skills Program Grant | BC40: 37 | BD40: 39
A41: 104-PLB-17 | B41: Perkins Leadership Block Grant | BC41: 38 | BD41: 40
A42: 104-PNT-17 | B42: Perkins Non-Traditional Employment & Training Gran | BC42: 39 | BD42: 41
A43: 104-PRK-17 | B43: Perkins Plan | BC43: 40 | BD43: 42
A44: 104-WFDA-17 | B44: WorkFirst Delivery Agreement | BC44: 41 | BD44: 43
A45: 105-BEDA-17 | B45: BEdA Master Grant | BC45: 42 | BD45: 44
A46: 105-BFET-16 | B46: Basic Food Employment and Training Grant | BC46: 43 | BD46: 45
A47: 105-BLB-17 | B47: BEdA Leadership Block Grant | BC47: 44 | BD47: 46
A48: 105-IELC-17 | B48: BEdA Program – IEL/Civics Grant Budget | BC48: 45 | BD48: 47
A49: 105-BSP-16 | B49: BEdA Special Projects Grant | BC49: 46 | BD49: 48
A50: 105-EAG-17 | B50: Early Achievers Grant | BC50: 47 | BD50: 49
A51: 105-JSP-16PM | B51: Job Skills Program Grant
A52: 105-NGCC-15 | B52: Misc. General Grant
A53: 105-PRK-17 | B53: Perkins Plan
A54: 105-WFDA-17 | B54: WorkFirst Delivery Agreement
A55: 106-DGC-16 | B55: Job Skills Program Grant
A56: 106-JSP-16TPW | B56: Job Skills Program Grant
A57: 106-JSP-16UC | B57: Job Skills Program Grant
A58: 106-JSP-17DS | B58: Job Skills Program Grant
A59: 107-BEDA-17 | B59: BEdA Master Grant
A60: 107-BFET-16 | B60: Basic Food Employment and Training Grant
A61: 107-BLB-17 | B61: BEdA Leadership Block Grant
A62: 107-EAG-17 | B62: Early Achievers Grant
A63: 107-IELC-17 | B63: BEdA Program – IEL/Civics Grant Budget
A64: 107-PRK-17 | B64: Perkins Plan
A65: 108-BEDA-17 | B65: BEdA Master Grant
A66: 108-BFET-16 | B66: Basic Food Employment and Training Grant
A67: 108-BLB-17 | B67: BEdA Leadership Block Grant
A68: 108-BSP-16 | B68: BEdA Special Projects Grant
A69: 108-EAG-17 | B69: Early Achievers Grant
A70: 108-IELC-17 | B70: BEdA Program – IEL/Civics Grant Budget
A71: 108-PLB-17 | B71: Perkins Leadership Block Grant
A72: 108-PRK-17 | B72: Perkins Plan
A73: 108-WFDA-17 | B73: WorkFirst Delivery Agreement
A74: 109-BEDA-17 | B74: BEdA Master Grant
A75: 109-BFET-16 | B75: Basic Food Employment and Training Grant
A76: 109-BLB-17 | B76: BEdA Leadership Block Grant
A77: 109-BSP-16 | B77: BEdA Special Projects Grant
A78: 109-EAG-17 | B78: Early Achievers Grant
A79: 109-IELC-17 | B79: BEdA Program – IEL/Civics Grant Budget
A80: 109-PRK-17 | B80: Perkins Plan
A81: 109-RISE-16 | B81: Misc. General Grant
A82: 109-WFDA-17 | B82: WorkFirst Delivery Agreement
A83: 110-BEDA-17 | B83: BEdA Master Grant
A84: 110-BFET-16 | B84: Basic Food Employment and Training Grant
A85: 110-BFET-17 | B85: Basic Food Employment and Training Grant
A86: 110-BLB-17 | B86: BEdA Leadership Block Grant
A87: 110-EAG-17 | B87: Early Achievers Grant
A88: 110-IELC-17 | B88: BEdA Program – IEL/Civics Grant Budget
A89: 110-JSP-16AVT | B89: Job Skills Program Grant
A90: 110-JSP-16BC | B90: Job Skills Program Grant
A91: 110-JSP-16CG | B91: Job Skills Program Grant
A92: 110-JSP-16CGM | B92: Job Skills Program Grant
A93: 110-JSP-16EK | B93: Job Skills Program Grant
A94: 110-JSP-16ET | B94: Job Skills Program Grant
A95: 110-JSP-16HC | B95: Job Skills Program Grant
A96: 110-JSP-16HEX | B96: Job Skills Program Grant
A97: 110-JSP-16HS | B97: Job Skills Program Grant
A98: 110-JSP-16NF | B98: Job Skills Program Grant
A99: 110-JSP-16RWD | B99: Job Skills Program Grant
A100: 110-JSP-16SS | B100: Job Skills Program Grant
A101: 110-JSP-16SS2 | B101: Job Skills Program Grant
A102: 110-JSP-16TAS | B102: Job Skills Program Grant
A103: 110-JSP-16TT | B103: Job Skills Program Grant
A104: 110-JC-17CG | B104: Job Skills Program Grant
A105: 110-JC-17PM | B105: Job Skills Program Grant
A106: 110-JSP-17SS | B106: Job Skills Program Grant
A107: 110-ACC-17 | B107: Job Skills Program Grant
A108: 110-PRK-17 | B108: Perkins Plan
A109: 110-PSP-17 | B109: Perkins Special Project
A110: 110-WFDA-17 | B110: WorkFirst Delivery Agreement
A111: 111-BEDA-17 | B111: BEdA Master Grant
A112: 111-BFET-16 | B112: Basic Food Employment and Training Grant
A113: 111-BFET-17 | B113: Basic Food Employment and Training Grant
A114: 111-EAG-17 | B114: Early Achievers Grant
A115: 111-ELRN-17 | B115: Misc. General Grant
A116: 111-IELC-17 | B116: BEdA Program – IEL/Civics Grant Budget
A117: 111-PRK-17 | B117: Perkins Plan
A118: 111-WFDA-17 | B118: WorkFirst Delivery Agreement
A119: 111-PLB-17 | B119: Perkins Leadership Block Grant
A120: 111-PNT-17 | B120: Perkins Non-Traditional Employment & Training Gran
A121: 111-PSP-17 | B121: Perkins Special Project
A122: 112-BEDA-17 | B122: BEdA Master Grant
A123: 112-BFET-16 | B123: Basic Food Employment and Training Grant
A124: 112-BLB-17 | B124: BEdA Leadership Block Grant
A125: 112-CE-17 | B125: Correctional Education Grant
A126: 112-EAG-17 | B126: Early Achievers Grant
A127: 112-IELC-17 | B127: BEdA Program – IEL/Civics Grant Budget
A128: 112-JSP-16HL | B128: Job Skills Program Grant
A129: 112-PLB-17 | B129: Perkins Leadership Block Grant
A130: 112-PRK-17 | B130: Perkins Plan
A131: 112-WFDA-17 | B131: WorkFirst Delivery Agreement
A132: 113-BEDA-17 | B132: BEdA Master Grant
A133: 113-BFET-16 | B133: Basic Food Employment and Training Grant
A134: 113-BLB-17 | B134: BEdA Leadership Block Grant
A135: 113-BSP2-16 | B135: BEdA Special Projects Grant
A136: 113-BSP3-16 | B136: BEdA Special Projects Grant
A137: 113-EAG-17 | B137: Early Achievers Grant
A138: 113-IELC-17 | B138: BEdA Program – IEL/Civics Grant Budget
A139: 113-JSP-16LEC | B139: Job Skills Program Grant
A140: 113-JSP-16NWS | B140: Job Skills Program Grant
A141: 113-PRK-17 | B141: Perkins Plan
A142: 113-WFDA-17 | B142: WorkFirst Delivery Agreement
A143: 114-BEDA-17 | B143: BEdA Master Grant
A144: 114-BFET-16 | B144: Basic Food Employment and Training Grant
A145: 114-BLB-17 | B145: BEdA Leadership Block Grant
A146: 114-CE-17 | B146: Correctional Education Grant
A147: 114-EAG-17 | B147: Early Achievers Grant
A148: 114-IELC-17 | B148: BEdA Program – IEL/Civics Grant Budget
A149: 114-PRK-17 | B149: Perkins Plan
A150: 114-WFDA-17 | B150: WorkFirst Delivery Agreement
A151: 115-BEDA-17 | B151: BEdA Master Grant
A152: 115-BFET-16 | B152: Basic Food Employment and Training Grant
A153: 115-BLB-17 | B153: BEdA Leadership Block Grant
A154: 115-BSP-16 | B154: BEdA Special Projects Grant
A155: 115-EAG-17 | B155: Early Achievers Grant
A156: 115-IELC-17 | B156: BEdA Program – IEL/Civics Grant Budget
A157: 115-JSP-16CAP | B157: Job Skills Program Grant
A158: 115-JSP-16CP | B158: Job Skills Program Grant
A159: 115-JSP-16FC | B159: Job Skills Program Grant
A160: 115-PRK-17 | B160: Perkins Plan
A161: 115-WFDA-17 | B161: WorkFirst Delivery Agreement
A162: 116-BEDA-17 | B162: BEdA Master Grant
A163: 116-BFET-16 | B163: Basic Food Employment and Training Grant
A164: 116-BLB-17 | B164: BEdA Leadership Block Grant
A165: 116-EAG-17 | B165: Early Achievers Grant
A166: 116-IELC-17 | B166: BEdA Program – IEL/Civics Grant Budget
A167: 116-JSP-16CC | B167: Job Skills Program Grant
A168: 116-B2C-17 | B168: Misc. General Grant
A169: 116-PLB-17 | B169: Perkins Leadership Block Grant
A170: 116-PRK-17 | B170: Perkins Plan
A171: 116-WFDA-17 | B171: WorkFirst Delivery Agreement
A172: 117-BEDA-17 | B172: BEdA Master Grant
A173: 117-BFET-16 | B173: Basic Food Employment and Training Grant
A174: 117-BLB-17 | B174: BEdA Leadership Block Grant
A175: 117-BSP-16 | B175: BEdA Special Projects Grant
A176: 117-CE-17 | B176: Correctional Education Grant
A177: 117-eLRN-17 | B177: Misc. General Grant
A178: 117-IELC-17 | B178: BEdA Program – IEL/Civics Grant Budget
A179: 117-JSP-16SPS | B179: Job Skills Program Grant
A180: 117-NGCC-15 | B180: Misc. General Grant
A181: 117-PRK-17 | B181: Perkins Plan
A182: 117-WFDA-17 | B182: WorkFirst Delivery Agreement
A183: 118-BEDA-17 | B183: BEdA Master Grant
A184: 118-BFET-16 | B184: Basic Food Employment and Training Grant
A185: 118-BLB-17 | B185: BEdA Leadership Block Grant
A186: 118-BSP2-16 | B186: BEdA Special Projects Grant
A187: 118-BSP3-16 | B187: BEdA Special Projects Grant
A188: 118-EAG-17 | B188: Early Achievers Grant
A189: 118-IELC-17 | B189: BEdA Program – IEL/Civics Grant Budget
A190: 118-JSP-16LC | B190: Job Skills Program Grant
A191: 118-JSP-16MCF | B191: Job Skills Program Grant
A192: 118-JSP-16MLI | B192: Job Skills Program Grant
A193: 118-JSP-16REC | B193: Job Skills Program Grant
A194: 118-JSP-16SH | B194: Job Skills Program Grant
A195: 118-JSP-16TK | B195: Job Skills Program Grant
A196: 118-PRK-17 | B196: Perkins Plan
A197: 118-WFDA-17 | B197: WorkFirst Delivery Agreement
A198: 119-BEDA-17 | B198: BEdA Master Grant
A199: 119-BFET-16 | B199: Basic Food Employment and Training Grant
A200: 119-BLB-17 | B200: BEdA Leadership Block Grant
... 133 more rows

Sheet GrantAwardSched (hidden)
A1: 1. Excel_Code | B1: 2. Grant order number | C1: 3. College Name | D1: 4. Alloc # | E1: 5. DISTRICT | F1: 6. Grant ID | G1: 7. NAME | H1: 8. GrantAwardSched_Grnt Title | I1: 9. Initial 2017 NT | J1: 10. Prior Allocation Totals | K1: 11. Allocation #2 | L1: 12. Allocation #3 | M1: 13. Allocation #4 | N1: 14. Allocation #5 | O1: 15. Allocation #6 | P1: 16. Allocation #7 | Q1: 17. Allocation #8 | R1: 18. Allocation #9 | S1: 19. Allocation #10 | T1: 20. Grand Total
A2: =E2 &"_"&B2 -> 1_1 | B2: 1 | C2: Peninsula | D2: ='Alloc#vlookup'!$B$1 -> #4 | E2: =VLOOKUP(G2,district!$F$2:$G$34,2) -> 1 | F2: 101-BFET-16 | G2: =C2 -> Peninsula | H2: =VLOOKUP(F2,grant_id_to_name,2) -> Basic Food Employment and Training Grant | I2: 230046 | J2: =IF(D2="#1",I2,IF(D2="#2",SUM(I2),IF(D2="#3",SUM(I2,K2),IF(D2="#4",SUM(I2,K2:L2),IF(D2="#5",SUM(I2,K2:M2),IF(D2="#6",SUM(I2,K2:N2),IF(D2="#7",SUM(I2,K2:O2),IF(D2="#8",SUM(I2,K2:P2),IF(D2="#9",SUM(I2,K2:Q2),IF(D2="#10",SUM(I2,K2:R2),ERROR)))))))))) -> 230046 | L2: 0 | M2: =INDEX(CurrentGrantData!E:F,MATCH(F2,CurrentGrantData!E:E,0),2) -> 0 | T2: =SUM(I2:S2)-J2 -> 230046 | U2: =T2-J2 -> 0
A3: =E3 &"_"&B3 -> 1_10 | B3: 10 | C3: Peninsula | D3: ='Alloc#vlookup'!$B$1 -> #4 | E3: =VLOOKUP(G3,district!$F$2:$G$34,2) -> 1 | F3: 101-PRK-17 | G3: =C3 -> Peninsula | H3: =VLOOKUP(F3,grant_id_to_name,2) -> Perkins Plan | I3: 163290 | J3: =IF(D3="#1",I3,IF(D3="#2",SUM(I3),IF(D3="#3",SUM(I3,K3),IF(D3="#4",SUM(I3,K3:L3),IF(D3="#5",SUM(I3,K3:M3),IF(D3="#6",SUM(I3,K3:N3),IF(D3="#7",SUM(I3,K3:O3),IF(D3="#8",SUM(I3,K3:P3),IF(D3="#9",SUM(I3,K3:Q3),IF(D3="#10",SUM(I3,K3:R3),ERROR)))))))))) -> 163290 | L3: 0 | M3: =INDEX(CurrentGrantData!E:F,MATCH(F3,CurrentGrantData!E:E,0),2) -> 1408 | T3: 164698 | U3: =T3-J3 -> 1408
A4: =E4 &"_"&B4 -> 1_11 | B4: 11 | C4: Peninsula | D4: ='Alloc#vlookup'!$B$1 -> #4 | E4: =VLOOKUP(G4,district!$F$2:$G$34,2) -> 1 | F4: 101-WFDA-17 | G4: =C4 -> Peninsula | H4: =INDEX(CurrentGrantData!D:E,MATCH(F4,CurrentGrantData!E:E,0),1) -> WorkFirst Delivery Agreement | I4: 242148 | J4: =IF(D4="#1",I4,IF(D4="#2",SUM(I4),IF(D4="#3",SUM(I4,K4),IF(D4="#4",SUM(I4,K4:L4),IF(D4="#5",SUM(I4,K4:M4),IF(D4="#6",SUM(I4,K4:N4),IF(D4="#7",SUM(I4,K4:O4),IF(D4="#8",SUM(I4,K4:P4),IF(D4="#9",SUM(I4,K4:Q4),IF(D4="#10",SUM(I4,K4:R4),ERROR)))))))))) -> 284648 | L4: 42500 | M4: =INDEX(CurrentGrantData!E:F,MATCH(F4,CurrentGrantData!E:E,0),2) -> 6000 | T4: 290648
A5: =E5 &"_"&B5 -> 1_2 | B5: 2 | C5: Peninsula | D5: ='Alloc#vlookup'!$B$1 -> #4 | E5: =VLOOKUP(G5,district!$F$2:$G$34,2) -> 1 | F5: 101-BFET-17 | G5: Peninsula | H5: =VLOOKUP(F5,grant_id_to_name,2) -> Basic Food Employment and Training Grant | I5: 0 | J5: =IF(D5="#1",I5,IF(D5="#2",SUM(I5),IF(D5="#3",SUM(I5,K5),IF(D5="#4",SUM(I5,K5:L5),IF(D5="#5",SUM(I5,K5:M5),IF(D5="#6",SUM(I5,K5:N5),IF(D5="#7",SUM(I5,K5:O5),IF(D5="#8",SUM(I5,K5:P5),IF(D5="#9",SUM(I5,K5:Q5),IF(D5="#10",SUM(I5,K5:R5),ERROR)))))))))) -> 0 | M5: =INDEX(CurrentGrantData!E:F,MATCH(F5,CurrentGrantData!E:E,0),2) -> 185000 | T5: 185000
A6: 1_3 | B6: 3 | C6: Peninsula | D6: ='Alloc#vlookup'!$B$1 -> #4 | E6: =VLOOKUP(G6,district!$F$2:$G$34,2) -> 1 | F6: 101-BLB-17 | G6: Peninsula | H6: BEdA Leadership Block Grant | I6: 4230 | J6: =IF(D6="#1",I6,IF(D6="#2",SUM(I6),IF(D6="#3",SUM(I6,K6),IF(D6="#4",SUM(I6,K6:L6),IF(D6="#5",SUM(I6,K6:M6),IF(D6="#6",SUM(I6,K6:N6),IF(D6="#7",SUM(I6,K6:O6),IF(D6="#8",SUM(I6,K6:P6),IF(D6="#9",SUM(I6,K6:Q6),IF(D6="#10",SUM(I6,K6:R6),ERROR)))))))))) -> 4230 | L6: 0 | M6: =INDEX(CurrentGrantData!E:F,MATCH(F6,CurrentGrantData!E:E,0),2) -> 0 | T6: 4230 | U6: =T6-J6 -> 0
A7: 1_4 | B7: 4 | C7: Peninsula | D7: ='Alloc#vlookup'!$B$1 -> #4 | E7: =VLOOKUP(G7,district!$F$2:$G$34,2) -> 1 | F7: 101-BEDA-17 | G7: Peninsula | H7: BEdA Master Grant | I7: 156026 | J7: =IF(D7="#1",I7,IF(D7="#2",SUM(I7),IF(D7="#3",SUM(I7,K7),IF(D7="#4",SUM(I7,K7:L7),IF(D7="#5",SUM(I7,K7:M7),IF(D7="#6",SUM(I7,K7:N7),IF(D7="#7",SUM(I7,K7:O7),IF(D7="#8",SUM(I7,K7:P7),IF(D7="#9",SUM(I7,K7:Q7),IF(D7="#10",SUM(I7,K7:R7),ERROR)))))))))) -> 156026 | L7: 0 | M7: =INDEX(CurrentGrantData!E:F,MATCH(F7,CurrentGrantData!E:E,0),2) -> 0 | T7: 156026
A8: 1_5 | B8: 5 | C8: Peninsula | D8: ='Alloc#vlookup'!$B$1 -> #4 | E8: =VLOOKUP(G8,district!$F$2:$G$34,2) -> 1 | F8: 101-IELC-17 | G8: Peninsula | H8: BEdA Program – IEL/Civics Grant Budget | I8: 26907 | J8: =IF(D8="#1",I8,IF(D8="#2",SUM(I8),IF(D8="#3",SUM(I8,K8),IF(D8="#4",SUM(I8,K8:L8),IF(D8="#5",SUM(I8,K8:M8),IF(D8="#6",SUM(I8,K8:N8),IF(D8="#7",SUM(I8,K8:O8),IF(D8="#8",SUM(I8,K8:P8),IF(D8="#9",SUM(I8,K8:Q8),IF(D8="#10",SUM(I8,K8:R8),ERROR)))))))))) -> 26907 | L8: 0 | M8: =INDEX(CurrentGrantData!E:F,MATCH(F8,CurrentGrantData!E:E,0),2) -> 0 | T8: 26907 | U8: =T8-J8 -> 0
A9: 1_6 | B9: 6 | C9: Peninsula | D9: ='Alloc#vlookup'!$B$1 -> #4 | E9: =VLOOKUP(G9,district!$F$2:$G$34,2) -> 1 | F9: 101-CE-17 | G9: Peninsula | H9: Correctional Education Grant | I9: 1567128 | J9: =IF(D9="#1",I9,IF(D9="#2",SUM(I9),IF(D9="#3",SUM(I9,K9),IF(D9="#4",SUM(I9,K9:L9),IF(D9="#5",SUM(I9,K9:M9),IF(D9="#6",SUM(I9,K9:N9),IF(D9="#7",SUM(I9,K9:O9),IF(D9="#8",SUM(I9,K9:P9),IF(D9="#9",SUM(I9,K9:Q9),IF(D9="#10",SUM(I9,K9:R9),ERROR)))))))))) -> 1567128 | L9: 0 | M9: =INDEX(CurrentGrantData!E:F,MATCH(F9,CurrentGrantData!E:E,0),2) -> 0 | T9: 1567128 | U9: 0
A10: 1_7 | B10: 7 | C10: Peninsula | D10: ='Alloc#vlookup'!$B$1 -> #4 | E10: =VLOOKUP(G10,district!$F$2:$G$34,2) -> 1 | F10: 101-EAG-17 | G10: Peninsula | H10: Early Achievers Grant | I10: 24900 | J10: =IF(D10="#1",I10,IF(D10="#2",SUM(I10),IF(D10="#3",SUM(I10,K10),IF(D10="#4",SUM(I10,K10:L10),IF(D10="#5",SUM(I10,K10:M10),IF(D10="#6",SUM(I10,K10:N10),IF(D10="#7",SUM(I10,K10:O10),IF(D10="#8",SUM(I10,K10:P10),IF(D10="#9",SUM(I10,K10:Q10),IF(D10="#10",SUM(I10,K10:R10),ERROR)))))))))) -> 16600 | L10: -8300 | M10: =INDEX(CurrentGrantData!E:F,MATCH(F10,CurrentGrantData!E:E,0),2) -> 0 | T10: =SUM(I10:S10)-J10 -> 16600 | U10: 0
A11: 1_8 | B11: 8 | C11: Peninsula | D11: ='Alloc#vlookup'!$B$1 -> #4 | E11: =VLOOKUP(G11,district!$F$2:$G$34,2) -> 1 | F11: 101-FLCE-17 | G11: Peninsula | H11: Faculty Learning Communities Initiative Grant | I11: 0 | J11: =IF(D11="#1",I11,IF(D11="#2",SUM(I11),IF(D11="#3",SUM(I11,K11),IF(D11="#4",SUM(I11,K11:L11),IF(D11="#5",SUM(I11,K11:M11),IF(D11="#6",SUM(I11,K11:N11),IF(D11="#7",SUM(I11,K11:O11),IF(D11="#8",SUM(I11,K11:P11),IF(D11="#9",SUM(I11,K11:Q11),IF(D11="#10",SUM(I11,K11:R11),ERROR)))))))))) -> 4997 | L11: 4997 | M11: =INDEX(CurrentGrantData!E:F,MATCH(F11,CurrentGrantData!E:E,0),2) -> 0 | T11: =SUM(I11:S11)-J11 -> 4997 | U11: 0
A12: 1_9 | B12: 9 | C12: Peninsula | D12: ='Alloc#vlookup'!$B$1 -> #4 | E12: =VLOOKUP(G12,district!$F$2:$G$34,2) -> 1 | F12: 101-PLB-17 | G12: Peninsula | H12: Perkins Leadership Block Grant | I12: 0 | J12: =IF(D12="#1",I12,IF(D12="#2",SUM(I12),IF(D12="#3",SUM(I12,K12),IF(D12="#4",SUM(I12,K12:L12),IF(D12="#5",SUM(I12,K12:M12),IF(D12="#6",SUM(I12,K12:N12),IF(D12="#7",SUM(I12,K12:O12),IF(D12="#8",SUM(I12,K12:P12),IF(D12="#9",SUM(I12,K12:Q12),IF(D12="#10",SUM(I12,K12:R12),ERROR)))))))))) -> 16000 | L12: 16000 | M12: =INDEX(CurrentGrantData!E:F,MATCH(F12,CurrentGrantData!E:E,0),2) -> 0 | T12: 16000 | U12: 0
A13: =E13 &"_"&B13 -> 10_1 | B13: 1 | C13: Green River | D13: ='Alloc#vlookup'!$B$1 -> #4 | E13: =VLOOKUP(G13,district!$F$2:$G$34,2) -> 10 | F13: 110-BFET-16 | G13: =C13 -> Green River | H13: =VLOOKUP(F13,grant_id_to_name,2) -> Basic Food Employment and Training Grant | I13: 531212 | J13: =IF(D13="#1",I13,IF(D13="#2",SUM(I13),IF(D13="#3",SUM(I13,K13),IF(D13="#4",SUM(I13,K13:L13),IF(D13="#5",SUM(I13,K13:M13),IF(D13="#6",SUM(I13,K13:N13),IF(D13="#7",SUM(I13,K13:O13),IF(D13="#8",SUM(I13,K13:P13),IF(D13="#9",SUM(I13,K13:Q13),IF(D13="#10",SUM(I13,K13:R13),ERROR)))))))))) -> 481212 | L13: -50000 | M13: =INDEX(CurrentGrantData!E:F,MATCH(F13,CurrentGrantData!E:E,0),2) -> 0 | T13: =SUM(I13:S13)-J13 -> 481212 | U13: =T13-J13 -> 0
A14: 10_10 | B14: 10 | C14: Green River | D14: ='Alloc#vlookup'!$B$1 -> #4 | E14: =VLOOKUP(G14,district!$F$2:$G$34,2) -> 10 | F14: 110-JSP-16EK | G14: Green River | H14: Job Skills Program Grant | I14: 89700 | J14: =IF(D14="#1",I14,IF(D14="#2",SUM(I14),IF(D14="#3",SUM(I14,K14),IF(D14="#4",SUM(I14,K14:L14),IF(D14="#5",SUM(I14,K14:M14),IF(D14="#6",SUM(I14,K14:N14),IF(D14="#7",SUM(I14,K14:O14),IF(D14="#8",SUM(I14,K14:P14),IF(D14="#9",SUM(I14,K14:Q14),IF(D14="#10",SUM(I14,K14:R14),ERROR)))))))))) -> 89700 | L14: 0 | M14: =INDEX(CurrentGrantData!E:F,MATCH(F14,CurrentGrantData!E:E,0),2) -> -1754 | T14: 87946 | U14: -1754
A15: 10_11 | B15: 11 | C15: Green River | D15: ='Alloc#vlookup'!$B$1 -> #4 | E15: =VLOOKUP(G15,district!$F$2:$G$34,2) -> 10 | F15: 110-JSP-16HS | G15: Green River | H15: Job Skills Program Grant | I15: 118800 | J15: =IF(D15="#1",I15,IF(D15="#2",SUM(I15),IF(D15="#3",SUM(I15,K15),IF(D15="#4",SUM(I15,K15:L15),IF(D15="#5",SUM(I15,K15:M15),IF(D15="#6",SUM(I15,K15:N15),IF(D15="#7",SUM(I15,K15:O15),IF(D15="#8",SUM(I15,K15:P15),IF(D15="#9",SUM(I15,K15:Q15),IF(D15="#10",SUM(I15,K15:R15),ERROR)))))))))) -> 118800 | L15: 0 | M15: =INDEX(CurrentGrantData!E:F,MATCH(F15,CurrentGrantData!E:E,0),2) -> 0 | T15: 118800 | U15: 0
A16: 10_12 | B16: 12 | C16: Green River | D16: ='Alloc#vlookup'!$B$1 -> #4 | E16: =VLOOKUP(G16,district!$F$2:$G$34,2) -> 10 | F16: 110-JSP-16CGM | G16: Green River | H16: Job Skills Program Grant | I16: 60300 | J16: =IF(D16="#1",I16,IF(D16="#2",SUM(I16),IF(D16="#3",SUM(I16,K16),IF(D16="#4",SUM(I16,K16:L16),IF(D16="#5",SUM(I16,K16:M16),IF(D16="#6",SUM(I16,K16:N16),IF(D16="#7",SUM(I16,K16:O16),IF(D16="#8",SUM(I16,K16:P16),IF(D16="#9",SUM(I16,K16:Q16),IF(D16="#10",SUM(I16,K16:R16),ERROR)))))))))) -> 60300 | L16: 0 | M16: =INDEX(CurrentGrantData!E:F,MATCH(F16,CurrentGrantData!E:E,0),2) -> -5603 | T16: 54697 | U16: -5603
A17: 10_13 | B17: 13 | C17: Green River | D17: ='Alloc#vlookup'!$B$1 -> #4 | E17: =VLOOKUP(G17,district!$F$2:$G$34,2) -> 10 | F17: 110-JSP-16BC | G17: Green River | H17: Job Skills Program Grant | I17: 88700 | J17: =IF(D17="#1",I17,IF(D17="#2",SUM(I17),IF(D17="#3",SUM(I17,K17),IF(D17="#4",SUM(I17,K17:L17),IF(D17="#5",SUM(I17,K17:M17),IF(D17="#6",SUM(I17,K17:N17),IF(D17="#7",SUM(I17,K17:O17),IF(D17="#8",SUM(I17,K17:P17),IF(D17="#9",SUM(I17,K17:Q17),IF(D17="#10",SUM(I17,K17:R17),ERROR)))))))))) -> 88700 | L17: 0 | M17: =INDEX(CurrentGrantData!E:F,MATCH(F17,CurrentGrantData!E:E,0),2) -> -1021 | T17: 87679 | U17: -1021
A18: 10_14 | B18: 14 | C18: Green River | D18: ='Alloc#vlookup'!$B$1 -> #4 | E18: =VLOOKUP(G18,district!$F$2:$G$34,2) -> 10 | F18: 110-JSP-16CG | G18: Green River | H18: Job Skills Program Grant | I18: 63000 | J18: =IF(D18="#1",I18,IF(D18="#2",SUM(I18),IF(D18="#3",SUM(I18,K18),IF(D18="#4",SUM(I18,K18:L18),IF(D18="#5",SUM(I18,K18:M18),IF(D18="#6",SUM(I18,K18:N18),IF(D18="#7",SUM(I18,K18:O18),IF(D18="#8",SUM(I18,K18:P18),IF(D18="#9",SUM(I18,K18:Q18),IF(D18="#10",SUM(I18,K18:R18),ERROR)))))))))) -> 63000 | L18: 0 | M18: =INDEX(CurrentGrantData!E:F,MATCH(F18,CurrentGrantData!E:E,0),2) -> -117 | T18: 62883 | U18: -117
A19: 10_15 | B19: 15 | C19: Green River | D19: ='Alloc#vlookup'!$B$1 -> #4 | E19: =VLOOKUP(G19,district!$F$2:$G$34,2) -> 10 | F19: 110-JSP-17CG | G19: Green River | H19: Job Skills Program Grant | J19: 0 | K19: 0 | L19: 0 | M19: 76400 | T19: 76400
A20: 10_16 | B20: 16 | C20: Green River | D20: ='Alloc#vlookup'!$B$1 -> #4 | E20: =VLOOKUP(G20,district!$F$2:$G$34,2) -> 10 | F20: 110-JSP-16TT | G20: Green River | H20: Job Skills Program Grant | I20: 83300 | J20: =IF(D20="#1",I20,IF(D20="#2",SUM(I20),IF(D20="#3",SUM(I20,K20),IF(D20="#4",SUM(I20,K20:L20),IF(D20="#5",SUM(I20,K20:M20),IF(D20="#6",SUM(I20,K20:N20),IF(D20="#7",SUM(I20,K20:O20),IF(D20="#8",SUM(I20,K20:P20),IF(D20="#9",SUM(I20,K20:Q20),IF(D20="#10",SUM(I20,K20:R20),ERROR)))))))))) -> 83300 | L20: 0 | M20: =INDEX(CurrentGrantData!E:F,MATCH(F20,CurrentGrantData!E:E,0),2) -> 0 | T20: 83300 | U20: =T20-J20 -> 0
A21: 10_17 | B21: 17 | C21: Green River | D21: ='Alloc#vlookup'!$B$1 -> #4 | E21: =VLOOKUP(G21,district!$F$2:$G$34,2) -> 10 | F21: 110-JSP-16AVT | G21: Green River | H21: Job Skills Program Grant | I21: 123600 | J21: =IF(D21="#1",I21,IF(D21="#2",SUM(I21),IF(D21="#3",SUM(I21,K21),IF(D21="#4",SUM(I21,K21:L21),IF(D21="#5",SUM(I21,K21:M21),IF(D21="#6",SUM(I21,K21:N21),IF(D21="#7",SUM(I21,K21:O21),IF(D21="#8",SUM(I21,K21:P21),IF(D21="#9",SUM(I21,K21:Q21),IF(D21="#10",SUM(I21,K21:R21),ERROR)))))))))) -> 123600 | L21: 0 | M21: =INDEX(CurrentGrantData!E:F,MATCH(F21,CurrentGrantData!E:E,0),2) -> 0 | T21: 123600 | U21: =T21-J21 -> 0
A22: 10_18 | B22: 18 | C22: Green River | D22: ='Alloc#vlookup'!$B$1 -> #4 | E22: =VLOOKUP(G22,district!$F$2:$G$34,2) -> 10 | F22: 110-JSP-16HC | G22: Green River | H22: Job Skills Program Grant | I22: 49500 | J22: =IF(D22="#1",I22,IF(D22="#2",SUM(I22),IF(D22="#3",SUM(I22,K22),IF(D22="#4",SUM(I22,K22:L22),IF(D22="#5",SUM(I22,K22:M22),IF(D22="#6",SUM(I22,K22:N22),IF(D22="#7",SUM(I22,K22:O22),IF(D22="#8",SUM(I22,K22:P22),IF(D22="#9",SUM(I22,K22:Q22),IF(D22="#10",SUM(I22,K22:R22),ERROR)))))))))) -> 49500 | L22: 0 | M22: =INDEX(CurrentGrantData!E:F,MATCH(F22,CurrentGrantData!E:E,0),2) -> -90 | T22: 49410 | U22: =T22-J22 -> -90
A23: 10_19 | B23: 19 | C23: Green River | D23: ='Alloc#vlookup'!$B$1 -> #4 | E23: =VLOOKUP(G23,district!$F$2:$G$34,2) -> 10 | F23: 110-JSP-16NF | G23: Green River | H23: Job Skills Program Grant | I23: 59700 | J23: =IF(D23="#1",I23,IF(D23="#2",SUM(I23),IF(D23="#3",SUM(I23,K23),IF(D23="#4",SUM(I23,K23:L23),IF(D23="#5",SUM(I23,K23:M23),IF(D23="#6",SUM(I23,K23:N23),IF(D23="#7",SUM(I23,K23:O23),IF(D23="#8",SUM(I23,K23:P23),IF(D23="#9",SUM(I23,K23:Q23),IF(D23="#10",SUM(I23,K23:R23),ERROR)))))))))) -> 59700 | L23: 0 | M23: =INDEX(CurrentGrantData!E:F,MATCH(F23,CurrentGrantData!E:E,0),2) -> 0 | T23: 59700 | U23: =T23-J23 -> 0
A24: 10_2 | B24: 2 | C24: Green River | D24: ='Alloc#vlookup'!$B$1 -> #4 | E24: =VLOOKUP(G24,district!$F$2:$G$34,2) -> 10 | F24: 110-BFET-17 | G24: Green River | H24: Basic Food Employment and Training Grant | I24: 0 | J24: 0 | K24: 0 | L24: 0 | M24: 469654 | T24: 469654
A25: 10_20 | B25: 20 | C25: Green River | D25: ='Alloc#vlookup'!$B$1 -> #4 | E25: =VLOOKUP(G25,district!$F$2:$G$34,2) -> 10 | F25: 110-JSP-16TAS | G25: Green River | H25: Job Skills Program Grant | I25: 84900 | J25: =IF(D25="#1",I25,IF(D25="#2",SUM(I25),IF(D25="#3",SUM(I25,K25),IF(D25="#4",SUM(I25,K25:L25),IF(D25="#5",SUM(I25,K25:M25),IF(D25="#6",SUM(I25,K25:N25),IF(D25="#7",SUM(I25,K25:O25),IF(D25="#8",SUM(I25,K25:P25),IF(D25="#9",SUM(I25,K25:Q25),IF(D25="#10",SUM(I25,K25:R25),ERROR)))))))))) -> 84900 | L25: 0 | M25: =INDEX(CurrentGrantData!E:F,MATCH(F25,CurrentGrantData!E:E,0),2) -> -5191 | T25: 79709 | U25: =T25-J25 -> -5191
A26: 10_21 | B26: 21 | C26: Green River | D26: ='Alloc#vlookup'!$B$1 -> #4 | E26: =VLOOKUP(G26,district!$F$2:$G$34,2) -> 10 | F26: 110-JSP-16RWD | G26: Green River | H26: Job Skills Program Grant | I26: 41400 | J26: =IF(D26="#1",I26,IF(D26="#2",SUM(I26),IF(D26="#3",SUM(I26,K26),IF(D26="#4",SUM(I26,K26:L26),IF(D26="#5",SUM(I26,K26:M26),IF(D26="#6",SUM(I26,K26:N26),IF(D26="#7",SUM(I26,K26:O26),IF(D26="#8",SUM(I26,K26:P26),IF(D26="#9",SUM(I26,K26:Q26),IF(D26="#10",SUM(I26,K26:R26),ERROR)))))))))) -> 41400 | L26: 0 | M26: =INDEX(CurrentGrantData!E:F,MATCH(F26,CurrentGrantData!E:E,0),2) -> 0 | T26: 41400 | U26: =T26-J26 -> 0
A27: 10_22 | B27: 22 | C27: Green River | D27: ='Alloc#vlookup'!$B$1 -> #4 | E27: =VLOOKUP(G27,district!$F$2:$G$34,2) -> 10 | F27: 110-JSP-16HEX | G27: Green River | H27: Job Skills Program Grant | I27: 155100 | J27: =IF(D27="#1",I27,IF(D27="#2",SUM(I27),IF(D27="#3",SUM(I27,K27),IF(D27="#4",SUM(I27,K27:L27),IF(D27="#5",SUM(I27,K27:M27),IF(D27="#6",SUM(I27,K27:N27),IF(D27="#7",SUM(I27,K27:O27),IF(D27="#8",SUM(I27,K27:P27),IF(D27="#9",SUM(I27,K27:Q27),IF(D27="#10",SUM(I27,K27:R27),ERROR)))))))))) -> 155100 | L27: 0 | M27: =INDEX(CurrentGrantData!E:F,MATCH(F27,CurrentGrantData!E:E,0),2) -> -40000 | T27: 115100 | U27: =T27-J27 -> -40000
A28: 10_23 | B28: 23 | C28: Green River | D28: ='Alloc#vlookup'!$B$1 -> #4 | E28: =VLOOKUP(G28,district!$F$2:$G$34,2) -> 10 | F28: 110-JSP-16ET | G28: Green River | H28: Job Skills Program Grant | I28: 133900 | J28: =IF(D28="#1",I28,IF(D28="#2",SUM(I28),IF(D28="#3",SUM(I28,K28),IF(D28="#4",SUM(I28,K28:L28),IF(D28="#5",SUM(I28,K28:M28),IF(D28="#6",SUM(I28,K28:N28),IF(D28="#7",SUM(I28,K28:O28),IF(D28="#8",SUM(I28,K28:P28),IF(D28="#9",SUM(I28,K28:Q28),IF(D28="#10",SUM(I28,K28:R28),ERROR)))))))))) -> 133900 | L28: 0 | M28: =INDEX(CurrentGrantData!E:F,MATCH(F28,CurrentGrantData!E:E,0),2) -> 0 | T28: 133900 | U28: =T28-J28 -> 0
A29: 10_24 | B29: 24 | C29: Green River | D29: ='Alloc#vlookup'!$B$1 -> #4 | E29: =VLOOKUP(G29,district!$F$2:$G$34,2) -> 10 | F29: 110-JSP-17PM | G29: Green River | H29: Job Skills Program Grant | I29: 0 | J29: 0 | K29: 0 | L29: 0 | M29: 88100 | T29: =SUM(I29:S29)-J29 -> 88100
A30: 10_25 | B30: 25 | C30: Green River | D30: ='Alloc#vlookup'!$B$1 -> #4 | E30: =VLOOKUP(G30,district!$F$2:$G$34,2) -> 10 | F30: 110-ACC-17 | G30: Green River | H30: Misc. General Grant | I30: 0 | J30: 0 | K30: 0 | L30: 0 | M30: 1000 | T30: 1000
A31: 10_26 | B31: 26 | C31: Green River | D31: ='Alloc#vlookup'!$B$1 -> #4 | E31: =VLOOKUP(G31,district!$F$2:$G$34,2) -> 10 | F31: 110-PRK-17 | G31: Green River | H31: =VLOOKUP(F31,grant_id_to_name,2) -> Perkins Plan | I31: 302674 | J31: =IF(D31="#1",I31,IF(D31="#2",SUM(I31),IF(D31="#3",SUM(I31,K31),IF(D31="#4",SUM(I31,K31:L31),IF(D31="#5",SUM(I31,K31:M31),IF(D31="#6",SUM(I31,K31:N31),IF(D31="#7",SUM(I31,K31:O31),IF(D31="#8",SUM(I31,K31:P31),IF(D31="#9",SUM(I31,K31:Q31),IF(D31="#10",SUM(I31,K31:R31),ERROR)))))))))) -> 302674 | L31: 0 | M31: =INDEX(CurrentGrantData!E:F,MATCH(F31,CurrentGrantData!E:E,0),2) -> 3845 | T31: =SUM(I31:S31)-J31 -> 306519 | U31: =T31-J31 -> 3845
A32: 10_27 | B32: 27 | C32: Green River | D32: ='Alloc#vlookup'!$B$1 -> #4 | E32: =VLOOKUP(G32,district!$F$2:$G$34,2) -> 10 | F32: 110-PSP-17 | G32: Green River | H32: Perkins Special Project | I32: 10000 | J32: =IF(D32="#1",I32,IF(D32="#2",SUM(I32),IF(D32="#3",SUM(I32,K32),IF(D32="#4",SUM(I32,K32:L32),IF(D32="#5",SUM(I32,K32:M32),IF(D32="#6",SUM(I32,K32:N32),IF(D32="#7",SUM(I32,K32:O32),IF(D32="#8",SUM(I32,K32:P32),IF(D32="#9",SUM(I32,K32:Q32),IF(D32="#10",SUM(I32,K32:R32),ERROR)))))))))) -> 10000 | L32: 0 | M32: =INDEX(CurrentGrantData!E:F,MATCH(F32,CurrentGrantData!E:E,0),2) -> 0 | T32: 10000 | U32: 0
A33: 10_28 | B33: 28 | C33: Green River | D33: ='Alloc#vlookup'!$B$1 -> #4 | E33: =VLOOKUP(G33,district!$F$2:$G$34,2) -> 10 | F33: 110-WFDA-17 | G33: Green River | H33: WorkFirst Delivery Agreement | I33: 686482 | J33: =IF(D33="#1",I33,IF(D33="#2",SUM(I33),IF(D33="#3",SUM(I33,K33),IF(D33="#4",SUM(I33,K33:L33),IF(D33="#5",SUM(I33,K33:M33),IF(D33="#6",SUM(I33,K33:N33),IF(D33="#7",SUM(I33,K33:O33),IF(D33="#8",SUM(I33,K33:P33),IF(D33="#9",SUM(I33,K33:Q33),IF(D33="#10",SUM(I33,K33:R33),ERROR)))))))))) -> 755482 | L33: 69000 | M33: =INDEX(CurrentGrantData!E:F,MATCH(F33,CurrentGrantData!E:E,0),2) -> 0 | T33: 755482 | U33: 0
A34: 10_3 | B34: 3 | C34: Green River | D34: ='Alloc#vlookup'!$B$1 -> #4 | E34: =VLOOKUP(G34,district!$F$2:$G$34,2) -> 10 | F34: 110-BLB-17 | G34: Green River | H34: BEdA Leadership Block Grant | I34: 3984 | J34: =IF(D34="#1",I34,IF(D34="#2",SUM(I34),IF(D34="#3",SUM(I34,K34),IF(D34="#4",SUM(I34,K34:L34),IF(D34="#5",SUM(I34,K34:M34),IF(D34="#6",SUM(I34,K34:N34),IF(D34="#7",SUM(I34,K34:O34),IF(D34="#8",SUM(I34,K34:P34),IF(D34="#9",SUM(I34,K34:Q34),IF(D34="#10",SUM(I34,K34:R34),ERROR)))))))))) -> 3984 | L34: 0 | M34: =INDEX(CurrentGrantData!E:F,MATCH(F34,CurrentGrantData!E:E,0),2) -> 0 | T34: 3984 | U34: 0
A35: 10_4 | B35: 4 | C35: Green River | D35: ='Alloc#vlookup'!$B$1 -> #4 | E35: =VLOOKUP(G35,district!$F$2:$G$34,2) -> 10 | F35: 110-BEDA-17 | G35: Green River | H35: BEdA Master Grant | I35: 248675 | J35: =IF(D35="#1",I35,IF(D35="#2",SUM(I35),IF(D35="#3",SUM(I35,K35),IF(D35="#4",SUM(I35,K35:L35),IF(D35="#5",SUM(I35,K35:M35),IF(D35="#6",SUM(I35,K35:N35),IF(D35="#7",SUM(I35,K35:O35),IF(D35="#8",SUM(I35,K35:P35),IF(D35="#9",SUM(I35,K35:Q35),IF(D35="#10",SUM(I35,K35:R35),ERROR)))))))))) -> 248675 | L35: 0 | M35: =INDEX(CurrentGrantData!E:F,MATCH(F35,CurrentGrantData!E:E,0),2) -> 0 | T35: 248675 | U35: 0
A36: 10_5 | B36: 5 | C36: Green River | D36: ='Alloc#vlookup'!$B$1 -> #4 | E36: =VLOOKUP(G36,district!$F$2:$G$34,2) -> 10 | F36: 110-IELC-17 | G36: Green River | H36: BEdA Program – IEL/Civics Grant Budget | I36: 51913 | J36: =IF(D36="#1",I36,IF(D36="#2",SUM(I36),IF(D36="#3",SUM(I36,K36),IF(D36="#4",SUM(I36,K36:L36),IF(D36="#5",SUM(I36,K36:M36),IF(D36="#6",SUM(I36,K36:N36),IF(D36="#7",SUM(I36,K36:O36),IF(D36="#8",SUM(I36,K36:P36),IF(D36="#9",SUM(I36,K36:Q36),IF(D36="#10",SUM(I36,K36:R36),ERROR)))))))))) -> 51913 | L36: 0 | M36: =INDEX(CurrentGrantData!E:F,MATCH(F36,CurrentGrantData!E:E,0),2) -> 0 | T36: 51913 | U36: 0
A37: 10_6 | B37: 6 | C37: Green River | D37: ='Alloc#vlookup'!$B$1 -> #4 | E37: =VLOOKUP(G37,district!$F$2:$G$34,2) -> 10 | F37: 110-EAG-17 | G37: Green River | H37: Early Achievers Grant | I37: 206000 | J37: =IF(D37="#1",I37,IF(D37="#2",SUM(I37),IF(D37="#3",SUM(I37,K37),IF(D37="#4",SUM(I37,K37:L37),IF(D37="#5",SUM(I37,K37:M37),IF(D37="#6",SUM(I37,K37:N37),IF(D37="#7",SUM(I37,K37:O37),IF(D37="#8",SUM(I37,K37:P37),IF(D37="#9",SUM(I37,K37:Q37),IF(D37="#10",SUM(I37,K37:R37),ERROR)))))))))) -> 157700 | L37: -48300 | M37: =INDEX(CurrentGrantData!E:F,MATCH(F37,CurrentGrantData!E:E,0),2) -> 24900 | T37: 182600 | U37: 24900
A38: 10_7 | B38: 7 | C38: Green River | D38: ='Alloc#vlookup'!$B$1 -> #4 | E38: =VLOOKUP(G38,district!$F$2:$G$34,2) -> 10 | F38: 110-JSP-16SS2 | G38: Green River | H38: Job Skills Program Grant | I38: 49200 | J38: =IF(D38="#1",I38,IF(D38="#2",SUM(I38),IF(D38="#3",SUM(I38,K38),IF(D38="#4",SUM(I38,K38:L38),IF(D38="#5",SUM(I38,K38:M38),IF(D38="#6",SUM(I38,K38:N38),IF(D38="#7",SUM(I38,K38:O38),IF(D38="#8",SUM(I38,K38:P38),IF(D38="#9",SUM(I38,K38:Q38),IF(D38="#10",SUM(I38,K38:R38),ERROR)))))))))) -> 49200 | L38: 0 | M38: =INDEX(CurrentGrantData!E:F,MATCH(F38,CurrentGrantData!E:E,0),2) -> 0 | T38: 49200 | U38: 0
A39: 10_8 | B39: 8 | C39: Green River | D39: ='Alloc#vlookup'!$B$1 -> #4 | E39: =VLOOKUP(G39,district!$F$2:$G$34,2) -> 10 | F39: 110-JSP-16SS | G39: Green River | H39: Job Skills Program Grant | I39: 52800 | J39: =IF(D39="#1",I39,IF(D39="#2",SUM(I39),IF(D39="#3",SUM(I39,K39),IF(D39="#4",SUM(I39,K39:L39),IF(D39="#5",SUM(I39,K39:M39),IF(D39="#6",SUM(I39,K39:N39),IF(D39="#7",SUM(I39,K39:O39),IF(D39="#8",SUM(I39,K39:P39),IF(D39="#9",SUM(I39,K39:Q39),IF(D39="#10",SUM(I39,K39:R39),ERROR)))))))))) -> 52800 | L39: 0 | M39: =INDEX(CurrentGrantData!E:F,MATCH(F39,CurrentGrantData!E:E,0),2) -> -171 | T39: 52629 | U39: -171
A40: 10_9 | B40: 9 | C40: Green River | D40: ='Alloc#vlookup'!$B$1 -> #4 | E40: =VLOOKUP(G40,district!$F$2:$G$34,2) -> 10 | F40: 110-JSP-17SS | G40: Green River | H40: Job Skills Program Grant | M40: 48900 | T40: 48900
A41: =E41 &"_"&B41 -> 11_1 | B41: 1 | C41: Pierce | D41: ='Alloc#vlookup'!$B$1 -> #4 | E41: =VLOOKUP(G41,district!$F$2:$G$34,2) -> 11 | F41: 111-BFET-16 | G41: =C41 -> Pierce | H41: =VLOOKUP(F41,grant_id_to_name,2) -> Basic Food Employment and Training Grant | I41: 202211 | J41: =IF(D41="#1",I41,IF(D41="#2",SUM(I41),IF(D41="#3",SUM(I41,K41),IF(D41="#4",SUM(I41,K41:L41),IF(D41="#5",SUM(I41,K41:M41),IF(D41="#6",SUM(I41,K41:N41),IF(D41="#7",SUM(I41,K41:O41),IF(D41="#8",SUM(I41,K41:P41),IF(D41="#9",SUM(I41,K41:Q41),IF(D41="#10",SUM(I41,K41:R41),ERROR)))))))))) -> 174706 | L41: -27505 | M41: =INDEX(CurrentGrantData!E:F,MATCH(F41,CurrentGrantData!E:E,0),2) -> 0 | T41: 174706 | U41: 0
A42: =E42 &"_"&B42 -> 11_10 | B42: 10 | C42: Pierce | D42: ='Alloc#vlookup'!$B$1 -> #4 | E42: =VLOOKUP(G42,district!$F$2:$G$34,2) -> 11 | F42: 111-PSP-17 | G42: =C42 -> Pierce | H42: =INDEX(CurrentGrantData!D:E,MATCH(F42,CurrentGrantData!E:E,0),1) -> Perkins Special Project | J42: =IF(D42="#1",I42,IF(D42="#2",SUM(I42),IF(D42="#3",SUM(I42,K42),IF(D42="#4",SUM(I42,K42:L42),IF(D42="#5",SUM(I42,K42:M42),IF(D42="#6",SUM(I42,K42:N42),IF(D42="#7",SUM(I42,K42:O42),IF(D42="#8",SUM(I42,K42:P42),IF(D42="#9",SUM(I42,K42:Q42),IF(D42="#10",SUM(I42,K42:R42),ERROR)))))))))) -> 30443 | L42: 30443 | M42: =INDEX(CurrentGrantData!E:F,MATCH(F42,CurrentGrantData!E:E,0),2) -> 0 | T42: =SUM(I42:S42)-J42 -> 30443
A43: =E43 &"_"&B43 -> 11_11 | B43: 11 | C43: Pierce | D43: ='Alloc#vlookup'!$B$1 -> #4 | E43: =VLOOKUP(G43,district!$F$2:$G$34,2) -> 11 | F43: 111-WFDA-17 | G43: =C43 -> Pierce | H43: =INDEX(CurrentGrantData!D:E,MATCH(F43,CurrentGrantData!E:E,0),1) -> WorkFirst Delivery Agreement | I43: 322405 | J43: =IF(D43="#1",I43,IF(D43="#2",SUM(I43),IF(D43="#3",SUM(I43,K43),IF(D43="#4",SUM(I43,K43:L43),IF(D43="#5",SUM(I43,K43:M43),IF(D43="#6",SUM(I43,K43:N43),IF(D43="#7",SUM(I43,K43:O43),IF(D43="#8",SUM(I43,K43:P43),IF(D43="#9",SUM(I43,K43:Q43),IF(D43="#10",SUM(I43,K43:R43),ERROR)))))))))) -> 322405 | L43: 0 | M43: =INDEX(CurrentGrantData!E:F,MATCH(F43,CurrentGrantData!E:E,0),2) -> 0 | T43: =SUM(I43:S43)-J43 -> 322405
A44: 11_2 | B44: 2 | C44: Pierce | D44: ='Alloc#vlookup'!$B$1 -> #4 | E44: =VLOOKUP(G44,district!$F$2:$G$34,2) -> 11 | F44: 111-BFET-17 | G44: Pierce | H44: Basic Food Employment and Training Grant | I44: 0 | J44: 0 | K44: 0 | L44: 0 | M44: 197635 | T44: =SUM(I44:S44)-J44 -> 197635
A45: 11_3 | B45: 3 | C45: Pierce | D45: ='Alloc#vlookup'!$B$1 -> #4 | E45: =VLOOKUP(G45,district!$F$2:$G$34,2) -> 11 | F45: 111-BEDA-17 | G45: Pierce | H45: BEdA Master Grant | I45: 210664 | J45: =IF(D45="#1",I45,IF(D45="#2",SUM(I45),IF(D45="#3",SUM(I45,K45),IF(D45="#4",SUM(I45,K45:L45),IF(D45="#5",SUM(I45,K45:M45),IF(D45="#6",SUM(I45,K45:N45),IF(D45="#7",SUM(I45,K45:O45),IF(D45="#8",SUM(I45,K45:P45),IF(D45="#9",SUM(I45,K45:Q45),IF(D45="#10",SUM(I45,K45:R45),ERROR)))))))))) -> 210664 | L45: 0 | M45: =INDEX(CurrentGrantData!E:F,MATCH(F45,CurrentGrantData!E:E,0),2) -> 0 | T45: 210664 | U45: 0
A46: 11_4 | B46: 4 | C46: Pierce | D46: ='Alloc#vlookup'!$B$1 -> #4 | E46: =VLOOKUP(G46,district!$F$2:$G$34,2) -> 11 | F46: 111-IELC-17 | G46: Pierce | H46: BEdA Program – IEL/Civics Grant Budget | I46: 44106 | J46: =IF(D46="#1",I46,IF(D46="#2",SUM(I46),IF(D46="#3",SUM(I46,K46),IF(D46="#4",SUM(I46,K46:L46),IF(D46="#5",SUM(I46,K46:M46),IF(D46="#6",SUM(I46,K46:N46),IF(D46="#7",SUM(I46,K46:O46),IF(D46="#8",SUM(I46,K46:P46),IF(D46="#9",SUM(I46,K46:Q46),IF(D46="#10",SUM(I46,K46:R46),ERROR)))))))))) -> 44106 | L46: 0 | M46: =INDEX(CurrentGrantData!E:F,MATCH(F46,CurrentGrantData!E:E,0),2) -> 0 | T46: 44106 | U46: 0
A47: 11_5 | B47: 5 | C47: Pierce | D47: ='Alloc#vlookup'!$B$1 -> #4 | E47: =VLOOKUP(G47,district!$F$2:$G$34,2) -> 11 | F47: 111-EAG-17 | G47: Pierce | H47: Early Achievers Grant | I47: 581000 | J47: =IF(D47="#1",I47,IF(D47="#2",SUM(I47),IF(D47="#3",SUM(I47,K47),IF(D47="#4",SUM(I47,K47:L47),IF(D47="#5",SUM(I47,K47:M47),IF(D47="#6",SUM(I47,K47:N47),IF(D47="#7",SUM(I47,K47:O47),IF(D47="#8",SUM(I47,K47:P47),IF(D47="#9",SUM(I47,K47:Q47),IF(D47="#10",SUM(I47,K47:R47),ERROR)))))))))) -> 415000 | L47: -166000 | M47: =INDEX(CurrentGrantData!E:F,MATCH(F47,CurrentGrantData!E:E,0),2) -> 49800 | T47: 464800 | U47: 49800
A48: 11_6 | B48: 6 | C48: Pierce | D48: ='Alloc#vlookup'!$B$1 -> #4 | E48: =VLOOKUP(G48,district!$F$2:$G$34,2) -> 11 | F48: 111-ELRN-17 | G48: Pierce | H48: Misc. General Grant | M48: 2750 | T48: 2750
A49: 11_7 | B49: 7 | C49: Pierce | D49: ='Alloc#vlookup'!$B$1 -> #4 | E49: =VLOOKUP(G49,district!$F$2:$G$34,2) -> 11 | F49: 111-PLB-17 | G49: Pierce | H49: =INDEX(CurrentGrantData!D:E,MATCH(F49,CurrentGrantData!E:E,0),1) -> Perkins Leadership Block Grant | J49: =IF(D49="#1",I49,IF(D49="#2",SUM(I49),IF(D49="#3",SUM(I49,K49),IF(D49="#4",SUM(I49,K49:L49),IF(D49="#5",SUM(I49,K49:M49),IF(D49="#6",SUM(I49,K49:N49),IF(D49="#7",SUM(I49,K49:O49),IF(D49="#8",SUM(I49,K49:P49),IF(D49="#9",SUM(I49,K49:Q49),IF(D49="#10",SUM(I49,K49:R49),ERROR)))))))))) -> 31998 | L49: 31998 | M49: =INDEX(CurrentGrantData!E:F,MATCH(F49,CurrentGrantData!E:E,0),2) -> 0 | T49: 31998 | U49: 0
A50: 11_8 | B50: 8 | C50: Pierce | D50: ='Alloc#vlookup'!$B$1 -> #4 | E50: =VLOOKUP(G50,district!$F$2:$G$34,2) -> 11 | F50: 111-PNT-17 | G50: Pierce | H50: Perkins Non-Traditional Employment & Training Gran | M50: 5000 | T50: 5000
A51: 11_9 | B51: 9 | C51: Pierce | D51: ='Alloc#vlookup'!$B$1 -> #4 | E51: =VLOOKUP(G51,district!$F$2:$G$34,2) -> 11 | F51: 111-PRK-17 | G51: Pierce | H51: =VLOOKUP(F51,grant_id_to_name,2) -> Perkins Plan | I51: 486158 | J51: =IF(D51="#1",I51,IF(D51="#2",SUM(I51),IF(D51="#3",SUM(I51,K51),IF(D51="#4",SUM(I51,K51:L51),IF(D51="#5",SUM(I51,K51:M51),IF(D51="#6",SUM(I51,K51:N51),IF(D51="#7",SUM(I51,K51:O51),IF(D51="#8",SUM(I51,K51:P51),IF(D51="#9",SUM(I51,K51:Q51),IF(D51="#10",SUM(I51,K51:R51),ERROR)))))))))) -> 486158 | L51: 0 | M51: =INDEX(CurrentGrantData!E:F,MATCH(F51,CurrentGrantData!E:E,0),2) -> 6175 | T51: 492333 | U51: 6175
A52: =E52 &"_"&B52 -> 12_1 | B52: 1 | C52: Centralia | D52: ='Alloc#vlookup'!$B$1 -> #4 | E52: =VLOOKUP(G52,district!$F$2:$G$34,2) -> 12 | F52: 112-BFET-16 | G52: Centralia | H52: =VLOOKUP(F52,grant_id_to_name,2) -> Basic Food Employment and Training Grant | I52: 389541 | J52: =IF(D52="#1",I52,IF(D52="#2",SUM(I52),IF(D52="#3",SUM(I52,K52),IF(D52="#4",SUM(I52,K52:L52),IF(D52="#5",SUM(I52,K52:M52),IF(D52="#6",SUM(I52,K52:N52),IF(D52="#7",SUM(I52,K52:O52),IF(D52="#8",SUM(I52,K52:P52),IF(D52="#9",SUM(I52,K52:Q52),IF(D52="#10",SUM(I52,K52:R52),ERROR)))))))))) -> 345541 | L52: -44000 | M52: =INDEX(CurrentGrantData!E:F,MATCH(F52,CurrentGrantData!E:E,0),2) -> 0 | T52: 345541 | U52: =T52-J52 -> 0
A53: =E53 &"_"&B53 -> 12_10 | B53: 10 | C53: Centralia | D53: ='Alloc#vlookup'!$B$1 -> #4 | E53: =VLOOKUP(G53,district!$F$2:$G$34,2) -> 12 | F53: 112-PRK-17 | G53: =C53 -> Centralia | H53: =VLOOKUP(F53,grant_id_to_name,2) -> Perkins Plan | I53: 211541 | J53: =IF(D53="#1",I53,IF(D53="#2",SUM(I53),IF(D53="#3",SUM(I53,K53),IF(D53="#4",SUM(I53,K53:L53),IF(D53="#5",SUM(I53,K53:M53),IF(D53="#6",SUM(I53,K53:N53),IF(D53="#7",SUM(I53,K53:O53),IF(D53="#8",SUM(I53,K53:P53),IF(D53="#9",SUM(I53,K53:Q53),IF(D53="#10",SUM(I53,K53:R53),ERROR)))))))))) -> 211541 | L53: 0 | M53: =INDEX(CurrentGrantData!E:F,MATCH(F53,CurrentGrantData!E:E,0),2) -> 1887 | T53: =SUM(I53:S53)-J53 -> 213428 | U53: =T53-J53 -> 1887
A54: 12_11 | B54: 11 | C54: Centralia | D54: ='Alloc#vlookup'!$B$1 -> #4 | E54: =VLOOKUP(G54,district!$F$2:$G$34,2) -> 12 | F54: 112-WFDA-17 | G54: Centralia | H54: WorkFirst Delivery Agreement | I54: 485112 | J54: =IF(D54="#1",I54,IF(D54="#2",SUM(I54),IF(D54="#3",SUM(I54,K54),IF(D54="#4",SUM(I54,K54:L54),IF(D54="#5",SUM(I54,K54:M54),IF(D54="#6",SUM(I54,K54:N54),IF(D54="#7",SUM(I54,K54:O54),IF(D54="#8",SUM(I54,K54:P54),IF(D54="#9",SUM(I54,K54:Q54),IF(D54="#10",SUM(I54,K54:R54),ERROR)))))))))) -> 515112 | L54: 30000 | M54: =INDEX(CurrentGrantData!E:F,MATCH(F54,CurrentGrantData!E:E,0),2) -> 0 | T54: 515112 | U54: 0
A55: =E55 &"_"&B55 -> 12_2 | B55: 2 | C55: Centralia | D55: ='Alloc#vlookup'!$B$1 -> #4 | E55: =VLOOKUP(G55,district!$F$2:$G$34,2) -> 12 | F55: 112-BFET-17 | G55: =C55 -> Centralia | H55: =VLOOKUP(F55,grant_id_to_name,2) -> Basic Food Employment and Training Grant | M55: 289502 | T55: =SUM(I55:S55)-J55 -> 289502
A56: 12_3 | B56: 3 | C56: Centralia | D56: ='Alloc#vlookup'!$B$1 -> #4 | E56: =VLOOKUP(G56,district!$F$2:$G$34,2) -> 12 | F56: 112-BLB-17 | G56: Centralia | H56: BEdA Leadership Block Grant | I56: 3984 | J56: =IF(D56="#1",I56,IF(D56="#2",SUM(I56),IF(D56="#3",SUM(I56,K56),IF(D56="#4",SUM(I56,K56:L56),IF(D56="#5",SUM(I56,K56:M56),IF(D56="#6",SUM(I56,K56:N56),IF(D56="#7",SUM(I56,K56:O56),IF(D56="#8",SUM(I56,K56:P56),IF(D56="#9",SUM(I56,K56:Q56),IF(D56="#10",SUM(I56,K56:R56),ERROR)))))))))) -> 3984 | L56: 0 | M56: =INDEX(CurrentGrantData!E:F,MATCH(F56,CurrentGrantData!E:E,0),2) -> 0 | T56: 3984 | U56: 0
A57: 12_4 | B57: 4 | C57: Centralia | D57: ='Alloc#vlookup'!$B$1 -> #4 | E57: =VLOOKUP(G57,district!$F$2:$G$34,2) -> 12 | F57: 112-BEDA-17 | G57: Centralia | H57: BEdA Master Grant | I57: 129953 | J57: =IF(D57="#1",I57,IF(D57="#2",SUM(I57),IF(D57="#3",SUM(I57,K57),IF(D57="#4",SUM(I57,K57:L57),IF(D57="#5",SUM(I57,K57:M57),IF(D57="#6",SUM(I57,K57:N57),IF(D57="#7",SUM(I57,K57:O57),IF(D57="#8",SUM(I57,K57:P57),IF(D57="#9",SUM(I57,K57:Q57),IF(D57="#10",SUM(I57,K57:R57),ERROR)))))))))) -> 129953 | L57: 0 | M57: =INDEX(CurrentGrantData!E:F,MATCH(F57,CurrentGrantData!E:E,0),2) -> 0 | T57: 129953 | U57: 0
A58: 12_5 | B58: 5 | C58: Centralia | D58: ='Alloc#vlookup'!$B$1 -> #4 | E58: =VLOOKUP(G58,district!$F$2:$G$34,2) -> 12 | F58: 112-IELC-17 | G58: Centralia | H58: BEdA Program – IEL/Civics Grant Budget | I58: 26385 | J58: =IF(D58="#1",I58,IF(D58="#2",SUM(I58),IF(D58="#3",SUM(I58,K58),IF(D58="#4",SUM(I58,K58:L58),IF(D58="#5",SUM(I58,K58:M58),IF(D58="#6",SUM(I58,K58:N58),IF(D58="#7",SUM(I58,K58:O58),IF(D58="#8",SUM(I58,K58:P58),IF(D58="#9",SUM(I58,K58:Q58),IF(D58="#10",SUM(I58,K58:R58),ERROR)))))))))) -> 26385 | L58: 0 | M58: =INDEX(CurrentGrantData!E:F,MATCH(F58,CurrentGrantData!E:E,0),2) -> 0 | T58: 26385 | U58: 0
A59: 12_6 | B59: 6 | C59: Centralia | D59: ='Alloc#vlookup'!$B$1 -> #4 | E59: =VLOOKUP(G59,district!$F$2:$G$34,2) -> 12 | F59: 112-CE-17 | G59: Centralia | H59: Correctional Education Grant | I59: 1839246 | J59: =IF(D59="#1",I59,IF(D59="#2",SUM(I59),IF(D59="#3",SUM(I59,K59),IF(D59="#4",SUM(I59,K59:L59),IF(D59="#5",SUM(I59,K59:M59),IF(D59="#6",SUM(I59,K59:N59),IF(D59="#7",SUM(I59,K59:O59),IF(D59="#8",SUM(I59,K59:P59),IF(D59="#9",SUM(I59,K59:Q59),IF(D59="#10",SUM(I59,K59:R59),ERROR)))))))))) -> 1839246 | L59: 0 | M59: =INDEX(CurrentGrantData!E:F,MATCH(F59,CurrentGrantData!E:E,0),2) -> 0 | T59: 1839246 | U59: 0
A60: 12_7 | B60: 7 | C60: Centralia | D60: ='Alloc#vlookup'!$B$1 -> #4 | E60: =VLOOKUP(G60,district!$F$2:$G$34,2) -> 12 | F60: 112-EAG-17 | G60: Centralia | H60: Early Achievers Grant | I60: 41500 | J60: =IF(D60="#1",I60,IF(D60="#2",SUM(I60),IF(D60="#3",SUM(I60,K60),IF(D60="#4",SUM(I60,K60:L60),IF(D60="#5",SUM(I60,K60:M60),IF(D60="#6",SUM(I60,K60:N60),IF(D60="#7",SUM(I60,K60:O60),IF(D60="#8",SUM(I60,K60:P60),IF(D60="#9",SUM(I60,K60:Q60),IF(D60="#10",SUM(I60,K60:R60),ERROR)))))))))) -> 33200 | L60: -8300 | M60: =INDEX(CurrentGrantData!E:F,MATCH(F60,CurrentGrantData!E:E,0),2) -> 24900 | T60: 58100 | U60: 24900
A61: 12_8 | B61: 8 | C61: Centralia | D61: ='Alloc#vlookup'!$B$1 -> #4 | E61: =VLOOKUP(G61,district!$F$2:$G$34,2) -> 12 | F61: 112-JSP-16HL | G61: Centralia | H61: Job Skills Program Grant | I61: 77588 | J61: =IF(D61="#1",I61,IF(D61="#2",SUM(I61),IF(D61="#3",SUM(I61,K61),IF(D61="#4",SUM(I61,K61:L61),IF(D61="#5",SUM(I61,K61:M61),IF(D61="#6",SUM(I61,K61:N61),IF(D61="#7",SUM(I61,K61:O61),IF(D61="#8",SUM(I61,K61:P61),IF(D61="#9",SUM(I61,K61:Q61),IF(D61="#10",SUM(I61,K61:R61),ERROR)))))))))) -> 77588 | L61: 0 | M61: =INDEX(CurrentGrantData!E:F,MATCH(F61,CurrentGrantData!E:E,0),2) -> -30814 | T61: 46774 | U61: -30814
A62: 12_9 | B62: 9 | C62: Centralia | D62: ='Alloc#vlookup'!$B$1 -> #4 | E62: =VLOOKUP(G62,district!$F$2:$G$34,2) -> 12 | F62: 112-PLB-17 | G62: Centralia | H62: Perkins Leadership Block Grant | I62: 16000 | J62: =IF(D62="#1",I62,IF(D62="#2",SUM(I62),IF(D62="#3",SUM(I62,K62),IF(D62="#4",SUM(I62,K62:L62),IF(D62="#5",SUM(I62,K62:M62),IF(D62="#6",SUM(I62,K62:N62),IF(D62="#7",SUM(I62,K62:O62),IF(D62="#8",SUM(I62,K62:P62),IF(D62="#9",SUM(I62,K62:Q62),IF(D62="#10",SUM(I62,K62:R62),ERROR)))))))))) -> 16000 | L62: 0 | M62: =INDEX(CurrentGrantData!E:F,MATCH(F62,CurrentGrantData!E:E,0),2) -> 0 | T62: 16000 | U62: 0
A63: =E63 &"_"&B63 -> 13_1 | B63: 1 | C63: Lower Columbia | D63: ='Alloc#vlookup'!$B$1 -> #4 | E63: =VLOOKUP(G63,district!$F$2:$G$34,2) -> 13 | F63: 113-BFET-16 | G63: =C63 -> Lower Columbia | H63: =VLOOKUP(F63,grant_id_to_name,2) -> Basic Food Employment and Training Grant | I63: 219031 | J63: =IF(D63="#1",I63,IF(D63="#2",SUM(I63),IF(D63="#3",SUM(I63,K63),IF(D63="#4",SUM(I63,K63:L63),IF(D63="#5",SUM(I63,K63:M63),IF(D63="#6",SUM(I63,K63:N63),IF(D63="#7",SUM(I63,K63:O63),IF(D63="#8",SUM(I63,K63:P63),IF(D63="#9",SUM(I63,K63:Q63),IF(D63="#10",SUM(I63,K63:R63),ERROR)))))))))) -> 239031 | L63: 20000 | M63: =INDEX(CurrentGrantData!E:F,MATCH(F63,CurrentGrantData!E:E,0),2) -> 0 | T63: =SUM(I63:S63)-J63 -> 239031 | U63: =T63-J63 -> 0
A64: 13_10 | B64: 10 | C64: Lower Columbia | D64: ='Alloc#vlookup'!$B$1 -> #4 | E64: =VLOOKUP(G64,district!$F$2:$G$34,2) -> 13 | F64: 113-JSP-16NWS | G64: Lower Columbia | H64: =VLOOKUP(F64,grant_id_to_name,2) -> Job Skills Program Grant | I64: 55000 | J64: =IF(D64="#1",I64,IF(D64="#2",SUM(I64),IF(D64="#3",SUM(I64,K64),IF(D64="#4",SUM(I64,K64:L64),IF(D64="#5",SUM(I64,K64:M64),IF(D64="#6",SUM(I64,K64:N64),IF(D64="#7",SUM(I64,K64:O64),IF(D64="#8",SUM(I64,K64:P64),IF(D64="#9",SUM(I64,K64:Q64),IF(D64="#10",SUM(I64,K64:R64),ERROR)))))))))) -> 55000 | L64: 0 | M64: =INDEX(CurrentGrantData!E:F,MATCH(F64,CurrentGrantData!E:E,0),2) -> 0 | T64: =SUM(I64:S64)-J64 -> 55000 | U64: =T64-J64 -> 0
A65: 13_11 | B65: 11 | C65: Lower Columbia | D65: ='Alloc#vlookup'!$B$1 -> #4 | E65: =VLOOKUP(G65,district!$F$2:$G$34,2) -> 13 | F65: 113-JSP-16LEC | G65: Lower Columbia | H65: =VLOOKUP(F65,grant_id_to_name,2) -> Job Skills Program Grant | I65: 41490 | J65: =IF(D65="#1",I65,IF(D65="#2",SUM(I65),IF(D65="#3",SUM(I65,K65),IF(D65="#4",SUM(I65,K65:L65),IF(D65="#5",SUM(I65,K65:M65),IF(D65="#6",SUM(I65,K65:N65),IF(D65="#7",SUM(I65,K65:O65),IF(D65="#8",SUM(I65,K65:P65),IF(D65="#9",SUM(I65,K65:Q65),IF(D65="#10",SUM(I65,K65:R65),ERROR)))))))))) -> 41490 | L65: 0 | M65: =INDEX(CurrentGrantData!E:F,MATCH(F65,CurrentGrantData!E:E,0),2) -> 0 | T65: =SUM(I65:S65)-J65 -> 41490 | U65: =T65-J65 -> 0
A66: 13_12 | B66: 12 | C66: Lower Columbia | D66: ='Alloc#vlookup'!$B$1 -> #4 | E66: =VLOOKUP(G66,district!$F$2:$G$34,2) -> 13 | F66: 113-JSP-17OI | G66: Lower Columbia | H66: =VLOOKUP(F66,grant_id_to_name,2) -> Job Skills Program Grant | M66: 35500 | T66: =SUM(I66:S66)-J66 -> 35500
A67: 13_13 | B67: 13 | C67: Lower Columbia | D67: ='Alloc#vlookup'!$B$1 -> #4 | E67: =VLOOKUP(G67,district!$F$2:$G$34,2) -> 13 | F67: 113-B2C-17 | G67: Lower Columbia | H67: =INDEX(CurrentGrantData!D:E,MATCH(F67,CurrentGrantData!E:E,0),1) -> Misc. General Grant | J67: =IF(D67="#1",I67,IF(D67="#2",SUM(I67),IF(D67="#3",SUM(I67,K67),IF(D67="#4",SUM(I67,K67:L67),IF(D67="#5",SUM(I67,K67:M67),IF(D67="#6",SUM(I67,K67:N67),IF(D67="#7",SUM(I67,K67:O67),IF(D67="#8",SUM(I67,K67:P67),IF(D67="#9",SUM(I67,K67:Q67),IF(D67="#10",SUM(I67,K67:R67),ERROR)))))))))) -> 1000 | L67: 1000 | M67: =INDEX(CurrentGrantData!E:F,MATCH(F67,CurrentGrantData!E:E,0),2) -> 0 | T67: 1000 | U67: =T67-J67 -> 0
A68: 13_14 | B68: 14 | C68: Lower Columbia | D68: ='Alloc#vlookup'!$B$1 -> #4 | E68: =VLOOKUP(G68,district!$F$2:$G$34,2) -> 13 | F68: 113-PIP-17 | G68: Lower Columbia | H68: =INDEX(CurrentGrantData!D:E,MATCH(F68,CurrentGrantData!E:E,0),1) -> Perkins Innovation Project | J68: =IF(D68="#1",I68,IF(D68="#2",SUM(I68),IF(D68="#3",SUM(I68,K68),IF(D68="#4",SUM(I68,K68:L68),IF(D68="#5",SUM(I68,K68:M68),IF(D68="#6",SUM(I68,K68:N68),IF(D68="#7",SUM(I68,K68:O68),IF(D68="#8",SUM(I68,K68:P68),IF(D68="#9",SUM(I68,K68:Q68),IF(D68="#10",SUM(I68,K68:R68),ERROR)))))))))) -> 14965 | L68: 14965 | M68: =INDEX(CurrentGrantData!E:F,MATCH(F68,CurrentGrantData!E:E,0),2) -> 0 | T68: 14965 | U68: =T68-J68 -> 0
A69: 13_15 | B69: 15 | C69: Lower Columbia | D69: ='Alloc#vlookup'!$B$1 -> #4 | E69: =VLOOKUP(G69,district!$F$2:$G$34,2) -> 13 | F69: 113-PRK-17 | G69: Lower Columbia | H69: =VLOOKUP(F69,grant_id_to_name,2) -> Perkins Plan | I69: 316519 | J69: =IF(D69="#1",I69,IF(D69="#2",SUM(I69),IF(D69="#3",SUM(I69,K69),IF(D69="#4",SUM(I69,K69:L69),IF(D69="#5",SUM(I69,K69:M69),IF(D69="#6",SUM(I69,K69:N69),IF(D69="#7",SUM(I69,K69:O69),IF(D69="#8",SUM(I69,K69:P69),IF(D69="#9",SUM(I69,K69:Q69),IF(D69="#10",SUM(I69,K69:R69),ERROR)))))))))) -> 316519 | L69: 0 | M69: =INDEX(CurrentGrantData!E:F,MATCH(F69,CurrentGrantData!E:E,0),2) -> 2886 | T69: 319405
A70: 13_16 | B70: 16 | C70: Lower Columbia | D70: ='Alloc#vlookup'!$B$1 -> #4 | E70: =VLOOKUP(G70,district!$F$2:$G$34,2) -> 13 | F70: 113-WFDA-17 | G70: Lower Columbia | H70: WorkFirst Delivery Agreement | I70: 841038 | J70: =IF(D70="#1",I70,IF(D70="#2",SUM(I70),IF(D70="#3",SUM(I70,K70),IF(D70="#4",SUM(I70,K70:L70),IF(D70="#5",SUM(I70,K70:M70),IF(D70="#6",SUM(I70,K70:N70),IF(D70="#7",SUM(I70,K70:O70),IF(D70="#8",SUM(I70,K70:P70),IF(D70="#9",SUM(I70,K70:Q70),IF(D70="#10",SUM(I70,K70:R70),ERROR)))))))))) -> 896038 | L70: 55000 | M70: =INDEX(CurrentGrantData!E:F,MATCH(F70,CurrentGrantData!E:E,0),2) -> 0 | T70: 896038
A71: 13_2 | B71: 2 | C71: Lower Columbia | D71: ='Alloc#vlookup'!$B$1 -> #4 | E71: =VLOOKUP(G71,district!$F$2:$G$34,2) -> 13 | F71: 113-BFET-17 | G71: Lower Columbia | H71: Basic Food Employment and Training Grant | I71: 0 | J71: 0 | K71: 0 | L71: 0 | M71: 255062 | T71: 255062
A72: 13_3 | B72: 3 | C72: Lower Columbia | D72: ='Alloc#vlookup'!$B$1 -> #4 | E72: =VLOOKUP(G72,district!$F$2:$G$34,2) -> 13 | F72: 113-BLB-17 | G72: Lower Columbia | H72: BEdA Leadership Block Grant | I72: 4477 | J72: =IF(D72="#1",I72,IF(D72="#2",SUM(I72),IF(D72="#3",SUM(I72,K72),IF(D72="#4",SUM(I72,K72:L72),IF(D72="#5",SUM(I72,K72:M72),IF(D72="#6",SUM(I72,K72:N72),IF(D72="#7",SUM(I72,K72:O72),IF(D72="#8",SUM(I72,K72:P72),IF(D72="#9",SUM(I72,K72:Q72),IF(D72="#10",SUM(I72,K72:R72),ERROR)))))))))) -> 4477 | L72: 0 | M72: =INDEX(CurrentGrantData!E:F,MATCH(F72,CurrentGrantData!E:E,0),2) -> 0 | T72: 4477 | U72: =T72-J72 -> 0
A73: 13_4 | B73: 4 | C73: Lower Columbia | D73: ='Alloc#vlookup'!$B$1 -> #4 | E73: =VLOOKUP(G73,district!$F$2:$G$34,2) -> 13 | F73: 113-BEDA-17 | G73: Lower Columbia | H73: BEdA Master Grant | I73: 200825 | J73: =IF(D73="#1",I73,IF(D73="#2",SUM(I73),IF(D73="#3",SUM(I73,K73),IF(D73="#4",SUM(I73,K73:L73),IF(D73="#5",SUM(I73,K73:M73),IF(D73="#6",SUM(I73,K73:N73),IF(D73="#7",SUM(I73,K73:O73),IF(D73="#8",SUM(I73,K73:P73),IF(D73="#9",SUM(I73,K73:Q73),IF(D73="#10",SUM(I73,K73:R73),ERROR)))))))))) -> 200825 | L73: 0 | M73: =INDEX(CurrentGrantData!E:F,MATCH(F73,CurrentGrantData!E:E,0),2) -> 0 | T73: =SUM(I73:S73)-J73 -> 200825 | U73: =T73-J73 -> 0
A74: 13_5 | B74: 5 | C74: Lower Columbia | D74: ='Alloc#vlookup'!$B$1 -> #4 | E74: =VLOOKUP(G74,district!$F$2:$G$34,2) -> 13 | F74: 113-IELC-17 | G74: Lower Columbia | H74: BEdA Program – IEL/Civics Grant Budget | I74: 39141 | J74: =IF(D74="#1",I74,IF(D74="#2",SUM(I74),IF(D74="#3",SUM(I74,K74),IF(D74="#4",SUM(I74,K74:L74),IF(D74="#5",SUM(I74,K74:M74),IF(D74="#6",SUM(I74,K74:N74),IF(D74="#7",SUM(I74,K74:O74),IF(D74="#8",SUM(I74,K74:P74),IF(D74="#9",SUM(I74,K74:Q74),IF(D74="#10",SUM(I74,K74:R74),ERROR)))))))))) -> 39141 | L74: 0 | M74: =INDEX(CurrentGrantData!E:F,MATCH(F74,CurrentGrantData!E:E,0),2) -> 0 | T74: 39141 | U74: =T74-J74 -> 0
A75: 13_6 | B75: 6 | C75: Lower Columbia | D75: ='Alloc#vlookup'!$B$1 -> #4 | E75: =VLOOKUP(G75,district!$F$2:$G$34,2) -> 13 | F75: 113-BSP3-16 | G75: Lower Columbia | H75: BEdA Special Projects Grant | I75: 7600 | J75: =IF(D75="#1",I75,IF(D75="#2",SUM(I75),IF(D75="#3",SUM(I75,K75),IF(D75="#4",SUM(I75,K75:L75),IF(D75="#5",SUM(I75,K75:M75),IF(D75="#6",SUM(I75,K75:N75),IF(D75="#7",SUM(I75,K75:O75),IF(D75="#8",SUM(I75,K75:P75),IF(D75="#9",SUM(I75,K75:Q75),IF(D75="#10",SUM(I75,K75:R75),ERROR)))))))))) -> 7600 | L75: 0 | M75: =INDEX(CurrentGrantData!E:F,MATCH(F75,CurrentGrantData!E:E,0),2) -> 0 | T75: 7600 | U75: =T75-J75 -> 0
A76: 13_7 | B76: 7 | C76: Lower Columbia | D76: ='Alloc#vlookup'!$B$1 -> #4 | E76: =VLOOKUP(G76,district!$F$2:$G$34,2) -> 13 | F76: 113-BSP2-16 | G76: Lower Columbia | H76: BEdA Special Projects Grant | I76: 3600 | J76: =IF(D76="#1",I76,IF(D76="#2",SUM(I76),IF(D76="#3",SUM(I76,K76),IF(D76="#4",SUM(I76,K76:L76),IF(D76="#5",SUM(I76,K76:M76),IF(D76="#6",SUM(I76,K76:N76),IF(D76="#7",SUM(I76,K76:O76),IF(D76="#8",SUM(I76,K76:P76),IF(D76="#9",SUM(I76,K76:Q76),IF(D76="#10",SUM(I76,K76:R76),ERROR)))))))))) -> 3600 | L76: 0 | M76: =INDEX(CurrentGrantData!E:F,MATCH(F76,CurrentGrantData!E:E,0),2) -> 0 | T76: 3600 | U76: =T76-J76 -> 0
A77: 13_8 | B77: 8 | C77: Lower Columbia | D77: ='Alloc#vlookup'!$B$1 -> #4 | E77: =VLOOKUP(G77,district!$F$2:$G$34,2) -> 13 | F77: 113-BSP-17 | G77: Lower Columbia | H77: BEdA Leadership Block Grant | M77: 3200 | T77: 3200
A78: 13_9 | B78: 9 | C78: Lower Columbia | D78: ='Alloc#vlookup'!$B$1 -> #4 | E78: =VLOOKUP(G78,district!$F$2:$G$34,2) -> 13 | F78: 113-EAG-17 | G78: Lower Columbia | H78: Early Achievers Grant | I78: 124500 | J78: =IF(D78="#1",I78,IF(D78="#2",SUM(I78),IF(D78="#3",SUM(I78,K78),IF(D78="#4",SUM(I78,K78:L78),IF(D78="#5",SUM(I78,K78:M78),IF(D78="#6",SUM(I78,K78:N78),IF(D78="#7",SUM(I78,K78:O78),IF(D78="#8",SUM(I78,K78:P78),IF(D78="#9",SUM(I78,K78:Q78),IF(D78="#10",SUM(I78,K78:R78),ERROR)))))))))) -> 91300 | L78: -33200 | M78: =INDEX(CurrentGrantData!E:F,MATCH(F78,CurrentGrantData!E:E,0),2) -> 0 | T78: 91300 | U78: =T78-J78 -> 0
A79: 14_1 | B79: 1 | C79: Clark | D79: ='Alloc#vlookup'!$B$1 -> #4 | E79: =VLOOKUP(G79,district!$F$2:$G$34,2) -> 14 | F79: 114-BFET-16 | G79: Clark | H79: Basic Food Employment and Training Grant | I79: 365862 | J79: =IF(D79="#1",I79,IF(D79="#2",SUM(I79),IF(D79="#3",SUM(I79,K79),IF(D79="#4",SUM(I79,K79:L79),IF(D79="#5",SUM(I79,K79:M79),IF(D79="#6",SUM(I79,K79:N79),IF(D79="#7",SUM(I79,K79:O79),IF(D79="#8",SUM(I79,K79:P79),IF(D79="#9",SUM(I79,K79:Q79),IF(D79="#10",SUM(I79,K79:R79),ERROR)))))))))) -> 430081 | L79: 64219 | M79: =INDEX(CurrentGrantData!E:F,MATCH(F79,CurrentGrantData!E:E,0),2) -> 0 | T79: 430081 | U79: =T79-J79 -> 0
A80: 14_10 | B80: 10 | C80: Clark | D80: ='Alloc#vlookup'!$B$1 -> #4 | E80: =VLOOKUP(G80,district!$F$2:$G$34,2) -> 14 | F80: 114-FLCA-17PP | G80: Clark | H80: =INDEX(CurrentGrantData!D:E,MATCH(F80,CurrentGrantData!E:E,0),1) -> Faculty Learning Communities Initiative Grant | J80: =IF(D80="#1",I80,IF(D80="#2",SUM(I80),IF(D80="#3",SUM(I80,K80),IF(D80="#4",SUM(I80,K80:L80),IF(D80="#5",SUM(I80,K80:M80),IF(D80="#6",SUM(I80,K80:N80),IF(D80="#7",SUM(I80,K80:O80),IF(D80="#8",SUM(I80,K80:P80),IF(D80="#9",SUM(I80,K80:Q80),IF(D80="#10",SUM(I80,K80:R80),ERROR)))))))))) -> 5000 | L80: 5000 | M80: =INDEX(CurrentGrantData!E:F,MATCH(F80,CurrentGrantData!E:E,0),2) -> 0 | T80: 5000 | U80: =T80-J80 -> 0
A81: 14_11 | B81: 11 | C81: Clark | D81: ='Alloc#vlookup'!$B$1 -> #4 | E81: =VLOOKUP(G81,district!$F$2:$G$34,2) -> 14 | F81: 114-IDEA-17 | G81: Clark | H81: =INDEX(CurrentGrantData!D:E,MATCH(F81,CurrentGrantData!E:E,0),1) -> I-DEA Technology Expansion Grant | J81: =IF(D81="#1",I81,IF(D81="#2",SUM(I81),IF(D81="#3",SUM(I81,K81),IF(D81="#4",SUM(I81,K81:L81),IF(D81="#5",SUM(I81,K81:M81),IF(D81="#6",SUM(I81,K81:N81),IF(D81="#7",SUM(I81,K81:O81),IF(D81="#8",SUM(I81,K81:P81),IF(D81="#9",SUM(I81,K81:Q81),IF(D81="#10",SUM(I81,K81:R81),ERROR)))))))))) -> 20000 | L81: 20000 | M81: =INDEX(CurrentGrantData!E:F,MATCH(F81,CurrentGrantData!E:E,0),2) -> 0 | T81: 20000
A82: 14_12 | B82: 12 | C82: Clark | D82: ='Alloc#vlookup'!$B$1 -> #4 | E82: =VLOOKUP(G82,district!$F$2:$G$34,2) -> 14 | F82: 114-B2C-17 | G82: Clark | H82: =INDEX(CurrentGrantData!D:E,MATCH(F82,CurrentGrantData!E:E,0),1) -> Misc. General Grant | J82: =IF(D82="#1",I82,IF(D82="#2",SUM(I82),IF(D82="#3",SUM(I82,K82),IF(D82="#4",SUM(I82,K82:L82),IF(D82="#5",SUM(I82,K82:M82),IF(D82="#6",SUM(I82,K82:N82),IF(D82="#7",SUM(I82,K82:O82),IF(D82="#8",SUM(I82,K82:P82),IF(D82="#9",SUM(I82,K82:Q82),IF(D82="#10",SUM(I82,K82:R82),ERROR)))))))))) -> 2500 | L82: 2500 | M82: =INDEX(CurrentGrantData!E:F,MATCH(F82,CurrentGrantData!E:E,0),2) -> 0 | T82: 2500
A83: 14_13 | B83: 13 | C83: Clark | D83: ='Alloc#vlookup'!$B$1 -> #4 | E83: =VLOOKUP(G83,district!$F$2:$G$34,2) -> 14 | F83: 114-B2C2-17 | G83: Clark | H83: =INDEX(CurrentGrantData!D:E,MATCH(F83,CurrentGrantData!E:E,0),1) -> Misc. General Grant | M83: 1000 | T83: 1000
A84: 14_14 | B84: 14 | C84: Clark | D84: ='Alloc#vlookup'!$B$1 -> #4 | E84: =VLOOKUP(G84,district!$F$2:$G$34,2) -> 14 | F84: 114-FOCM-17 | G84: Clark | H84: =INDEX(CurrentGrantData!D:E,MATCH(F84,CurrentGrantData!E:E,0),1) -> Misc. General Grant | M84: 855 | T84: 855
A85: 14_15 | B85: 15 | C85: Clark | D85: ='Alloc#vlookup'!$B$1 -> #4 | E85: =VLOOKUP(G85,district!$F$2:$G$34,2) -> 14 | F85: 114-FSOCC-17 | G85: Clark | H85: =INDEX(CurrentGrantData!D:E,MATCH(F85,CurrentGrantData!E:E,0),1) -> Misc. General Grant | M85: 1600 | T85: 1600
A86: 14_16 | B86: 16 | C86: Clark | D86: ='Alloc#vlookup'!$B$1 -> #4 | E86: =VLOOKUP(G86,district!$F$2:$G$34,2) -> 14 | F86: 114-PLB-17 | G86: Clark | H86: Perkins Leadership Block Grant | M86: 16000 | T86: 16000
A87: 14_17 | B87: 17 | C87: Clark | D87: ='Alloc#vlookup'!$B$1 -> #4 | E87: =VLOOKUP(G87,district!$F$2:$G$34,2) -> 14 | F87: 114-PRK-17 | G87: Clark | H87: =VLOOKUP(F87,grant_id_to_name,2) -> Perkins Plan | I87: 551149 | J87: =IF(D87="#1",I87,IF(D87="#2",SUM(I87),IF(D87="#3",SUM(I87,K87),IF(D87="#4",SUM(I87,K87:L87),IF(D87="#5",SUM(I87,K87:M87),IF(D87="#6",SUM(I87,K87:N87),IF(D87="#7",SUM(I87,K87:O87),IF(D87="#8",SUM(I87,K87:P87),IF(D87="#9",SUM(I87,K87:Q87),IF(D87="#10",SUM(I87,K87:R87),ERROR)))))))))) -> 551149 | L87: 0 | M87: =INDEX(CurrentGrantData!E:F,MATCH(F87,CurrentGrantData!E:E,0),2) -> 6760 | T87: 557909
A88: 14_18 | B88: 18 | C88: Clark | D88: ='Alloc#vlookup'!$B$1 -> #4 | E88: =VLOOKUP(G88,district!$F$2:$G$34,2) -> 14 | F88: 114-WFDA-17 | G88: Clark | H88: WorkFirst Delivery Agreement | I88: 579940 | J88: =IF(D88="#1",I88,IF(D88="#2",SUM(I88),IF(D88="#3",SUM(I88,K88),IF(D88="#4",SUM(I88,K88:L88),IF(D88="#5",SUM(I88,K88:M88),IF(D88="#6",SUM(I88,K88:N88),IF(D88="#7",SUM(I88,K88:O88),IF(D88="#8",SUM(I88,K88:P88),IF(D88="#9",SUM(I88,K88:Q88),IF(D88="#10",SUM(I88,K88:R88),ERROR)))))))))) -> 579940 | L88: 0 | M88: =INDEX(CurrentGrantData!E:F,MATCH(F88,CurrentGrantData!E:E,0),2) -> 0 | T88: 579940
A89: 14_2 | B89: 2 | C89: Clark | D89: ='Alloc#vlookup'!$B$1 -> #4 | E89: =VLOOKUP(G89,district!$F$2:$G$34,2) -> 14 | F89: 114-BFET-17 | G89: Clark | H89: Basic Food Employment and Training Grant | M89: 390283 | T89: 390283
A90: 14_3 | B90: 3 | C90: Clark | D90: ='Alloc#vlookup'!$B$1 -> #4 | E90: =VLOOKUP(G90,district!$F$2:$G$34,2) -> 14 | F90: 114-BLB-17 | G90: Clark | H90: BEdA Leadership Block Grant | I90: 4477 | J90: =IF(D90="#1",I90,IF(D90="#2",SUM(I90),IF(D90="#3",SUM(I90,K90),IF(D90="#4",SUM(I90,K90:L90),IF(D90="#5",SUM(I90,K90:M90),IF(D90="#6",SUM(I90,K90:N90),IF(D90="#7",SUM(I90,K90:O90),IF(D90="#8",SUM(I90,K90:P90),IF(D90="#9",SUM(I90,K90:Q90),IF(D90="#10",SUM(I90,K90:R90),ERROR)))))))))) -> 4477 | L90: 0 | M90: =INDEX(CurrentGrantData!E:F,MATCH(F90,CurrentGrantData!E:E,0),2) -> 0 | T90: 4477 | U90: =T90-J90 -> 0
A91: 14_4 | B91: 4 | C91: Clark | D91: ='Alloc#vlookup'!$B$1 -> #4 | E91: =VLOOKUP(G91,district!$F$2:$G$34,2) -> 14 | F91: 114-BEDA-17 | G91: Clark | H91: BEdA Master Grant | I91: 249917 | J91: =IF(D91="#1",I91,IF(D91="#2",SUM(I91),IF(D91="#3",SUM(I91,K91),IF(D91="#4",SUM(I91,K91:L91),IF(D91="#5",SUM(I91,K91:M91),IF(D91="#6",SUM(I91,K91:N91),IF(D91="#7",SUM(I91,K91:O91),IF(D91="#8",SUM(I91,K91:P91),IF(D91="#9",SUM(I91,K91:Q91),IF(D91="#10",SUM(I91,K91:R91),ERROR)))))))))) -> 249917 | L91: 0 | M91: =INDEX(CurrentGrantData!E:F,MATCH(F91,CurrentGrantData!E:E,0),2) -> 0 | T91: 249917 | U91: =T91-J91 -> 0
A92: 14_5 | B92: 5 | C92: Clark | D92: ='Alloc#vlookup'!$B$1 -> #4 | E92: =VLOOKUP(G92,district!$F$2:$G$34,2) -> 14 | F92: 114-IELC-17 | G92: Clark | H92: BEdA Program – IEL/Civics Grant Budget | I92: 51222 | J92: =IF(D92="#1",I92,IF(D92="#2",SUM(I92),IF(D92="#3",SUM(I92,K92),IF(D92="#4",SUM(I92,K92:L92),IF(D92="#5",SUM(I92,K92:M92),IF(D92="#6",SUM(I92,K92:N92),IF(D92="#7",SUM(I92,K92:O92),IF(D92="#8",SUM(I92,K92:P92),IF(D92="#9",SUM(I92,K92:Q92),IF(D92="#10",SUM(I92,K92:R92),ERROR)))))))))) -> 51222 | L92: 0 | M92: =INDEX(CurrentGrantData!E:F,MATCH(F92,CurrentGrantData!E:E,0),2) -> 0 | T92: 51222 | U92: =T92-J92 -> 0
A93: 14_6 | B93: 6 | C93: Clark | D93: ='Alloc#vlookup'!$B$1 -> #4 | E93: =VLOOKUP(G93,district!$F$2:$G$34,2) -> 14 | F93: 114-BSP-17 | G93: Clark | H93: BEdA Special Projects Grant | M93: 3800 | T93: 3800
A94: 14_7 | B94: 7 | C94: Clark | D94: ='Alloc#vlookup'!$B$1 -> #4 | E94: =VLOOKUP(G94,district!$F$2:$G$34,2) -> 14 | F94: 114-CE-17 | G94: Clark | H94: =VLOOKUP(F94,grant_id_to_name,2) -> Correctional Education Grant | I94: 458496 | J94: =IF(D94="#1",I94,IF(D94="#2",SUM(I94),IF(D94="#3",SUM(I94,K94),IF(D94="#4",SUM(I94,K94:L94),IF(D94="#5",SUM(I94,K94:M94),IF(D94="#6",SUM(I94,K94:N94),IF(D94="#7",SUM(I94,K94:O94),IF(D94="#8",SUM(I94,K94:P94),IF(D94="#9",SUM(I94,K94:Q94),IF(D94="#10",SUM(I94,K94:R94),ERROR)))))))))) -> 458496 | L94: 0 | M94: =INDEX(CurrentGrantData!E:F,MATCH(F94,CurrentGrantData!E:E,0),2) -> 0 | T94: 458496 | U94: =T94-J94 -> 0
A95: 14_8 | B95: 8 | C95: Clark | D95: ='Alloc#vlookup'!$B$1 -> #4 | E95: =VLOOKUP(G95,district!$F$2:$G$34,2) -> 14 | F95: 114-EAG-17 | G95: Clark | H95: =VLOOKUP(F95,grant_id_to_name,2) -> Early Achievers Grant | I95: 83000 | J95: =IF(D95="#1",I95,IF(D95="#2",SUM(I95),IF(D95="#3",SUM(I95,K95),IF(D95="#4",SUM(I95,K95:L95),IF(D95="#5",SUM(I95,K95:M95),IF(D95="#6",SUM(I95,K95:N95),IF(D95="#7",SUM(I95,K95:O95),IF(D95="#8",SUM(I95,K95:P95),IF(D95="#9",SUM(I95,K95:Q95),IF(D95="#10",SUM(I95,K95:R95),ERROR)))))))))) -> 66400 | L95: -16600 | M95: =INDEX(CurrentGrantData!E:F,MATCH(F95,CurrentGrantData!E:E,0),2) -> 16600 | T95: 83000 | U95: 16600
A96: 14_9 | B96: 9 | C96: Clark | D96: ='Alloc#vlookup'!$B$1 -> #4 | E96: =VLOOKUP(G96,district!$F$2:$G$34,2) -> 14 | F96: 114-FLCA-17GP | G96: Clark | H96: =INDEX(CurrentGrantData!D:E,MATCH(F96,CurrentGrantData!E:E,0),1) -> Faculty Learning Communities Initiative Grant | J96: =IF(D96="#1",I96,IF(D96="#2",SUM(I96),IF(D96="#3",SUM(I96,K96),IF(D96="#4",SUM(I96,K96:L96),IF(D96="#5",SUM(I96,K96:M96),IF(D96="#6",SUM(I96,K96:N96),IF(D96="#7",SUM(I96,K96:O96),IF(D96="#8",SUM(I96,K96:P96),IF(D96="#9",SUM(I96,K96:Q96),IF(D96="#10",SUM(I96,K96:R96),ERROR)))))))))) -> 3563 | L96: 3563 | M96: =INDEX(CurrentGrantData!E:F,MATCH(F96,CurrentGrantData!E:E,0),2) -> 0 | T96: 3563 | U96: 0
A97: 15_1 | B97: 1 | C97: Wenatchee Valley | D97: ='Alloc#vlookup'!$B$1 -> #4 | E97: =VLOOKUP(G97,district!$F$2:$G$34,2) -> 15 | F97: 115-BFET-16 | G97: Wenatchee Valley | H97: =VLOOKUP(F97,grant_id_to_name,2) -> Basic Food Employment and Training Grant | I97: 115988 | J97: =IF(D97="#1",I97,IF(D97="#2",SUM(I97),IF(D97="#3",SUM(I97,K97),IF(D97="#4",SUM(I97,K97:L97),IF(D97="#5",SUM(I97,K97:M97),IF(D97="#6",SUM(I97,K97:N97),IF(D97="#7",SUM(I97,K97:O97),IF(D97="#8",SUM(I97,K97:P97),IF(D97="#9",SUM(I97,K97:Q97),IF(D97="#10",SUM(I97,K97:R97),ERROR)))))))))) -> 119488 | L97: 3500 | M97: =INDEX(CurrentGrantData!E:F,MATCH(F97,CurrentGrantData!E:E,0),2) -> 0 | T97: 119488 | U97: 0
A98: 15_10 | B98: 10 | C98: Wenatchee Valley | D98: ='Alloc#vlookup'!$B$1 -> #4 | E98: =VLOOKUP(G98,district!$F$2:$G$34,2) -> 15 | F98: 115-JSP-16CAP | G98: Wenatchee Valley | H98: Job Skills Program Grant | I98: 22500 | J98: =IF(D98="#1",I98,IF(D98="#2",SUM(I98),IF(D98="#3",SUM(I98,K98),IF(D98="#4",SUM(I98,K98:L98),IF(D98="#5",SUM(I98,K98:M98),IF(D98="#6",SUM(I98,K98:N98),IF(D98="#7",SUM(I98,K98:O98),IF(D98="#8",SUM(I98,K98:P98),IF(D98="#9",SUM(I98,K98:Q98),IF(D98="#10",SUM(I98,K98:R98),ERROR)))))))))) -> 22500 | L98: 0 | M98: =INDEX(CurrentGrantData!E:F,MATCH(F98,CurrentGrantData!E:E,0),2) -> 0 | T98: 22500 | U98: 0
A99: 15_11 | B99: 11 | C99: Wenatchee Valley | D99: ='Alloc#vlookup'!$B$1 -> #4 | E99: =VLOOKUP(G99,district!$F$2:$G$34,2) -> 15 | F99: 115-PRK-17 | G99: Wenatchee Valley | H99: Perkins Plan | I99: 232266 | J99: =IF(D99="#1",I99,IF(D99="#2",SUM(I99),IF(D99="#3",SUM(I99,K99),IF(D99="#4",SUM(I99,K99:L99),IF(D99="#5",SUM(I99,K99:M99),IF(D99="#6",SUM(I99,K99:N99),IF(D99="#7",SUM(I99,K99:O99),IF(D99="#8",SUM(I99,K99:P99),IF(D99="#9",SUM(I99,K99:Q99),IF(D99="#10",SUM(I99,K99:R99),ERROR)))))))))) -> 232266 | L99: 0 | M99: =INDEX(CurrentGrantData!E:F,MATCH(F99,CurrentGrantData!E:E,0),2) -> 1919 | T99: 234185 | U99: 1919
A100: 15_12 | B100: 12 | C100: Wenatchee Valley | D100: ='Alloc#vlookup'!$B$1 -> #4 | E100: =VLOOKUP(G100,district!$F$2:$G$34,2) -> 15 | F100: 115-WFDA-17 | G100: Wenatchee Valley | H100: WorkFirst Delivery Agreement | I100: 194092 | J100: =IF(D100="#1",I100,IF(D100="#2",SUM(I100),IF(D100="#3",SUM(I100,K100),IF(D100="#4",SUM(I100,K100:L100),IF(D100="#5",SUM(I100,K100:M100),IF(D100="#6",SUM(I100,K100:N100),IF(D100="#7",SUM(I100,K100:O100),IF(D100="#8",SUM(I100,K100:P100),IF(D100="#9",SUM(I100,K100:Q100),IF(D100="#10",SUM(I100,K100:R100),ERROR)))))))))) -> 244092 | L100: 50000 | M100: =INDEX(CurrentGrantData!E:F,MATCH(F100,CurrentGrantData!E:E,0),2) -> 40000 | T100: 284092 | U100: 40000
A101: 15_2 | B101: 2 | C101: Wenatchee Valley | D101: ='Alloc#vlookup'!$B$1 -> #4 | E101: =VLOOKUP(G101,district!$F$2:$G$34,2) -> 15 | F101: 115-BFET-17 | G101: Wenatchee Valley | H101: Basic Food Employment and Training Grant | M101: 165180 | T101: 165180
A102: 15_3 | B102: 3 | C102: Wenatchee Valley | D102: ='Alloc#vlookup'!$B$1 -> #4 | E102: =VLOOKUP(G102,district!$F$2:$G$34,2) -> 15 | F102: 115-BLB-17 | G102: Wenatchee Valley | H102: BEdA Leadership Block Grant | I102: 4230 | J102: =IF(D102="#1",I102,IF(D102="#2",SUM(I102),IF(D102="#3",SUM(I102,K102),IF(D102="#4",SUM(I102,K102:L102),IF(D102="#5",SUM(I102,K102:M102),IF(D102="#6",SUM(I102,K102:N102),IF(D102="#7",SUM(I102,K102:O102),IF(D102="#8",SUM(I102,K102:P102),IF(D102="#9",SUM(I102,K102:Q102),IF(D102="#10",SUM(I102,K102:R102),ERROR)))))))))) -> 4230 | L102: 0 | M102: =INDEX(CurrentGrantData!E:F,MATCH(F102,CurrentGrantData!E:E,0),2) -> 0 | T102: 4230 | U102: =T102-J102 -> 0
A103: 15_4 | B103: 4 | C103: Wenatchee Valley | D103: ='Alloc#vlookup'!$B$1 -> #4 | E103: =VLOOKUP(G103,district!$F$2:$G$34,2) -> 15 | F103: 115-BEDA-17 | G103: Wenatchee Valley | H103: BEdA Master Grant | I103: 92579 | J103: =IF(D103="#1",I103,IF(D103="#2",SUM(I103),IF(D103="#3",SUM(I103,K103),IF(D103="#4",SUM(I103,K103:L103),IF(D103="#5",SUM(I103,K103:M103),IF(D103="#6",SUM(I103,K103:N103),IF(D103="#7",SUM(I103,K103:O103),IF(D103="#8",SUM(I103,K103:P103),IF(D103="#9",SUM(I103,K103:Q103),IF(D103="#10",SUM(I103,K103:R103),ERROR)))))))))) -> 92579 | L103: 0 | M103: =INDEX(CurrentGrantData!E:F,MATCH(F103,CurrentGrantData!E:E,0),2) -> 0 | T103: 92579 | U103: 0
A104: 15_5 | B104: 5 | C104: Wenatchee Valley | D104: ='Alloc#vlookup'!$B$1 -> #4 | E104: =VLOOKUP(G104,district!$F$2:$G$34,2) -> 15 | F104: 115-IELC-17 | G104: Wenatchee Valley | H104: BEdA Program – IEL/Civics Grant Budget | I104: 18979 | J104: =IF(D104="#1",I104,IF(D104="#2",SUM(I104),IF(D104="#3",SUM(I104,K104),IF(D104="#4",SUM(I104,K104:L104),IF(D104="#5",SUM(I104,K104:M104),IF(D104="#6",SUM(I104,K104:N104),IF(D104="#7",SUM(I104,K104:O104),IF(D104="#8",SUM(I104,K104:P104),IF(D104="#9",SUM(I104,K104:Q104),IF(D104="#10",SUM(I104,K104:R104),ERROR)))))))))) -> 18979 | L104: 0 | M104: =INDEX(CurrentGrantData!E:F,MATCH(F104,CurrentGrantData!E:E,0),2) -> 0 | T104: 18979 | U104: 0
A105: 15_6 | B105: 6 | C105: Wenatchee Valley | D105: ='Alloc#vlookup'!$B$1 -> #4 | E105: =VLOOKUP(G105,district!$F$2:$G$34,2) -> 15 | F105: 115-BSP-16 | G105: Wenatchee Valley | H105: BEdA Special Projects Grant | I105: 8000 | J105: =IF(D105="#1",I105,IF(D105="#2",SUM(I105),IF(D105="#3",SUM(I105,K105),IF(D105="#4",SUM(I105,K105:L105),IF(D105="#5",SUM(I105,K105:M105),IF(D105="#6",SUM(I105,K105:N105),IF(D105="#7",SUM(I105,K105:O105),IF(D105="#8",SUM(I105,K105:P105),IF(D105="#9",SUM(I105,K105:Q105),IF(D105="#10",SUM(I105,K105:R105),ERROR)))))))))) -> 8000 | L105: 0 | M105: =INDEX(CurrentGrantData!E:F,MATCH(F105,CurrentGrantData!E:E,0),2) -> 0 | T105: =SUM(I105:S105)-J105 -> 8000 | U105: 0
A106: 15_7 | B106: 7 | C106: Wenatchee Valley | D106: ='Alloc#vlookup'!$B$1 -> #4 | E106: =VLOOKUP(G106,district!$F$2:$G$34,2) -> 15 | F106: 115-EAG-17 | G106: Wenatchee Valley | H106: Early Achievers Grant | I106: 124500 | J106: =IF(D106="#1",I106,IF(D106="#2",SUM(I106),IF(D106="#3",SUM(I106,K106),IF(D106="#4",SUM(I106,K106:L106),IF(D106="#5",SUM(I106,K106:M106),IF(D106="#6",SUM(I106,K106:N106),IF(D106="#7",SUM(I106,K106:O106),IF(D106="#8",SUM(I106,K106:P106),IF(D106="#9",SUM(I106,K106:Q106),IF(D106="#10",SUM(I106,K106:R106),ERROR)))))))))) -> 91300 | L106: -33200 | M106: =INDEX(CurrentGrantData!E:F,MATCH(F106,CurrentGrantData!E:E,0),2) -> 8300 | T106: 99600 | U106: 8300
A107: 15_8 | B107: 8 | C107: Wenatchee Valley | D107: ='Alloc#vlookup'!$B$1 -> #4 | E107: =VLOOKUP(G107,district!$F$2:$G$34,2) -> 15 | F107: 115-JSP-16FC | G107: Wenatchee Valley | H107: Job Skills Program Grant | I107: 95000 | J107: =IF(D107="#1",I107,IF(D107="#2",SUM(I107),IF(D107="#3",SUM(I107,K107),IF(D107="#4",SUM(I107,K107:L107),IF(D107="#5",SUM(I107,K107:M107),IF(D107="#6",SUM(I107,K107:N107),IF(D107="#7",SUM(I107,K107:O107),IF(D107="#8",SUM(I107,K107:P107),IF(D107="#9",SUM(I107,K107:Q107),IF(D107="#10",SUM(I107,K107:R107),ERROR)))))))))) -> 95000 | L107: 0 | M107: =INDEX(CurrentGrantData!E:F,MATCH(F107,CurrentGrantData!E:E,0),2) -> 0 | T107: 95000 | U107: 0
A108: 15_9 | B108: 9 | C108: Wenatchee Valley | D108: ='Alloc#vlookup'!$B$1 -> #4 | E108: =VLOOKUP(G108,district!$F$2:$G$34,2) -> 15 | F108: 115-JSP-16CP | G108: Wenatchee Valley | H108: Job Skills Program Grant | I108: 162851 | J108: =IF(D108="#1",I108,IF(D108="#2",SUM(I108),IF(D108="#3",SUM(I108,K108),IF(D108="#4",SUM(I108,K108:L108),IF(D108="#5",SUM(I108,K108:M108),IF(D108="#6",SUM(I108,K108:N108),IF(D108="#7",SUM(I108,K108:O108),IF(D108="#8",SUM(I108,K108:P108),IF(D108="#9",SUM(I108,K108:Q108),IF(D108="#10",SUM(I108,K108:R108),ERROR)))))))))) -> 162851 | L108: 0 | M108: =INDEX(CurrentGrantData!E:F,MATCH(F108,CurrentGrantData!E:E,0),2) -> 0 | T108: 162851 | U108: 0
A109: 16_1 | B109: 1 | C109: Yakima Valley | D109: ='Alloc#vlookup'!$B$1 -> #4 | E109: =VLOOKUP(G109,district!$F$2:$G$34,2) -> 16 | F109: 116-BFET-16 | G109: Yakima Valley | H109: Basic Food Employment and Training Grant | I109: 185516 | J109: =IF(D109="#1",I109,IF(D109="#2",SUM(I109),IF(D109="#3",SUM(I109,K109),IF(D109="#4",SUM(I109,K109:L109),IF(D109="#5",SUM(I109,K109:M109),IF(D109="#6",SUM(I109,K109:N109),IF(D109="#7",SUM(I109,K109:O109),IF(D109="#8",SUM(I109,K109:P109),IF(D109="#9",SUM(I109,K109:Q109),IF(D109="#10",SUM(I109,K109:R109),ERROR)))))))))) -> 95516 | L109: -90000 | M109: =INDEX(CurrentGrantData!E:F,MATCH(F109,CurrentGrantData!E:E,0),2) -> 0 | T109: 95516 | U109: 0
A110: 16_10 | B110: 10 | C110: Yakima Valley | D110: ='Alloc#vlookup'!$B$1 -> #4 | E110: =VLOOKUP(G110,district!$F$2:$G$34,2) -> 16 | F110: 116-PRK-17 | G110: Yakima Valley | H110: Perkins Plan | I110: 447246 | J110: =IF(D110="#1",I110,IF(D110="#2",SUM(I110),IF(D110="#3",SUM(I110,K110),IF(D110="#4",SUM(I110,K110:L110),IF(D110="#5",SUM(I110,K110:M110),IF(D110="#6",SUM(I110,K110:N110),IF(D110="#7",SUM(I110,K110:O110),IF(D110="#8",SUM(I110,K110:P110),IF(D110="#9",SUM(I110,K110:Q110),IF(D110="#10",SUM(I110,K110:R110),ERROR)))))))))) -> 447246 | L110: 0 | M110: =INDEX(CurrentGrantData!E:F,MATCH(F110,CurrentGrantData!E:E,0),2) -> 4028 | T110: 451274
A111: 16_11 | B111: 11 | C111: Yakima Valley | D111: ='Alloc#vlookup'!$B$1 -> #4 | E111: =VLOOKUP(G111,district!$F$2:$G$34,2) -> 16 | F111: 116-WFDA-17 | G111: Yakima Valley | H111: WorkFirst Delivery Agreement | I111: 723253 | J111: =IF(D111="#1",I111,IF(D111="#2",SUM(I111),IF(D111="#3",SUM(I111,K111),IF(D111="#4",SUM(I111,K111:L111),IF(D111="#5",SUM(I111,K111:M111),IF(D111="#6",SUM(I111,K111:N111),IF(D111="#7",SUM(I111,K111:O111),IF(D111="#8",SUM(I111,K111:P111),IF(D111="#9",SUM(I111,K111:Q111),IF(D111="#10",SUM(I111,K111:R111),ERROR)))))))))) -> 723253 | L111: 0 | M111: =INDEX(CurrentGrantData!E:F,MATCH(F111,CurrentGrantData!E:E,0),2) -> 0 | T111: 723253
A112: 16_2 | B112: 2 | C112: Yakima Valley | D112: ='Alloc#vlookup'!$B$1 -> #4 | E112: =VLOOKUP(G112,district!$F$2:$G$34,2) -> 16 | F112: 116-BFET-17 | G112: Yakima Valley | H112: Basic Food Employment and Training Grant | M112: 176864 | T112: 176864
A113: 16_3 | B113: 3 | C113: Yakima Valley | D113: ='Alloc#vlookup'!$B$1 -> #4 | E113: =VLOOKUP(G113,district!$F$2:$G$34,2) -> 16 | F113: 116-BLB-17 | G113: Yakima Valley | H113: =INDEX(CurrentGrantData!D:E,MATCH(F113,CurrentGrantData!E:E,0),1) -> BEdA Leadership Block Grant | I113: 4477 | J113: =IF(D113="#1",I113,IF(D113="#2",SUM(I113),IF(D113="#3",SUM(I113,K113),IF(D113="#4",SUM(I113,K113:L113),IF(D113="#5",SUM(I113,K113:M113),IF(D113="#6",SUM(I113,K113:N113),IF(D113="#7",SUM(I113,K113:O113),IF(D113="#8",SUM(I113,K113:P113),IF(D113="#9",SUM(I113,K113:Q113),IF(D113="#10",SUM(I113,K113:R113),ERROR)))))))))) -> 4477 | L113: 0 | M113: =INDEX(CurrentGrantData!E:F,MATCH(F113,CurrentGrantData!E:E,0),2) -> 0 | T113: 4477 | U113: =T113-J113 -> 0
A114: 16_4 | B114: 4 | C114: Yakima Valley | D114: ='Alloc#vlookup'!$B$1 -> #4 | E114: =VLOOKUP(G114,district!$F$2:$G$34,2) -> 16 | F114: 116-BEDA-17 | G114: Yakima Valley | H114: =INDEX(CurrentGrantData!D:E,MATCH(F114,CurrentGrantData!E:E,0),1) -> BEdA Master Grant | I114: 227663 | J114: =IF(D114="#1",I114,IF(D114="#2",SUM(I114),IF(D114="#3",SUM(I114,K114),IF(D114="#4",SUM(I114,K114:L114),IF(D114="#5",SUM(I114,K114:M114),IF(D114="#6",SUM(I114,K114:N114),IF(D114="#7",SUM(I114,K114:O114),IF(D114="#8",SUM(I114,K114:P114),IF(D114="#9",SUM(I114,K114:Q114),IF(D114="#10",SUM(I114,K114:R114),ERROR)))))))))) -> 227663 | L114: 0 | M114: =INDEX(CurrentGrantData!E:F,MATCH(F114,CurrentGrantData!E:E,0),2) -> 0 | T114: 227663 | U114: 0
A115: 16_5 | B115: 5 | C115: Yakima Valley | D115: ='Alloc#vlookup'!$B$1 -> #4 | E115: =VLOOKUP(G115,district!$F$2:$G$34,2) -> 16 | F115: 116-IELC-17 | G115: Yakima Valley | H115: =INDEX(CurrentGrantData!D:E,MATCH(F115,CurrentGrantData!E:E,0),1) -> BEdA Program – IEL/Civics Grant Budget | I115: 44027 | J115: =IF(D115="#1",I115,IF(D115="#2",SUM(I115),IF(D115="#3",SUM(I115,K115),IF(D115="#4",SUM(I115,K115:L115),IF(D115="#5",SUM(I115,K115:M115),IF(D115="#6",SUM(I115,K115:N115),IF(D115="#7",SUM(I115,K115:O115),IF(D115="#8",SUM(I115,K115:P115),IF(D115="#9",SUM(I115,K115:Q115),IF(D115="#10",SUM(I115,K115:R115),ERROR)))))))))) -> 44027 | L115: 0 | M115: =INDEX(CurrentGrantData!E:F,MATCH(F115,CurrentGrantData!E:E,0),2) -> 0 | T115: 44027 | U115: 0
A116: 16_6 | B116: 6 | C116: Yakima Valley | D116: ='Alloc#vlookup'!$B$1 -> #4 | E116: =VLOOKUP(G116,district!$F$2:$G$34,2) -> 16 | F116: 116-EAG-17 | G116: Yakima Valley | H116: =INDEX(CurrentGrantData!D:E,MATCH(F116,CurrentGrantData!E:E,0),1) -> Early Achievers Grant | I116: 166000 | J116: =IF(D116="#1",I116,IF(D116="#2",SUM(I116),IF(D116="#3",SUM(I116,K116),IF(D116="#4",SUM(I116,K116:L116),IF(D116="#5",SUM(I116,K116:M116),IF(D116="#6",SUM(I116,K116:N116),IF(D116="#7",SUM(I116,K116:O116),IF(D116="#8",SUM(I116,K116:P116),IF(D116="#9",SUM(I116,K116:Q116),IF(D116="#10",SUM(I116,K116:R116),ERROR)))))))))) -> 124500 | L116: -41500 | M116: =INDEX(CurrentGrantData!E:F,MATCH(F116,CurrentGrantData!E:E,0),2) -> 41500 | T116: 166000 | U116: 41500
A117: 16_7 | B117: 7 | C117: Yakima Valley | D117: ='Alloc#vlookup'!$B$1 -> #4 | E117: =VLOOKUP(G117,district!$F$2:$G$34,2) -> 16 | F117: 116-JSP-16CC | G117: Yakima Valley | H117: =INDEX(CurrentGrantData!D:E,MATCH(F117,CurrentGrantData!E:E,0),1) -> Job Skills Program Grant | I117: 68037 | J117: =IF(D117="#1",I117,IF(D117="#2",SUM(I117),IF(D117="#3",SUM(I117,K117),IF(D117="#4",SUM(I117,K117:L117),IF(D117="#5",SUM(I117,K117:M117),IF(D117="#6",SUM(I117,K117:N117),IF(D117="#7",SUM(I117,K117:O117),IF(D117="#8",SUM(I117,K117:P117),IF(D117="#9",SUM(I117,K117:Q117),IF(D117="#10",SUM(I117,K117:R117),ERROR)))))))))) -> 68037 | L117: 0 | M117: =INDEX(CurrentGrantData!E:F,MATCH(F117,CurrentGrantData!E:E,0),2) -> 0 | T117: 68037 | U117: 0
A118: 16_8 | B118: 8 | C118: Yakima Valley | D118: ='Alloc#vlookup'!$B$1 -> #4 | E118: =VLOOKUP(G118,district!$F$2:$G$34,2) -> 16 | F118: 116-B2C-17 | G118: Yakima Valley | H118: =INDEX(CurrentGrantData!D:E,MATCH(F118,CurrentGrantData!E:E,0),1) -> Misc. General Grant | J118: =IF(D118="#1",I118,IF(D118="#2",SUM(I118),IF(D118="#3",SUM(I118,K118),IF(D118="#4",SUM(I118,K118:L118),IF(D118="#5",SUM(I118,K118:M118),IF(D118="#6",SUM(I118,K118:N118),IF(D118="#7",SUM(I118,K118:O118),IF(D118="#8",SUM(I118,K118:P118),IF(D118="#9",SUM(I118,K118:Q118),IF(D118="#10",SUM(I118,K118:R118),ERROR)))))))))) -> 1000 | L118: 1000 | M118: =INDEX(CurrentGrantData!E:F,MATCH(F118,CurrentGrantData!E:E,0),2) -> 0 | T118: 1000 | U118: 0
A119: 16_9 | B119: 9 | C119: Yakima Valley | D119: ='Alloc#vlookup'!$B$1 -> #4 | E119: =VLOOKUP(G119,district!$F$2:$G$34,2) -> 16 | F119: 116-PLB-17 | G119: Yakima Valley | H119: =INDEX(CurrentGrantData!D:E,MATCH(F119,CurrentGrantData!E:E,0),1) -> Perkins Leadership Block Grant | J119: =IF(D119="#1",I119,IF(D119="#2",SUM(I119),IF(D119="#3",SUM(I119,K119),IF(D119="#4",SUM(I119,K119:L119),IF(D119="#5",SUM(I119,K119:M119),IF(D119="#6",SUM(I119,K119:N119),IF(D119="#7",SUM(I119,K119:O119),IF(D119="#8",SUM(I119,K119:P119),IF(D119="#9",SUM(I119,K119:Q119),IF(D119="#10",SUM(I119,K119:R119),ERROR)))))))))) -> 16000 | L119: 16000 | M119: =INDEX(CurrentGrantData!E:F,MATCH(F119,CurrentGrantData!E:E,0),2) -> 0 | T119: 16000 | U119: 0
A120: 17_1 | B120: 1 | C120: Spokane | D120: ='Alloc#vlookup'!$B$1 -> #4 | E120: =VLOOKUP(G120,district!$F$2:$G$34,2) -> 17 | F120: 117-BFET-16 | G120: Spokane | H120: =VLOOKUP(F120,grant_id_to_name,2) -> Basic Food Employment and Training Grant | I120: 539429 | J120: =IF(D120="#1",I120,IF(D120="#2",SUM(I120),IF(D120="#3",SUM(I120,K120),IF(D120="#4",SUM(I120,K120:L120),IF(D120="#5",SUM(I120,K120:M120),IF(D120="#6",SUM(I120,K120:N120),IF(D120="#7",SUM(I120,K120:O120),IF(D120="#8",SUM(I120,K120:P120),IF(D120="#9",SUM(I120,K120:Q120),IF(D120="#10",SUM(I120,K120:R120),ERROR)))))))))) -> 664429 | L120: 125000 | M120: =INDEX(CurrentGrantData!E:F,MATCH(F120,CurrentGrantData!E:E,0),2) -> 0 | T120: 664429 | U120: 0
A121: 17_10 | B121: 10 | C121: Spokane | D121: ='Alloc#vlookup'!$B$1 -> #4 | E121: =VLOOKUP(G121,district!$F$2:$G$34,2) -> 17 | F121: 117-HS21-17 | G121: Spokane | H121: =INDEX(CurrentGrantData!D:E,MATCH(F121,CurrentGrantData!E:E,0),1) -> HS 21+ Technology Grant | J121: =IF(D121="#1",I121,IF(D121="#2",SUM(I121),IF(D121="#3",SUM(I121,K121),IF(D121="#4",SUM(I121,K121:L121),IF(D121="#5",SUM(I121,K121:M121),IF(D121="#6",SUM(I121,K121:N121),IF(D121="#7",SUM(I121,K121:O121),IF(D121="#8",SUM(I121,K121:P121),IF(D121="#9",SUM(I121,K121:Q121),IF(D121="#10",SUM(I121,K121:R121),ERROR)))))))))) -> 20000 | L121: 20000 | M121: =INDEX(CurrentGrantData!E:F,MATCH(F121,CurrentGrantData!E:E,0),2) -> 0 | T121: 20000 | U121: 0
A122: 17_11 | B122: 11 | C122: Spokane | D122: ='Alloc#vlookup'!$B$1 -> #4 | E122: =VLOOKUP(G122,district!$F$2:$G$34,2) -> 17 | F122: 117-JSP-16SPS | G122: Spokane | H122: =VLOOKUP(F122,grant_id_to_name,2) -> Job Skills Program Grant | I122: 98108 | J122: =IF(D122="#1",I122,IF(D122="#2",SUM(I122),IF(D122="#3",SUM(I122,K122),IF(D122="#4",SUM(I122,K122:L122),IF(D122="#5",SUM(I122,K122:M122),IF(D122="#6",SUM(I122,K122:N122),IF(D122="#7",SUM(I122,K122:O122),IF(D122="#8",SUM(I122,K122:P122),IF(D122="#9",SUM(I122,K122:Q122),IF(D122="#10",SUM(I122,K122:R122),ERROR)))))))))) -> 98108 | L122: 0 | M122: =INDEX(CurrentGrantData!E:F,MATCH(F122,CurrentGrantData!E:E,0),2) -> 0 | T122: 98108 | U122: 0
A123: 17_12 | B123: 12 | C123: Spokane | D123: ='Alloc#vlookup'!$B$1 -> #4 | E123: =VLOOKUP(G123,district!$F$2:$G$34,2) -> 17 | F123: 117-JSP-17CCS | G123: Spokane | H123: =INDEX(CurrentGrantData!D:E,MATCH(F123,CurrentGrantData!E:E,0),1) -> Job Skills Program Grant | J123: =IF(D123="#1",I123,IF(D123="#2",SUM(I123),IF(D123="#3",SUM(I123,K123),IF(D123="#4",SUM(I123,K123:L123),IF(D123="#5",SUM(I123,K123:M123),IF(D123="#6",SUM(I123,K123:N123),IF(D123="#7",SUM(I123,K123:O123),IF(D123="#8",SUM(I123,K123:P123),IF(D123="#9",SUM(I123,K123:Q123),IF(D123="#10",SUM(I123,K123:R123),ERROR)))))))))) -> 50000 | L123: 50000 | M123: =INDEX(CurrentGrantData!E:F,MATCH(F123,CurrentGrantData!E:E,0),2) -> 0 | T123: 50000 | U123: 0
A124: 17_13 | B124: 13 | C124: Spokane | D124: ='Alloc#vlookup'!$B$1 -> #4 | E124: =VLOOKUP(G124,district!$F$2:$G$34,2) -> 17 | F124: 117-eLRN-17 | G124: Spokane | H124: =VLOOKUP(F124,grant_id_to_name,2) -> Misc. General Grant | I124: 24000 | J124: =IF(D124="#1",I124,IF(D124="#2",SUM(I124),IF(D124="#3",SUM(I124,K124),IF(D124="#4",SUM(I124,K124:L124),IF(D124="#5",SUM(I124,K124:M124),IF(D124="#6",SUM(I124,K124:N124),IF(D124="#7",SUM(I124,K124:O124),IF(D124="#8",SUM(I124,K124:P124),IF(D124="#9",SUM(I124,K124:Q124),IF(D124="#10",SUM(I124,K124:R124),ERROR)))))))))) -> 24000 | L124: 0 | M124: =INDEX(CurrentGrantData!E:F,MATCH(F124,CurrentGrantData!E:E,0),2) -> 0 | T124: 24000 | U124: 0
A125: 17_14 | B125: 14 | C125: Spokane | D125: ='Alloc#vlookup'!$B$1 -> #4 | E125: =VLOOKUP(G125,district!$F$2:$G$34,2) -> 17 | F125: 117-NGCC-15 | G125: Spokane | H125: Misc. General Grant | I125: 19118 | J125: =IF(D125="#1",I125,IF(D125="#2",SUM(I125),IF(D125="#3",SUM(I125,K125),IF(D125="#4",SUM(I125,K125:L125),IF(D125="#5",SUM(I125,K125:M125),IF(D125="#6",SUM(I125,K125:N125),IF(D125="#7",SUM(I125,K125:O125),IF(D125="#8",SUM(I125,K125:P125),IF(D125="#9",SUM(I125,K125:Q125),IF(D125="#10",SUM(I125,K125:R125),ERROR)))))))))) -> 19118 | L125: 0 | M125: =INDEX(CurrentGrantData!E:F,MATCH(F125,CurrentGrantData!E:E,0),2) -> 0 | T125: 19118
A126: 17_15 | B126: 15 | C126: Spokane | D126: ='Alloc#vlookup'!$B$1 -> #4 | E126: =VLOOKUP(G126,district!$F$2:$G$34,2) -> 17 | F126: 117-PRK-17 | G126: Spokane | H126: Perkins Plan | I126: 997463 | J126: =IF(D126="#1",I126,IF(D126="#2",SUM(I126),IF(D126="#3",SUM(I126,K126),IF(D126="#4",SUM(I126,K126:L126),IF(D126="#5",SUM(I126,K126:M126),IF(D126="#6",SUM(I126,K126:N126),IF(D126="#7",SUM(I126,K126:O126),IF(D126="#8",SUM(I126,K126:P126),IF(D126="#9",SUM(I126,K126:Q126),IF(D126="#10",SUM(I126,K126:R126),ERROR)))))))))) -> 997463 | L126: 0 | M126: =INDEX(CurrentGrantData!E:F,MATCH(F126,CurrentGrantData!E:E,0),2) -> 11600 | T126: 1009063
A127: =E127 &"_"&B127 -> 17_16 | B127: 16 | C127: Spokane | D127: ='Alloc#vlookup'!$B$1 -> #4 | E127: =VLOOKUP(G127,district!$F$2:$G$34,2) -> 17 | F127: 117-WFDA-17 | G127: =C127 -> Spokane | H127: WorkFirst Delivery Agreement | I127: 1592118 | J127: =IF(D127="#1",I127,IF(D127="#2",SUM(I127),IF(D127="#3",SUM(I127,K127),IF(D127="#4",SUM(I127,K127:L127),IF(D127="#5",SUM(I127,K127:M127),IF(D127="#6",SUM(I127,K127:N127),IF(D127="#7",SUM(I127,K127:O127),IF(D127="#8",SUM(I127,K127:P127),IF(D127="#9",SUM(I127,K127:Q127),IF(D127="#10",SUM(I127,K127:R127),ERROR)))))))))) -> 1607118 | L127: 15000 | M127: =INDEX(CurrentGrantData!E:F,MATCH(F127,CurrentGrantData!E:E,0),2) -> 0 | T127: 1607118
A128: 17_2 | B128: 2 | C128: Spokane | D128: ='Alloc#vlookup'!$B$1 -> #4 | E128: =VLOOKUP(G128,district!$F$2:$G$34,2) -> 17 | F128: 117-BFET-17 | G128: Spokane | H128: Basic Food Employment and Training Grant | M128: 494474 | T128: 494474
A129: 17_3 | B129: 3 | C129: Spokane | D129: ='Alloc#vlookup'!$B$1 -> #4 | E129: =VLOOKUP(G129,district!$F$2:$G$34,2) -> 17 | F129: 117-BLB-17 | G129: Spokane | H129: BEdA Leadership Block Grant | I129: 6739 | J129: =IF(D129="#1",I129,IF(D129="#2",SUM(I129),IF(D129="#3",SUM(I129,K129),IF(D129="#4",SUM(I129,K129:L129),IF(D129="#5",SUM(I129,K129:M129),IF(D129="#6",SUM(I129,K129:N129),IF(D129="#7",SUM(I129,K129:O129),IF(D129="#8",SUM(I129,K129:P129),IF(D129="#9",SUM(I129,K129:Q129),IF(D129="#10",SUM(I129,K129:R129),ERROR)))))))))) -> 6739 | L129: 0 | M129: =INDEX(CurrentGrantData!E:F,MATCH(F129,CurrentGrantData!E:E,0),2) -> 0 | T129: 6739 | U129: =T129-J129 -> 0
A130: 17_4 | B130: 4 | C130: Spokane | D130: ='Alloc#vlookup'!$B$1 -> #4 | E130: =VLOOKUP(G130,district!$F$2:$G$34,2) -> 17 | F130: 117-BEDA-17 | G130: Spokane | H130: BEdA Master Grant | I130: 513400 | J130: =IF(D130="#1",I130,IF(D130="#2",SUM(I130),IF(D130="#3",SUM(I130,K130),IF(D130="#4",SUM(I130,K130:L130),IF(D130="#5",SUM(I130,K130:M130),IF(D130="#6",SUM(I130,K130:N130),IF(D130="#7",SUM(I130,K130:O130),IF(D130="#8",SUM(I130,K130:P130),IF(D130="#9",SUM(I130,K130:Q130),IF(D130="#10",SUM(I130,K130:R130),ERROR)))))))))) -> 513400 | L130: 0 | M130: =INDEX(CurrentGrantData!E:F,MATCH(F130,CurrentGrantData!E:E,0),2) -> 0 | T130: 513400 | U130: 0
A131: 17_5 | B131: 5 | C131: Spokane | D131: ='Alloc#vlookup'!$B$1 -> #4 | E131: =VLOOKUP(G131,district!$F$2:$G$34,2) -> 17 | F131: 117-IELC-17 | G131: Spokane | H131: BEdA Program – IEL/Civics Grant Budget | I131: 102415 | J131: =IF(D131="#1",I131,IF(D131="#2",SUM(I131),IF(D131="#3",SUM(I131,K131),IF(D131="#4",SUM(I131,K131:L131),IF(D131="#5",SUM(I131,K131:M131),IF(D131="#6",SUM(I131,K131:N131),IF(D131="#7",SUM(I131,K131:O131),IF(D131="#8",SUM(I131,K131:P131),IF(D131="#9",SUM(I131,K131:Q131),IF(D131="#10",SUM(I131,K131:R131),ERROR)))))))))) -> 102415 | L131: 0 | M131: =INDEX(CurrentGrantData!E:F,MATCH(F131,CurrentGrantData!E:E,0),2) -> 0 | T131: 102415 | U131: 0
A132: 17_6 | B132: 6 | C132: Spokane | D132: ='Alloc#vlookup'!$B$1 -> #4 | E132: =VLOOKUP(G132,district!$F$2:$G$34,2) -> 17 | F132: 117-BSP-16 | G132: Spokane | H132: BEdA Special Projects Grant | I132: 8000 | J132: =IF(D132="#1",I132,IF(D132="#2",SUM(I132),IF(D132="#3",SUM(I132,K132),IF(D132="#4",SUM(I132,K132:L132),IF(D132="#5",SUM(I132,K132:M132),IF(D132="#6",SUM(I132,K132:N132),IF(D132="#7",SUM(I132,K132:O132),IF(D132="#8",SUM(I132,K132:P132),IF(D132="#9",SUM(I132,K132:Q132),IF(D132="#10",SUM(I132,K132:R132),ERROR)))))))))) -> 8000 | L132: 0 | M132: =INDEX(CurrentGrantData!E:F,MATCH(F132,CurrentGrantData!E:E,0),2) -> 0 | T132: 8000 | U132: 0
A133: 17_7 | B133: 7 | C133: Spokane | D133: ='Alloc#vlookup'!$B$1 -> #4 | E133: =VLOOKUP(G133,district!$F$2:$G$34,2) -> 17 | F133: 117-CE-17 | G133: Spokane | H133: Correctional Education Grant | I133: 1613145 | J133: =IF(D133="#1",I133,IF(D133="#2",SUM(I133),IF(D133="#3",SUM(I133,K133),IF(D133="#4",SUM(I133,K133:L133),IF(D133="#5",SUM(I133,K133:M133),IF(D133="#6",SUM(I133,K133:N133),IF(D133="#7",SUM(I133,K133:O133),IF(D133="#8",SUM(I133,K133:P133),IF(D133="#9",SUM(I133,K133:Q133),IF(D133="#10",SUM(I133,K133:R133),ERROR)))))))))) -> 1613145 | L133: 0 | M133: =INDEX(CurrentGrantData!E:F,MATCH(F133,CurrentGrantData!E:E,0),2) -> 0 | T133: 1613145 | U133: 0
A134: 17_8 | B134: 8 | C134: Spokane | D134: ='Alloc#vlookup'!$B$1 -> #4 | E134: =VLOOKUP(G134,district!$F$2:$G$34,2) -> 17 | F134: 138-EAG-17 | G134: Spokane | H134: Early Achievers Grant | I134: 249000 | J134: =IF(D134="#1",I134,IF(D134="#2",SUM(I134),IF(D134="#3",SUM(I134,K134),IF(D134="#4",SUM(I134,K134:L134),IF(D134="#5",SUM(I134,K134:M134),IF(D134="#6",SUM(I134,K134:N134),IF(D134="#7",SUM(I134,K134:O134),IF(D134="#8",SUM(I134,K134:P134),IF(D134="#9",SUM(I134,K134:Q134),IF(D134="#10",SUM(I134,K134:R134),ERROR)))))))))) -> 190900 | L134: -58100 | M134: =INDEX(CurrentGrantData!E:F,MATCH(F134,CurrentGrantData!E:E,0),2) -> 199200 | T134: 390100 | U134: 199200
A135: 17_9 | B135: 9 | C135: Spokane | D135: ='Alloc#vlookup'!$B$1 -> #4 | E135: =VLOOKUP(G135,district!$F$2:$G$34,2) -> 17 | F135: 138-FLCA-17 | G135: Spokane | H135: =INDEX(CurrentGrantData!D:E,MATCH(F135,CurrentGrantData!E:E,0),1) -> Faculty Learning Communities Initiative Grant | J135: =IF(D135="#1",I135,IF(D135="#2",SUM(I135),IF(D135="#3",SUM(I135,K135),IF(D135="#4",SUM(I135,K135:L135),IF(D135="#5",SUM(I135,K135:M135),IF(D135="#6",SUM(I135,K135:N135),IF(D135="#7",SUM(I135,K135:O135),IF(D135="#8",SUM(I135,K135:P135),IF(D135="#9",SUM(I135,K135:Q135),IF(D135="#10",SUM(I135,K135:R135),ERROR)))))))))) -> 3722 | L135: 3722 | M135: =INDEX(CurrentGrantData!E:F,MATCH(F135,CurrentGrantData!E:E,0),2) -> 0 | T135: 3722 | U135: 0
A136: 18_1 | B136: 1 | C136: Big Bend | D136: ='Alloc#vlookup'!$B$1 -> #4 | E136: =VLOOKUP(G136,district!$F$2:$G$34,2) -> 18 | F136: 118-BFET-16 | G136: Big Bend | H136: =VLOOKUP(F136,grant_id_to_name,2) -> Basic Food Employment and Training Grant | I136: 399425 | J136: =IF(D136="#1",I136,IF(D136="#2",SUM(I136),IF(D136="#3",SUM(I136,K136),IF(D136="#4",SUM(I136,K136:L136),IF(D136="#5",SUM(I136,K136:M136),IF(D136="#6",SUM(I136,K136:N136),IF(D136="#7",SUM(I136,K136:O136),IF(D136="#8",SUM(I136,K136:P136),IF(D136="#9",SUM(I136,K136:Q136),IF(D136="#10",SUM(I136,K136:R136),ERROR)))))))))) -> 403691 | L136: 4266 | M136: =INDEX(CurrentGrantData!E:F,MATCH(F136,CurrentGrantData!E:E,0),2) -> 0 | T136: 403691 | U136: 0
A137: 18_10 | B137: 10 | C137: Big Bend | D137: ='Alloc#vlookup'!$B$1 -> #4 | E137: =VLOOKUP(G137,district!$F$2:$G$34,2) -> 18 | F137: 118-HS21-17 | G137: Big Bend | H137: =INDEX(CurrentGrantData!D:E,MATCH(F137,CurrentGrantData!E:E,0),1) -> HS 21+ Technology Grant | J137: =IF(D137="#1",I137,IF(D137="#2",SUM(I137),IF(D137="#3",SUM(I137,K137),IF(D137="#4",SUM(I137,K137:L137),IF(D137="#5",SUM(I137,K137:M137),IF(D137="#6",SUM(I137,K137:N137),IF(D137="#7",SUM(I137,K137:O137),IF(D137="#8",SUM(I137,K137:P137),IF(D137="#9",SUM(I137,K137:Q137),IF(D137="#10",SUM(I137,K137:R137),ERROR)))))))))) -> 20000 | L137: 20000 | M137: =INDEX(CurrentGrantData!E:F,MATCH(F137,CurrentGrantData!E:E,0),2) -> 0 | T137: =SUM(I137:S137)-J137 -> 20000 | U137: 0
A138: 18_11 | B138: 11 | C138: Big Bend | D138: ='Alloc#vlookup'!$B$1 -> #4 | E138: =VLOOKUP(G138,district!$F$2:$G$34,2) -> 18 | F138: 118-JSP-16TK | G138: Big Bend | H138: =VLOOKUP(F138,grant_id_to_name,2) -> Job Skills Program Grant | I138: 150673 | J138: =IF(D138="#1",I138,IF(D138="#2",SUM(I138),IF(D138="#3",SUM(I138,K138),IF(D138="#4",SUM(I138,K138:L138),IF(D138="#5",SUM(I138,K138:M138),IF(D138="#6",SUM(I138,K138:N138),IF(D138="#7",SUM(I138,K138:O138),IF(D138="#8",SUM(I138,K138:P138),IF(D138="#9",SUM(I138,K138:Q138),IF(D138="#10",SUM(I138,K138:R138),ERROR)))))))))) -> 150673 | L138: 0 | M138: =INDEX(CurrentGrantData!E:F,MATCH(F138,CurrentGrantData!E:E,0),2) -> 0 | T138: 150673 | U138: 0
A139: 18_12 | B139: 12 | C139: Big Bend | D139: ='Alloc#vlookup'!$B$1 -> #4 | E139: =VLOOKUP(G139,district!$F$2:$G$34,2) -> 18 | F139: 118-JSP-16SH | G139: Big Bend | H139: Job Skills Program Grant | I139: 140541 | J139: =IF(D139="#1",I139,IF(D139="#2",SUM(I139),IF(D139="#3",SUM(I139,K139),IF(D139="#4",SUM(I139,K139:L139),IF(D139="#5",SUM(I139,K139:M139),IF(D139="#6",SUM(I139,K139:N139),IF(D139="#7",SUM(I139,K139:O139),IF(D139="#8",SUM(I139,K139:P139),IF(D139="#9",SUM(I139,K139:Q139),IF(D139="#10",SUM(I139,K139:R139),ERROR)))))))))) -> 140541 | L139: 0 | M139: =INDEX(CurrentGrantData!E:F,MATCH(F139,CurrentGrantData!E:E,0),2) -> -25419 | T139: 115122 | U139: -25419
A140: 18_13 | B140: 13 | C140: Big Bend | D140: ='Alloc#vlookup'!$B$1 -> #4 | E140: =VLOOKUP(G140,district!$F$2:$G$34,2) -> 18 | F140: 118-JSP-16REC | G140: Big Bend | H140: Job Skills Program Grant | I140: 142164 | J140: =IF(D140="#1",I140,IF(D140="#2",SUM(I140),IF(D140="#3",SUM(I140,K140),IF(D140="#4",SUM(I140,K140:L140),IF(D140="#5",SUM(I140,K140:M140),IF(D140="#6",SUM(I140,K140:N140),IF(D140="#7",SUM(I140,K140:O140),IF(D140="#8",SUM(I140,K140:P140),IF(D140="#9",SUM(I140,K140:Q140),IF(D140="#10",SUM(I140,K140:R140),ERROR)))))))))) -> 142164 | L140: 0 | M140: =INDEX(CurrentGrantData!E:F,MATCH(F140,CurrentGrantData!E:E,0),2) -> -13595 | T140: 128569 | U140: -13595
A141: 18_14 | B141: 14 | C141: Big Bend | D141: ='Alloc#vlookup'!$B$1 -> #4 | E141: =VLOOKUP(G141,district!$F$2:$G$34,2) -> 18 | F141: 118-JSP-16MLI | G141: Big Bend | H141: Job Skills Program Grant | I141: 98063 | J141: =IF(D141="#1",I141,IF(D141="#2",SUM(I141),IF(D141="#3",SUM(I141,K141),IF(D141="#4",SUM(I141,K141:L141),IF(D141="#5",SUM(I141,K141:M141),IF(D141="#6",SUM(I141,K141:N141),IF(D141="#7",SUM(I141,K141:O141),IF(D141="#8",SUM(I141,K141:P141),IF(D141="#9",SUM(I141,K141:Q141),IF(D141="#10",SUM(I141,K141:R141),ERROR)))))))))) -> 98063 | L141: 0 | M141: =INDEX(CurrentGrantData!E:F,MATCH(F141,CurrentGrantData!E:E,0),2) -> -2892 | T141: 95171 | U141: -2892
A142: 18_15 | B142: 15 | C142: Big Bend | D142: ='Alloc#vlookup'!$B$1 -> #4 | E142: =VLOOKUP(G142,district!$F$2:$G$34,2) -> 18 | F142: 118-JSP-16LC | G142: Big Bend | H142: Job Skills Program Grant | I142: 48409 | J142: =IF(D142="#1",I142,IF(D142="#2",SUM(I142),IF(D142="#3",SUM(I142,K142),IF(D142="#4",SUM(I142,K142:L142),IF(D142="#5",SUM(I142,K142:M142),IF(D142="#6",SUM(I142,K142:N142),IF(D142="#7",SUM(I142,K142:O142),IF(D142="#8",SUM(I142,K142:P142),IF(D142="#9",SUM(I142,K142:Q142),IF(D142="#10",SUM(I142,K142:R142),ERROR)))))))))) -> 48409 | L142: 0 | M142: =INDEX(CurrentGrantData!E:F,MATCH(F142,CurrentGrantData!E:E,0),2) -> -2712 | T142: 45697 | U142: -2712
A143: 18_16 | B143: 16 | C143: Big Bend | D143: ='Alloc#vlookup'!$B$1 -> #4 | E143: =VLOOKUP(G143,district!$F$2:$G$34,2) -> 18 | F143: 118-JSP-16MCF | G143: Big Bend | H143: Job Skills Program Grant | I143: 158661 | J143: =IF(D143="#1",I143,IF(D143="#2",SUM(I143),IF(D143="#3",SUM(I143,K143),IF(D143="#4",SUM(I143,K143:L143),IF(D143="#5",SUM(I143,K143:M143),IF(D143="#6",SUM(I143,K143:N143),IF(D143="#7",SUM(I143,K143:O143),IF(D143="#8",SUM(I143,K143:P143),IF(D143="#9",SUM(I143,K143:Q143),IF(D143="#10",SUM(I143,K143:R143),ERROR)))))))))) -> 158661 | L143: 0 | M143: =INDEX(CurrentGrantData!E:F,MATCH(F143,CurrentGrantData!E:E,0),2) -> 0 | T143: 158661 | U143: 0
A144: 18_17 | B144: 17 | C144: Big Bend | D144: ='Alloc#vlookup'!$B$1 -> #4 | E144: =VLOOKUP(G144,district!$F$2:$G$34,2) -> 18 | F144: 118-JSP-17TK | G144: Big Bend | H144: Job Skills Program Grant | M144: 86750 | T144: 86750
A145: 18_18 | B145: 18 | C145: Big Bend | D145: ='Alloc#vlookup'!$B$1 -> #4 | E145: =VLOOKUP(G145,district!$F$2:$G$34,2) -> 18 | F145: 118-PLB-17 | G145: Big Bend | H145: Perkins Leadership Block Grant | M145: 16000 | T145: 16000
A146: 18_19 | B146: 19 | C146: Big Bend | D146: ='Alloc#vlookup'!$B$1 -> #4 | E146: =VLOOKUP(G146,district!$F$2:$G$34,2) -> 18 | F146: 118-PRK-17 | G146: Big Bend | H146: =VLOOKUP(F146,grant_id_to_name,2) -> Perkins Plan | I146: 156933 | J146: =IF(D146="#1",I146,IF(D146="#2",SUM(I146),IF(D146="#3",SUM(I146,K146),IF(D146="#4",SUM(I146,K146:L146),IF(D146="#5",SUM(I146,K146:M146),IF(D146="#6",SUM(I146,K146:N146),IF(D146="#7",SUM(I146,K146:O146),IF(D146="#8",SUM(I146,K146:P146),IF(D146="#9",SUM(I146,K146:Q146),IF(D146="#10",SUM(I146,K146:R146),ERROR)))))))))) -> 156933 | L146: 0 | M146: =INDEX(CurrentGrantData!E:F,MATCH(F146,CurrentGrantData!E:E,0),2) -> 1438 | T146: 158371 | U146: =T146-J146 -> 1438
A147: 18_2 | B147: 2 | C147: Big Bend | D147: ='Alloc#vlookup'!$B$1 -> #4 | E147: =VLOOKUP(G147,district!$F$2:$G$34,2) -> 18 | F147: 118-BFET-17 | G147: Big Bend | H147: Basic Food Employment and Training Grant | M147: 387788 | T147: 387788
A148: 18_20 | B148: 20 | C148: Big Bend | D148: ='Alloc#vlookup'!$B$1 -> #4 | E148: =VLOOKUP(G148,district!$F$2:$G$34,2) -> 18 | F148: 118-WFDA-17 | G148: Big Bend | H148: WorkFirst Delivery Agreement | I148: 165919 | J148: =IF(D148="#1",I148,IF(D148="#2",SUM(I148),IF(D148="#3",SUM(I148,K148),IF(D148="#4",SUM(I148,K148:L148),IF(D148="#5",SUM(I148,K148:M148),IF(D148="#6",SUM(I148,K148:N148),IF(D148="#7",SUM(I148,K148:O148),IF(D148="#8",SUM(I148,K148:P148),IF(D148="#9",SUM(I148,K148:Q148),IF(D148="#10",SUM(I148,K148:R148),ERROR)))))))))) -> 165919 | L148: 0 | M148: =INDEX(CurrentGrantData!E:F,MATCH(F148,CurrentGrantData!E:E,0),2) -> 0 | T148: 165919
A149: 18_3 | B149: 3 | C149: Big Bend | D149: ='Alloc#vlookup'!$B$1 -> #4 | E149: =VLOOKUP(G149,district!$F$2:$G$34,2) -> 18 | F149: 118-BLB-17 | G149: Big Bend | H149: BEdA Leadership Block Grant | I149: 4230 | J149: =IF(D149="#1",I149,IF(D149="#2",SUM(I149),IF(D149="#3",SUM(I149,K149),IF(D149="#4",SUM(I149,K149:L149),IF(D149="#5",SUM(I149,K149:M149),IF(D149="#6",SUM(I149,K149:N149),IF(D149="#7",SUM(I149,K149:O149),IF(D149="#8",SUM(I149,K149:P149),IF(D149="#9",SUM(I149,K149:Q149),IF(D149="#10",SUM(I149,K149:R149),ERROR)))))))))) -> 4230 | L149: 0 | M149: =INDEX(CurrentGrantData!E:F,MATCH(F149,CurrentGrantData!E:E,0),2) -> 0 | T149: 4230 | U149: =T149-J149 -> 0
A150: 18_4 | B150: 4 | C150: Big Bend | D150: ='Alloc#vlookup'!$B$1 -> #4 | E150: =VLOOKUP(G150,district!$F$2:$G$34,2) -> 18 | F150: 118-BEDA-17 | G150: Big Bend | H150: BEdA Master Grant | I150: 101431 | J150: =IF(D150="#1",I150,IF(D150="#2",SUM(I150),IF(D150="#3",SUM(I150,K150),IF(D150="#4",SUM(I150,K150:L150),IF(D150="#5",SUM(I150,K150:M150),IF(D150="#6",SUM(I150,K150:N150),IF(D150="#7",SUM(I150,K150:O150),IF(D150="#8",SUM(I150,K150:P150),IF(D150="#9",SUM(I150,K150:Q150),IF(D150="#10",SUM(I150,K150:R150),ERROR)))))))))) -> 101431 | L150: 0 | M150: =INDEX(CurrentGrantData!E:F,MATCH(F150,CurrentGrantData!E:E,0),2) -> 0 | T150: 101431 | U150: =T150-J150 -> 0
A151: 18_5 | B151: 5 | C151: Big Bend | D151: ='Alloc#vlookup'!$B$1 -> #4 | E151: =VLOOKUP(G151,district!$F$2:$G$34,2) -> 18 | F151: 118-IELC-17 | G151: Big Bend | H151: BEdA Program – IEL/Civics Grant Budget | I151: 18616 | J151: =IF(D151="#1",I151,IF(D151="#2",SUM(I151),IF(D151="#3",SUM(I151,K151),IF(D151="#4",SUM(I151,K151:L151),IF(D151="#5",SUM(I151,K151:M151),IF(D151="#6",SUM(I151,K151:N151),IF(D151="#7",SUM(I151,K151:O151),IF(D151="#8",SUM(I151,K151:P151),IF(D151="#9",SUM(I151,K151:Q151),IF(D151="#10",SUM(I151,K151:R151),ERROR)))))))))) -> 18616 | L151: 0 | M151: =INDEX(CurrentGrantData!E:F,MATCH(F151,CurrentGrantData!E:E,0),2) -> 0 | T151: 18616 | U151: =T151-J151 -> 0
A152: 18_6 | B152: 6 | C152: Big Bend | D152: ='Alloc#vlookup'!$B$1 -> #4 | E152: =VLOOKUP(G152,district!$F$2:$G$34,2) -> 18 | F152: 118-BSP2-16 | G152: Big Bend | H152: BEdA Special Projects Grant | I152: 4000 | J152: =IF(D152="#1",I152,IF(D152="#2",SUM(I152),IF(D152="#3",SUM(I152,K152),IF(D152="#4",SUM(I152,K152:L152),IF(D152="#5",SUM(I152,K152:M152),IF(D152="#6",SUM(I152,K152:N152),IF(D152="#7",SUM(I152,K152:O152),IF(D152="#8",SUM(I152,K152:P152),IF(D152="#9",SUM(I152,K152:Q152),IF(D152="#10",SUM(I152,K152:R152),ERROR)))))))))) -> 4000 | L152: 0 | M152: =INDEX(CurrentGrantData!E:F,MATCH(F152,CurrentGrantData!E:E,0),2) -> 0 | T152: 4000 | U152: =T152-J152 -> 0
A153: 18_7 | B153: 7 | C153: Big Bend | D153: ='Alloc#vlookup'!$B$1 -> #4 | E153: =VLOOKUP(G153,district!$F$2:$G$34,2) -> 18 | F153: 118-BSP3-16 | G153: Big Bend | H153: BEdA Special Projects Grant | I153: 3800 | J153: =IF(D153="#1",I153,IF(D153="#2",SUM(I153),IF(D153="#3",SUM(I153,K153),IF(D153="#4",SUM(I153,K153:L153),IF(D153="#5",SUM(I153,K153:M153),IF(D153="#6",SUM(I153,K153:N153),IF(D153="#7",SUM(I153,K153:O153),IF(D153="#8",SUM(I153,K153:P153),IF(D153="#9",SUM(I153,K153:Q153),IF(D153="#10",SUM(I153,K153:R153),ERROR)))))))))) -> 3800 | L153: 0 | M153: =INDEX(CurrentGrantData!E:F,MATCH(F153,CurrentGrantData!E:E,0),2) -> 0 | T153: 3800 | U153: =T153-J153 -> 0
A154: 18_8 | B154: 8 | C154: Big Bend | D154: ='Alloc#vlookup'!$B$1 -> #4 | E154: =VLOOKUP(G154,district!$F$2:$G$34,2) -> 18 | F154: 118-BSP-17 | G154: Big Bend | H154: BEdA Leadership Block Grant | M154: 3300 | T154: 3300
A155: 18_9 | B155: 9 | C155: Big Bend | D155: ='Alloc#vlookup'!$B$1 -> #4 | E155: =VLOOKUP(G155,district!$F$2:$G$34,2) -> 18 | F155: 118-EAG-17 | G155: Big Bend | H155: Early Achievers Grant | I155: 83000 | J155: =IF(D155="#1",I155,IF(D155="#2",SUM(I155),IF(D155="#3",SUM(I155,K155),IF(D155="#4",SUM(I155,K155:L155),IF(D155="#5",SUM(I155,K155:M155),IF(D155="#6",SUM(I155,K155:N155),IF(D155="#7",SUM(I155,K155:O155),IF(D155="#8",SUM(I155,K155:P155),IF(D155="#9",SUM(I155,K155:Q155),IF(D155="#10",SUM(I155,K155:R155),ERROR)))))))))) -> 66400 | L155: -16600 | M155: =INDEX(CurrentGrantData!E:F,MATCH(F155,CurrentGrantData!E:E,0),2) -> 58100 | T155: 124500 | U155: =T155-J155 -> 58100
A156: 19_1 | B156: 1 | C156: Columbia Basin | D156: ='Alloc#vlookup'!$B$1 -> #4 | E156: =VLOOKUP(G156,district!$F$2:$G$34,2) -> 19 | F156: 119-BFET-16 | G156: Columbia Basin | H156: Basic Food Employment and Training Grant | I156: 226553 | J156: =IF(D156="#1",I156,IF(D156="#2",SUM(I156),IF(D156="#3",SUM(I156,K156),IF(D156="#4",SUM(I156,K156:L156),IF(D156="#5",SUM(I156,K156:M156),IF(D156="#6",SUM(I156,K156:N156),IF(D156="#7",SUM(I156,K156:O156),IF(D156="#8",SUM(I156,K156:P156),IF(D156="#9",SUM(I156,K156:Q156),IF(D156="#10",SUM(I156,K156:R156),ERROR)))))))))) -> 216553 | L156: -10000 | M156: =INDEX(CurrentGrantData!E:F,MATCH(F156,CurrentGrantData!E:E,0),2) -> 0 | T156: 216553 | U156: =T156-J156 -> 0
A157: 19_10 | B157: 10 | C157: Columbia Basin | D157: ='Alloc#vlookup'!$B$1 -> #4 | E157: =VLOOKUP(G157,district!$F$2:$G$34,2) -> 19 | F157: 119-WFDA-17 | G157: Columbia Basin | H157: WorkFirst Delivery Agreement | I157: 204673 | J157: =IF(D157="#1",I157,IF(D157="#2",SUM(I157),IF(D157="#3",SUM(I157,K157),IF(D157="#4",SUM(I157,K157:L157),IF(D157="#5",SUM(I157,K157:M157),IF(D157="#6",SUM(I157,K157:N157),IF(D157="#7",SUM(I157,K157:O157),IF(D157="#8",SUM(I157,K157:P157),IF(D157="#9",SUM(I157,K157:Q157),IF(D157="#10",SUM(I157,K157:R157),ERROR)))))))))) -> 204673 | L157: 0 | M157: =INDEX(CurrentGrantData!E:F,MATCH(F157,CurrentGrantData!E:E,0),2) -> 0 | T157: 204673
A158: 19_2 | B158: 2 | C158: Columbia Basin | D158: ='Alloc#vlookup'!$B$1 -> #4 | E158: =VLOOKUP(G158,district!$F$2:$G$34,2) -> 19 | F158: 119-BFET-17 | G158: Columbia Basin | H158: Basic Food Employment and Training Grant | M158: 280394 | T158: 280394
A159: 19_3 | B159: 3 | C159: Columbia Basin | D159: ='Alloc#vlookup'!$B$1 -> #4 | E159: =VLOOKUP(G159,district!$F$2:$G$34,2) -> 19 | F159: 119-BLB-17 | G159: Columbia Basin | H159: BEdA Leadership Block Grant | I159: 4230 | J159: =IF(D159="#1",I159,IF(D159="#2",SUM(I159),IF(D159="#3",SUM(I159,K159),IF(D159="#4",SUM(I159,K159:L159),IF(D159="#5",SUM(I159,K159:M159),IF(D159="#6",SUM(I159,K159:N159),IF(D159="#7",SUM(I159,K159:O159),IF(D159="#8",SUM(I159,K159:P159),IF(D159="#9",SUM(I159,K159:Q159),IF(D159="#10",SUM(I159,K159:R159),ERROR)))))))))) -> 4230 | L159: 0 | M159: =INDEX(CurrentGrantData!E:F,MATCH(F159,CurrentGrantData!E:E,0),2) -> 0 | T159: 4230 | U159: =T159-J159 -> 0
A160: 19_4 | B160: 4 | C160: Columbia Basin | D160: ='Alloc#vlookup'!$B$1 -> #4 | E160: =VLOOKUP(G160,district!$F$2:$G$34,2) -> 19 | F160: 119-BEDA-17 | G160: Columbia Basin | H160: BEdA Master Grant | I160: 178184 | J160: =IF(D160="#1",I160,IF(D160="#2",SUM(I160),IF(D160="#3",SUM(I160,K160),IF(D160="#4",SUM(I160,K160:L160),IF(D160="#5",SUM(I160,K160:M160),IF(D160="#6",SUM(I160,K160:N160),IF(D160="#7",SUM(I160,K160:O160),IF(D160="#8",SUM(I160,K160:P160),IF(D160="#9",SUM(I160,K160:Q160),IF(D160="#10",SUM(I160,K160:R160),ERROR)))))))))) -> 178184 | L160: 0 | M160: =INDEX(CurrentGrantData!E:F,MATCH(F160,CurrentGrantData!E:E,0),2) -> 0 | T160: 178184 | U160: 0
A161: 19_5 | B161: 5 | C161: Columbia Basin | D161: ='Alloc#vlookup'!$B$1 -> #4 | E161: =VLOOKUP(G161,district!$F$2:$G$34,2) -> 19 | F161: 119-IELC-17 | G161: Columbia Basin | H161: BEdA Program – IEL/Civics Grant Budget | I161: 39202 | J161: =IF(D161="#1",I161,IF(D161="#2",SUM(I161),IF(D161="#3",SUM(I161,K161),IF(D161="#4",SUM(I161,K161:L161),IF(D161="#5",SUM(I161,K161:M161),IF(D161="#6",SUM(I161,K161:N161),IF(D161="#7",SUM(I161,K161:O161),IF(D161="#8",SUM(I161,K161:P161),IF(D161="#9",SUM(I161,K161:Q161),IF(D161="#10",SUM(I161,K161:R161),ERROR)))))))))) -> 39202 | L161: 0 | M161: =INDEX(CurrentGrantData!E:F,MATCH(F161,CurrentGrantData!E:E,0),2) -> 0 | T161: 39202 | U161: 0
A162: 19_6 | B162: 6 | C162: Columbia Basin | D162: ='Alloc#vlookup'!$B$1 -> #4 | E162: =VLOOKUP(G162,district!$F$2:$G$34,2) -> 19 | F162: 119-EAG-17 | G162: Columbia Basin | H162: Early Achievers Grant | I162: 124500 | J162: =IF(D162="#1",I162,IF(D162="#2",SUM(I162),IF(D162="#3",SUM(I162,K162),IF(D162="#4",SUM(I162,K162:L162),IF(D162="#5",SUM(I162,K162:M162),IF(D162="#6",SUM(I162,K162:N162),IF(D162="#7",SUM(I162,K162:O162),IF(D162="#8",SUM(I162,K162:P162),IF(D162="#9",SUM(I162,K162:Q162),IF(D162="#10",SUM(I162,K162:R162),ERROR)))))))))) -> 91300 | L162: -33200 | M162: =INDEX(CurrentGrantData!E:F,MATCH(F162,CurrentGrantData!E:E,0),2) -> 49800 | T162: 141100 | U162: 49800
A163: 19_7 | B163: 7 | C163: Columbia Basin | D163: ='Alloc#vlookup'!$B$1 -> #4 | E163: =VLOOKUP(G163,district!$F$2:$G$34,2) -> 19 | F163: 119-B2C-17 | G163: Columbia Basin | H163: =INDEX(CurrentGrantData!D:E,MATCH(F163,CurrentGrantData!E:E,0),1) -> Misc. General Grant | J163: =IF(D163="#1",I163,IF(D163="#2",SUM(I163),IF(D163="#3",SUM(I163,K163),IF(D163="#4",SUM(I163,K163:L163),IF(D163="#5",SUM(I163,K163:M163),IF(D163="#6",SUM(I163,K163:N163),IF(D163="#7",SUM(I163,K163:O163),IF(D163="#8",SUM(I163,K163:P163),IF(D163="#9",SUM(I163,K163:Q163),IF(D163="#10",SUM(I163,K163:R163),ERROR)))))))))) -> 1000 | L163: 1000 | M163: =INDEX(CurrentGrantData!E:F,MATCH(F163,CurrentGrantData!E:E,0),2) -> 0 | T163: 1000 | U163: 0
A164: 19_8 | B164: 8 | C164: Columbia Basin | D164: ='Alloc#vlookup'!$B$1 -> #4 | E164: =VLOOKUP(G164,district!$F$2:$G$34,2) -> 19 | F164: 119-PNT-17 | G164: Columbia Basin | H164: =INDEX(CurrentGrantData!D:E,MATCH(F164,CurrentGrantData!E:E,0),1) -> Perkins Non-Traditional Employment & Training Gran | J164: =IF(D164="#1",I164,IF(D164="#2",SUM(I164),IF(D164="#3",SUM(I164,K164),IF(D164="#4",SUM(I164,K164:L164),IF(D164="#5",SUM(I164,K164:M164),IF(D164="#6",SUM(I164,K164:N164),IF(D164="#7",SUM(I164,K164:O164),IF(D164="#8",SUM(I164,K164:P164),IF(D164="#9",SUM(I164,K164:Q164),IF(D164="#10",SUM(I164,K164:R164),ERROR)))))))))) -> 5000 | L164: 5000 | M164: =INDEX(CurrentGrantData!E:F,MATCH(F164,CurrentGrantData!E:E,0),2) -> 0 | T164: 5000 | U164: 0
A165: 19_9 | B165: 9 | C165: Columbia Basin | D165: ='Alloc#vlookup'!$B$1 -> #4 | E165: =VLOOKUP(G165,district!$F$2:$G$34,2) -> 19 | F165: 119-PRK-17 | G165: Columbia Basin | H165: =VLOOKUP(F165,grant_id_to_name,2) -> Perkins Plan | I165: 279209 | J165: =IF(D165="#1",I165,IF(D165="#2",SUM(I165),IF(D165="#3",SUM(I165,K165),IF(D165="#4",SUM(I165,K165:L165),IF(D165="#5",SUM(I165,K165:M165),IF(D165="#6",SUM(I165,K165:N165),IF(D165="#7",SUM(I165,K165:O165),IF(D165="#8",SUM(I165,K165:P165),IF(D165="#9",SUM(I165,K165:Q165),IF(D165="#10",SUM(I165,K165:R165),ERROR)))))))))) -> 279209 | L165: 0 | M165: =INDEX(CurrentGrantData!E:F,MATCH(F165,CurrentGrantData!E:E,0),2) -> 3023 | T165: 282232
A166: 2_1 | B166: 1 | C166: Grays Harbor | D166: ='Alloc#vlookup'!$B$1 -> #4 | E166: =VLOOKUP(G166,district!$F$2:$G$34,2) -> 2 | F166: 102-BFET-16 | G166: Grays Harbor | H166: Basic Food Employment and Training Grant | I166: 262683 | J166: =IF(D166="#1",I166,IF(D166="#2",SUM(I166),IF(D166="#3",SUM(I166,K166),IF(D166="#4",SUM(I166,K166:L166),IF(D166="#5",SUM(I166,K166:M166),IF(D166="#6",SUM(I166,K166:N166),IF(D166="#7",SUM(I166,K166:O166),IF(D166="#8",SUM(I166,K166:P166),IF(D166="#9",SUM(I166,K166:Q166),IF(D166="#10",SUM(I166,K166:R166),ERROR)))))))))) -> 262683 | L166: 0 | M166: =INDEX(CurrentGrantData!E:F,MATCH(F166,CurrentGrantData!E:E,0),2) -> 0 | T166: 262683 | U166: =T166-J166 -> 0
A167: 2_10 | B167: 10 | C167: Grays Harbor | D167: ='Alloc#vlookup'!$B$1 -> #4 | E167: =VLOOKUP(G167,district!$F$2:$G$34,2) -> 2 | F167: 102-IDRV2-16 | G167: Grays Harbor | H167: Misc. General Grant | I167: 18000 | J167: =IF(D167="#1",I167,IF(D167="#2",SUM(I167),IF(D167="#3",SUM(I167,K167),IF(D167="#4",SUM(I167,K167:L167),IF(D167="#5",SUM(I167,K167:M167),IF(D167="#6",SUM(I167,K167:N167),IF(D167="#7",SUM(I167,K167:O167),IF(D167="#8",SUM(I167,K167:P167),IF(D167="#9",SUM(I167,K167:Q167),IF(D167="#10",SUM(I167,K167:R167),ERROR)))))))))) -> 18000 | L167: 0 | M167: =INDEX(CurrentGrantData!E:F,MATCH(F167,CurrentGrantData!E:E,0),2) -> 0 | T167: 18000 | U167: =T167-J167 -> 0
A168: 2_11 | B168: 11 | C168: Grays Harbor | D168: ='Alloc#vlookup'!$B$1 -> #4 | E168: =VLOOKUP(G168,district!$F$2:$G$34,2) -> 2 | F168: 102-PLB-17 | G168: Grays Harbor | H168: Perkins Leadership Block Grant | I168: 15000 | J168: =IF(D168="#1",I168,IF(D168="#2",SUM(I168),IF(D168="#3",SUM(I168,K168),IF(D168="#4",SUM(I168,K168:L168),IF(D168="#5",SUM(I168,K168:M168),IF(D168="#6",SUM(I168,K168:N168),IF(D168="#7",SUM(I168,K168:O168),IF(D168="#8",SUM(I168,K168:P168),IF(D168="#9",SUM(I168,K168:Q168),IF(D168="#10",SUM(I168,K168:R168),ERROR)))))))))) -> 15000 | L168: 0 | M168: =INDEX(CurrentGrantData!E:F,MATCH(F168,CurrentGrantData!E:E,0),2) -> 0 | T168: 15000 | U168: =T168-J168 -> 0
A169: 2_12 | B169: 12 | C169: Grays Harbor | D169: ='Alloc#vlookup'!$B$1 -> #4 | E169: =VLOOKUP(G169,district!$F$2:$G$34,2) -> 2 | F169: 102-PRK-17 | G169: Grays Harbor | H169: Perkins Plan | I169: 197020 | J169: =IF(D169="#1",I169,IF(D169="#2",SUM(I169),IF(D169="#3",SUM(I169,K169),IF(D169="#4",SUM(I169,K169:L169),IF(D169="#5",SUM(I169,K169:M169),IF(D169="#6",SUM(I169,K169:N169),IF(D169="#7",SUM(I169,K169:O169),IF(D169="#8",SUM(I169,K169:P169),IF(D169="#9",SUM(I169,K169:Q169),IF(D169="#10",SUM(I169,K169:R169),ERROR)))))))))) -> 197020 | L169: 0 | M169: =INDEX(CurrentGrantData!E:F,MATCH(F169,CurrentGrantData!E:E,0),2) -> 1623 | T169: =SUM(I169:S169)-J169 -> 198643 | U169: =T169-J169 -> 1623
A170: 2_13 | B170: 13 | C170: Grays Harbor | D170: ='Alloc#vlookup'!$B$1 -> #4 | E170: =VLOOKUP(G170,district!$F$2:$G$34,2) -> 2 | F170: 102-WFDA-17 | G170: Grays Harbor | H170: WorkFirst Delivery Agreement | I170: 433346 | J170: =IF(D170="#1",I170,IF(D170="#2",SUM(I170),IF(D170="#3",SUM(I170,K170),IF(D170="#4",SUM(I170,K170:L170),IF(D170="#5",SUM(I170,K170:M170),IF(D170="#6",SUM(I170,K170:N170),IF(D170="#7",SUM(I170,K170:O170),IF(D170="#8",SUM(I170,K170:P170),IF(D170="#9",SUM(I170,K170:Q170),IF(D170="#10",SUM(I170,K170:R170),ERROR)))))))))) -> 502111 | L170: 68765 | M170: =INDEX(CurrentGrantData!E:F,MATCH(F170,CurrentGrantData!E:E,0),2) -> 29350 | T170: 531461
A171: 2_2 | B171: 2 | C171: Grays Harbor | D171: ='Alloc#vlookup'!$B$1 -> #4 | E171: =VLOOKUP(G171,district!$F$2:$G$34,2) -> 2 | F171: 102-BFET-17 | G171: Grays Harbor | H171: Basic Food Employment and Training Grant | M171: 240363 | T171: 240363
A172: 2_3 | B172: 3 | C172: Grays Harbor | D172: ='Alloc#vlookup'!$B$1 -> #4 | E172: =VLOOKUP(G172,district!$F$2:$G$34,2) -> 2 | F172: 102-CE-17 | G172: Grays Harbor | H172: =INDEX(CurrentGrantData!D:E,MATCH(F172,CurrentGrantData!E:E,0),1) -> Correctional Education Grant | I172: 1753942 | J172: =IF(D172="#1",I172,IF(D172="#2",SUM(I172),IF(D172="#3",SUM(I172,K172),IF(D172="#4",SUM(I172,K172:L172),IF(D172="#5",SUM(I172,K172:M172),IF(D172="#6",SUM(I172,K172:N172),IF(D172="#7",SUM(I172,K172:O172),IF(D172="#8",SUM(I172,K172:P172),IF(D172="#9",SUM(I172,K172:Q172),IF(D172="#10",SUM(I172,K172:R172),ERROR)))))))))) -> 1753942 | L172: 0 | M172: =INDEX(CurrentGrantData!E:F,MATCH(F172,CurrentGrantData!E:E,0),2) -> 0 | T172: 1753942 | U172: =T172-J172 -> 0
A173: 2_4 | B173: 4 | C173: Grays Harbor | D173: ='Alloc#vlookup'!$B$1 -> #4 | E173: =VLOOKUP(G173,district!$F$2:$G$34,2) -> 2 | F173: 102-BLB-17 | G173: Grays Harbor | H173: =VLOOKUP(F173,grant_id_to_name,2) -> BEdA Leadership Block Grant | I173: 4477 | J173: =IF(D173="#1",I173,IF(D173="#2",SUM(I173),IF(D173="#3",SUM(I173,K173),IF(D173="#4",SUM(I173,K173:L173),IF(D173="#5",SUM(I173,K173:M173),IF(D173="#6",SUM(I173,K173:N173),IF(D173="#7",SUM(I173,K173:O173),IF(D173="#8",SUM(I173,K173:P173),IF(D173="#9",SUM(I173,K173:Q173),IF(D173="#10",SUM(I173,K173:R173),ERROR)))))))))) -> 4477 | L173: 0 | M173: =INDEX(CurrentGrantData!E:F,MATCH(F173,CurrentGrantData!E:E,0),2) -> 0 | T173: 4477 | U173: 0
A174: 2_5 | B174: 5 | C174: Grays Harbor | D174: ='Alloc#vlookup'!$B$1 -> #4 | E174: =VLOOKUP(G174,district!$F$2:$G$34,2) -> 2 | F174: 102-BEDA-17 | G174: Grays Harbor | H174: =VLOOKUP(F174,grant_id_to_name,2) -> BEdA Master Grant | I174: 122928 | J174: =IF(D174="#1",I174,IF(D174="#2",SUM(I174),IF(D174="#3",SUM(I174,K174),IF(D174="#4",SUM(I174,K174:L174),IF(D174="#5",SUM(I174,K174:M174),IF(D174="#6",SUM(I174,K174:N174),IF(D174="#7",SUM(I174,K174:O174),IF(D174="#8",SUM(I174,K174:P174),IF(D174="#9",SUM(I174,K174:Q174),IF(D174="#10",SUM(I174,K174:R174),ERROR)))))))))) -> 122928 | L174: 0 | M174: =INDEX(CurrentGrantData!E:F,MATCH(F174,CurrentGrantData!E:E,0),2) -> 0 | T174: 122928 | U174: 0
A175: 2_6 | B175: 6 | C175: Grays Harbor | D175: ='Alloc#vlookup'!$B$1 -> #4 | E175: =VLOOKUP(G175,district!$F$2:$G$34,2) -> 2 | F175: 102-IELC-17 | G175: Grays Harbor | H175: =VLOOKUP(F175,grant_id_to_name,2) -> BEdA Program – IEL/Civics Grant Budget | I175: 24061 | J175: =IF(D175="#1",I175,IF(D175="#2",SUM(I175),IF(D175="#3",SUM(I175,K175),IF(D175="#4",SUM(I175,K175:L175),IF(D175="#5",SUM(I175,K175:M175),IF(D175="#6",SUM(I175,K175:N175),IF(D175="#7",SUM(I175,K175:O175),IF(D175="#8",SUM(I175,K175:P175),IF(D175="#9",SUM(I175,K175:Q175),IF(D175="#10",SUM(I175,K175:R175),ERROR)))))))))) -> 24061 | L175: 0 | M175: =INDEX(CurrentGrantData!E:F,MATCH(F175,CurrentGrantData!E:E,0),2) -> 0 | T175: 24061 | U175: 0
A176: 2_7 | B176: 7 | C176: Grays Harbor | D176: ='Alloc#vlookup'!$B$1 -> #4 | E176: =VLOOKUP(G176,district!$F$2:$G$34,2) -> 2 | F176: 102-EAG-17 | G176: Grays Harbor | H176: =VLOOKUP(F176,grant_id_to_name,2) -> Early Achievers Grant | I176: 83000 | J176: =IF(D176="#1",I176,IF(D176="#2",SUM(I176),IF(D176="#3",SUM(I176,K176),IF(D176="#4",SUM(I176,K176:L176),IF(D176="#5",SUM(I176,K176:M176),IF(D176="#6",SUM(I176,K176:N176),IF(D176="#7",SUM(I176,K176:O176),IF(D176="#8",SUM(I176,K176:P176),IF(D176="#9",SUM(I176,K176:Q176),IF(D176="#10",SUM(I176,K176:R176),ERROR)))))))))) -> 66400 | L176: -16600 | M176: =INDEX(CurrentGrantData!E:F,MATCH(F176,CurrentGrantData!E:E,0),2) -> 8300 | T176: 74700 | U176: 8300
A177: 2_8 | B177: 8 | C177: Grays Harbor | D177: ='Alloc#vlookup'!$B$1 -> #4 | E177: =VLOOKUP(G177,district!$F$2:$G$34,2) -> 2 | F177: 102-JSP-17SD | G177: Grays Harbor | H177: =INDEX(CurrentGrantData!D:E,MATCH(F177,CurrentGrantData!E:E,0),1) -> Job Skills Program Grant | J177: =IF(D177="#1",I177,IF(D177="#2",SUM(I177),IF(D177="#3",SUM(I177,K177),IF(D177="#4",SUM(I177,K177:L177),IF(D177="#5",SUM(I177,K177:M177),IF(D177="#6",SUM(I177,K177:N177),IF(D177="#7",SUM(I177,K177:O177),IF(D177="#8",SUM(I177,K177:P177),IF(D177="#9",SUM(I177,K177:Q177),IF(D177="#10",SUM(I177,K177:R177),ERROR)))))))))) -> 66884 | L177: 66884 | M177: =INDEX(CurrentGrantData!E:F,MATCH(F177,CurrentGrantData!E:E,0),2) -> 0 | T177: 66884 | U177: 0
A178: 2_9 | B178: 9 | C178: Grays Harbor | D178: ='Alloc#vlookup'!$B$1 -> #4 | E178: =VLOOKUP(G178,district!$F$2:$G$34,2) -> 2 | F178: 102-JSP-16SD | G178: Grays Harbor | H178: =VLOOKUP(F178,grant_id_to_name,2) -> Job Skills Program Grant | I178: 18117 | J178: =IF(D178="#1",I178,IF(D178="#2",SUM(I178),IF(D178="#3",SUM(I178,K178),IF(D178="#4",SUM(I178,K178:L178),IF(D178="#5",SUM(I178,K178:M178),IF(D178="#6",SUM(I178,K178:N178),IF(D178="#7",SUM(I178,K178:O178),IF(D178="#8",SUM(I178,K178:P178),IF(D178="#9",SUM(I178,K178:Q178),IF(D178="#10",SUM(I178,K178:R178),ERROR)))))))))) -> 18117 | L178: 0 | M178: =INDEX(CurrentGrantData!E:F,MATCH(F178,CurrentGrantData!E:E,0),2) -> -2667 | T178: 15450 | U178: -2667
A179: 20_1 | B179: 1 | C179: Walla Walla | D179: ='Alloc#vlookup'!$B$1 -> #4 | E179: =VLOOKUP(G179,district!$F$2:$G$34,2) -> 20 | F179: 120-BFET-16 | G179: Walla Walla | H179: Basic Food Employment and Training Grant | I179: 293034 | J179: =IF(D179="#1",I179,IF(D179="#2",SUM(I179),IF(D179="#3",SUM(I179,K179),IF(D179="#4",SUM(I179,K179:L179),IF(D179="#5",SUM(I179,K179:M179),IF(D179="#6",SUM(I179,K179:N179),IF(D179="#7",SUM(I179,K179:O179),IF(D179="#8",SUM(I179,K179:P179),IF(D179="#9",SUM(I179,K179:Q179),IF(D179="#10",SUM(I179,K179:R179),ERROR)))))))))) -> 318780 | L179: 25746 | M179: =INDEX(CurrentGrantData!E:F,MATCH(F179,CurrentGrantData!E:E,0),2) -> 0 | T179: 318780 | U179: 0
A180: 20_10 | B180: 10 | C180: Walla Walla | D180: ='Alloc#vlookup'!$B$1 -> #4 | E180: =VLOOKUP(G180,district!$F$2:$G$34,2) -> 20 | F180: 120-PLB-17 | G180: Walla Walla | H180: Perkins Leadership Block Grant | I180: 16000 | J180: =IF(D180="#1",I180,IF(D180="#2",SUM(I180),IF(D180="#3",SUM(I180,K180),IF(D180="#4",SUM(I180,K180:L180),IF(D180="#5",SUM(I180,K180:M180),IF(D180="#6",SUM(I180,K180:N180),IF(D180="#7",SUM(I180,K180:O180),IF(D180="#8",SUM(I180,K180:P180),IF(D180="#9",SUM(I180,K180:Q180),IF(D180="#10",SUM(I180,K180:R180),ERROR)))))))))) -> 16000 | L180: 0 | M180: =INDEX(CurrentGrantData!E:F,MATCH(F180,CurrentGrantData!E:E,0),2) -> 0 | T180: 16000 | U180: 0
A181: 20_11 | B181: 11 | C181: Walla Walla | D181: ='Alloc#vlookup'!$B$1 -> #4 | E181: =VLOOKUP(G181,district!$F$2:$G$34,2) -> 20 | F181: 120-PNT-17 | G181: Walla Walla | H181: Perkins Non-Traditional Employment & Training Gran | I181: 5000 | J181: =IF(D181="#1",I181,IF(D181="#2",SUM(I181),IF(D181="#3",SUM(I181,K181),IF(D181="#4",SUM(I181,K181:L181),IF(D181="#5",SUM(I181,K181:M181),IF(D181="#6",SUM(I181,K181:N181),IF(D181="#7",SUM(I181,K181:O181),IF(D181="#8",SUM(I181,K181:P181),IF(D181="#9",SUM(I181,K181:Q181),IF(D181="#10",SUM(I181,K181:R181),ERROR)))))))))) -> 5000 | L181: 0 | M181: =INDEX(CurrentGrantData!E:F,MATCH(F181,CurrentGrantData!E:E,0),2) -> 0 | T181: 5000 | U181: 0
A182: 20_12 | B182: 12 | C182: Walla Walla | D182: ='Alloc#vlookup'!$B$1 -> #4 | E182: =VLOOKUP(G182,district!$F$2:$G$34,2) -> 20 | F182: 120-PRK-17 | G182: Walla Walla | H182: Perkins Plan | I182: 383994 | J182: =IF(D182="#1",I182,IF(D182="#2",SUM(I182),IF(D182="#3",SUM(I182,K182),IF(D182="#4",SUM(I182,K182:L182),IF(D182="#5",SUM(I182,K182:M182),IF(D182="#6",SUM(I182,K182:N182),IF(D182="#7",SUM(I182,K182:O182),IF(D182="#8",SUM(I182,K182:P182),IF(D182="#9",SUM(I182,K182:Q182),IF(D182="#10",SUM(I182,K182:R182),ERROR)))))))))) -> 383994 | L182: 0 | M182: =INDEX(CurrentGrantData!E:F,MATCH(F182,CurrentGrantData!E:E,0),2) -> 2897 | T182: 386891 | U182: 2897
A183: 20_13 | B183: 13 | C183: Walla Walla | D183: ='Alloc#vlookup'!$B$1 -> #4 | E183: =VLOOKUP(G183,district!$F$2:$G$34,2) -> 20 | F183: 120-WFDA-17 | G183: Walla Walla | H183: WorkFirst Delivery Agreement | I183: 227435 | J183: =IF(D183="#1",I183,IF(D183="#2",SUM(I183),IF(D183="#3",SUM(I183,K183),IF(D183="#4",SUM(I183,K183:L183),IF(D183="#5",SUM(I183,K183:M183),IF(D183="#6",SUM(I183,K183:N183),IF(D183="#7",SUM(I183,K183:O183),IF(D183="#8",SUM(I183,K183:P183),IF(D183="#9",SUM(I183,K183:Q183),IF(D183="#10",SUM(I183,K183:R183),ERROR)))))))))) -> 268435 | L183: 41000 | M183: =INDEX(CurrentGrantData!E:F,MATCH(F183,CurrentGrantData!E:E,0),2) -> 0 | T183: 268435
A184: 20_2 | B184: 2 | C184: Walla Walla | D184: ='Alloc#vlookup'!$B$1 -> #4 | E184: =VLOOKUP(G184,district!$F$2:$G$34,2) -> 20 | F184: 120-BFET-17 | G184: Walla Walla | H184: Basic Food Employment and Training Grant | M184: 237926 | T184: 237926
A185: 20_3 | B185: 3 | C185: Walla Walla | D185: ='Alloc#vlookup'!$B$1 -> #4 | E185: =VLOOKUP(G185,district!$F$2:$G$34,2) -> 20 | F185: 120-BLB-17 | G185: Walla Walla | H185: BEdA Leadership Block Grant | I185: 4968 | J185: =IF(D185="#1",I185,IF(D185="#2",SUM(I185),IF(D185="#3",SUM(I185,K185),IF(D185="#4",SUM(I185,K185:L185),IF(D185="#5",SUM(I185,K185:M185),IF(D185="#6",SUM(I185,K185:N185),IF(D185="#7",SUM(I185,K185:O185),IF(D185="#8",SUM(I185,K185:P185),IF(D185="#9",SUM(I185,K185:Q185),IF(D185="#10",SUM(I185,K185:R185),ERROR)))))))))) -> 4968 | L185: 0 | M185: =INDEX(CurrentGrantData!E:F,MATCH(F185,CurrentGrantData!E:E,0),2) -> 0 | T185: 4968 | U185: =T185-J185 -> 0
A186: 20_4 | B186: 4 | C186: Walla Walla | D186: ='Alloc#vlookup'!$B$1 -> #4 | E186: =VLOOKUP(G186,district!$F$2:$G$34,2) -> 20 | F186: 120-BEDA-17 | G186: Walla Walla | H186: BEdA Master Grant | I186: 113555 | J186: =IF(D186="#1",I186,IF(D186="#2",SUM(I186),IF(D186="#3",SUM(I186,K186),IF(D186="#4",SUM(I186,K186:L186),IF(D186="#5",SUM(I186,K186:M186),IF(D186="#6",SUM(I186,K186:N186),IF(D186="#7",SUM(I186,K186:O186),IF(D186="#8",SUM(I186,K186:P186),IF(D186="#9",SUM(I186,K186:Q186),IF(D186="#10",SUM(I186,K186:R186),ERROR)))))))))) -> 113555 | L186: 0 | M186: =INDEX(CurrentGrantData!E:F,MATCH(F186,CurrentGrantData!E:E,0),2) -> 0 | T186: 113555 | U186: =T186-J186 -> 0
A187: 20_5 | B187: 5 | C187: Walla Walla | D187: ='Alloc#vlookup'!$B$1 -> #4 | E187: =VLOOKUP(G187,district!$F$2:$G$34,2) -> 20 | F187: 120-IELC-17 | G187: Walla Walla | H187: BEdA Program – IEL/Civics Grant Budget | I187: 22828 | J187: =IF(D187="#1",I187,IF(D187="#2",SUM(I187),IF(D187="#3",SUM(I187,K187),IF(D187="#4",SUM(I187,K187:L187),IF(D187="#5",SUM(I187,K187:M187),IF(D187="#6",SUM(I187,K187:N187),IF(D187="#7",SUM(I187,K187:O187),IF(D187="#8",SUM(I187,K187:P187),IF(D187="#9",SUM(I187,K187:Q187),IF(D187="#10",SUM(I187,K187:R187),ERROR)))))))))) -> 22828 | L187: 0 | M187: =INDEX(CurrentGrantData!E:F,MATCH(F187,CurrentGrantData!E:E,0),2) -> 0 | T187: 22828 | U187: =T187-J187 -> 0
A188: 20_6 | B188: 6 | C188: Walla Walla | D188: ='Alloc#vlookup'!$B$1 -> #4 | E188: =VLOOKUP(G188,district!$F$2:$G$34,2) -> 20 | F188: 120-CE-17 | G188: Walla Walla | H188: Correctional Education Grant | I188: 6507718 | J188: =IF(D188="#1",I188,IF(D188="#2",SUM(I188),IF(D188="#3",SUM(I188,K188),IF(D188="#4",SUM(I188,K188:L188),IF(D188="#5",SUM(I188,K188:M188),IF(D188="#6",SUM(I188,K188:N188),IF(D188="#7",SUM(I188,K188:O188),IF(D188="#8",SUM(I188,K188:P188),IF(D188="#9",SUM(I188,K188:Q188),IF(D188="#10",SUM(I188,K188:R188),ERROR)))))))))) -> 6507718 | L188: 0 | M188: =INDEX(CurrentGrantData!E:F,MATCH(F188,CurrentGrantData!E:E,0),2) -> 0 | T188: 6507718 | U188: =T188-J188 -> 0
A189: 20_7 | B189: 7 | C189: Walla Walla | D189: ='Alloc#vlookup'!$B$1 -> #4 | E189: =VLOOKUP(G189,district!$F$2:$G$34,2) -> 20 | F189: 120-EAG-17 | G189: Walla Walla | H189: Early Achievers Grant | I189: 83000 | J189: =IF(D189="#1",I189,IF(D189="#2",SUM(I189),IF(D189="#3",SUM(I189,K189),IF(D189="#4",SUM(I189,K189:L189),IF(D189="#5",SUM(I189,K189:M189),IF(D189="#6",SUM(I189,K189:N189),IF(D189="#7",SUM(I189,K189:O189),IF(D189="#8",SUM(I189,K189:P189),IF(D189="#9",SUM(I189,K189:Q189),IF(D189="#10",SUM(I189,K189:R189),ERROR)))))))))) -> 66400 | L189: -16600 | M189: =INDEX(CurrentGrantData!E:F,MATCH(F189,CurrentGrantData!E:E,0),2) -> 0 | T189: 66400 | U189: =T189-J189 -> 0
A190: 20_8 | B190: 8 | C190: Walla Walla | D190: ='Alloc#vlookup'!$B$1 -> #4 | E190: =VLOOKUP(G190,district!$F$2:$G$34,2) -> 20 | F190: 120-IDEA-17 | G190: Walla Walla | H190: I-DEA Technology Expansion Grant | M190: 20000 | T190: 20000
A191: =E191 &"_"&B191 -> 20_9 | B191: 9 | C191: Walla Walla | D191: ='Alloc#vlookup'!$B$1 -> #4 | E191: =VLOOKUP(G191,district!$F$2:$G$34,2) -> 20 | F191: 120-B2C-17 | G191: =C191 -> Walla Walla | H191: =INDEX(CurrentGrantData!D:E,MATCH(F191,CurrentGrantData!E:E,0),1) -> Misc. General Grant | J191: =IF(D191="#1",I191,IF(D191="#2",SUM(I191),IF(D191="#3",SUM(I191,K191),IF(D191="#4",SUM(I191,K191:L191),IF(D191="#5",SUM(I191,K191:M191),IF(D191="#6",SUM(I191,K191:N191),IF(D191="#7",SUM(I191,K191:O191),IF(D191="#8",SUM(I191,K191:P191),IF(D191="#9",SUM(I191,K191:Q191),IF(D191="#10",SUM(I191,K191:R191),ERROR)))))))))) -> 1000 | L191: 1000 | M191: =INDEX(CurrentGrantData!E:F,MATCH(F191,CurrentGrantData!E:E,0),2) -> 0 | T191: 1000 | U191: =T191-J191 -> 0
A192: 21_1 | B192: 1 | C192: Whatcom | D192: ='Alloc#vlookup'!$B$1 -> #4 | E192: =VLOOKUP(G192,district!$F$2:$G$34,2) -> 21 | F192: 121-BFET-16 | G192: Whatcom | H192: =VLOOKUP(F192,grant_id_to_name,2) -> Basic Food Employment and Training Grant | I192: 173810 | J192: =IF(D192="#1",I192,IF(D192="#2",SUM(I192),IF(D192="#3",SUM(I192,K192),IF(D192="#4",SUM(I192,K192:L192),IF(D192="#5",SUM(I192,K192:M192),IF(D192="#6",SUM(I192,K192:N192),IF(D192="#7",SUM(I192,K192:O192),IF(D192="#8",SUM(I192,K192:P192),IF(D192="#9",SUM(I192,K192:Q192),IF(D192="#10",SUM(I192,K192:R192),ERROR)))))))))) -> 173810 | L192: 0 | M192: =INDEX(CurrentGrantData!E:F,MATCH(F192,CurrentGrantData!E:E,0),2) -> 0 | T192: 173810 | U192: 0
A193: 21_10 | B193: 10 | C193: Whatcom | D193: ='Alloc#vlookup'!$B$1 -> #4 | E193: =VLOOKUP(G193,district!$F$2:$G$34,2) -> 21 | F193: 121-DEL-17 | G193: Whatcom | H193: =VLOOKUP(F193,grant_id_to_name,2) -> Misc. General Grant | I193: 50000 | J193: =IF(D193="#1",I193,IF(D193="#2",SUM(I193),IF(D193="#3",SUM(I193,K193),IF(D193="#4",SUM(I193,K193:L193),IF(D193="#5",SUM(I193,K193:M193),IF(D193="#6",SUM(I193,K193:N193),IF(D193="#7",SUM(I193,K193:O193),IF(D193="#8",SUM(I193,K193:P193),IF(D193="#9",SUM(I193,K193:Q193),IF(D193="#10",SUM(I193,K193:R193),ERROR)))))))))) -> 50000 | L193: 0 | M193: =INDEX(CurrentGrantData!E:F,MATCH(F193,CurrentGrantData!E:E,0),2) -> 0 | T193: 50000 | U193: 0
A194: 21_11 | B194: 11 | C194: Whatcom | D194: ='Alloc#vlookup'!$B$1 -> #4 | E194: =VLOOKUP(G194,district!$F$2:$G$34,2) -> 21 | F194: 121-CL-17 | G194: Whatcom | H194: =VLOOKUP(F194,grant_id_to_name,2) -> Misc. General Grant | I194: 15000 | J194: =IF(D194="#1",I194,IF(D194="#2",SUM(I194),IF(D194="#3",SUM(I194,K194),IF(D194="#4",SUM(I194,K194:L194),IF(D194="#5",SUM(I194,K194:M194),IF(D194="#6",SUM(I194,K194:N194),IF(D194="#7",SUM(I194,K194:O194),IF(D194="#8",SUM(I194,K194:P194),IF(D194="#9",SUM(I194,K194:Q194),IF(D194="#10",SUM(I194,K194:R194),ERROR)))))))))) -> 15000 | L194: 0 | M194: =INDEX(CurrentGrantData!E:F,MATCH(F194,CurrentGrantData!E:E,0),2) -> 0 | T194: 15000 | U194: 0
A195: 21_12 | B195: 12 | C195: Whatcom | D195: ='Alloc#vlookup'!$B$1 -> #4 | E195: =VLOOKUP(G195,district!$F$2:$G$34,2) -> 21 | F195: 121-B2C-17 | G195: Whatcom | H195: =INDEX(CurrentGrantData!D:E,MATCH(F195,CurrentGrantData!E:E,0),1) -> Misc. General Grant | J195: =IF(D195="#1",I195,IF(D195="#2",SUM(I195),IF(D195="#3",SUM(I195,K195),IF(D195="#4",SUM(I195,K195:L195),IF(D195="#5",SUM(I195,K195:M195),IF(D195="#6",SUM(I195,K195:N195),IF(D195="#7",SUM(I195,K195:O195),IF(D195="#8",SUM(I195,K195:P195),IF(D195="#9",SUM(I195,K195:Q195),IF(D195="#10",SUM(I195,K195:R195),ERROR)))))))))) -> 1000 | L195: 1000 | M195: =INDEX(CurrentGrantData!E:F,MATCH(F195,CurrentGrantData!E:E,0),2) -> 0 | T195: 1000 | U195: 0
A196: 21_13 | B196: 13 | C196: Whatcom | D196: ='Alloc#vlookup'!$B$1 -> #4 | E196: =VLOOKUP(G196,district!$F$2:$G$34,2) -> 21 | F196: 121-PLB-17 | G196: Whatcom | H196: =INDEX(CurrentGrantData!D:E,MATCH(F196,CurrentGrantData!E:E,0),1) -> Perkins Leadership Block Grant | J196: =IF(D196="#1",I196,IF(D196="#2",SUM(I196),IF(D196="#3",SUM(I196,K196),IF(D196="#4",SUM(I196,K196:L196),IF(D196="#5",SUM(I196,K196:M196),IF(D196="#6",SUM(I196,K196:N196),IF(D196="#7",SUM(I196,K196:O196),IF(D196="#8",SUM(I196,K196:P196),IF(D196="#9",SUM(I196,K196:Q196),IF(D196="#10",SUM(I196,K196:R196),ERROR)))))))))) -> 16000 | L196: 16000 | M196: =INDEX(CurrentGrantData!E:F,MATCH(F196,CurrentGrantData!E:E,0),2) -> 0 | T196: 16000 | U196: 0
A197: 21_14 | B197: 14 | C197: Whatcom | D197: ='Alloc#vlookup'!$B$1 -> #4 | E197: =VLOOKUP(G197,district!$F$2:$G$34,2) -> 21 | F197: 121-PNT-17 | G197: Whatcom | H197: =VLOOKUP(F197,grant_id_to_name,2) -> Perkins Non-Traditional Employment & Training Gran | I197: 5000 | J197: =IF(D197="#1",I197,IF(D197="#2",SUM(I197),IF(D197="#3",SUM(I197,K197),IF(D197="#4",SUM(I197,K197:L197),IF(D197="#5",SUM(I197,K197:M197),IF(D197="#6",SUM(I197,K197:N197),IF(D197="#7",SUM(I197,K197:O197),IF(D197="#8",SUM(I197,K197:P197),IF(D197="#9",SUM(I197,K197:Q197),IF(D197="#10",SUM(I197,K197:R197),ERROR)))))))))) -> 5000 | L197: 0 | M197: =INDEX(CurrentGrantData!E:F,MATCH(F197,CurrentGrantData!E:E,0),2) -> 0 | T197: 5000
A198: 21_15 | B198: 15 | C198: Whatcom | D198: ='Alloc#vlookup'!$B$1 -> #4 | E198: =VLOOKUP(G198,district!$F$2:$G$34,2) -> 21 | F198: 121-PRK-17 | G198: Whatcom | H198: Perkins Plan | I198: 199261 | J198: =IF(D198="#1",I198,IF(D198="#2",SUM(I198),IF(D198="#3",SUM(I198,K198),IF(D198="#4",SUM(I198,K198:L198),IF(D198="#5",SUM(I198,K198:M198),IF(D198="#6",SUM(I198,K198:N198),IF(D198="#7",SUM(I198,K198:O198),IF(D198="#8",SUM(I198,K198:P198),IF(D198="#9",SUM(I198,K198:Q198),IF(D198="#10",SUM(I198,K198:R198),ERROR)))))))))) -> 199261 | L198: 0 | M198: =INDEX(CurrentGrantData!E:F,MATCH(F198,CurrentGrantData!E:E,0),2) -> 1630 | T198: 200891
A199: 21_16 | B199: 16 | C199: Whatcom | D199: ='Alloc#vlookup'!$B$1 -> #4 | E199: =VLOOKUP(G199,district!$F$2:$G$34,2) -> 21 | F199: 121-WFDA-17 | G199: Whatcom | H199: WorkFirst Delivery Agreement | I199: 145772 | J199: =IF(D199="#1",I199,IF(D199="#2",SUM(I199),IF(D199="#3",SUM(I199,K199),IF(D199="#4",SUM(I199,K199:L199),IF(D199="#5",SUM(I199,K199:M199),IF(D199="#6",SUM(I199,K199:N199),IF(D199="#7",SUM(I199,K199:O199),IF(D199="#8",SUM(I199,K199:P199),IF(D199="#9",SUM(I199,K199:Q199),IF(D199="#10",SUM(I199,K199:R199),ERROR)))))))))) -> 145772 | L199: 0 | M199: =INDEX(CurrentGrantData!E:F,MATCH(F199,CurrentGrantData!E:E,0),2) -> 0 | T199: 145772
A200: 21_2 | B200: 2 | C200: Whatcom | D200: ='Alloc#vlookup'!$B$1 -> #4 | E200: =VLOOKUP(G200,district!$F$2:$G$34,2) -> 21 | F200: 121-BFET-17 | G200: Whatcom | H200: Basic Food Employment and Training Grant | M200: 204676 | T200: =SUM(I200:S200)-J200 -> 204676
... 237 more rows

Sheet pivot on alloc sched (hidden)
A4: Sum of 30. Grand Total | B4: Column Labels | J4: SAFEHARBOR
A5: Row Labels | B5: Base | C5: Earmark | D5: Proviso | E5: (blank) | F5: Grand Total | H5: Column BC in Model | J5: SUB TOTAL | K5: PROGRAMS TARGETED | L5: WORKER RETRAINING
A6: Bates | B6: 15029446 | C6: 2033894 | D6: 1921769 | E6: 685407 | F6: 19670516 | H6: 4738445 | I6: =H6-J6 -> 97375 | J6: =Bates!E109 -> 4641070 | K6: =Bates!E106 -> 426800 | L6: =Bates!E85 -> 1879073
A7: Bellevue | B7: 24880134 | C7: 3152608 | D7: 2780992 | E7: 1917497 | F7: 32731231 | H7: 8291543 | I7: =H7-J7 -> 440446 | J7: =Bellevue!E109 -> 7851097 | K7: =Bellevue!E106 -> 1056752 | L7: =Bellevue!E85 -> 1366573
A8: Bellingham | B8: 8542813 | C8: 3752276 | D8: 3152605 | E8: 550414 | F8: 15998108 | H8: 7447286 | I8: -8009 | J8: =Bellingham!E109 -> 7455295 | K8: =Bellingham!E106 -> 612692 | L8: =Bellingham!E85 -> 2888823
A9: Big Bend | B9: 8065834 | C9: 1146769 | D9: 584338 | E9: 449969 | F9: 10246910 | H9: 2109326 | I9: -71750 | J9: ='Big Bend'!E109 -> 2181076 | K9: ='Big Bend'!E106 -> 465710 | L9: ='Big Bend'!E85 -> 423573
A10: Cascadia | B10: 8141280 | C10: 770660 | D10: 456787 | E10: 628550 | F10: 9997277 | H10: 1861122 | I10: 5125 | J10: =Cascadia!E109 -> 1855997 | K10: =Cascadia!E106 -> 266246 | L10: =Cascadia!E85 -> 213448
A11: Centralia | B11: 9230556 | C11: 1363455 | D11: 975208 | E11: 581755 | F11: 12150974 | H11: 3032441 | I11: 112023 | J11: =Centralia!E109 -> 2920418 | K11: =Centralia!E106 -> 614458 | L11: =Centralia!E85 -> 818198
A12: Clark | B12: 24073716 | C12: 3369596 | D12: 1883131 | E12: 2030749 | F12: 31357192 | H12: 7394698 | I12: 111222 | J12: =Clark!E109 -> 7283476 | K12: =Clark!E106 -> 524571 | L12: =Clark!E85 -> 1059073
A13: Clover Park | B13: 14907526 | C13: 2286096 | D13: 2002271 | E13: 821225 | F13: 20017118 | H13: 5079442 | I13: -30150 | J13: ='Clover Park'!E109 -> 5109592 | K13: ='Clover Park'!E106 -> 507742 | L13: ='Clover Park'!E85 -> 1612573
A14: Columbia Basin | B14: 16766525 | C14: 1545012 | D14: 2148211 | E14: 936071 | F14: 21395819 | H14: 4638919 | I14: 9625 | J14: ='Columbia Basin'!E109 -> 4629294 | K14: ='Columbia Basin'!E106 -> 410256 | L14: ='Columbia Basin'!E85 -> 1650448
A15: Edmonds | B15: 18691340 | C15: 4235679 | D15: 3442607 | E15: 1565012 | F15: 27934638 | H15: 9336590 | I15: 100192 | J15: =Edmonds!E109 -> 9236398 | K15: =Edmonds!E106 -> 1995825 | L15: =Edmonds!E85 -> 3012073
A16: Everett | B16: 18295554 | C16: 3479164 | D16: 1651062 | E16: 1359496 | F16: 24785276 | H16: 6296601 | I16: -193121 | J16: =Everett!E109 -> 6489722 | K16: =Everett!E106 -> 1043375 | L16: =Everett!E85 -> 941198
A17: Grays Harbor | B17: 7413540 | C17: 1251552 | D17: 1006577 | E17: 432315 | F17: 10103984 | H17: 2668721 | I17: -21723 | J17: ='Grays Harbor'!E109 -> 2690444 | K17: ='Grays Harbor'!E106 -> 399085 | L17: ='Grays Harbor'!E85 -> 997573
A18: Green River | B18: 19192790 | C18: 4847111 | D18: 2806512 | E18: 1556739 | F18: 28403152 | H18: 9075048 | I18: -135314 | J18: ='Green River'!E109 -> 9210362 | K18: ='Green River'!E106 -> 701793 | L18: ='Green River'!E85 -> 2299323
A19: Highline | B19: 19631651 | C19: 2523838 | D19: 2002074 | E19: 1293152 | F19: 25450715 | H19: 6043897 | I19: 224833 | J19: =Highline!E109 -> 5819064 | K19: =Highline!E106 -> 951985 | L19: =Highline!E85 -> 1512073
A20: Lake Washington | B20: 11631817 | C20: 1487992 | D20: 1433670 | E20: 736848 | F20: 15290327 | H20: 3680830 | I20: 22320 | J20: ='Lake Washington'!E109 -> 3658510 | K20: ='Lake Washington'!E106 -> 371332 | L20: ='Lake Washington'!E85 -> 1151323
A21: Lower Columbia | B21: 11024478 | C21: 3530407 | D21: 723269 | E21: 551869 | F21: 15830023 | H21: 4670920 | I21: -134625 | J21: ='Lower Columbia'!E109 -> 4805545 | K21: ='Lower Columbia'!E106 -> 514395 | L21: ='Lower Columbia'!E85 -> 479948
A22: Olympic | B22: 16712516 | C22: 2473851 | D22: 2142676 | E22: 1223195 | F22: 22552238 | H22: 5766357 | I22: -73365 | J22: =Olympic!E109 -> 5839722 | K22: =Olympic!E106 -> 697489 | L22: =Olympic!E85 -> 1568448
A23: Peninsula | B23: 8228271 | C23: 1533223 | D23: 1046449 | E23: 489353 | F23: 11297296 | H23: 2948801 | I23: -120224 | J23: =Peninsula!E109 -> 3069025 | K23: =Peninsula!E106 -> 579643 | L23: =Peninsula!E85 -> 961698
A24: Pierce | B24: 20675454 | C24: 3145675 | D24: 1951170 | E24: 1568996 | F24: 27341295 | H24: 6540184 | I24: -141657 | J24: =Pierce!E109 -> 6681841 | K24: =Pierce!E106 -> 1624273 | L24: =Pierce!E85 -> 1328896
A25: Renton | B25: 13537087 | C25: 1626666 | D25: 1511873 | E25: 715109 | F25: 17390735 | H25: 3430903 | I25: -422745 | J25: =Renton!E109 -> 3853648 | K25: =Renton!E106 -> 627858 | L25: =Renton!E85 -> 1330698
A26: Seattle | B26: 51847197 | C26: 8482298 | D26: 6175327 | E26: 3660600 | F26: 70165422 | H26: 18282225 | I26: -36000 | J26: =Seattle!E109 -> 18318225 | K26: =Seattle!E106 -> 2743769 | L26: =Seattle!E85 -> 5223719
A27: Shoreline | B27: 17236036 | C27: 1918021 | D27: 1670576 | E27: 1150860 | F27: 21975493 | H27: 4759957 | I27: 20500 | J27: =Shoreline!E109 -> 4739457 | K27: =Shoreline!E106 -> 536438 | L27: =Shoreline!E85 -> 1289698
A28: Skagit Valley | B28: 14552356 | C28: 3950013 | D28: 1156306 | E28: 975591 | F28: 20634266 | H28: 5983997 | I28: -72913 | J28: ='Skagit Valley'!E109 -> 6056910 | K28: ='Skagit Valley'!E106 -> 709559 | L28: ='Skagit Valley'!E85 -> 818198
A29: South Puget Sound | B29: 13458342 | C29: 1381734 | D29: 955164 | E29: 966153 | F29: 16761393 | H29: 3193276 | I29: -109775 | J29: ='South Puget Sound'!E109 -> 3303051 | K29: ='South Puget Sound'!E106 -> 320129 | L29: ='South Puget Sound'!E85 -> 531198
A30: Spokane | B30: 46409232 | C30: 4600014 | D30: 2999677 | E30: 3019620 | F30: 57028543 | H30: 10569112 | I30: -50199 | J30: =Spokane!E109 -> 10619311 | K30: =Spokane!E106 -> 1180434 | L30: =Spokane!E85 -> 1769646
A31: Tacoma | B31: 17016702 | C31: 2042113 | D31: 1981909 | E31: 1310495 | F31: 22351219 | H31: 5194892 | I31: -139625 | J31: =Tacoma!E109 -> 5334517 | K31: =Tacoma!E106 -> 398526 | L31: =Tacoma!E85 -> 1371698
A32: Walla Walla | B32: 11972549 | C32: 1956896 | D32: 2202284 | E32: 860750 | F32: 16992479 | H32: 4776998 | I32: -242932 | J32: ='Walla Walla'!E109 -> 5019930 | K32: ='Walla Walla'!E106 -> 873508 | L32: ='Walla Walla'!E85 -> 2176323
A33: Wenatchee | B33: 10198964 | C33: 1439092 | D33: 955667 | E33: 721349 | F33: 13315072 | H33: 3224315 | I33: 108207 | J33: ='Wenatchee Valley'!E109 -> 3116108 | K33: ='Wenatchee Valley'!E106 -> 349616 | L33: ='Wenatchee Valley'!E85 -> 888073
A34: Whatcom | B34: 10058252 | C34: 1535898 | D34: 603303 | E34: 699450 | F34: 12896903 | H34: 2523738 | I34: -314913 | J34: =Whatcom!E109 -> 2838651 | K34: =Whatcom!E106 -> 885426 | L34: =Whatcom!E85 -> 305698
A35: Yakima Valley | B35: 15211230 | C35: 1938899 | D35: 1217489 | E35: 947609 | F35: 19315227 | H35: 4161333 | I35: 66436 | J35: ='Yakima Valley'!E109 -> 4094897 | K35: ='Yakima Valley'!E106 -> 666374 | L35: ='Yakima Valley'!E85 -> 733073
A36: SBCTC Admin | B36: 15657131 | C36: 1499439 | D36: 72200 | E36: 0 | F36: 17228770 | I36: -828540 | J36: ='SBCTC Admin'!E63 -> 828540 | K36: ='SBCTC Admin'!E63 -> 828540 | L36: ='SBCTC Admin'!E51 -> 569755
A37: SBCTC Program | B37: 153770 | C37: 4712149 | D37: 3307379 | E37: 0 | F37: 8173298 | I37: -8173298 | J37: ='SBCTC Program'!E62 -> 8173298 | K37: ='SBCTC Program'!E62 -> 8173298 | L37: ='SBCTC Program'!E45 -> 4403680
A38: Future Allocations/Reserves | B38: 545000 | C38: 30079466 | D38: 216625 | F38: 30841091 | I38: -1534237 | J38: ='SBCTC Future Allocations'!E103 -> 1534237 | K38: ='SBCTC Future Allocations'!E103 -> 1534237 | L38: ='SBCTC Future Allocations'!E79 -> 100308
A39: Grand Total | B39: 518989089 | C39: 115091556 | D39: 59137157 | E39: 34406198 | F39: 727624000 | H39: =SUM(H6:H35) -> 167721917 | I39: =SUM(I6:I38) -> -11536811 | J39: =SUM(J6:J38) -> 179258728 | K39: =SUM(K6:K38) -> 33592134 | L39: =SUM(L6:L38) -> 47676100
I40: 11400000 | J40: 167721917 | K40: Model Walk Through Total
I41: =I39+I40 -> -136811 | J41: =J39-J40 -> 11536811
J42: 11400000
J43: =J41-J42 -> 136811

Sheet Alloc#vlookup (hidden)
A1: Allocation Number? | B1: #4
A3: Allocation Number | B3: AllocSchedColumn Reference | C3: GrantAwardSched Column Reference
A4: #10 | B4: 29 | C4: 19
A5: #2 | B5: 21 | C5: 11
A6: #3 | B6: 22 | C6: 12
A7: #4 | B7: 23 | C7: 13
A8: #5 | B8: 24 | C8: 14
A9: #6 | B9: 25 | C9: 15
A10: #7 | B10: 26 | C10: 16
A11: #8 | B11: 27 | C11: 17
A12: #9 | B12: 28 | C12: 18

Sheet Balance by Fund-Appn (hidden)
A1: 7. Fund | B1: (All)
A3: Sum of 30. Grand Total | B3: Column Labels
A4: Row Labels | B4: 011 | C4: 3E0 | D4: 430 | E4: AC1 | F4: BA0 | G4: BA1 | H4: BD1 | I4: BG1 | J4: BJ1 | K4: BK1 | L4: BP1 | M4: BR1 | N4: CF1 | O4: CG2 | P4: DA0 | Q4: Grand Total
A5: Bates | B5: 15830353 | C5: 1586112 | E5: 1652266 | H5: 193824 | I5: 269503 | P5: 138458 | Q5: 19670516
A6: Bellevue | B6: 27390474 | C6: 2271015 | E6: 1359284 | H6: 307827 | I6: 1218551 | P6: 184080 | Q6: 32731231
A7: Bellingham | B7: 9660583 | C7: 993247 | E7: 605422 | F7: 1997096 | H7: 142967 | I7: 297183 | N7: 2250000 | P7: 51610 | Q7: 15998108
A8: Big Bend | B8: 8597492 | C8: 875883 | E8: 376864 | H8: 121028 | I8: 207474 | P8: 68169 | Q8: 10246910
A9: Cascadia | B9: 7945299 | C9: 1429890 | E9: 185370 | H9: 116373 | I9: 271417 | P9: 48928 | Q9: 9997277
A10: Centralia | B10: 9767330 | C10: 1207741 | E10: 630597 | H10: 146434 | I10: 344611 | P10: 54261 | Q10: 12150974
A11: Clark | B11: 26874567 | C11: 2235573 | E11: 932600 | H11: 219070 | I11: 950531 | P11: 144851 | Q11: 31357192
A12: Clover Park | B12: 16434275 | C12: 1297955 | E12: 1452305 | H12: 163088 | I12: 549966 | P12: 119529 | Q12: 20017118
A13: Columbia Basin | B13: 17293924 | C13: 1677956 | E13: 1300256 | H13: 151303 | I13: 722955 | K13: 125000 | P13: 124425 | Q13: 21395819
A14: Edmonds | B14: 23177682 | C14: 973632 | E14: 1196805 | H14: 178123 | I14: 620802 | J14: 1500000 | K14: 125000 | P14: 162594 | Q14: 27934638
A15: Everett | B15: 19865660 | C15: 2980624 | E15: 830612 | G15: 100000 | H15: 179939 | I15: 720450 | P15: 107991 | Q15: 24785276
A16: Future Allocations/Reserves | B16: 29813102 | C16: 432700 | E16: 66625 | F16: 378664 | I16: 0 | M16: 150000 | Q16: 30841091
A17: Grays Harbor | B17: 8194737 | C17: 739870 | E17: 821823 | H17: 108508 | I17: 184754 | P17: 54292 | Q17: 10103984
A18: Green River | B18: 21914485 | C18: 1368605 | E18: 2011095 | F18: 2024740 | H18: 162982 | I18: 795417 | P18: 125828 | Q18: 28403152
A19: Highline | B19: 21896911 | C19: 1246347 | E19: 1203738 | H19: 158505 | I19: 673336 | K19: 125000 | P19: 146878 | Q19: 25450715
A20: Lake Washington | B20: 12102177 | C20: 1553818 | E20: 1026947 | H20: 134645 | I20: 406723 | P20: 66017 | Q20: 15290327
A21: Lower Columbia | B21: 11375902 | C21: 1117681 | E21: 436788 | F21: 2406575 | H21: 128324 | I21: 286481 | P21: 78272 | Q21: 15830023
A22: Olympic | B22: 18224668 | C22: 1928554 | E22: 1256728 | H22: 160012 | I22: 760948 | K22: 125000 | P22: 96328 | Q22: 22552238
A23: Peninsula | B23: 9580018 | C23: 509691 | E23: 824496 | H23: 109934 | I23: 221953 | P23: 51204 | Q23: 11297296
A24: Pierce | B24: 22368802 | C24: 2629152 | E24: 1207829 | H24: 283245 | I24: 743341 | P24: 108926 | Q24: 27341295
A25: Renton | B25: 14066320 | C25: 1591327 | E25: 1212222 | H25: 120209 | I25: 299651 | P25: 101006 | Q25: 17390735
A26: SBCTC Admin | B26: 17038270 | C26: 118300 | D26: 55000 | K26: 17200 | Q26: 17228770
A27: SBCTC Program | B27: 4165919 | C27: 700000 | D27: 2670000 | E27: 544579 | K27: 92800 | Q27: 8173298
A28: Seattle | B28: 62143906 | C28: 1053087 | E28: 3895006 | H28: 380659 | I28: 1730321 | K28: 125000 | L28: 425000 | P28: 412443 | Q28: 70165422
A29: Shoreline | B29: 19575463 | C29: 490135 | E29: 1156932 | H29: 124499 | I29: 513644 | P29: 114820 | Q29: 21975493
A30: Skagit Valley | B30: 15565086 | C30: 1713040 | E30: 704468 | F30: 1966925 | H30: 125168 | I30: 451838 | P30: 107741 | Q30: 20634266
A31: South Puget Sound | B31: 14356091 | C31: 1199567 | E31: 464084 | H31: 151093 | I31: 491080 | P31: 99478 | Q31: 16761393
A32: Spokane | B32: 49799736 | C32: 3423162 | E32: 1564443 | H32: 455457 | I32: 1435234 | P32: 350511 | Q32: 57028543
A33: Tacoma | B33: 18347357 | C33: 1733326 | E33: 1148122 | H33: 179638 | I33: 833787 | P33: 108989 | Q33: 22351219
A34: Walla Walla | B34: 13835105 | C34: 746010 | E34: 1946854 | H34: 112877 | I34: 255430 | P34: 96203 | Q34: 16992479
A35: Wenatchee | B35: 10759942 | C35: 1394051 | E35: 443133 | H35: 135248 | I35: 355534 | O35: 157000 | P35: 70164 | Q35: 13315072
A36: Whatcom | B36: 10857384 | C36: 1233804 | E36: 270523 | H36: 140886 | I36: 332780 | P36: 61526 | Q36: 12896903
A37: Yakima Valley | B37: 16556980 | C37: 1283145 | E37: 532184 | H37: 158135 | I37: 560305 | K37: 125000 | P37: 99478 | Q37: 19315227
A38: Grand Total | B38: 605376000 | C38: 45735000 | D38: 2725000 | E38: 33261000 | F38: 8774000 | G38: 100000 | H38: 5250000 | I38: 17506000 | J38: 1500000 | K38: 860000 | L38: 425000 | M38: 150000 | N38: 2250000 | O38: 157000 | P38: 3555000 | Q38: 727624000
B40: 011 | C40: 3E0 | D40: 430 | E40: AC | F40: BA0 | G40: BA | H40: BD | I40: BG | J40: BJ | K40: BK | L40: BP | M40: BR | N40: CF | O40: CG | P40: DA0 | Q40: TOTAL
A41: EA Schedule | B41: =605376000 -> 605376000 | C41: 45735000 | D41: 2725000 | E41: 33261000 | F41: 8774000 | G41: 100000 | H41: 5250000 | I41: 17506000 | J41: 1500000 | K41: 860000 | L41: 425000 | M41: 150000 | N41: 2250000 | O41: 157000 | P41: 3555000 | Q41: 727624000
A42: Variance | B42: =B38-B41 -> 0 | C42: =C38-C41 -> 0 | D42: =D38-D41 -> 0 | E42: 0 | F42: 0 | G42: 0 | H42: 0 | I42: 0 | J42: 0 | K42: 0 | L42: 0 | M42: 0 | N42: 0 | O42: 0 | P42: 0 | Q42: 0

Sheet FTEcheck (hidden)
A1: Districts | E1: FTE RECONCILIATION
B2: Attachment Three | C2: District Tabs | D2: Variance
A3: Bates | B3: ='Attachment Three'!Q10 -> 4465 | C3: =Bates!K19 -> 4465 | D3: =B3-C3 -> 0
A4: Bellevue | B4: ='Attachment Three'!Q11 -> 7743 | C4: =Bellevue!K19 -> 7743 | D4: =B4-C4 -> 0
A5: Bellingham | B5: ='Attachment Three'!Q12 -> 1987 | C5: =Bellingham!K19 -> 1987 | D5: 0
A6: Big Bend | B6: ='Attachment Three'!Q13 -> 1748 | C6: ='Big Bend'!K19 -> 1748 | D6: 0
A7: Cascadia | B7: ='Attachment Three'!Q14 -> 1634 | C7: =Cascadia!K19 -> 1634 | D7: 0
A8: Centralia | B8: ='Attachment Three'!Q15 -> 2237 | C8: =Centralia!K19 -> 2237 | D8: 0
A9: Clark | B9: ='Attachment Three'!Q16 -> 7364 | C9: =Clark!K19 -> 7364 | D9: 0
A10: Clover Park | B10: ='Attachment Three'!Q17 -> 4348 | C10: ='Clover Park'!K19 -> 4348 | D10: 0
A11: Columbia Basin | B11: ='Attachment Three'!Q18 -> 4939 | C11: ='Columbia Basin'!K19 -> 4939 | D11: 0
A12: Edmonds | B12: ='Attachment Three'!Q19 -> 5204 | C12: =Edmonds!K19 -> 5204 | D12: 0
A13: Everett | B13: ='Attachment Three'!Q20 -> 5163 | C13: =Everett!K19 -> 5163 | D13: 0
A14: Grays Harbor | B14: ='Attachment Three'!Q21 -> 1644 | C14: ='Grays Harbor'!K19 -> 1644 | D14: 0
A15: Green River | B15: ='Attachment Three'!Q22 -> 5540 | C15: ='Green River'!K19 -> 5540 | D15: 0
A16: Highline | B16: ='Attachment Three'!Q23 -> 6056 | C16: =Highline!K19 -> 6056 | D16: 0
A17: Lake Washington | B17: ='Attachment Three'!Q24 -> 3084 | C17: ='Lake Washington'!K19 -> 3084 | D17: 0
A18: Lower Columbia | B18: ='Attachment Three'!Q25 -> 2675 | C18: ='Lower Columbia'!K19 -> 2675 | D18: 0
A19: Olympic | B19: ='Attachment Three'!Q26 -> 5191 | C19: =Olympic!K19 -> 5191 | D19: 0
A20: Peninsula | B20: ='Attachment Three'!Q27 -> 1779 | C20: =Peninsula!K19 -> 1779 | D20: 0
A21: Pierce | B21: ='Attachment Three'!Q28 -> 5647 | C21: =Pierce!K19 -> 5647 | D21: 0
A22: Renton | B22: ='Attachment Three'!Q29 -> 3837 | C22: =Renton!K19 -> 3837 | D22: 0
A23: Seattle | B23: ='Attachment Three'!Q30 -> 14301 | C23: =Seattle!K19 -> 14301 | D23: 0
A24: Shoreline | B24: ='Attachment Three'!Q31 -> 5051 | C24: =Shoreline!K19 -> 5051 | D24: 0
A25: Skagit Valley | B25: ='Attachment Three'!Q32 -> 3867 | C25: ='Skagit Valley'!K19 -> 3867 | D25: 0
A26: South Puget Sound | B26: ='Attachment Three'!Q33 -> 3543 | C26: ='South Puget Sound'!K19 -> 3543 | D26: 0
A27: Spokane | B27: ='Attachment Three'!Q34 -> 13112 | C27: =Spokane!K19 -> 13112 | D27: 0
A28: Tacoma | B28: ='Attachment Three'!Q35 -> 5089 | C28: =Tacoma!K19 -> 5089 | D28: 0
A29: Walla Walla | B29: ='Attachment Three'!Q36 -> 3208 | C29: ='Walla Walla'!K19 -> 3208 | D29: 0
A30: Wenatchee Valley | B30: ='Attachment Three'!Q37 -> 2597 | C30: ='Wenatchee Valley'!K19 -> 2597 | D30: 0
A31: Whatcom | B31: ='Attachment Three'!Q38 -> 2484 | C31: =Whatcom!K19 -> 2484 | D31: 0
A32: Yakima Valley | B32: ='Attachment Three'!Q39 -> 4017 | C32: ='Yakima Valley'!K19 -> 4017 | D32: 0
A33: District Total
A34: SBCTC Program | B34: ='Attachment Three'!Q41 -> 464 | C34: ='SBCTC Program'!K19 -> 464 | D34: =B34-C34 -> 0
A35: Future Allocations/Reserves | B35: ='Attachment Three'!Q42 -> 13 | C35: ='SBCTC Future Allocations'!K19 -> 13 | D35: =B35-C35 -> 0
A36: System Totals | B36: =SUM(B3:B35) -> 140031 | C36: =SUM(C3:C35) -> 140031

Sheet District Check (hidden)
A1: Reconciliation Tabs 1 & 2 & Districts
A2: Washington State Community & Technical Colleges
A3: FY 2017 Allocation
A4: Fund Summary by District
A6: Districts | B6: Attachment One | C6: Attachment Two | D6: District Tab
A8: Bates | B8: ='Attachment One'!B9 -> 19670516 | C8: ='Attachment Two '!K10 -> 19670516 | D8: =Bates!I111 -> 19670516 | E8: =C8-D8 -> 0 | F8: Attachment one does not match District Tabs
A9: Bellevue | B9: ='Attachment One'!B10 -> 32731231 | C9: ='Attachment Two '!K11 -> 32731231 | D9: =Bellevue!I111 -> 32731231 | E9: =C9-D9 -> 0 | G9: =C9-B9 -> 0
A10: Bellingham | B10: ='Attachment One'!B11 -> 15998108 | C10: ='Attachment Two '!K12 -> 15998108 | D10: =Bellingham!I111 -> 15998108 | E10: 0 | F10: District Tabs do not match Attachment Two | G10: =C10-B10 -> 0
A11: Big Bend | B11: ='Attachment One'!B12 -> 10246910 | C11: ='Attachment Two '!K13 -> 10246910 | D11: ='Big Bend'!I111 -> 10246910 | E11: 0 | G11: =C11-B11 -> 0
A12: Cascadia | B12: ='Attachment One'!B13 -> 9997277 | C12: ='Attachment Two '!K14 -> 9997277 | D12: =Cascadia!I111 -> 9997277 | E12: 0 | G12: 0
A13: Centralia | B13: ='Attachment One'!B14 -> 12150974 | C13: ='Attachment Two '!K15 -> 12150974 | D13: =Centralia!I111 -> 12150974 | E13: 0 | G13: 0
A14: Clark | B14: ='Attachment One'!B15 -> 31357192 | C14: ='Attachment Two '!K16 -> 31357192 | D14: =Clark!I111 -> 31357192 | E14: 0 | G14: 0
A15: Clover Park | B15: ='Attachment One'!B16 -> 20017118 | C15: ='Attachment Two '!K17 -> 20017118 | D15: ='Clover Park'!I111 -> 20017118 | E15: 0 | G15: 0
A16: Columbia Basin | B16: ='Attachment One'!B17 -> 21395819 | C16: ='Attachment Two '!K18 -> 21395819 | D16: ='Columbia Basin'!I111 -> 21395819 | E16: 0 | G16: 0
A17: Edmonds | B17: ='Attachment One'!B18 -> 27934638 | C17: ='Attachment Two '!K19 -> 27934638 | D17: =Edmonds!I111 -> 27934638 | E17: =C17-D17 -> 0 | G17: 0
A18: Everett | B18: ='Attachment One'!B19 -> 24785276 | C18: ='Attachment Two '!K20 -> 24785276 | D18: =Everett!I111 -> 24785276 | E18: 0 | G18: 0
A19: Grays Harbor | B19: ='Attachment One'!B20 -> 10103984 | C19: ='Attachment Two '!K21 -> 10103984 | D19: ='Grays Harbor'!I111 -> 10103984 | E19: =C19-D19 -> 0 | F19: =C19-B19 -> 0 | G19: 0
A20: Green River | B20: ='Attachment One'!B21 -> 28403152 | C20: ='Attachment Two '!K22 -> 28403152 | D20: ='Green River'!I111 -> 28403152 | E20: 0 | G20: 0
A21: Highline | B21: ='Attachment One'!B22 -> 25450715 | C21: ='Attachment Two '!K23 -> 25450715 | D21: =Highline!I111 -> 25450715 | E21: 0 | G21: 0
A22: Lake Washington | B22: ='Attachment One'!B23 -> 15290327 | C22: ='Attachment Two '!K24 -> 15290327 | D22: ='Lake Washington'!I111 -> 15290327 | E22: 0 | G22: 0
A23: Lower Columbia | B23: ='Attachment One'!B24 -> 15830023 | C23: ='Attachment Two '!K25 -> 15830023 | D23: ='Lower Columbia'!I111 -> 15830023 | E23: 0 | G23: 0
A24: Olympic | B24: ='Attachment One'!B25 -> 22552238 | C24: ='Attachment Two '!K26 -> 22552238 | D24: =Olympic!I111 -> 22552238 | E24: 0 | G24: 0
A25: Peninsula | B25: ='Attachment One'!B26 -> 11297296 | C25: ='Attachment Two '!K27 -> 11297296 | D25: =Peninsula!I111 -> 11297296 | E25: 0 | G25: 0
A26: Pierce | B26: ='Attachment One'!B27 -> 27341295 | C26: ='Attachment Two '!K28 -> 27341295 | D26: =Pierce!I111 -> 27341295 | E26: 0 | G26: 0
A27: Renton | B27: ='Attachment One'!B28 -> 17390735 | C27: ='Attachment Two '!K29 -> 17390735 | D27: =Renton!I111 -> 17390735 | E27: 0 | G27: 0
A28: Seattle | B28: ='Attachment One'!B29 -> 70165422 | C28: ='Attachment Two '!K30 -> 70165422 | D28: =Seattle!I111 -> 70165422 | E28: =C28-D28 -> 0 | G28: 0
A29: Shoreline | B29: ='Attachment One'!B30 -> 21975493 | C29: ='Attachment Two '!K31 -> 21975493 | D29: =Shoreline!I111 -> 21975493 | E29: 0 | G29: 0
A30: Skagit Valley | B30: ='Attachment One'!B31 -> 20634266 | C30: ='Attachment Two '!K32 -> 20634266 | D30: ='Skagit Valley'!I111 -> 20634266 | E30: 0 | G30: 0
A31: South Puget Sound | B31: ='Attachment One'!B32 -> 16761393 | C31: ='Attachment Two '!K33 -> 16761393 | D31: ='South Puget Sound'!I111 -> 16761393 | E31: 0 | G31: 0
A32: Spokane | B32: ='Attachment One'!B33 -> 57028543 | C32: ='Attachment Two '!K34 -> 57028543 | D32: =Spokane!I111 -> 57028543 | E32: 0 | G32: 0
A33: Tacoma | B33: ='Attachment One'!B34 -> 22351219 | C33: ='Attachment Two '!K35 -> 22351219 | D33: =Tacoma!I111 -> 22351219 | E33: 0 | G33: 0
A34: Walla Walla | B34: ='Attachment One'!B35 -> 16992479 | C34: ='Attachment Two '!K36 -> 16992479 | D34: ='Walla Walla'!I111 -> 16992479 | E34: 0 | G34: 0
A35: Wenatchee Valley | B35: ='Attachment One'!B36 -> 13315072 | C35: ='Attachment Two '!K37 -> 13315072 | D35: ='Wenatchee Valley'!I111 -> 13315072 | E35: 0 | G35: 0
A36: Whatcom | B36: ='Attachment One'!B37 -> 12896903 | C36: ='Attachment Two '!K38 -> 12896903 | D36: =Whatcom!I111 -> 12896903 | E36: 0 | G36: 0
A37: Yakima Valley | B37: ='Attachment One'!B38 -> 19315227 | C37: ='Attachment Two '!K39 -> 19315227 | D37: ='Yakima Valley'!I111 -> 19315227 | E37: =C37-B37 -> 0
A39: District Total | B39: =SUM(B8:B38) -> 671380841 | C39: =SUM(C8:C38) -> 671380841 | D39: =SUM(D8:D38) -> 671380841
A41: SBCTC Admin | B41: ='Attachment One'!B42 -> 17228770 | C41: ='Attachment Two '!K43 -> 17228770 | D41: ='SBCTC Admin'!I120 -> 17228770 | E41: =B41-D41 -> 0 | F41: =B41-C41 -> 0
A42: SBCTC Program | B42: ='Attachment One'!B43 -> 8173298 | C42: ='Attachment Two '!K44 -> 8173298 | D42: ='SBCTC Program'!I119 -> 8173298 | E42: =B42-D42 -> 0 | F42: =D42-C42:C42 -> 0
A44: Allocation Total | B44: =B39+B41+B42 -> 696782909 | C44: =C39+C41+C42 -> 696782909 | D44: =D39+D41+D42 -> 696782909
A46: Future Allocations | B46: ='Attachment One'!B47 -> 30841091 | C46: ='Attachment Two '!K48 -> 30841091 | D46: ='SBCTC Future Allocations'!I160 -> 30841091 | E46: =C46-D46 -> 0
A48: System Total | B48: =B44+B46 -> 727624000 | C48: =C44+C46 -> 727624000 | D48: =D46+D44 -> 727624000

Sheet UseofFunds (hidden)
A3: Sum of 30. Grand Total | D3: 7. Fund
A4: 31. Use of Funds Cateogry | B4: 13. | C4: 10. | D4: 001 | E4: 060 | F4: 08A | G4: 252 | H4: Grand Total
A5: District | B5: Aerospace - Incumbent worker training - WATR | C5: 001-BJ1 | D5: 1500000 | H5: 1500000
B6: Aerospace Apprenticeships | C6: 001-011 | D6: 773168 | H6: 773168
B7: Aerospace Enrollments - 1000 High Demand (2017 - 2020) | C7: 001-011 | D7: 8000000 | H7: 8000000
B8: Alcoa Training | C8: 001-CF1 | D8: 2250000 | H8: 2250000
B9: Allied Health Programs | C9: 001-BP1 | D9: 425000 | H9: 425000
B10: Alt. Finance Project Debt Svc. | C10: 060-BA0 | E10: 8395336 | H10: 8395336
B11: Centers of Excellence | C11: 001-011 | D11: 2041570 | H11: 2041570
B12: Centers of Excellence - Aerospace | C12: 001-BA1 | D12: 100000 | H12: 100000
B13: College Affordability Program (Tuition reduction) | C13: 001-BG1 | D13: 17506000 | H13: 17506000
B14: Disability Accommodations | C14: 001-011 | D14: 1740808 | H14: 1740808
B15: District Enrollment Allocation Base (ELTA) | C15: 08A-3E0 | F15: 37171863 | H15: 37171863
B16: District Enrollment Allocation Base (GFS) | C16: 001-011 | D16: 307972324 | H16: 307972324
B17: Employment Resource Center | C17: 001-011 | D17: 1139716 | H17: 1139716
B18: Health Rate Changes (2016 - 2019) | C18: 001-011 | D18: 27222586 | H18: 27222586
B19: Health Rate Changes (2017 - 2020) | C19: 001-011 | D19: 4697881 | H19: 4697881
B20: Holder of space for pivot | C20: 001-011 | D20: 0 | H20: 0
B21: Hospital Employee Education & Training | C21: 001-011 | D21: 1997232 | H21: 1997232
B22: Labor Education & Research Center | C22: 001-011 | D22: 162868 | H22: 162868
B23: Leases and Assessments (2016 thru 2019) | C23: 001-011 | D23: 761000 | H23: 761000
B24: Leases and Assessments (2017 thru 2020) | C24: 001-011 | D24: 108000 | H24: 108000
B25: Maintenance and Operations - New Facility - (2016 thru 2019) | C25: 001-011 | D25: 1652000 | H25: 1652000
B26: Maritime Industries | C26: 001-011 | D26: 255000 | H26: 255000
B27: MESA Community College Programs - MCCP | C27: 001-BK1 | D27: 750000 | H27: 750000
B28: Minimum Operating Allocation (Ed Construction) | C28: 252-DA0 | G28: 3555000 | H28: 3555000
B29: Minimum Operating Allocation (GFS) | C29: 001-011 | D29: 81945000 | H29: 81945000
B30: Opportunity Grants (ELTA) | C30: 08A-3E0 | F30: 6574000 | H30: 6574000
B31: Opportunity Grants (GFS) | C31: 001-011 | D31: 5000000 | H31: 5000000
B32: Pension Rate Changes (2016 - 2019) | C32: 001-011 | D32: 2469101 | H32: 2469101
B33: Pension Rate Changes (2017 - 2020) | C33: 001-011 | D33: 16630 | H33: 16630
B34: Performance Funding (GFS) | C34: 001-011 | D34: 30734751 | H34: 30734751
B35: Performance Funding (proviso) | C35: 001-BD1 | D35: 5250000 | H35: 5250000
B36: Rebase Phase-in Adjustment - Year one | C36: 001-011 | D36: 0 | H36: 0
B37: State Backfill for Compensation Increases (2016 - 2019) | C37: 001-011 | D37: 3198000 | H37: 3198000
B38: State Backfill for Compensation Increases (2017 - 2020) | C38: 001-011 | D38: 5791000 | H38: 5791000
B39: Students of Color | C39: 001-011 | D39: 1011628 | H39: 1011628
B40: University Contracts (ELTA) | C40: 08A-3E0 | F40: 738137 | H40: 738137
B41: University Contracts (GFS) | C41: 001-011 | D41: 204485 | H41: 204485
B42: Wage Increase (2016 - 2019) | C42: 001-011 | D42: 14532738 | H42: 14532738
B43: Wage Increase (2017 - 2020) | C43: 001-011 | D43: 8713965 | H43: 8713965
B44: Weighted Enrollments - Additional 30% | C44: 001-011 | D44: 36004250 | H44: 36004250
B45: Wildfire Prevention Program | C45: 001-CG2 | D45: 157000 | H45: 157000
B46: Worker Retraining - Base (101) | C46: 001-011 | D46: 4870561 | H46: 4870561
B47: Worker Retraining - Base (AC1) | C47: 001-AC1 | D47: 20237046 | H47: 20237046
B48: Worker Retraining - Variable (AC1) | C48: 001-AC1 | D48: 12412750 | H48: 12412750
B49: Workforce Development Projects | C49: 001-011 | D49: 1342447 | H49: 1342447
A50: District Total | D50: 614946505 | E50: 8395336 | F50: 44484000 | G50: 3555000 | H50: 671380841
A51: Future Allocations/Reserves | B51: Aerospace Apprenticeships | C51: 001-011 | D51: 67 | H51: 67
B52: Aerospace Enrollments - 1000 High Demand (2017 - 2020) | C52: 001-011 | D52: 0 | H52: 0
B53: Alt. Finance Project Debt Svc. | C53: 060-BA0 | E53: 378664 | H53: 378664
B54: College Affordability Program (Tuition reduction) | C54: 001-BG1 | D54: 0 | H54: 0
B55: Facilities M&O - FY 2013 | C55: 001-011 | D55: 0 | H55: 0
B56: Feasibility Study | C56: 001-BR1 | D56: 150000 | H56: 150000
B57: Hospital Employee Education & Training | C57: 001-011 | D57: 0 | H57: 0
B58: Maintenance and Operations - New Facility - (2017 thru 2020) | C58: 001-011 | D58: 0 | H58: 0
B59: Moore v. HCA (ELTA) | C59: 08A-3E0 | F59: 325000 | H59: 325000
B60: Moore v. HCA (GFS) | C60: 001-011 | D60: 19004000 | H60: 19004000
B61: Ongoing Reserves (GFS) | C61: 001-011 | D61: 1738306 | H61: 1738306
B62: Opportunity Grants (ELTA) | C62: 08A-3E0 | F62: 107700 | H62: 107700
B63: Revolving Funds - Central Service Agency Charges | C63: 001-011 | D63: 5188595 | H63: 5188595
B64: Revolving Funds - Self Insurance Premium | C64: 001-011 | D64: 2075953 | H64: 2075953
B65: Supplemental Retirement Payments | C65: 001-011 | D65: 1000000 | H65: 1000000
B66: University Contracts (ELTA) | C66: 08A-3E0 | F66: 0 | H66: 0
B67: Worker Retraining - Base (101) | C67: 001-011 | D67: 33683 | H67: 33683
B68: Worker Retraining - Variable (AC1) | C68: 001-AC1 | D68: 66625 | H68: 66625
B69: Workers Compensation Rate Changes | C69: 001-011 | D69: 545000 | H69: 545000
B70: Workforce Development Projects | C70: 001-011 | D70: 227498 | H70: 227498
A71: Future Allocations/Reserves Total | D71: 30029727 | E71: 378664 | F71: 432700 | H71: 30841091
A72: SBCTC Admin | B72: Aerospace Apprenticeships | C72: 001-011 | D72: 25411 | H72: 25411
B73: Base Allocation (GF-State) | C73: 001-011 | D73: 15668022 | H73: 15668022
B74: Dept of Ed Training | C74: 001-011 | D74: 0 | H74: 0
B75: Economic Impact Study | C75: 001-011 | D75: 73000 | H75: 73000
B76: Facility Maintenance - State Shift to Ed Const - MOA | C76: 001-011 | D76: 0 | H76: 0
B77: First Link College Support | C77: 001-011 | D77: 0 | H77: 0
B78: General Wage Increase | C78: 001-011 | D78: 344624 | H78: 344624
B79: Health Rate Changes | C79: 001-011 | D79: 340533 | H79: 340533
B80: Hospital Employee Education & Training | C80: 001-011 | D80: 42074 | H80: 42074
B81: Job Skills Program | C81: 08A-430 | F81: 55000 | H81: 55000
B82: MESA Community College Programs - MCCP | C82: 001-BK1 | D82: 17200 | H82: 17200
B83: Nonrep Job Class Specific Increases | C83: 001-011 | D83: 2673 | H83: 2673
B84: Opportunity Grants (ELTA) | C84: 08A-3E0 | F84: 118300 | H84: 118300
B85: PERS/TRS Pension Rate Changes | C85: 001-011 | D85: 55269 | H85: 55269
B86: Supplemental Retirement Payments | C86: 001-011 | D86: -10891 | H86: -10891
B87: Worker Retraining - Base (101) | C87: 001-011 | D87: 497555 | H87: 497555
B88: Workers Compensation Changes | C88: 001-011 | D88: 0 | H88: 0
B89: Workforce Development Projects | C89: 001-011 | D89: 0 | H89: 0
A90: SBCTC Admin Total | D90: 17055470 | F90: 173300 | H90: 17228770
A91: SBCTC Program | B91: ABE Enrollments | C91: 001-011 | D91: 153770 | H91: 153770
B92: Aerospace Apprenticeships | C92: 001-011 | D92: 1921761 | H92: 1921761
B93: DOC Compensation | C93: 001-011 | D93: 597310 | H93: 597310
B94: Job Skills Program | C94: 08A-430 | F94: 2670000 | H94: 2670000
B95: MESA Community College Programs - MCCP | C95: 001-BK1 | D95: 92800 | H95: 92800
B96: Opportunity Grants (ELTA) | C96: 08A-3E0 | F96: 700000 | H96: 700000
B97: State Match - Federal Basic Skills | C97: 001-011 | D97: 396777 | H97: 396777
B98: Supplemental Retirement Payments | C98: 001-011 | D98: 0 | H98: 0
B99: Worker Retraining - Base (101) | C99: 001-011 | D99: 1096301 | H99: 1096301
B100: Worker Retraining - Base (AC1) | C100: 001-AC1 | D100: 544579 | H100: 544579
A101: SBCTC Program Total | D101: 4803298 | F101: 3370000 | H101: 8173298
A102: Grand Total | D102: 666835000 | E102: 8774000 | F102: 48460000 | G102: 3555000 | H102: 727624000

Sheet AllocSched (hidden)
A1: 1. Excel_Code | B1: 2. Group Name | C1: 3. Alloc # | D1: 4. DISTRICT | E1: 5. Change in this allocation | F1: 6. NAME | G1: 7. Fund | H1: 8. FMS AL# | I1: 9. Approp | J1: 10. Fund & Approp | K1: 11. Fund Appr Number | L1: 12. Approp_Inputs | M1: 13. AllocSched_Details | N1: 14. Enrollments ? | O1: 15. Enrollment | P1: 16. Enrollment_Initial | Q1: 17. Allocation Changes #2-10 | R1: 18. Enrollment_Total | S1: 19. Initial 2017 NT | T1: 20. Prior Allocation Totals | U1: 21. Allocation #2 | V1: 22. Allocation #3 | W1: 23. Allocation #4 | X1: 24. Allocation #5 | Y1: 25. Allocation #6 | Z1: 26. Allocation #7 | AA1: 27. Allocation #8 | AB1: 28. Allocation #9 | AC1: 29. Allocation #10 | AD1: 30. Grand Total | AE1: 31. Use of Funds Cateogry | AF1: 32. Out of model | AG1: 33. SH type
A2: =CONCATENATE(D2,M2) -> 90ABE Enrollments | B2: Base | C2: ='Alloc#vlookup'!$B$1 -> #4 | D2: 90 | E2: =IF(C2=2,IF(U2="","no","yes"),IF(C2=3,IF(V2="","no","yes"),IF(C2=4,IF(W2="","no","yes"),IF(C2=5,IF(X2="","no","yes"),IF(C2=6,IF(Y2="","no","yes"),IF(C2=7,IF(Z2="","no","yes"),IF(C2=8,IF(AA2="","no","yes"),IF(C2=9,IF(AB2="","no","yes"),IF(C2=10,IF(AC2="","no","yes"),"error"))))))))) -> error | F2: SBCTC Program | G2: =LEFT(J2,3) -> 001 | H2: =VLOOKUP(I2,Approp,2,FALSE) -> 101 | I2: =RIGHT(J2,3) -> 011 | J2: 001-011 | K2: 1011 | L2: ABE Enrollments | M2: ABE Enrollments | N2: yes | O2: 34 | R2: =SUM(O2:Q2) -> 34 | S2: 153770 | T2: =IF(C2="#1",S2,IF(C2="#2",SUM(S2),IF(C2="#3",SUM(S2,U2),IF(C2="#4",SUM(S2,U2:V2),IF(C2="#5",SUM(S2,U2:W2),IF(C2="#6",SUM(S2,U2:X2),IF(C2="#7",SUM(S2,U2:Y2),IF(C2="#8",SUM(S2,U2:Z2),IF(C2="#9",SUM(S2,U2:AA2),IF(C2="#10",SUM(S2,U2:AB2),ERROR)))))))))) -> 153770 | AD2: =SUM(S2:AC2)-T2 -> 153770 | AE2: =IF(D2=90,"SBCTC Program",IF(D2=89,"SBCTC Admin",IF(D2="00","Future Allocations/Reserves","District"))) -> SBCTC Program | AF2: Yes | AG2: Program
A3: 23Aerospace - Incumbent worker training - WATR | B3: Proviso | C3: ='Alloc#vlookup'!$B$1 -> #4 | D3: 23 | E3: error | F3: Edmonds | G3: 001 | H3: BJ1 | I3: BJ1 | J3: 001-BJ1 | K3: 001BJ1 | L3: Fabrication Wing Training Program | M3: Aerospace - Incumbent worker training - WATR | R3: 0 | S3: 1500000 | T3: =IF(C3="#1",S3,IF(C3="#2",SUM(S3),IF(C3="#3",SUM(S3,U3),IF(C3="#4",SUM(S3,U3:V3),IF(C3="#5",SUM(S3,U3:W3),IF(C3="#6",SUM(S3,U3:X3),IF(C3="#7",SUM(S3,U3:Y3),IF(C3="#8",SUM(S3,U3:Z3),IF(C3="#9",SUM(S3,U3:AA3),IF(C3="#10",SUM(S3,U3:AB3),ERROR)))))))))) -> 1500000 | AD3: =SUM(S3:AC3)-T3 -> 1500000 | AE3: District | AF3: Yes | AG3: two plus
A4: 28Aerospace Apprenticeships | B4: Earmark | C4: ='Alloc#vlookup'!$B$1 -> #4 | D4: 28 | E4: error | F4: Bates | G4: 001 | H4: 101 | I4: 011 | J4: 001-011 | K4: 1011 | L4: Aerospace Apprenticeships | M4: Aerospace Apprenticeships | N4: yes | O4: 20 | R4: 20 | S4: 116941 | T4: =IF(C4="#1",S4,IF(C4="#2",SUM(S4),IF(C4="#3",SUM(S4,U4),IF(C4="#4",SUM(S4,U4:V4),IF(C4="#5",SUM(S4,U4:W4),IF(C4="#6",SUM(S4,U4:X4),IF(C4="#7",SUM(S4,U4:Y4),IF(C4="#8",SUM(S4,U4:Z4),IF(C4="#9",SUM(S4,U4:AA4),IF(C4="#10",SUM(S4,U4:AB4),ERROR)))))))))) -> 116941 | AD4: 116941 | AE4: District | AF4: Yes | AG4: Ongoing
A5: 25Aerospace Apprenticeships | B5: Earmark | C5: ='Alloc#vlookup'!$B$1 -> #4 | D5: 25 | E5: error | F5: Bellingham | G5: =LEFT(J5,3) -> 001 | H5: =VLOOKUP(I5,Approp,2,FALSE) -> 101 | I5: =RIGHT(J5,3) -> 011 | J5: 001-011 | K5: 1011 | L5: Aerospace Apprenticeships | M5: Aerospace Apprenticeships | Q5: 7 | R5: 7 | T5: =IF(C5="#1",S5,IF(C5="#2",SUM(S5),IF(C5="#3",SUM(S5,U5),IF(C5="#4",SUM(S5,U5:V5),IF(C5="#5",SUM(S5,U5:W5),IF(C5="#6",SUM(S5,U5:X5),IF(C5="#7",SUM(S5,U5:Y5),IF(C5="#8",SUM(S5,U5:Z5),IF(C5="#9",SUM(S5,U5:AA5),IF(C5="#10",SUM(S5,U5:AB5),ERROR)))))))))) -> 42147 | V5: 42147 | AD5: 42147 | AE5: District | AF5: Yes | AG5: Ongoing
A6: 19Aerospace Apprenticeships | B6: Earmark | C6: ='Alloc#vlookup'!$B$1 -> #4 | D6: 19 | E6: error | F6: Columbia Basin | G6: 001 | H6: 101 | I6: 011 | J6: 001-011 | K6: 1011 | L6: Aerospace Apprenticeships | M6: Aerospace Apprenticeships | N6: yes | O6: 5 | R6: 5 | S6: 29237 | T6: =IF(C6="#1",S6,IF(C6="#2",SUM(S6),IF(C6="#3",SUM(S6,U6),IF(C6="#4",SUM(S6,U6:V6),IF(C6="#5",SUM(S6,U6:W6),IF(C6="#6",SUM(S6,U6:X6),IF(C6="#7",SUM(S6,U6:Y6),IF(C6="#8",SUM(S6,U6:Z6),IF(C6="#9",SUM(S6,U6:AA6),IF(C6="#10",SUM(S6,U6:AB6),ERROR)))))))))) -> 29237 | AD6: 29237 | AE6: District | AF6: Yes | AG6: Ongoing
A7: 23Aerospace Apprenticeships | B7: Earmark | C7: ='Alloc#vlookup'!$B$1 -> #4 | D7: 23 | E7: error | F7: Edmonds | G7: =LEFT(J7,3) -> 001 | H7: =VLOOKUP(I7,Approp,2,FALSE) -> 101 | I7: =RIGHT(J7,3) -> 011 | J7: 001-011 | K7: 1011 | L7: Aerospace Apprenticeships | M7: Aerospace Apprenticeships | Q7: 5 | R7: 5 | T7: =IF(C7="#1",S7,IF(C7="#2",SUM(S7),IF(C7="#3",SUM(S7,U7),IF(C7="#4",SUM(S7,U7:V7),IF(C7="#5",SUM(S7,U7:W7),IF(C7="#6",SUM(S7,U7:X7),IF(C7="#7",SUM(S7,U7:Y7),IF(C7="#8",SUM(S7,U7:Z7),IF(C7="#9",SUM(S7,U7:AA7),IF(C7="#10",SUM(S7,U7:AB7),ERROR)))))))))) -> 30105 | V7: 30105 | AD7: 30105 | AE7: District | AF7: Yes | AG7: Ongoing
A8: 5Aerospace Apprenticeships | B8: Earmark | C8: ='Alloc#vlookup'!$B$1 -> #4 | D8: 5 | E8: error | F8: Everett | G8: 001 | H8: 101 | I8: 011 | J8: 001-011 | K8: 1011 | L8: Aerospace Apprenticeships | M8: Aerospace Apprenticeships | N8: yes | O8: 40 | P8: -27 | Q8: 29 | R8: 42 | S8: 76013 | T8: =IF(C8="#1",S8,IF(C8="#2",SUM(S8),IF(C8="#3",SUM(S8,U8),IF(C8="#4",SUM(S8,U8:V8),IF(C8="#5",SUM(S8,U8:W8),IF(C8="#6",SUM(S8,U8:X8),IF(C8="#7",SUM(S8,U8:Y8),IF(C8="#8",SUM(S8,U8:Z8),IF(C8="#9",SUM(S8,U8:AA8),IF(C8="#10",SUM(S8,U8:AB8),ERROR)))))))))) -> 250622 | V8: 174609 | AD8: 250622 | AE8: District | AF8: Yes | AG8: Ongoing
A9: 00Aerospace Apprenticeships | B9: Earmark | C9: ='Alloc#vlookup'!$B$1 -> #4 | D9: 00 | E9: error | F9: Future Allocations/Reserves | G9: 001 | H9: 101 | I9: 011 | J9: 001-011 | K9: 1011 | L9: Aerospace Apprenticeships | M9: Aerospace Apprenticeships | N9: yes | O9: 5 | P9: =4+27+8+18+8+5 -> 70 | Q9: -75 | R9: 0 | S9: 2398814 | T9: =IF(C9="#1",S9,IF(C9="#2",SUM(S9),IF(C9="#3",SUM(S9,U9),IF(C9="#4",SUM(S9,U9:V9),IF(C9="#5",SUM(S9,U9:W9),IF(C9="#6",SUM(S9,U9:X9),IF(C9="#7",SUM(S9,U9:Y9),IF(C9="#8",SUM(S9,U9:Z9),IF(C9="#9",SUM(S9,U9:AA9),IF(C9="#10",SUM(S9,U9:AB9),ERROR)))))))))) -> 67 | U9: -1947172 | V9: -451575 | AD9: 67 | AE9: Future Allocations/Reserves | AF9: Yes | AG9: Ongoing
A10: 26Aerospace Apprenticeships | B10: Earmark | C10: ='Alloc#vlookup'!$B$1 -> #4 | D10: 26 | F10: Lake Washington | G10: =LEFT(J10,3) -> 001 | H10: =VLOOKUP(I10,Approp,2,FALSE) -> 101 | I10: =RIGHT(J10,3) -> 011 | J10: 001-011 | K10: 1011 | L10: Aerospace Apprenticeships | M10: Aerospace Apprenticeships | Q10: 5 | R10: 5 | T10: =IF(C10="#1",S10,IF(C10="#2",SUM(S10),IF(C10="#3",SUM(S10,U10),IF(C10="#4",SUM(S10,U10:V10),IF(C10="#5",SUM(S10,U10:W10),IF(C10="#6",SUM(S10,U10:X10),IF(C10="#7",SUM(S10,U10:Y10),IF(C10="#8",SUM(S10,U10:Z10),IF(C10="#9",SUM(S10,U10:AA10),IF(C10="#10",SUM(S10,U10:AB10),ERROR)))))))))) -> 30105 | V10: 30105 | AD10: 30105 | AE10: District | AF10: Yes | AG10: Ongoing
A11: 27Aerospace Apprenticeships | B11: Earmark | C11: ='Alloc#vlookup'!$B$1 -> #4 | D11: 27 | E11: =IF(C11=2,IF(U11="","no","yes"),IF(C11=3,IF(V11="","no","yes"),IF(C11=4,IF(W11="","no","yes"),IF(C11=5,IF(X11="","no","yes"),IF(C11=6,IF(Y11="","no","yes"),IF(C11=7,IF(Z11="","no","yes"),IF(C11=8,IF(AA11="","no","yes"),IF(C11=9,IF(AB11="","no","yes"),IF(C11=10,IF(AC11="","no","yes"),"error"))))))))) -> error | F11: Renton | G11: 001 | H11: 101 | I11: 011 | J11: 001-011 | K11: 1011 | L11: Aerospace Apprenticeships | M11: Aerospace Apprenticeships | N11: yes | O11: =6+8 -> 14 | P11: -8 | Q11: 8 | R11: 14 | S11: 35084 | T11: =IF(C11="#1",S11,IF(C11="#2",SUM(S11),IF(C11="#3",SUM(S11,U11),IF(C11="#4",SUM(S11,U11:V11),IF(C11="#5",SUM(S11,U11:W11),IF(C11="#6",SUM(S11,U11:X11),IF(C11="#7",SUM(S11,U11:Y11),IF(C11="#8",SUM(S11,U11:Z11),IF(C11="#9",SUM(S11,U11:AA11),IF(C11="#10",SUM(S11,U11:AB11),ERROR)))))))))) -> 83252 | V11: 48168 | AD11: 83252 | AE11: District | AF11: Yes | AG11: Ongoing
A12: 90Aerospace Apprenticeships | B12: Earmark | C12: ='Alloc#vlookup'!$B$1 -> #4 | D12: 90 | E12: =IF(C12=2,IF(U12="","no","yes"),IF(C12=3,IF(V12="","no","yes"),IF(C12=4,IF(W12="","no","yes"),IF(C12=5,IF(X12="","no","yes"),IF(C12=6,IF(Y12="","no","yes"),IF(C12=7,IF(Z12="","no","yes"),IF(C12=8,IF(AA12="","no","yes"),IF(C12=9,IF(AB12="","no","yes"),IF(C12=10,IF(AC12="","no","yes"),"error"))))))))) -> error | F12: SBCTC Program | G12: =LEFT(J12,3) -> 001 | H12: =VLOOKUP(I12,Approp,2,FALSE) -> 101 | I12: 011 | J12: 001-011 | K12: 1012 | L12: Aerospace Apprenticeships | M12: Aerospace Apprenticeships | R12: 0 | S12: 0 | T12: =IF(C12="#1",S12,IF(C12="#2",SUM(S12),IF(C12="#3",SUM(S12,U12),IF(C12="#4",SUM(S12,U12:V12),IF(C12="#5",SUM(S12,U12:W12),IF(C12="#6",SUM(S12,U12:X12),IF(C12="#7",SUM(S12,U12:Y12),IF(C12="#8",SUM(S12,U12:Z12),IF(C12="#9",SUM(S12,U12:AA12),IF(C12="#10",SUM(S12,U12:AB12),ERROR)))))))))) -> 1921761 | U12: 1921761 | AD12: 1921761 | AE12: SBCTC Program | AF12: Yes | AG12: Ongoing
A13: 89Aerospace Apprenticeships | B13: Earmark | C13: ='Alloc#vlookup'!$B$1 -> #4 | D13: 89 | E13: =IF(C13=2,IF(U13="","no","yes"),IF(C13=3,IF(V13="","no","yes"),IF(C13=4,IF(W13="","no","yes"),IF(C13=5,IF(X13="","no","yes"),IF(C13=6,IF(Y13="","no","yes"),IF(C13=7,IF(Z13="","no","yes"),IF(C13=8,IF(AA13="","no","yes"),IF(C13=9,IF(AB13="","no","yes"),IF(C13=10,IF(AC13="","no","yes"),"error"))))))))) -> error | F13: SBCTC Admin | G13: 001 | H13: 101 | I13: 011 | J13: 001-011 | K13: 1011 | L13: Aerospace Apprenticeships | M13: Aerospace Apprenticeships | R13: 0 | S13: 0 | T13: =IF(C13="#1",S13,IF(C13="#2",SUM(S13),IF(C13="#3",SUM(S13,U13),IF(C13="#4",SUM(S13,U13:V13),IF(C13="#5",SUM(S13,U13:W13),IF(C13="#6",SUM(S13,U13:X13),IF(C13="#7",SUM(S13,U13:Y13),IF(C13="#8",SUM(S13,U13:Z13),IF(C13="#9",SUM(S13,U13:AA13),IF(C13="#10",SUM(S13,U13:AB13),ERROR)))))))))) -> 25411 | U13: =5894+19517 -> 25411 | AD13: 25411 | AE13: SBCTC Admin | AF13: Yes | AG13: Ongoing
A14: 6Aerospace Apprenticeships | B14: Earmark | C14: ='Alloc#vlookup'!$B$1 -> #4 | D14: 6 | E14: =IF(C14=2,IF(U14="","no","yes"),IF(C14=3,IF(V14="","no","yes"),IF(C14=4,IF(W14="","no","yes"),IF(C14=5,IF(X14="","no","yes"),IF(C14=6,IF(Y14="","no","yes"),IF(C14=7,IF(Z14="","no","yes"),IF(C14=8,IF(AA14="","no","yes"),IF(C14=9,IF(AB14="","no","yes"),IF(C14=10,IF(AC14="","no","yes"),"error"))))))))) -> error | F14: Seattle | G14: 001 | H14: 101 | I14: 011 | J14: 001-011 | K14: 1011 | L14: Aerospace Apprenticeships | M14: Aerospace Apprenticeships | N14: yes | O14: 24 | P14: -18 | Q14: 19 | R14: 25 | S14: 35082 | T14: =IF(C14="#1",S14,IF(C14="#2",SUM(S14),IF(C14="#3",SUM(S14,U14),IF(C14="#4",SUM(S14,U14:V14),IF(C14="#5",SUM(S14,U14:W14),IF(C14="#6",SUM(S14,U14:X14),IF(C14="#7",SUM(S14,U14:Y14),IF(C14="#8",SUM(S14,U14:Z14),IF(C14="#9",SUM(S14,U14:AA14),IF(C14="#10",SUM(S14,U14:AB14),ERROR)))))))))) -> 149481 | V14: 114399 | AD14: 149481 | AE14: District | AF14: Yes | AG14: Ongoing
A15: 16Aerospace Apprenticeships | B15: Earmark | C15: ='Alloc#vlookup'!$B$1 -> #4 | D15: 16 | F15: Yakima Valley | G15: 001 | H15: 101 | I15: 011 | J15: 001-011 | K15: 1011 | L15: Aerospace Apprenticeships | M15: Aerospace Apprenticeships | Q15: 2 | R15: 2 | T15: =IF(C15="#1",S15,IF(C15="#2",SUM(S15),IF(C15="#3",SUM(S15,U15),IF(C15="#4",SUM(S15,U15:V15),IF(C15="#5",SUM(S15,U15:W15),IF(C15="#6",SUM(S15,U15:X15),IF(C15="#7",SUM(S15,U15:Y15),IF(C15="#8",SUM(S15,U15:Z15),IF(C15="#9",SUM(S15,U15:AA15),IF(C15="#10",SUM(S15,U15:AB15),ERROR)))))))))) -> 12042 | V15: 12042 | AD15: 12042 | AE15: District
A16: 17Aerospace Apprenticeships | B16: Earmark | C16: ='Alloc#vlookup'!$B$1 -> #4 | D16: 17 | E16: =IF(C16=2,IF(U16="","no","yes"),IF(C16=3,IF(V16="","no","yes"),IF(C16=4,IF(W16="","no","yes"),IF(C16=5,IF(X16="","no","yes"),IF(C16=6,IF(Y16="","no","yes"),IF(C16=7,IF(Z16="","no","yes"),IF(C16=8,IF(AA16="","no","yes"),IF(C16=9,IF(AB16="","no","yes"),IF(C16=10,IF(AC16="","no","yes"),"error"))))))))) -> error | F16: Spokane | G16: 001 | H16: 101 | I16: 011 | J16: 001-011 | K16: 1011 | L16: Aerospace Apprenticeships | M16: Aerospace Apprenticeships | N16: yes | O16: 5 | R16: 5 | S16: 29236 | T16: =IF(C16="#1",S16,IF(C16="#2",SUM(S16),IF(C16="#3",SUM(S16,U16),IF(C16="#4",SUM(S16,U16:V16),IF(C16="#5",SUM(S16,U16:W16),IF(C16="#6",SUM(S16,U16:X16),IF(C16="#7",SUM(S16,U16:Y16),IF(C16="#8",SUM(S16,U16:Z16),IF(C16="#9",SUM(S16,U16:AA16),IF(C16="#10",SUM(S16,U16:AB16),ERROR)))))))))) -> 29236 | AD16: 29236 | AE16: District | AF16: Yes | AG16: Ongoing
A17: 28Aerospace Enrollments - 1000 High Demand (2017 - 2020) | B17: Earmark | C17: ='Alloc#vlookup'!$B$1 -> #4 | D17: 28 | E17: error | F17: Bates | G17: 001 | H17: 101 | I17: 011 | J17: 001-011 | K17: 1011 | L17: Aerospace Enrollments (1000 FTEs) | M17: Aerospace Enrollments - 1000 High Demand (2017 - 2020) | N17: yes | O17: 62 | R17: 62 | S17: 411771 | T17: =IF(C17="#1",S17,IF(C17="#2",SUM(S17),IF(C17="#3",SUM(S17,U17),IF(C17="#4",SUM(S17,U17:V17),IF(C17="#5",SUM(S17,U17:W17),IF(C17="#6",SUM(S17,U17:X17),IF(C17="#7",SUM(S17,U17:Y17),IF(C17="#8",SUM(S17,U17:Z17),IF(C17="#9",SUM(S17,U17:AA17),IF(C17="#10",SUM(S17,U17:AB17),ERROR)))))))))) -> 411771 | AD17: 411771 | AE17: District | AF17: Yes | AG17: Ongoing
A18: 25Aerospace Enrollments - 1000 High Demand (2017 - 2020) | B18: Earmark | C18: ='Alloc#vlookup'!$B$1 -> #4 | D18: 25 | E18: error | F18: Bellingham | G18: 001 | H18: 101 | I18: 011 | J18: 001-011 | K18: 1011 | L18: Aerospace Enrollments (1000 FTEs) | M18: Aerospace Enrollments - 1000 High Demand (2017 - 2020) | N18: yes | O18: 77 | R18: 77 | S18: 607376 | T18: =IF(C18="#1",S18,IF(C18="#2",SUM(S18),IF(C18="#3",SUM(S18,U18),IF(C18="#4",SUM(S18,U18:V18),IF(C18="#5",SUM(S18,U18:W18),IF(C18="#6",SUM(S18,U18:X18),IF(C18="#7",SUM(S18,U18:Y18),IF(C18="#8",SUM(S18,U18:Z18),IF(C18="#9",SUM(S18,U18:AA18),IF(C18="#10",SUM(S18,U18:AB18),ERROR)))))))))) -> 607376 | AD18: 607376 | AE18: District | AF18: Yes | AG18: four
A19: 18Aerospace Enrollments - 1000 High Demand (2017 - 2020) | B19: Earmark | C19: ='Alloc#vlookup'!$B$1 -> #4 | D19: 18 | E19: error | F19: Big Bend | G19: 001 | H19: 101 | I19: 011 | J19: 001-011 | K19: 1011 | L19: Aerospace Enrollments (1000 FTEs) | M19: Aerospace Enrollments - 1000 High Demand (2017 - 2020) | N19: yes | O19: 42 | R19: 42 | S19: 162026 | T19: =IF(C19="#1",S19,IF(C19="#2",SUM(S19),IF(C19="#3",SUM(S19,U19),IF(C19="#4",SUM(S19,U19:V19),IF(C19="#5",SUM(S19,U19:W19),IF(C19="#6",SUM(S19,U19:X19),IF(C19="#7",SUM(S19,U19:Y19),IF(C19="#8",SUM(S19,U19:Z19),IF(C19="#9",SUM(S19,U19:AA19),IF(C19="#10",SUM(S19,U19:AB19),ERROR)))))))))) -> 162026 | AD19: 162026 | AE19: District | AF19: Yes | AG19: four
A20: 14Aerospace Enrollments - 1000 High Demand (2017 - 2020) | B20: Earmark | C20: ='Alloc#vlookup'!$B$1 -> #4 | D20: 14 | E20: error | F20: Clark | G20: 001 | H20: 101 | I20: 011 | J20: 001-011 | K20: 1011 | L20: Aerospace Enrollments (1000 FTEs) | M20: Aerospace Enrollments - 1000 High Demand (2017 - 2020) | N20: yes | O20: 40 | R20: 40 | S20: 315501 | T20: =IF(C20="#1",S20,IF(C20="#2",SUM(S20),IF(C20="#3",SUM(S20,U20),IF(C20="#4",SUM(S20,U20:V20),IF(C20="#5",SUM(S20,U20:W20),IF(C20="#6",SUM(S20,U20:X20),IF(C20="#7",SUM(S20,U20:Y20),IF(C20="#8",SUM(S20,U20:Z20),IF(C20="#9",SUM(S20,U20:AA20),IF(C20="#10",SUM(S20,U20:AB20),ERROR)))))))))) -> 315501 | AD20: 315501 | AE20: District | AF20: Yes | AG20: four
A21: 29Aerospace Enrollments - 1000 High Demand (2017 - 2020) | B21: Earmark | C21: ='Alloc#vlookup'!$B$1 -> #4 | D21: 29 | E21: error | F21: Clover Park | G21: 001 | H21: 101 | I21: 011 | J21: 001-011 | K21: 1011 | L21: Aerospace Enrollments (1000 FTEs) | M21: Aerospace Enrollments - 1000 High Demand (2017 - 2020) | N21: yes | O21: 77 | R21: 77 | S21: 603161 | T21: =IF(C21="#1",S21,IF(C21="#2",SUM(S21),IF(C21="#3",SUM(S21,U21),IF(C21="#4",SUM(S21,U21:V21),IF(C21="#5",SUM(S21,U21:W21),IF(C21="#6",SUM(S21,U21:X21),IF(C21="#7",SUM(S21,U21:Y21),IF(C21="#8",SUM(S21,U21:Z21),IF(C21="#9",SUM(S21,U21:AA21),IF(C21="#10",SUM(S21,U21:AB21),ERROR)))))))))) -> 603161 | AD21: 603161 | AE21: District | AF21: Yes | AG21: four
A22: 23Aerospace Enrollments - 1000 High Demand (2017 - 2020) | B22: Earmark | C22: ='Alloc#vlookup'!$B$1 -> #4 | D22: 23 | E22: error | F22: Edmonds | G22: 001 | H22: 101 | I22: 011 | J22: 001-011 | K22: 1011 | L22: Aerospace Enrollments (1000 FTEs) | M22: Aerospace Enrollments - 1000 High Demand (2017 - 2020) | N22: yes | O22: 65 | R22: 65 | S22: 512720 | T22: =IF(C22="#1",S22,IF(C22="#2",SUM(S22),IF(C22="#3",SUM(S22,U22),IF(C22="#4",SUM(S22,U22:V22),IF(C22="#5",SUM(S22,U22:W22),IF(C22="#6",SUM(S22,U22:X22),IF(C22="#7",SUM(S22,U22:Y22),IF(C22="#8",SUM(S22,U22:Z22),IF(C22="#9",SUM(S22,U22:AA22),IF(C22="#10",SUM(S22,U22:AB22),ERROR)))))))))) -> 512720 | AD22: 512720 | AE22: District | AF22: Yes | AG22: four
A23: 5Aerospace Enrollments - 1000 High Demand (2017 - 2020) | B23: Earmark | C23: ='Alloc#vlookup'!$B$1 -> #4 | D23: 5 | E23: error | F23: Everett | G23: 001 | H23: 101 | I23: 011 | J23: 001-011 | K23: 1011 | L23: Aerospace Enrollments (1000 FTEs) | M23: Aerospace Enrollments - 1000 High Demand (2017 - 2020) | N23: yes | O23: 143 | R23: 143 | S23: 1127984 | T23: =IF(C23="#1",S23,IF(C23="#2",SUM(S23),IF(C23="#3",SUM(S23,U23),IF(C23="#4",SUM(S23,U23:V23),IF(C23="#5",SUM(S23,U23:W23),IF(C23="#6",SUM(S23,U23:X23),IF(C23="#7",SUM(S23,U23:Y23),IF(C23="#8",SUM(S23,U23:Z23),IF(C23="#9",SUM(S23,U23:AA23),IF(C23="#10",SUM(S23,U23:AB23),ERROR)))))))))) -> 1127984 | AD23: 1127984 | AE23: District | AF23: Yes | AG23: four
A24: 00Aerospace Enrollments - 1000 High Demand (2017 - 2020) | B24: Earmark | C24: ='Alloc#vlookup'!$B$1 -> #4 | D24: 00 | E24: error | F24: Future Allocations/Reserves | G24: 001 | H24: 101 | I24: 011 | J24: 001-011 | K24: 1011 | L24: Aerospace Enrollments (1000 FTEs) | M24: Aerospace Enrollments - 1000 High Demand (2017 - 2020) | N24: yes | O24: 0 | R24: 0 | S24: 0 | T24: =IF(C24="#1",S24,IF(C24="#2",SUM(S24),IF(C24="#3",SUM(S24,U24),IF(C24="#4",SUM(S24,U24:V24),IF(C24="#5",SUM(S24,U24:W24),IF(C24="#6",SUM(S24,U24:X24),IF(C24="#7",SUM(S24,U24:Y24),IF(C24="#8",SUM(S24,U24:Z24),IF(C24="#9",SUM(S24,U24:AA24),IF(C24="#10",SUM(S24,U24:AB24),ERROR)))))))))) -> 0 | AD24: 0 | AE24: Future Allocations/Reserves | AF24: Yes | AG24: four
A25: 10Aerospace Enrollments - 1000 High Demand (2017 - 2020) | B25: Earmark | C25: ='Alloc#vlookup'!$B$1 -> #4 | D25: 10 | E25: error | F25: Green River | G25: 001 | H25: 101 | I25: 011 | J25: 001-011 | K25: 1011 | L25: Aerospace Enrollments (1000 FTEs) | M25: Aerospace Enrollments - 1000 High Demand (2017 - 2020) | N25: yes | O25: 39 | R25: 39 | S25: 296172 | T25: =IF(C25="#1",S25,IF(C25="#2",SUM(S25),IF(C25="#3",SUM(S25,U25),IF(C25="#4",SUM(S25,U25:V25),IF(C25="#5",SUM(S25,U25:W25),IF(C25="#6",SUM(S25,U25:X25),IF(C25="#7",SUM(S25,U25:Y25),IF(C25="#8",SUM(S25,U25:Z25),IF(C25="#9",SUM(S25,U25:AA25),IF(C25="#10",SUM(S25,U25:AB25),ERROR)))))))))) -> 296172 | AD25: 296172 | AE25: District | AF25: Yes | AG25: four
A26: 9Aerospace Enrollments - 1000 High Demand (2017 - 2020) | B26: Earmark | C26: ='Alloc#vlookup'!$B$1 -> #4 | D26: 9 | E26: error | F26: Highline | G26: 001 | H26: 101 | I26: 011 | J26: 001-011 | K26: 1011 | L26: Aerospace Enrollments (1000 FTEs) | M26: Aerospace Enrollments - 1000 High Demand (2017 - 2020) | N26: yes | O26: 20 | R26: 20 | S26: 157760 | T26: =IF(C26="#1",S26,IF(C26="#2",SUM(S26),IF(C26="#3",SUM(S26,U26),IF(C26="#4",SUM(S26,U26:V26),IF(C26="#5",SUM(S26,U26:W26),IF(C26="#6",SUM(S26,U26:X26),IF(C26="#7",SUM(S26,U26:Y26),IF(C26="#8",SUM(S26,U26:Z26),IF(C26="#9",SUM(S26,U26:AA26),IF(C26="#10",SUM(S26,U26:AB26),ERROR)))))))))) -> 157760 | AD26: 157760 | AE26: District | AF26: Yes | AG26: four
A27: 26Aerospace Enrollments - 1000 High Demand (2017 - 2020) | B27: Earmark | C27: ='Alloc#vlookup'!$B$1 -> #4 | D27: 26 | E27: error | F27: Lake Washington | G27: 001 | H27: 101 | I27: 011 | J27: 001-011 | K27: 1011 | L27: Aerospace Enrollments (1000 FTEs) | M27: Aerospace Enrollments - 1000 High Demand (2017 - 2020) | N27: yes | O27: 45 | R27: 45 | S27: 354960 | T27: =IF(C27="#1",S27,IF(C27="#2",SUM(S27),IF(C27="#3",SUM(S27,U27),IF(C27="#4",SUM(S27,U27:V27),IF(C27="#5",SUM(S27,U27:W27),IF(C27="#6",SUM(S27,U27:X27),IF(C27="#7",SUM(S27,U27:Y27),IF(C27="#8",SUM(S27,U27:Z27),IF(C27="#9",SUM(S27,U27:AA27),IF(C27="#10",SUM(S27,U27:AB27),ERROR)))))))))) -> 354960 | AD27: 354960 | AE27: District | AF27: Yes | AG27: four
A28: 3Aerospace Enrollments - 1000 High Demand (2017 - 2020) | B28: Earmark | C28: ='Alloc#vlookup'!$B$1 -> #4 | D28: 3 | E28: error | F28: Olympic | G28: 001 | H28: 101 | I28: 011 | J28: 001-011 | K28: 1011 | L28: Aerospace Enrollments (1000 FTEs) | M28: Aerospace Enrollments - 1000 High Demand (2017 - 2020) | N28: yes | O28: 61 | R28: 61 | S28: 481168 | T28: =IF(C28="#1",S28,IF(C28="#2",SUM(S28),IF(C28="#3",SUM(S28,U28),IF(C28="#4",SUM(S28,U28:V28),IF(C28="#5",SUM(S28,U28:W28),IF(C28="#6",SUM(S28,U28:X28),IF(C28="#7",SUM(S28,U28:Y28),IF(C28="#8",SUM(S28,U28:Z28),IF(C28="#9",SUM(S28,U28:AA28),IF(C28="#10",SUM(S28,U28:AB28),ERROR)))))))))) -> 481168 | AD28: 481168 | AE28: District | AF28: Yes | AG28: four
A29: 1Aerospace Enrollments - 1000 High Demand (2017 - 2020) | B29: Earmark | C29: ='Alloc#vlookup'!$B$1 -> #4 | D29: 1 | E29: error | F29: Peninsula | G29: 001 | H29: 101 | I29: 011 | J29: 001-011 | K29: 1011 | L29: Aerospace Enrollments (1000 FTEs) | M29: Aerospace Enrollments - 1000 High Demand (2017 - 2020) | N29: yes | O29: 38 | R29: 38 | S29: 299744 | T29: =IF(C29="#1",S29,IF(C29="#2",SUM(S29),IF(C29="#3",SUM(S29,U29),IF(C29="#4",SUM(S29,U29:V29),IF(C29="#5",SUM(S29,U29:W29),IF(C29="#6",SUM(S29,U29:X29),IF(C29="#7",SUM(S29,U29:Y29),IF(C29="#8",SUM(S29,U29:Z29),IF(C29="#9",SUM(S29,U29:AA29),IF(C29="#10",SUM(S29,U29:AB29),ERROR)))))))))) -> 299744 | AD29: 299744 | AE29: District | AF29: Yes | AG29: four
A30: 27Aerospace Enrollments - 1000 High Demand (2017 - 2020) | B30: Earmark | C30: ='Alloc#vlookup'!$B$1 -> #4 | D30: 27 | E30: error | F30: Renton | G30: 001 | H30: 101 | I30: 011 | J30: 001-011 | K30: 1011 | L30: Aerospace Enrollments (1000 FTEs) | M30: Aerospace Enrollments - 1000 High Demand (2017 - 2020) | N30: yes | O30: 39 | R30: 39 | S30: 235338 | T30: =IF(C30="#1",S30,IF(C30="#2",SUM(S30),IF(C30="#3",SUM(S30,U30),IF(C30="#4",SUM(S30,U30:V30),IF(C30="#5",SUM(S30,U30:W30),IF(C30="#6",SUM(S30,U30:X30),IF(C30="#7",SUM(S30,U30:Y30),IF(C30="#8",SUM(S30,U30:Z30),IF(C30="#9",SUM(S30,U30:AA30),IF(C30="#10",SUM(S30,U30:AB30),ERROR)))))))))) -> 235338 | AD30: 235338 | AE30: District | AF30: Yes | AG30: four
A31: 6Aerospace Enrollments - 1000 High Demand (2017 - 2020) | B31: Earmark | C31: ='Alloc#vlookup'!$B$1 -> #4 | D31: 6 | E31: error | F31: Seattle | G31: 001 | H31: 101 | I31: 011 | J31: 001-011 | K31: 1011 | L31: Aerospace Enrollments (1000 FTEs) | M31: Aerospace Enrollments - 1000 High Demand (2017 - 2020) | N31: yes | O31: 174 | R31: 174 | S31: 1280881 | T31: =IF(C31="#1",S31,IF(C31="#2",SUM(S31),IF(C31="#3",SUM(S31,U31),IF(C31="#4",SUM(S31,U31:V31),IF(C31="#5",SUM(S31,U31:W31),IF(C31="#6",SUM(S31,U31:X31),IF(C31="#7",SUM(S31,U31:Y31),IF(C31="#8",SUM(S31,U31:Z31),IF(C31="#9",SUM(S31,U31:AA31),IF(C31="#10",SUM(S31,U31:AB31),ERROR)))))))))) -> 1280881 | AD31: 1280881 | AE31: District | AF31: Yes | AG31: four
A32: 7Aerospace Enrollments - 1000 High Demand (2017 - 2020) | B32: Earmark | C32: ='Alloc#vlookup'!$B$1 -> #4 | D32: 7 | E32: error | F32: Shoreline | G32: 001 | H32: 101 | I32: 011 | J32: 001-011 | K32: 1011 | L32: Aerospace Enrollments (1000 FTEs) | M32: Aerospace Enrollments - 1000 High Demand (2017 - 2020) | N32: yes | O32: 20 | R32: 20 | S32: 152614 | T32: =IF(C32="#1",S32,IF(C32="#2",SUM(S32),IF(C32="#3",SUM(S32,U32),IF(C32="#4",SUM(S32,U32:V32),IF(C32="#5",SUM(S32,U32:W32),IF(C32="#6",SUM(S32,U32:X32),IF(C32="#7",SUM(S32,U32:Y32),IF(C32="#8",SUM(S32,U32:Z32),IF(C32="#9",SUM(S32,U32:AA32),IF(C32="#10",SUM(S32,U32:AB32),ERROR)))))))))) -> 152614 | AD32: 152614 | AE32: District | AF32: Yes | AG32: four
A33: 4Aerospace Enrollments - 1000 High Demand (2017 - 2020) | B33: Earmark | C33: ='Alloc#vlookup'!$B$1 -> #4 | D33: 4 | E33: error | F33: Skagit Valley | G33: 001 | H33: 101 | I33: 011 | J33: 001-011 | K33: 1011 | L33: Aerospace Enrollments (1000 FTEs) | M33: Aerospace Enrollments - 1000 High Demand (2017 - 2020) | N33: yes | O33: 27 | R33: 27 | S33: 212976 | T33: =IF(C33="#1",S33,IF(C33="#2",SUM(S33),IF(C33="#3",SUM(S33,U33),IF(C33="#4",SUM(S33,U33:V33),IF(C33="#5",SUM(S33,U33:W33),IF(C33="#6",SUM(S33,U33:X33),IF(C33="#7",SUM(S33,U33:Y33),IF(C33="#8",SUM(S33,U33:Z33),IF(C33="#9",SUM(S33,U33:AA33),IF(C33="#10",SUM(S33,U33:AB33),ERROR)))))))))) -> 212976 | AD33: 212976 | AE33: District | AF33: Yes | AG33: four
A34: 24Aerospace Enrollments - 1000 High Demand (2017 - 2020) | B34: Earmark | C34: ='Alloc#vlookup'!$B$1 -> #4 | D34: 24 | E34: error | F34: South Puget Sound | G34: 001 | H34: 101 | I34: 011 | J34: 001-011 | K34: 1011 | L34: Aerospace Enrollments (1000 FTEs) | M34: Aerospace Enrollments - 1000 High Demand (2017 - 2020) | N34: yes | O34: 15 | R34: 15 | S34: 118320 | T34: =IF(C34="#1",S34,IF(C34="#2",SUM(S34),IF(C34="#3",SUM(S34,U34),IF(C34="#4",SUM(S34,U34:V34),IF(C34="#5",SUM(S34,U34:W34),IF(C34="#6",SUM(S34,U34:X34),IF(C34="#7",SUM(S34,U34:Y34),IF(C34="#8",SUM(S34,U34:Z34),IF(C34="#9",SUM(S34,U34:AA34),IF(C34="#10",SUM(S34,U34:AB34),ERROR)))))))))) -> 118320 | AD34: 118320 | AE34: District | AF34: Yes | AG34: four
A35: 17Aerospace Enrollments - 1000 High Demand (2017 - 2020) | B35: Earmark | C35: ='Alloc#vlookup'!$B$1 -> #4 | D35: 17 | E35: error | F35: Spokane | G35: 001 | H35: 101 | I35: 011 | J35: 001-011 | K35: 1011 | L35: Aerospace Enrollments (1000 FTEs) | M35: Aerospace Enrollments - 1000 High Demand (2017 - 2020) | N35: yes | O35: 40 | R35: 40 | S35: 314568 | T35: =IF(C35="#1",S35,IF(C35="#2",SUM(S35),IF(C35="#3",SUM(S35,U35),IF(C35="#4",SUM(S35,U35:V35),IF(C35="#5",SUM(S35,U35:W35),IF(C35="#6",SUM(S35,U35:X35),IF(C35="#7",SUM(S35,U35:Y35),IF(C35="#8",SUM(S35,U35:Z35),IF(C35="#9",SUM(S35,U35:AA35),IF(C35="#10",SUM(S35,U35:AB35),ERROR)))))))))) -> 314568 | AD35: 314568 | AE35: District | AF35: Yes | AG35: four
A36: 22Aerospace Enrollments - 1000 High Demand (2017 - 2020) | B36: Earmark | C36: ='Alloc#vlookup'!$B$1 -> #4 | D36: 22 | E36: error | F36: Tacoma | G36: 001 | H36: 101 | I36: 011 | J36: 001-011 | K36: 1011 | L36: Aerospace Enrollments (1000 FTEs) | M36: Aerospace Enrollments - 1000 High Demand (2017 - 2020) | N36: yes | O36: 25 | R36: 25 | S36: 197200 | T36: =IF(C36="#1",S36,IF(C36="#2",SUM(S36),IF(C36="#3",SUM(S36,U36),IF(C36="#4",SUM(S36,U36:V36),IF(C36="#5",SUM(S36,U36:W36),IF(C36="#6",SUM(S36,U36:X36),IF(C36="#7",SUM(S36,U36:Y36),IF(C36="#8",SUM(S36,U36:Z36),IF(C36="#9",SUM(S36,U36:AA36),IF(C36="#10",SUM(S36,U36:AB36),ERROR)))))))))) -> 197200 | AD36: 197200 | AE36: District | AF36: Yes | AG36: four
A37: 15Aerospace Enrollments - 1000 High Demand (2017 - 2020) | B37: Earmark | C37: ='Alloc#vlookup'!$B$1 -> #4 | D37: 15 | E37: error | F37: Wenatchee | G37: 001 | H37: 101 | I37: 011 | J37: 001-011 | K37: 1011 | L37: Aerospace Enrollments (1000 FTEs) | M37: Aerospace Enrollments - 1000 High Demand (2017 - 2020) | N37: yes | O37: 20 | R37: 20 | S37: 157760 | T37: =IF(C37="#1",S37,IF(C37="#2",SUM(S37),IF(C37="#3",SUM(S37,U37),IF(C37="#4",SUM(S37,U37:V37),IF(C37="#5",SUM(S37,U37:W37),IF(C37="#6",SUM(S37,U37:X37),IF(C37="#7",SUM(S37,U37:Y37),IF(C37="#8",SUM(S37,U37:Z37),IF(C37="#9",SUM(S37,U37:AA37),IF(C37="#10",SUM(S37,U37:AB37),ERROR)))))))))) -> 157760 | AD37: 157760 | AE37: District | AF37: Yes | AG37: four
A38: 25Alcoa Training | B38: Proviso | C38: ='Alloc#vlookup'!$B$1 -> #4 | D38: 25 | E38: error | F38: Bellingham | G38: 001 | H38: CF1 | I38: CF1 | J38: 001-CF1 | K38: 001CF1 | L38: Alcoa Training | M38: Alcoa Training | R38: 0 | S38: 2250000 | T38: =IF(C38="#1",S38,IF(C38="#2",SUM(S38),IF(C38="#3",SUM(S38,U38),IF(C38="#4",SUM(S38,U38:V38),IF(C38="#5",SUM(S38,U38:W38),IF(C38="#6",SUM(S38,U38:X38),IF(C38="#7",SUM(S38,U38:Y38),IF(C38="#8",SUM(S38,U38:Z38),IF(C38="#9",SUM(S38,U38:AA38),IF(C38="#10",SUM(S38,U38:AB38),ERROR)))))))))) -> 2250000 | AD38: 2250000 | AE38: District | AF38: Yes | AG38: two plus
A39: 6Allied Health Programs | B39: Proviso | C39: ='Alloc#vlookup'!$B$1 -> #4 | D39: 6 | E39: error | F39: Seattle | G39: =LEFT(J39,3) -> 001 | H39: =VLOOKUP(I39,Approp,2,FALSE) -> BP1 | I39: =RIGHT(J39,3) -> BP1 | J39: 001-BP1 | K39: 001BP1 | L39: Allied Health Programs | M39: Allied Health Programs | R39: 0 | S39: 425000 | T39: =IF(C39="#1",S39,IF(C39="#2",SUM(S39),IF(C39="#3",SUM(S39,U39),IF(C39="#4",SUM(S39,U39:V39),IF(C39="#5",SUM(S39,U39:W39),IF(C39="#6",SUM(S39,U39:X39),IF(C39="#7",SUM(S39,U39:Y39),IF(C39="#8",SUM(S39,U39:Z39),IF(C39="#9",SUM(S39,U39:AA39),IF(C39="#10",SUM(S39,U39:AB39),ERROR)))))))))) -> 425000 | AD39: 425000 | AE39: District | AF39: Yes | AG39: two plus
A40: 25Alt. Finance Project Debt Svc. | B40: Earmark | C40: ='Alloc#vlookup'!$B$1 -> #4 | D40: 25 | E40: error | F40: Bellingham | G40: 060 | H40: BA0 | I40: BA0 | J40: 060-BA0 | K40: 060BA0 | L40: Alt. Finance Project Debt Svc. | M40: Alt. Finance Project Debt Svc. | R40: 0 | S40: 1997096 | T40: =IF(C40="#1",S40,IF(C40="#2",SUM(S40),IF(C40="#3",SUM(S40,U40),IF(C40="#4",SUM(S40,U40:V40),IF(C40="#5",SUM(S40,U40:W40),IF(C40="#6",SUM(S40,U40:X40),IF(C40="#7",SUM(S40,U40:Y40),IF(C40="#8",SUM(S40,U40:Z40),IF(C40="#9",SUM(S40,U40:AA40),IF(C40="#10",SUM(S40,U40:AB40),ERROR)))))))))) -> 1997096 | AD40: 1997096 | AE40: District | AF40: Yes | AG40: Ongoing
A41: 00Alt. Finance Project Debt Svc. | B41: Earmark | C41: ='Alloc#vlookup'!$B$1 -> #4 | D41: 00 | E41: error | F41: Future Allocations/Reserves | G41: 060 | H41: BA0 | I41: BA0 | J41: 060-BA0 | K41: 060BA0 | L41: Alt. Finance Project Debt Svc. | M41: Alt. Finance Project Debt Svc. | R41: 0 | S41: 378664 | T41: =IF(C41="#1",S41,IF(C41="#2",SUM(S41),IF(C41="#3",SUM(S41,U41),IF(C41="#4",SUM(S41,U41:V41),IF(C41="#5",SUM(S41,U41:W41),IF(C41="#6",SUM(S41,U41:X41),IF(C41="#7",SUM(S41,U41:Y41),IF(C41="#8",SUM(S41,U41:Z41),IF(C41="#9",SUM(S41,U41:AA41),IF(C41="#10",SUM(S41,U41:AB41),ERROR)))))))))) -> 378664 | AD41: 378664 | AE41: Future Allocations/Reserves | AF41: Yes | AG41: Ongoing
A42: 10Alt. Finance Project Debt Svc. | B42: Earmark | C42: ='Alloc#vlookup'!$B$1 -> #4 | D42: 10 | E42: error | F42: Green River | G42: 060 | H42: BA0 | I42: BA0 | J42: 060-BA0 | K42: 060BA0 | L42: Alt. Finance Project Debt Svc. | M42: Alt. Finance Project Debt Svc. | R42: 0 | S42: 2024740 | T42: =IF(C42="#1",S42,IF(C42="#2",SUM(S42),IF(C42="#3",SUM(S42,U42),IF(C42="#4",SUM(S42,U42:V42),IF(C42="#5",SUM(S42,U42:W42),IF(C42="#6",SUM(S42,U42:X42),IF(C42="#7",SUM(S42,U42:Y42),IF(C42="#8",SUM(S42,U42:Z42),IF(C42="#9",SUM(S42,U42:AA42),IF(C42="#10",SUM(S42,U42:AB42),ERROR)))))))))) -> 2024740 | AD42: 2024740 | AE42: District | AF42: Yes | AG42: Ongoing
A43: 13Alt. Finance Project Debt Svc. | B43: Earmark | C43: ='Alloc#vlookup'!$B$1 -> #4 | D43: 13 | E43: error | F43: Lower Columbia | G43: 060 | H43: BA0 | I43: BA0 | J43: 060-BA0 | K43: 060BA0 | L43: Alt. Finance Project Debt Svc. | M43: Alt. Finance Project Debt Svc. | R43: 0 | S43: 2406575 | T43: =IF(C43="#1",S43,IF(C43="#2",SUM(S43),IF(C43="#3",SUM(S43,U43),IF(C43="#4",SUM(S43,U43:V43),IF(C43="#5",SUM(S43,U43:W43),IF(C43="#6",SUM(S43,U43:X43),IF(C43="#7",SUM(S43,U43:Y43),IF(C43="#8",SUM(S43,U43:Z43),IF(C43="#9",SUM(S43,U43:AA43),IF(C43="#10",SUM(S43,U43:AB43),ERROR)))))))))) -> 2406575 | AD43: 2406575 | AE43: District | AF43: Yes | AG43: Ongoing
A44: 4Alt. Finance Project Debt Svc. | B44: Earmark | C44: ='Alloc#vlookup'!$B$1 -> #4 | D44: 4 | E44: error | F44: Skagit Valley | G44: 060 | H44: BA0 | I44: BA0 | J44: 060-BA0 | K44: 060BA0 | L44: Alt. Finance Project Debt Svc. | M44: Alt. Finance Project Debt Svc. | R44: 0 | S44: 1966925 | T44: =IF(C44="#1",S44,IF(C44="#2",SUM(S44),IF(C44="#3",SUM(S44,U44),IF(C44="#4",SUM(S44,U44:V44),IF(C44="#5",SUM(S44,U44:W44),IF(C44="#6",SUM(S44,U44:X44),IF(C44="#7",SUM(S44,U44:Y44),IF(C44="#8",SUM(S44,U44:Z44),IF(C44="#9",SUM(S44,U44:AA44),IF(C44="#10",SUM(S44,U44:AB44),ERROR)))))))))) -> 1966925 | AD44: 1966925 | AE44: District | AF44: Yes | AG44: Ongoing
A45: 89Base Allocation (GF-State) | B45: Base | C45: ='Alloc#vlookup'!$B$1 -> #4 | D45: 89 | E45: error | F45: SBCTC Admin | G45: 001 | H45: 101 | I45: 011 | J45: 001-011 | K45: 1011 | L45: Base Allocation | M45: Base Allocation (GF-State) | R45: 0 | S45: 15668022 | T45: =IF(C45="#1",S45,IF(C45="#2",SUM(S45),IF(C45="#3",SUM(S45,U45),IF(C45="#4",SUM(S45,U45:V45),IF(C45="#5",SUM(S45,U45:W45),IF(C45="#6",SUM(S45,U45:X45),IF(C45="#7",SUM(S45,U45:Y45),IF(C45="#8",SUM(S45,U45:Z45),IF(C45="#9",SUM(S45,U45:AA45),IF(C45="#10",SUM(S45,U45:AB45),ERROR)))))))))) -> 15668022 | AD45: 15668022 | AE45: SBCTC Admin | AF45: Yes | AG45: Admin
A46: 90State Match - Federal Basic Skills | B46: Earmark | C46: ='Alloc#vlookup'!$B$1 -> #4 | D46: 90 | E46: error | F46: SBCTC Program | G46: 001 | H46: 101 | I46: 011 | J46: 001-011 | K46: 001011 | L46: State Match - Federal Basic Skills | M46: State Match - Federal Basic Skills | R46: 0 | S46: 396777 | T46: =IF(C46="#1",S46,IF(C46="#2",SUM(S46),IF(C46="#3",SUM(S46,U46),IF(C46="#4",SUM(S46,U46:V46),IF(C46="#5",SUM(S46,U46:W46),IF(C46="#6",SUM(S46,U46:X46),IF(C46="#7",SUM(S46,U46:Y46),IF(C46="#8",SUM(S46,U46:Z46),IF(C46="#9",SUM(S46,U46:AA46),IF(C46="#10",SUM(S46,U46:AB46),ERROR)))))))))) -> 396777 | AD46: 396777 | AE46: SBCTC Program | AF46: Yes | AG46: Program
A47: 8Centers of Excellence | B47: Proviso | C47: ='Alloc#vlookup'!$B$1 -> #4 | D47: 8 | E47: error | F47: Bellevue | G47: 001 | H47: 101 | I47: 011 | J47: 001-011 | K47: 001011 | L47: Centers of Excellence | M47: Centers of Excellence | R47: 0 | S47: 203205 | T47: =IF(C47="#1",S47,IF(C47="#2",SUM(S47),IF(C47="#3",SUM(S47,U47),IF(C47="#4",SUM(S47,U47:V47),IF(C47="#5",SUM(S47,U47:W47),IF(C47="#6",SUM(S47,U47:X47),IF(C47="#7",SUM(S47,U47:Y47),IF(C47="#8",SUM(S47,U47:Z47),IF(C47="#9",SUM(S47,U47:AA47),IF(C47="#10",SUM(S47,U47:AB47),ERROR)))))))))) -> 203157 | U47: -48 | AD47: 203157 | AE47: District | AF47: Yes | AG47: Ongoing
A48: 12Centers of Excellence | B48: Earmark | C48: ='Alloc#vlookup'!$B$1 -> #4 | D48: 12 | E48: error | F48: Centralia | G48: 001 | H48: 101 | I48: 011 | J48: 001-011 | K48: 001011 | L48: Centers of Excellence | M48: Centers of Excellence | R48: 0 | S48: 203205 | T48: =IF(C48="#1",S48,IF(C48="#2",SUM(S48),IF(C48="#3",SUM(S48,U48),IF(C48="#4",SUM(S48,U48:V48),IF(C48="#5",SUM(S48,U48:W48),IF(C48="#6",SUM(S48,U48:X48),IF(C48="#7",SUM(S48,U48:Y48),IF(C48="#8",SUM(S48,U48:Z48),IF(C48="#9",SUM(S48,U48:AA48),IF(C48="#10",SUM(S48,U48:AB48),ERROR)))))))))) -> 203157 | U48: -48 | AD48: 203157 | AE48: District | AF48: Yes | AG48: Ongoing
A49: 5Centers of Excellence | B49: Earmark | C49: ='Alloc#vlookup'!$B$1 -> #4 | D49: 5 | E49: error | F49: Everett | G49: 001 | H49: 101 | I49: 011 | J49: 001-011 | K49: 001011 | L49: Centers of Excellence | M49: Centers of Excellence | R49: 0 | S49: 203205 | T49: =IF(C49="#1",S49,IF(C49="#2",SUM(S49),IF(C49="#3",SUM(S49,U49),IF(C49="#4",SUM(S49,U49:V49),IF(C49="#5",SUM(S49,U49:W49),IF(C49="#6",SUM(S49,U49:X49),IF(C49="#7",SUM(S49,U49:Y49),IF(C49="#8",SUM(S49,U49:Z49),IF(C49="#9",SUM(S49,U49:AA49),IF(C49="#10",SUM(S49,U49:AB49),ERROR)))))))))) -> 203157 | U49: -48 | AD49: 203157 | AE49: District | AF49: Yes | AG49: Ongoing
A50: 10Centers of Excellence | B50: Earmark | C50: ='Alloc#vlookup'!$B$1 -> #4 | D50: 10 | E50: error | F50: Green River | G50: 001 | H50: 101 | I50: 011 | J50: 001-011 | K50: 001011 | L50: Centers of Excellence | M50: Centers of Excellence | R50: 0 | S50: 203205 | T50: =IF(C50="#1",S50,IF(C50="#2",SUM(S50),IF(C50="#3",SUM(S50,U50),IF(C50="#4",SUM(S50,U50:V50),IF(C50="#5",SUM(S50,U50:W50),IF(C50="#6",SUM(S50,U50:X50),IF(C50="#7",SUM(S50,U50:Y50),IF(C50="#8",SUM(S50,U50:Z50),IF(C50="#9",SUM(S50,U50:AA50),IF(C50="#10",SUM(S50,U50:AB50),ERROR)))))))))) -> 203157 | U50: -48 | AD50: 203157 | AE50: District | AF50: Yes | AG50: Ongoing
A51: 9Centers of Excellence | B51: Earmark | C51: ='Alloc#vlookup'!$B$1 -> #4 | D51: 9 | E51: error | F51: Highline | G51: 001 | H51: 101 | I51: 011 | J51: 001-011 | K51: 001011 | L51: Centers of Excellence | M51: Centers of Excellence | R51: 0 | S51: 203205 | T51: =IF(C51="#1",S51,IF(C51="#2",SUM(S51),IF(C51="#3",SUM(S51,U51),IF(C51="#4",SUM(S51,U51:V51),IF(C51="#5",SUM(S51,U51:W51),IF(C51="#6",SUM(S51,U51:X51),IF(C51="#7",SUM(S51,U51:Y51),IF(C51="#8",SUM(S51,U51:Z51),IF(C51="#9",SUM(S51,U51:AA51),IF(C51="#10",SUM(S51,U51:AB51),ERROR)))))))))) -> 203157 | U51: -48 | AD51: 203157 | AE51: District | AF51: Yes | AG51: Ongoing
A52: 11Centers of Excellence | B52: Earmark | C52: ='Alloc#vlookup'!$B$1 -> #4 | D52: 11 | E52: error | F52: Pierce | G52: 001 | H52: 101 | I52: 011 | J52: 001-011 | K52: 001011 | L52: Centers of Excellence | M52: Centers of Excellence | R52: 0 | S52: 203205 | T52: =IF(C52="#1",S52,IF(C52="#2",SUM(S52),IF(C52="#3",SUM(S52,U52),IF(C52="#4",SUM(S52,U52:V52),IF(C52="#5",SUM(S52,U52:W52),IF(C52="#6",SUM(S52,U52:X52),IF(C52="#7",SUM(S52,U52:Y52),IF(C52="#8",SUM(S52,U52:Z52),IF(C52="#9",SUM(S52,U52:AA52),IF(C52="#10",SUM(S52,U52:AB52),ERROR)))))))))) -> 203157 | U52: -48 | AD52: 203157 | AE52: District | AF52: Yes | AG52: Ongoing
A53: 27Centers of Excellence | B53: Earmark | C53: ='Alloc#vlookup'!$B$1 -> #4 | D53: 27 | E53: error | F53: Renton | G53: 001 | H53: 101 | I53: 011 | J53: 001-011 | K53: 001011 | L53: Centers of Excellence | M53: Centers of Excellence | R53: 0 | S53: 203205 | T53: =IF(C53="#1",S53,IF(C53="#2",SUM(S53),IF(C53="#3",SUM(S53,U53),IF(C53="#4",SUM(S53,U53:V53),IF(C53="#5",SUM(S53,U53:W53),IF(C53="#6",SUM(S53,U53:X53),IF(C53="#7",SUM(S53,U53:Y53),IF(C53="#8",SUM(S53,U53:Z53),IF(C53="#9",SUM(S53,U53:AA53),IF(C53="#10",SUM(S53,U53:AB53),ERROR)))))))))) -> 203157 | U53: -48 | AD53: 203157 | AE53: District | AF53: Yes | AG53: Ongoing
A54: 4Centers of Excellence | B54: Earmark | C54: ='Alloc#vlookup'!$B$1 -> #4 | D54: 4 | E54: error | F54: Skagit Valley | G54: 001 | H54: 101 | I54: 011 | J54: 001-011 | K54: 001011 | L54: Centers of Excellence | M54: Centers of Excellence | R54: 0 | S54: 203205 | T54: =IF(C54="#1",S54,IF(C54="#2",SUM(S54),IF(C54="#3",SUM(S54,U54),IF(C54="#4",SUM(S54,U54:V54),IF(C54="#5",SUM(S54,U54:W54),IF(C54="#6",SUM(S54,U54:X54),IF(C54="#7",SUM(S54,U54:Y54),IF(C54="#8",SUM(S54,U54:Z54),IF(C54="#9",SUM(S54,U54:AA54),IF(C54="#10",SUM(S54,U54:AB54),ERROR)))))))))) -> 203157 | U54: -48 | AD54: 203157 | AE54: District | AF54: Yes | AG54: Ongoing
A55: 20Centers of Excellence | B55: Earmark | C55: ='Alloc#vlookup'!$B$1 -> #4 | D55: 20 | E55: error | F55: Walla Walla | G55: 001 | H55: 101 | I55: 011 | J55: 001-011 | K55: 001011 | L55: Centers of Excellence | M55: Centers of Excellence | R55: 0 | S55: 212725 | T55: =IF(C55="#1",S55,IF(C55="#2",SUM(S55),IF(C55="#3",SUM(S55,U55),IF(C55="#4",SUM(S55,U55:V55),IF(C55="#5",SUM(S55,U55:W55),IF(C55="#6",SUM(S55,U55:X55),IF(C55="#7",SUM(S55,U55:Y55),IF(C55="#8",SUM(S55,U55:Z55),IF(C55="#9",SUM(S55,U55:AA55),IF(C55="#10",SUM(S55,U55:AB55),ERROR)))))))))) -> 213157 | U55: 432 | AD55: 213157 | AE55: District | AF55: Yes | AG55: Ongoing
A56: 16Centers of Excellence | B56: Earmark | C56: ='Alloc#vlookup'!$B$1 -> #4 | D56: 16 | E56: error | F56: Yakima Valley | G56: 001 | H56: 101 | I56: 011 | J56: 001-011 | K56: 001011 | L56: Centers of Excellence | M56: Centers of Excellence | R56: 0 | S56: 203205 | T56: =IF(C56="#1",S56,IF(C56="#2",SUM(S56),IF(C56="#3",SUM(S56,U56),IF(C56="#4",SUM(S56,U56:V56),IF(C56="#5",SUM(S56,U56:W56),IF(C56="#6",SUM(S56,U56:X56),IF(C56="#7",SUM(S56,U56:Y56),IF(C56="#8",SUM(S56,U56:Z56),IF(C56="#9",SUM(S56,U56:AA56),IF(C56="#10",SUM(S56,U56:AB56),ERROR)))))))))) -> 203157 | U56: -48 | AD56: 203157 | AE56: District | AF56: Yes | AG56: Ongoing
A57: 5Centers of Excellence - Aerospace | B57: Proviso | C57: ='Alloc#vlookup'!$B$1 -> #4 | D57: 5 | E57: error | F57: Everett | G57: 001 | H57: BA1 | I57: BA1 | J57: 001-BA1 | K57: 001BA1 | L57: COE for Aerospace | M57: Centers of Excellence - Aerospace | R57: 0 | S57: 100000 | T57: =IF(C57="#1",S57,IF(C57="#2",SUM(S57),IF(C57="#3",SUM(S57,U57),IF(C57="#4",SUM(S57,U57:V57),IF(C57="#5",SUM(S57,U57:W57),IF(C57="#6",SUM(S57,U57:X57),IF(C57="#7",SUM(S57,U57:Y57),IF(C57="#8",SUM(S57,U57:Z57),IF(C57="#9",SUM(S57,U57:AA57),IF(C57="#10",SUM(S57,U57:AB57),ERROR)))))))))) -> 100000 | AD57: 100000 | AE57: District | AF57: Yes | AG57: two plus
A58: 28College Affordability Program (Tuition reduction) | B58: Proviso | C58: ='Alloc#vlookup'!$B$1 -> #4 | D58: 28 | E58: error | F58: Bates | G58: 001 | H58: BG1 | I58: BG1 | J58: 001-BG1 | K58: 001BG1 | L58: College Affordability Program (Tuition reduction) | M58: College Affordability Program (Tuition reduction) | R58: 0 | S58: 269503 | T58: =IF(C58="#1",S58,IF(C58="#2",SUM(S58),IF(C58="#3",SUM(S58,U58),IF(C58="#4",SUM(S58,U58:V58),IF(C58="#5",SUM(S58,U58:W58),IF(C58="#6",SUM(S58,U58:X58),IF(C58="#7",SUM(S58,U58:Y58),IF(C58="#8",SUM(S58,U58:Z58),IF(C58="#9",SUM(S58,U58:AA58),IF(C58="#10",SUM(S58,U58:AB58),ERROR)))))))))) -> 269503 | AD58: 269503 | AE58: District | AF58: Yes | AG58: two plus
A59: 8College Affordability Program (Tuition reduction) | B59: Proviso | C59: ='Alloc#vlookup'!$B$1 -> #4 | D59: 8 | E59: error | F59: Bellevue | G59: 001 | H59: BG1 | I59: BG1 | J59: 001-BG1 | K59: 001BG1 | L59: College Affordability Program (Tuition reduction) | M59: College Affordability Program (Tuition reduction) | R59: 0 | S59: 1218551 | T59: =IF(C59="#1",S59,IF(C59="#2",SUM(S59),IF(C59="#3",SUM(S59,U59),IF(C59="#4",SUM(S59,U59:V59),IF(C59="#5",SUM(S59,U59:W59),IF(C59="#6",SUM(S59,U59:X59),IF(C59="#7",SUM(S59,U59:Y59),IF(C59="#8",SUM(S59,U59:Z59),IF(C59="#9",SUM(S59,U59:AA59),IF(C59="#10",SUM(S59,U59:AB59),ERROR)))))))))) -> 1218551 | AD59: 1218551 | AE59: District | AF59: Yes | AG59: two plus
A60: 25College Affordability Program (Tuition reduction) | B60: Proviso | C60: ='Alloc#vlookup'!$B$1 -> #4 | D60: 25 | E60: error | F60: Bellingham | G60: 001 | H60: BG1 | I60: BG1 | J60: 001-BG1 | K60: 001BG1 | L60: College Affordability Program (Tuition reduction) | M60: College Affordability Program (Tuition reduction) | R60: 0 | S60: 297183 | T60: =IF(C60="#1",S60,IF(C60="#2",SUM(S60),IF(C60="#3",SUM(S60,U60),IF(C60="#4",SUM(S60,U60:V60),IF(C60="#5",SUM(S60,U60:W60),IF(C60="#6",SUM(S60,U60:X60),IF(C60="#7",SUM(S60,U60:Y60),IF(C60="#8",SUM(S60,U60:Z60),IF(C60="#9",SUM(S60,U60:AA60),IF(C60="#10",SUM(S60,U60:AB60),ERROR)))))))))) -> 297183 | AD60: 297183 | AE60: District | AF60: Yes | AG60: two plus
A61: 18College Affordability Program (Tuition reduction) | B61: Proviso | C61: ='Alloc#vlookup'!$B$1 -> #4 | D61: 18 | E61: error | F61: Big Bend | G61: 001 | H61: BG1 | I61: BG1 | J61: 001-BG1 | K61: 001BG1 | L61: College Affordability Program (Tuition reduction) | M61: College Affordability Program (Tuition reduction) | R61: 0 | S61: 207474 | T61: =IF(C61="#1",S61,IF(C61="#2",SUM(S61),IF(C61="#3",SUM(S61,U61),IF(C61="#4",SUM(S61,U61:V61),IF(C61="#5",SUM(S61,U61:W61),IF(C61="#6",SUM(S61,U61:X61),IF(C61="#7",SUM(S61,U61:Y61),IF(C61="#8",SUM(S61,U61:Z61),IF(C61="#9",SUM(S61,U61:AA61),IF(C61="#10",SUM(S61,U61:AB61),ERROR)))))))))) -> 207474 | AD61: 207474 | AE61: District | AF61: Yes | AG61: two plus
A62: 30College Affordability Program (Tuition reduction) | B62: Proviso | C62: ='Alloc#vlookup'!$B$1 -> #4 | D62: 30 | E62: error | F62: Cascadia | G62: 001 | H62: BG1 | I62: BG1 | J62: 001-BG1 | K62: 001BG1 | L62: College Affordability Program (Tuition reduction) | M62: College Affordability Program (Tuition reduction) | R62: 0 | S62: 271417 | T62: =IF(C62="#1",S62,IF(C62="#2",SUM(S62),IF(C62="#3",SUM(S62,U62),IF(C62="#4",SUM(S62,U62:V62),IF(C62="#5",SUM(S62,U62:W62),IF(C62="#6",SUM(S62,U62:X62),IF(C62="#7",SUM(S62,U62:Y62),IF(C62="#8",SUM(S62,U62:Z62),IF(C62="#9",SUM(S62,U62:AA62),IF(C62="#10",SUM(S62,U62:AB62),ERROR)))))))))) -> 271417 | AD62: 271417 | AE62: District | AF62: Yes | AG62: two plus
A63: 12College Affordability Program (Tuition reduction) | B63: Proviso | C63: ='Alloc#vlookup'!$B$1 -> #4 | D63: 12 | E63: error | F63: Centralia | G63: 001 | H63: BG1 | I63: BG1 | J63: 001-BG1 | K63: 001BG1 | L63: College Affordability Program (Tuition reduction) | M63: College Affordability Program (Tuition reduction) | R63: 0 | S63: 344611 | T63: =IF(C63="#1",S63,IF(C63="#2",SUM(S63),IF(C63="#3",SUM(S63,U63),IF(C63="#4",SUM(S63,U63:V63),IF(C63="#5",SUM(S63,U63:W63),IF(C63="#6",SUM(S63,U63:X63),IF(C63="#7",SUM(S63,U63:Y63),IF(C63="#8",SUM(S63,U63:Z63),IF(C63="#9",SUM(S63,U63:AA63),IF(C63="#10",SUM(S63,U63:AB63),ERROR)))))))))) -> 344611 | AD63: 344611 | AE63: District | AF63: Yes | AG63: two plus
A64: 14College Affordability Program (Tuition reduction) | B64: Proviso | C64: ='Alloc#vlookup'!$B$1 -> #4 | D64: 14 | E64: error | F64: Clark | G64: 001 | H64: BG1 | I64: BG1 | J64: 001-BG1 | K64: 001BG1 | L64: College Affordability Program (Tuition reduction) | M64: College Affordability Program (Tuition reduction) | R64: 0 | S64: 950531 | T64: =IF(C64="#1",S64,IF(C64="#2",SUM(S64),IF(C64="#3",SUM(S64,U64),IF(C64="#4",SUM(S64,U64:V64),IF(C64="#5",SUM(S64,U64:W64),IF(C64="#6",SUM(S64,U64:X64),IF(C64="#7",SUM(S64,U64:Y64),IF(C64="#8",SUM(S64,U64:Z64),IF(C64="#9",SUM(S64,U64:AA64),IF(C64="#10",SUM(S64,U64:AB64),ERROR)))))))))) -> 950531 | AD64: 950531 | AE64: District | AF64: Yes | AG64: two plus
A65: 29College Affordability Program (Tuition reduction) | B65: Proviso | C65: ='Alloc#vlookup'!$B$1 -> #4 | D65: 29 | E65: error | F65: Clover Park | G65: 001 | H65: BG1 | I65: BG1 | J65: 001-BG1 | K65: 001BG1 | L65: College Affordability Program (Tuition reduction) | M65: College Affordability Program (Tuition reduction) | R65: 0 | S65: 549966 | T65: =IF(C65="#1",S65,IF(C65="#2",SUM(S65),IF(C65="#3",SUM(S65,U65),IF(C65="#4",SUM(S65,U65:V65),IF(C65="#5",SUM(S65,U65:W65),IF(C65="#6",SUM(S65,U65:X65),IF(C65="#7",SUM(S65,U65:Y65),IF(C65="#8",SUM(S65,U65:Z65),IF(C65="#9",SUM(S65,U65:AA65),IF(C65="#10",SUM(S65,U65:AB65),ERROR)))))))))) -> 549966 | AD65: 549966 | AE65: District | AF65: Yes | AG65: two plus
A66: =CONCATENATE(D66,M66) -> 19College Affordability Program (Tuition reduction) | B66: Proviso | C66: ='Alloc#vlookup'!$B$1 -> #4 | D66: 19 | E66: error | F66: Columbia Basin | G66: 001 | H66: BG1 | I66: BG1 | J66: 001-BG1 | K66: 001BG1 | L66: College Affordability Program (Tuition reduction) | M66: College Affordability Program (Tuition reduction) | R66: 0 | S66: 722955 | T66: =IF(C66="#1",S66,IF(C66="#2",SUM(S66),IF(C66="#3",SUM(S66,U66),IF(C66="#4",SUM(S66,U66:V66),IF(C66="#5",SUM(S66,U66:W66),IF(C66="#6",SUM(S66,U66:X66),IF(C66="#7",SUM(S66,U66:Y66),IF(C66="#8",SUM(S66,U66:Z66),IF(C66="#9",SUM(S66,U66:AA66),IF(C66="#10",SUM(S66,U66:AB66),ERROR)))))))))) -> 722955 | AD66: 722955 | AE66: =IF(D66=90,"SBCTC Program",IF(D66=89,"SBCTC Admin",IF(D66="00","Future Allocations/Reserves","District"))) -> District | AF66: Yes | AG66: two plus
A67: 23College Affordability Program (Tuition reduction) | B67: Proviso | C67: ='Alloc#vlookup'!$B$1 -> #4 | D67: 23 | E67: error | F67: Edmonds | G67: 001 | H67: BG1 | I67: BG1 | J67: 001-BG1 | K67: 001BG1 | L67: College Affordability Program (Tuition reduction) | M67: College Affordability Program (Tuition reduction) | R67: 0 | S67: 620802 | T67: =IF(C67="#1",S67,IF(C67="#2",SUM(S67),IF(C67="#3",SUM(S67,U67),IF(C67="#4",SUM(S67,U67:V67),IF(C67="#5",SUM(S67,U67:W67),IF(C67="#6",SUM(S67,U67:X67),IF(C67="#7",SUM(S67,U67:Y67),IF(C67="#8",SUM(S67,U67:Z67),IF(C67="#9",SUM(S67,U67:AA67),IF(C67="#10",SUM(S67,U67:AB67),ERROR)))))))))) -> 620802 | AD67: =SUM(S67:AC67)-T67 -> 620802 | AE67: District | AF67: Yes | AG67: two plus
A68: 5College Affordability Program (Tuition reduction) | B68: Proviso | C68: ='Alloc#vlookup'!$B$1 -> #4 | D68: 5 | E68: error | F68: Everett | G68: 001 | H68: BG1 | I68: BG1 | J68: 001-BG1 | K68: 001BG1 | L68: College Affordability Program (Tuition reduction) | M68: College Affordability Program (Tuition reduction) | R68: 0 | S68: 720450 | T68: =IF(C68="#1",S68,IF(C68="#2",SUM(S68),IF(C68="#3",SUM(S68,U68),IF(C68="#4",SUM(S68,U68:V68),IF(C68="#5",SUM(S68,U68:W68),IF(C68="#6",SUM(S68,U68:X68),IF(C68="#7",SUM(S68,U68:Y68),IF(C68="#8",SUM(S68,U68:Z68),IF(C68="#9",SUM(S68,U68:AA68),IF(C68="#10",SUM(S68,U68:AB68),ERROR)))))))))) -> 720450 | AD68: 720450 | AE68: District | AF68: Yes | AG68: two plus
A69: 00College Affordability Program (Tuition reduction) | B69: Proviso | C69: ='Alloc#vlookup'!$B$1 -> #4 | D69: 00 | E69: error | F69: Future Allocations/Reserves | G69: 001 | H69: BG1 | I69: BG1 | J69: 001-BG1 | K69: 001BG1 | L69: College Affordability Program (Tuition reduction) | M69: College Affordability Program (Tuition reduction) | R69: 0 | S69: 0 | T69: =IF(C69="#1",S69,IF(C69="#2",SUM(S69),IF(C69="#3",SUM(S69,U69),IF(C69="#4",SUM(S69,U69:V69),IF(C69="#5",SUM(S69,U69:W69),IF(C69="#6",SUM(S69,U69:X69),IF(C69="#7",SUM(S69,U69:Y69),IF(C69="#8",SUM(S69,U69:Z69),IF(C69="#9",SUM(S69,U69:AA69),IF(C69="#10",SUM(S69,U69:AB69),ERROR)))))))))) -> 0 | AD69: 0 | AE69: Future Allocations/Reserves | AF69: Yes | AG69: two plus
A70: 2College Affordability Program (Tuition reduction) | B70: Proviso | C70: ='Alloc#vlookup'!$B$1 -> #4 | D70: 2 | E70: error | F70: Grays Harbor | G70: 001 | H70: BG1 | I70: BG1 | J70: 001-BG1 | K70: 001BG1 | L70: College Affordability Program (Tuition reduction) | M70: College Affordability Program (Tuition reduction) | R70: 0 | S70: 184754 | T70: =IF(C70="#1",S70,IF(C70="#2",SUM(S70),IF(C70="#3",SUM(S70,U70),IF(C70="#4",SUM(S70,U70:V70),IF(C70="#5",SUM(S70,U70:W70),IF(C70="#6",SUM(S70,U70:X70),IF(C70="#7",SUM(S70,U70:Y70),IF(C70="#8",SUM(S70,U70:Z70),IF(C70="#9",SUM(S70,U70:AA70),IF(C70="#10",SUM(S70,U70:AB70),ERROR)))))))))) -> 184754 | AD70: 184754 | AE70: District | AF70: Yes | AG70: two plus
A71: 10College Affordability Program (Tuition reduction) | B71: Proviso | C71: ='Alloc#vlookup'!$B$1 -> #4 | D71: 10 | E71: error | F71: Green River | G71: =LEFT(J71,3) -> 001 | H71: =VLOOKUP(I71,Approp,2,FALSE) -> BG1 | I71: =RIGHT(J71,3) -> BG1 | J71: 001-BG1 | K71: 001BG1 | L71: College Affordability Program (Tuition reduction) | M71: College Affordability Program (Tuition reduction) | R71: =SUM(O71:Q71) -> 0 | S71: 795417 | T71: =IF(C71="#1",S71,IF(C71="#2",SUM(S71),IF(C71="#3",SUM(S71,U71),IF(C71="#4",SUM(S71,U71:V71),IF(C71="#5",SUM(S71,U71:W71),IF(C71="#6",SUM(S71,U71:X71),IF(C71="#7",SUM(S71,U71:Y71),IF(C71="#8",SUM(S71,U71:Z71),IF(C71="#9",SUM(S71,U71:AA71),IF(C71="#10",SUM(S71,U71:AB71),ERROR)))))))))) -> 795417 | AD71: 795417 | AE71: District | AF71: Yes | AG71: two plus
A72: 9College Affordability Program (Tuition reduction) | B72: Proviso | C72: ='Alloc#vlookup'!$B$1 -> #4 | D72: 9 | E72: error | F72: Highline | G72: 001 | H72: BG1 | I72: BG1 | J72: 001-BG1 | K72: 001BG1 | L72: College Affordability Program (Tuition reduction) | M72: College Affordability Program (Tuition reduction) | R72: 0 | S72: 673336 | T72: =IF(C72="#1",S72,IF(C72="#2",SUM(S72),IF(C72="#3",SUM(S72,U72),IF(C72="#4",SUM(S72,U72:V72),IF(C72="#5",SUM(S72,U72:W72),IF(C72="#6",SUM(S72,U72:X72),IF(C72="#7",SUM(S72,U72:Y72),IF(C72="#8",SUM(S72,U72:Z72),IF(C72="#9",SUM(S72,U72:AA72),IF(C72="#10",SUM(S72,U72:AB72),ERROR)))))))))) -> 673336 | AD72: 673336 | AE72: District | AF72: Yes | AG72: two plus
A73: 26College Affordability Program (Tuition reduction) | B73: Proviso | C73: ='Alloc#vlookup'!$B$1 -> #4 | D73: 26 | E73: error | F73: Lake Washington | G73: 001 | H73: BG1 | I73: BG1 | J73: 001-BG1 | K73: 001BG1 | L73: College Affordability Program (Tuition reduction) | M73: College Affordability Program (Tuition reduction) | R73: 0 | S73: 406723 | T73: =IF(C73="#1",S73,IF(C73="#2",SUM(S73),IF(C73="#3",SUM(S73,U73),IF(C73="#4",SUM(S73,U73:V73),IF(C73="#5",SUM(S73,U73:W73),IF(C73="#6",SUM(S73,U73:X73),IF(C73="#7",SUM(S73,U73:Y73),IF(C73="#8",SUM(S73,U73:Z73),IF(C73="#9",SUM(S73,U73:AA73),IF(C73="#10",SUM(S73,U73:AB73),ERROR)))))))))) -> 406723 | AD73: 406723 | AE73: District | AF73: Yes | AG73: two plus
A74: 13College Affordability Program (Tuition reduction) | B74: Proviso | C74: ='Alloc#vlookup'!$B$1 -> #4 | D74: 13 | E74: error | F74: Lower Columbia | G74: 001 | H74: BG1 | I74: BG1 | J74: 001-BG1 | K74: 001BG1 | L74: College Affordability Program (Tuition reduction) | M74: College Affordability Program (Tuition reduction) | R74: 0 | S74: 286481 | T74: =IF(C74="#1",S74,IF(C74="#2",SUM(S74),IF(C74="#3",SUM(S74,U74),IF(C74="#4",SUM(S74,U74:V74),IF(C74="#5",SUM(S74,U74:W74),IF(C74="#6",SUM(S74,U74:X74),IF(C74="#7",SUM(S74,U74:Y74),IF(C74="#8",SUM(S74,U74:Z74),IF(C74="#9",SUM(S74,U74:AA74),IF(C74="#10",SUM(S74,U74:AB74),ERROR)))))))))) -> 286481 | AD74: 286481 | AE74: District | AF74: Yes | AG74: two plus
A75: 3College Affordability Program (Tuition reduction) | B75: Proviso | C75: ='Alloc#vlookup'!$B$1 -> #4 | D75: 3 | E75: error | F75: Olympic | G75: 001 | H75: BG1 | I75: BG1 | J75: 001-BG1 | K75: 001BG1 | L75: College Affordability Program (Tuition reduction) | M75: College Affordability Program (Tuition reduction) | R75: 0 | S75: 760948 | T75: =IF(C75="#1",S75,IF(C75="#2",SUM(S75),IF(C75="#3",SUM(S75,U75),IF(C75="#4",SUM(S75,U75:V75),IF(C75="#5",SUM(S75,U75:W75),IF(C75="#6",SUM(S75,U75:X75),IF(C75="#7",SUM(S75,U75:Y75),IF(C75="#8",SUM(S75,U75:Z75),IF(C75="#9",SUM(S75,U75:AA75),IF(C75="#10",SUM(S75,U75:AB75),ERROR)))))))))) -> 760948 | AD75: 760948 | AE75: District | AF75: Yes | AG75: two plus
A76: 1College Affordability Program (Tuition reduction) | B76: Proviso | C76: ='Alloc#vlookup'!$B$1 -> #4 | D76: 1 | E76: error | F76: Peninsula | G76: 001 | H76: BG1 | I76: BG1 | J76: 001-BG1 | K76: 001BG1 | L76: College Affordability Program (Tuition reduction) | M76: College Affordability Program (Tuition reduction) | R76: 0 | S76: 221953 | T76: =IF(C76="#1",S76,IF(C76="#2",SUM(S76),IF(C76="#3",SUM(S76,U76),IF(C76="#4",SUM(S76,U76:V76),IF(C76="#5",SUM(S76,U76:W76),IF(C76="#6",SUM(S76,U76:X76),IF(C76="#7",SUM(S76,U76:Y76),IF(C76="#8",SUM(S76,U76:Z76),IF(C76="#9",SUM(S76,U76:AA76),IF(C76="#10",SUM(S76,U76:AB76),ERROR)))))))))) -> 221953 | AD76: 221953 | AE76: District | AF76: Yes | AG76: two plus
A77: 11College Affordability Program (Tuition reduction) | B77: Proviso | C77: ='Alloc#vlookup'!$B$1 -> #4 | D77: 11 | E77: error | F77: Pierce | G77: 001 | H77: BG1 | I77: BG1 | J77: 001-BG1 | K77: 001BG1 | L77: College Affordability Program (Tuition reduction) | M77: College Affordability Program (Tuition reduction) | R77: 0 | S77: 743341 | T77: =IF(C77="#1",S77,IF(C77="#2",SUM(S77),IF(C77="#3",SUM(S77,U77),IF(C77="#4",SUM(S77,U77:V77),IF(C77="#5",SUM(S77,U77:W77),IF(C77="#6",SUM(S77,U77:X77),IF(C77="#7",SUM(S77,U77:Y77),IF(C77="#8",SUM(S77,U77:Z77),IF(C77="#9",SUM(S77,U77:AA77),IF(C77="#10",SUM(S77,U77:AB77),ERROR)))))))))) -> 743341 | AD77: 743341 | AE77: District | AF77: Yes | AG77: two plus
A78: 27College Affordability Program (Tuition reduction) | B78: Proviso | C78: ='Alloc#vlookup'!$B$1 -> #4 | D78: 27 | E78: error | F78: Renton | G78: 001 | H78: BG1 | I78: BG1 | J78: 001-BG1 | K78: 001BG1 | L78: College Affordability Program (Tuition reduction) | M78: College Affordability Program (Tuition reduction) | R78: 0 | S78: 299651 | T78: =IF(C78="#1",S78,IF(C78="#2",SUM(S78),IF(C78="#3",SUM(S78,U78),IF(C78="#4",SUM(S78,U78:V78),IF(C78="#5",SUM(S78,U78:W78),IF(C78="#6",SUM(S78,U78:X78),IF(C78="#7",SUM(S78,U78:Y78),IF(C78="#8",SUM(S78,U78:Z78),IF(C78="#9",SUM(S78,U78:AA78),IF(C78="#10",SUM(S78,U78:AB78),ERROR)))))))))) -> 299651 | AD78: 299651 | AE78: District | AF78: Yes | AG78: two plus
A79: 6College Affordability Program (Tuition reduction) | B79: Proviso | C79: ='Alloc#vlookup'!$B$1 -> #4 | D79: 6 | E79: error | F79: Seattle | G79: 001 | H79: BG1 | I79: BG1 | J79: 001-BG1 | K79: 001BG1 | L79: College Affordability Program (Tuition reduction) | M79: College Affordability Program (Tuition reduction) | R79: 0 | S79: 1730321 | T79: =IF(C79="#1",S79,IF(C79="#2",SUM(S79),IF(C79="#3",SUM(S79,U79),IF(C79="#4",SUM(S79,U79:V79),IF(C79="#5",SUM(S79,U79:W79),IF(C79="#6",SUM(S79,U79:X79),IF(C79="#7",SUM(S79,U79:Y79),IF(C79="#8",SUM(S79,U79:Z79),IF(C79="#9",SUM(S79,U79:AA79),IF(C79="#10",SUM(S79,U79:AB79),ERROR)))))))))) -> 1730321 | AD79: 1730321 | AE79: District | AF79: Yes | AG79: two plus
A80: 7College Affordability Program (Tuition reduction) | B80: Proviso | C80: ='Alloc#vlookup'!$B$1 -> #4 | D80: 7 | E80: =IF(C80=2,IF(U80="","no","yes"),IF(C80=3,IF(V80="","no","yes"),IF(C80=4,IF(W80="","no","yes"),IF(C80=5,IF(X80="","no","yes"),IF(C80=6,IF(Y80="","no","yes"),IF(C80=7,IF(Z80="","no","yes"),IF(C80=8,IF(AA80="","no","yes"),IF(C80=9,IF(AB80="","no","yes"),IF(C80=10,IF(AC80="","no","yes"),"error"))))))))) -> error | F80: Shoreline | G80: 001 | H80: BG1 | I80: BG1 | J80: 001-BG1 | K80: 001BG1 | L80: College Affordability Program (Tuition reduction) | M80: College Affordability Program (Tuition reduction) | R80: 0 | S80: 513644 | T80: =IF(C80="#1",S80,IF(C80="#2",SUM(S80),IF(C80="#3",SUM(S80,U80),IF(C80="#4",SUM(S80,U80:V80),IF(C80="#5",SUM(S80,U80:W80),IF(C80="#6",SUM(S80,U80:X80),IF(C80="#7",SUM(S80,U80:Y80),IF(C80="#8",SUM(S80,U80:Z80),IF(C80="#9",SUM(S80,U80:AA80),IF(C80="#10",SUM(S80,U80:AB80),ERROR)))))))))) -> 513644 | AD80: 513644 | AE80: District | AF80: Yes | AG80: two plus
A81: 4College Affordability Program (Tuition reduction) | B81: Proviso | C81: ='Alloc#vlookup'!$B$1 -> #4 | D81: 4 | E81: error | F81: Skagit Valley | G81: 001 | H81: BG1 | I81: BG1 | J81: 001-BG1 | K81: 001BG1 | L81: College Affordability Program (Tuition reduction) | M81: College Affordability Program (Tuition reduction) | R81: 0 | S81: 451838 | T81: =IF(C81="#1",S81,IF(C81="#2",SUM(S81),IF(C81="#3",SUM(S81,U81),IF(C81="#4",SUM(S81,U81:V81),IF(C81="#5",SUM(S81,U81:W81),IF(C81="#6",SUM(S81,U81:X81),IF(C81="#7",SUM(S81,U81:Y81),IF(C81="#8",SUM(S81,U81:Z81),IF(C81="#9",SUM(S81,U81:AA81),IF(C81="#10",SUM(S81,U81:AB81),ERROR)))))))))) -> 451838 | AD81: 451838 | AE81: District | AF81: Yes | AG81: two plus
A82: 24College Affordability Program (Tuition reduction) | B82: Proviso | C82: ='Alloc#vlookup'!$B$1 -> #4 | D82: 24 | E82: error | F82: South Puget Sound | G82: 001 | H82: BG1 | I82: BG1 | J82: 001-BG1 | K82: 001BG1 | L82: College Affordability Program (Tuition reduction) | M82: College Affordability Program (Tuition reduction) | R82: 0 | S82: 491080 | T82: =IF(C82="#1",S82,IF(C82="#2",SUM(S82),IF(C82="#3",SUM(S82,U82),IF(C82="#4",SUM(S82,U82:V82),IF(C82="#5",SUM(S82,U82:W82),IF(C82="#6",SUM(S82,U82:X82),IF(C82="#7",SUM(S82,U82:Y82),IF(C82="#8",SUM(S82,U82:Z82),IF(C82="#9",SUM(S82,U82:AA82),IF(C82="#10",SUM(S82,U82:AB82),ERROR)))))))))) -> 491080 | AD82: 491080 | AE82: District | AF82: Yes | AG82: two plus
A83: 17College Affordability Program (Tuition reduction) | B83: Proviso | C83: ='Alloc#vlookup'!$B$1 -> #4 | D83: 17 | E83: error | F83: Spokane | G83: 001 | H83: BG1 | I83: BG1 | J83: 001-BG1 | K83: 001BG1 | L83: College Affordability Program (Tuition reduction) | M83: College Affordability Program (Tuition reduction) | R83: 0 | S83: 1435234 | T83: =IF(C83="#1",S83,IF(C83="#2",SUM(S83),IF(C83="#3",SUM(S83,U83),IF(C83="#4",SUM(S83,U83:V83),IF(C83="#5",SUM(S83,U83:W83),IF(C83="#6",SUM(S83,U83:X83),IF(C83="#7",SUM(S83,U83:Y83),IF(C83="#8",SUM(S83,U83:Z83),IF(C83="#9",SUM(S83,U83:AA83),IF(C83="#10",SUM(S83,U83:AB83),ERROR)))))))))) -> 1435234 | AD83: 1435234 | AE83: District | AF83: Yes | AG83: two plus
A84: 22College Affordability Program (Tuition reduction) | B84: Proviso | C84: ='Alloc#vlookup'!$B$1 -> #4 | D84: 22 | E84: error | F84: Tacoma | G84: 001 | H84: BG1 | I84: BG1 | J84: 001-BG1 | K84: 001BG1 | L84: College Affordability Program (Tuition reduction) | M84: College Affordability Program (Tuition reduction) | R84: 0 | S84: 833787 | T84: =IF(C84="#1",S84,IF(C84="#2",SUM(S84),IF(C84="#3",SUM(S84,U84),IF(C84="#4",SUM(S84,U84:V84),IF(C84="#5",SUM(S84,U84:W84),IF(C84="#6",SUM(S84,U84:X84),IF(C84="#7",SUM(S84,U84:Y84),IF(C84="#8",SUM(S84,U84:Z84),IF(C84="#9",SUM(S84,U84:AA84),IF(C84="#10",SUM(S84,U84:AB84),ERROR)))))))))) -> 833787 | AD84: 833787 | AE84: District | AF84: Yes | AG84: two plus
A85: 20College Affordability Program (Tuition reduction) | B85: Proviso | C85: ='Alloc#vlookup'!$B$1 -> #4 | D85: 20 | E85: error | F85: Walla Walla | G85: 001 | H85: BG1 | I85: BG1 | J85: 001-BG1 | K85: 001BG1 | L85: College Affordability Program (Tuition reduction) | M85: College Affordability Program (Tuition reduction) | R85: 0 | S85: 255430 | T85: =IF(C85="#1",S85,IF(C85="#2",SUM(S85),IF(C85="#3",SUM(S85,U85),IF(C85="#4",SUM(S85,U85:V85),IF(C85="#5",SUM(S85,U85:W85),IF(C85="#6",SUM(S85,U85:X85),IF(C85="#7",SUM(S85,U85:Y85),IF(C85="#8",SUM(S85,U85:Z85),IF(C85="#9",SUM(S85,U85:AA85),IF(C85="#10",SUM(S85,U85:AB85),ERROR)))))))))) -> 255430 | AD85: 255430 | AE85: District | AF85: Yes | AG85: two plus
A86: 15College Affordability Program (Tuition reduction) | B86: Proviso | C86: ='Alloc#vlookup'!$B$1 -> #4 | D86: 15 | E86: error | F86: Wenatchee | G86: 001 | H86: BG1 | I86: BG1 | J86: 001-BG1 | K86: 001BG1 | L86: College Affordability Program (Tuition reduction) | M86: College Affordability Program (Tuition reduction) | R86: 0 | S86: 355534 | T86: =IF(C86="#1",S86,IF(C86="#2",SUM(S86),IF(C86="#3",SUM(S86,U86),IF(C86="#4",SUM(S86,U86:V86),IF(C86="#5",SUM(S86,U86:W86),IF(C86="#6",SUM(S86,U86:X86),IF(C86="#7",SUM(S86,U86:Y86),IF(C86="#8",SUM(S86,U86:Z86),IF(C86="#9",SUM(S86,U86:AA86),IF(C86="#10",SUM(S86,U86:AB86),ERROR)))))))))) -> 355534 | AD86: 355534 | AE86: District | AF86: Yes | AG86: two plus
A87: 21College Affordability Program (Tuition reduction) | B87: Proviso | C87: ='Alloc#vlookup'!$B$1 -> #4 | D87: 21 | E87: error | F87: Whatcom | G87: 001 | H87: BG1 | I87: BG1 | J87: 001-BG1 | K87: 001BG1 | L87: College Affordability Program (Tuition reduction) | M87: College Affordability Program (Tuition reduction) | R87: 0 | S87: 332780 | T87: =IF(C87="#1",S87,IF(C87="#2",SUM(S87),IF(C87="#3",SUM(S87,U87),IF(C87="#4",SUM(S87,U87:V87),IF(C87="#5",SUM(S87,U87:W87),IF(C87="#6",SUM(S87,U87:X87),IF(C87="#7",SUM(S87,U87:Y87),IF(C87="#8",SUM(S87,U87:Z87),IF(C87="#9",SUM(S87,U87:AA87),IF(C87="#10",SUM(S87,U87:AB87),ERROR)))))))))) -> 332780 | AD87: 332780 | AE87: District | AF87: Yes | AG87: two plus
A88: 16College Affordability Program (Tuition reduction) | B88: Proviso | C88: ='Alloc#vlookup'!$B$1 -> #4 | D88: 16 | E88: error | F88: Yakima Valley | G88: 001 | H88: BG1 | I88: BG1 | J88: 001-BG1 | K88: 001BG1 | L88: College Affordability Program (Tuition reduction) | M88: College Affordability Program (Tuition reduction) | R88: 0 | S88: 560305 | T88: =IF(C88="#1",S88,IF(C88="#2",SUM(S88),IF(C88="#3",SUM(S88,U88),IF(C88="#4",SUM(S88,U88:V88),IF(C88="#5",SUM(S88,U88:W88),IF(C88="#6",SUM(S88,U88:X88),IF(C88="#7",SUM(S88,U88:Y88),IF(C88="#8",SUM(S88,U88:Z88),IF(C88="#9",SUM(S88,U88:AA88),IF(C88="#10",SUM(S88,U88:AB88),ERROR)))))))))) -> 560305 | AD88: 560305 | AE88: District | AF88: Yes | AG88: two plus
A89: 89Dept of Ed Training | B89: Earmark | C89: ='Alloc#vlookup'!$B$1 -> #4 | D89: 89 | E89: error | F89: SBCTC Admin | G89: 001 | H89: 101 | I89: 011 | J89: 001-011 | K89: 1011 | L89: Dept of Ed Training | M89: Dept of Ed Training | R89: 0 | S89: 0 | T89: =IF(C89="#1",S89,IF(C89="#2",SUM(S89),IF(C89="#3",SUM(S89,U89),IF(C89="#4",SUM(S89,U89:V89),IF(C89="#5",SUM(S89,U89:W89),IF(C89="#6",SUM(S89,U89:X89),IF(C89="#7",SUM(S89,U89:Y89),IF(C89="#8",SUM(S89,U89:Z89),IF(C89="#9",SUM(S89,U89:AA89),IF(C89="#10",SUM(S89,U89:AB89),ERROR)))))))))) -> 0 | AD89: 0 | AE89: SBCTC Admin | AF89: Yes | AG89: Admin
A90: 28Disability Accommodations | B90: Earmark | C90: ='Alloc#vlookup'!$B$1 -> #4 | D90: 28 | E90: error | F90: Bates | G90: 001 | H90: 101 | I90: 011 | J90: 001-011 | K90: 1011 | L90: Disability Accommodations | M90: Disability Accommodations | R90: 0 | S90: 15577 | T90: =IF(C90="#1",S90,IF(C90="#2",SUM(S90),IF(C90="#3",SUM(S90,U90),IF(C90="#4",SUM(S90,U90:V90),IF(C90="#5",SUM(S90,U90:W90),IF(C90="#6",SUM(S90,U90:X90),IF(C90="#7",SUM(S90,U90:Y90),IF(C90="#8",SUM(S90,U90:Z90),IF(C90="#9",SUM(S90,U90:AA90),IF(C90="#10",SUM(S90,U90:AB90),ERROR)))))))))) -> 15577 | AD90: 15577 | AE90: District | AF90: Yes | AG90: Ongoing
A91: 8Disability Accommodations | B91: Earmark | C91: ='Alloc#vlookup'!$B$1 -> #4 | D91: 8 | E91: error | F91: Bellevue | G91: 001 | H91: 101 | I91: 011 | J91: 001-011 | K91: 1011 | L91: Disability Accommodations | M91: Disability Accommodations | R91: 0 | S91: 123124 | T91: =IF(C91="#1",S91,IF(C91="#2",SUM(S91),IF(C91="#3",SUM(S91,U91),IF(C91="#4",SUM(S91,U91:V91),IF(C91="#5",SUM(S91,U91:W91),IF(C91="#6",SUM(S91,U91:X91),IF(C91="#7",SUM(S91,U91:Y91),IF(C91="#8",SUM(S91,U91:Z91),IF(C91="#9",SUM(S91,U91:AA91),IF(C91="#10",SUM(S91,U91:AB91),ERROR)))))))))) -> 123124 | AD91: 123124 | AE91: District | AF91: Yes | AG91: Ongoing
A92: 25Disability Accommodations | B92: Earmark | C92: ='Alloc#vlookup'!$B$1 -> #4 | D92: 25 | E92: error | F92: Bellingham | G92: 001 | H92: 101 | I92: 011 | J92: 001-011 | K92: 1011 | L92: Disability Accommodations | M92: Disability Accommodations | R92: 0 | S92: 40753 | T92: =IF(C92="#1",S92,IF(C92="#2",SUM(S92),IF(C92="#3",SUM(S92,U92),IF(C92="#4",SUM(S92,U92:V92),IF(C92="#5",SUM(S92,U92:W92),IF(C92="#6",SUM(S92,U92:X92),IF(C92="#7",SUM(S92,U92:Y92),IF(C92="#8",SUM(S92,U92:Z92),IF(C92="#9",SUM(S92,U92:AA92),IF(C92="#10",SUM(S92,U92:AB92),ERROR)))))))))) -> 40753 | AD92: 40753 | AE92: District | AF92: Yes | AG92: Ongoing
A93: 18Disability Accommodations | B93: Earmark | C93: ='Alloc#vlookup'!$B$1 -> #4 | D93: 18 | E93: error | F93: Big Bend | G93: 001 | H93: 101 | I93: 011 | J93: 001-011 | K93: 1011 | L93: Disability Accommodations | M93: Disability Accommodations | R93: 0 | S93: 22658 | T93: =IF(C93="#1",S93,IF(C93="#2",SUM(S93),IF(C93="#3",SUM(S93,U93),IF(C93="#4",SUM(S93,U93:V93),IF(C93="#5",SUM(S93,U93:W93),IF(C93="#6",SUM(S93,U93:X93),IF(C93="#7",SUM(S93,U93:Y93),IF(C93="#8",SUM(S93,U93:Z93),IF(C93="#9",SUM(S93,U93:AA93),IF(C93="#10",SUM(S93,U93:AB93),ERROR)))))))))) -> 22658 | AD93: 22658 | AE93: District | AF93: Yes | AG93: Ongoing
A94: 30Disability Accommodations | B94: Earmark | C94: ='Alloc#vlookup'!$B$1 -> #4 | D94: 30 | E94: error | F94: Cascadia | G94: 001 | H94: 101 | I94: 011 | J94: 001-011 | K94: 1011 | L94: Disability Accommodations | M94: Disability Accommodations | R94: 0 | S94: 22894 | T94: =IF(C94="#1",S94,IF(C94="#2",SUM(S94),IF(C94="#3",SUM(S94,U94),IF(C94="#4",SUM(S94,U94:V94),IF(C94="#5",SUM(S94,U94:W94),IF(C94="#6",SUM(S94,U94:X94),IF(C94="#7",SUM(S94,U94:Y94),IF(C94="#8",SUM(S94,U94:Z94),IF(C94="#9",SUM(S94,U94:AA94),IF(C94="#10",SUM(S94,U94:AB94),ERROR)))))))))) -> 22894 | AD94: 22894 | AE94: District | AF94: Yes | AG94: Ongoing
A95: 12Disability Accommodations | B95: Earmark | C95: ='Alloc#vlookup'!$B$1 -> #4 | D95: 12 | E95: error | F95: Centralia | G95: 001 | H95: 101 | I95: 011 | J95: 001-011 | K95: 1011 | L95: Disability Accommodations | M95: Disability Accommodations | R95: 0 | S95: 32099 | T95: =IF(C95="#1",S95,IF(C95="#2",SUM(S95),IF(C95="#3",SUM(S95,U95),IF(C95="#4",SUM(S95,U95:V95),IF(C95="#5",SUM(S95,U95:W95),IF(C95="#6",SUM(S95,U95:X95),IF(C95="#7",SUM(S95,U95:Y95),IF(C95="#8",SUM(S95,U95:Z95),IF(C95="#9",SUM(S95,U95:AA95),IF(C95="#10",SUM(S95,U95:AB95),ERROR)))))))))) -> 32099 | AD95: 32099 | AE95: District | AF95: Yes | AG95: Ongoing
A96: 14Disability Accommodations | B96: Earmark | C96: ='Alloc#vlookup'!$B$1 -> #4 | D96: 14 | E96: error | F96: Clark | G96: 001 | H96: 101 | I96: 011 | J96: 001-011 | K96: 1011 | L96: Disability Accommodations | M96: Disability Accommodations | R96: 0 | S96: 101331 | T96: =IF(C96="#1",S96,IF(C96="#2",SUM(S96),IF(C96="#3",SUM(S96,U96),IF(C96="#4",SUM(S96,U96:V96),IF(C96="#5",SUM(S96,U96:W96),IF(C96="#6",SUM(S96,U96:X96),IF(C96="#7",SUM(S96,U96:Y96),IF(C96="#8",SUM(S96,U96:Z96),IF(C96="#9",SUM(S96,U96:AA96),IF(C96="#10",SUM(S96,U96:AB96),ERROR)))))))))) -> 101331 | AD96: 101331 | AE96: District | AF96: Yes | AG96: Ongoing
A97: 29Disability Accommodations | B97: Earmark | C97: ='Alloc#vlookup'!$B$1 -> #4 | D97: 29 | E97: error | F97: Clover Park | G97: 001 | H97: 101 | I97: 011 | J97: 001-011 | K97: 1011 | L97: Disability Accommodations | M97: Disability Accommodations | R97: 0 | S97: 35010 | T97: =IF(C97="#1",S97,IF(C97="#2",SUM(S97),IF(C97="#3",SUM(S97,U97),IF(C97="#4",SUM(S97,U97:V97),IF(C97="#5",SUM(S97,U97:W97),IF(C97="#6",SUM(S97,U97:X97),IF(C97="#7",SUM(S97,U97:Y97),IF(C97="#8",SUM(S97,U97:Z97),IF(C97="#9",SUM(S97,U97:AA97),IF(C97="#10",SUM(S97,U97:AB97),ERROR)))))))))) -> 35010 | AD97: 35010 | AE97: District | AF97: Yes | AG97: Ongoing
A98: 19Disability Accommodations | B98: Earmark | C98: ='Alloc#vlookup'!$B$1 -> #4 | D98: 19 | E98: error | F98: Columbia Basin | G98: 001 | H98: 101 | I98: 011 | J98: 001-011 | K98: 1011 | L98: Disability Accommodations | M98: Disability Accommodations | R98: 0 | S98: 57117 | T98: =IF(C98="#1",S98,IF(C98="#2",SUM(S98),IF(C98="#3",SUM(S98,U98),IF(C98="#4",SUM(S98,U98:V98),IF(C98="#5",SUM(S98,U98:W98),IF(C98="#6",SUM(S98,U98:X98),IF(C98="#7",SUM(S98,U98:Y98),IF(C98="#8",SUM(S98,U98:Z98),IF(C98="#9",SUM(S98,U98:AA98),IF(C98="#10",SUM(S98,U98:AB98),ERROR)))))))))) -> 57117 | AD98: 57117 | AE98: District | AF98: Yes | AG98: Ongoing
A99: 23Disability Accommodations | B99: Earmark | C99: ='Alloc#vlookup'!$B$1 -> #4 | D99: 23 | E99: error | F99: Edmonds | G99: 001 | H99: 101 | I99: 011 | J99: 001-011 | K99: 1011 | L99: Disability Accommodations | M99: Disability Accommodations | R99: 0 | S99: 84102 | T99: =IF(C99="#1",S99,IF(C99="#2",SUM(S99),IF(C99="#3",SUM(S99,U99),IF(C99="#4",SUM(S99,U99:V99),IF(C99="#5",SUM(S99,U99:W99),IF(C99="#6",SUM(S99,U99:X99),IF(C99="#7",SUM(S99,U99:Y99),IF(C99="#8",SUM(S99,U99:Z99),IF(C99="#9",SUM(S99,U99:AA99),IF(C99="#10",SUM(S99,U99:AB99),ERROR)))))))))) -> 84102 | AD99: 84102 | AE99: District | AF99: Yes | AG99: Ongoing
A100: 5Disability Accommodations | B100: Earmark | C100: ='Alloc#vlookup'!$B$1 -> #4 | D100: 5 | E100: error | F100: Everett | G100: 001 | H100: 101 | I100: 011 | J100: 001-011 | K100: 1011 | L100: Disability Accommodations | M100: Disability Accommodations | R100: 0 | S100: 50272 | T100: =IF(C100="#1",S100,IF(C100="#2",SUM(S100),IF(C100="#3",SUM(S100,U100),IF(C100="#4",SUM(S100,U100:V100),IF(C100="#5",SUM(S100,U100:W100),IF(C100="#6",SUM(S100,U100:X100),IF(C100="#7",SUM(S100,U100:Y100),IF(C100="#8",SUM(S100,U100:Z100),IF(C100="#9",SUM(S100,U100:AA100),IF(C100="#10",SUM(S100,U100:AB100),ERROR)))))))))) -> 50272 | AD100: 50272 | AE100: District | AF100: Yes | AG100: Ongoing
A101: 2Disability Accommodations | B101: Earmark | C101: ='Alloc#vlookup'!$B$1 -> #4 | D101: 2 | E101: error | F101: Grays Harbor | G101: 001 | H101: 101 | I101: 011 | J101: 001-011 | K101: 1011 | L101: Disability Accommodations | M101: Disability Accommodations | R101: 0 | S101: 23995 | T101: =IF(C101="#1",S101,IF(C101="#2",SUM(S101),IF(C101="#3",SUM(S101,U101),IF(C101="#4",SUM(S101,U101:V101),IF(C101="#5",SUM(S101,U101:W101),IF(C101="#6",SUM(S101,U101:X101),IF(C101="#7",SUM(S101,U101:Y101),IF(C101="#8",SUM(S101,U101:Z101),IF(C101="#9",SUM(S101,U101:AA101),IF(C101="#10",SUM(S101,U101:AB101),ERROR)))))))))) -> 23995 | AD101: 23995 | AE101: District | AF101: Yes | AG101: Ongoing
A102: 10Disability Accommodations | B102: Earmark | C102: ='Alloc#vlookup'!$B$1 -> #4 | D102: 10 | E102: error | F102: Green River | G102: 001 | H102: 101 | I102: 011 | J102: 001-011 | K102: 1011 | L102: Disability Accommodations | M102: Disability Accommodations | R102: 0 | S102: 58297 | T102: =IF(C102="#1",S102,IF(C102="#2",SUM(S102),IF(C102="#3",SUM(S102,U102),IF(C102="#4",SUM(S102,U102:V102),IF(C102="#5",SUM(S102,U102:W102),IF(C102="#6",SUM(S102,U102:X102),IF(C102="#7",SUM(S102,U102:Y102),IF(C102="#8",SUM(S102,U102:Z102),IF(C102="#9",SUM(S102,U102:AA102),IF(C102="#10",SUM(S102,U102:AB102),ERROR)))))))))) -> 58297 | AD102: 58297 | AE102: District | AF102: Yes | AG102: Ongoing
A103: 9Disability Accommodations | B103: Earmark | C103: ='Alloc#vlookup'!$B$1 -> #4 | D103: 9 | E103: error | F103: Highline | G103: =LEFT(J103,3) -> 001 | H103: =VLOOKUP(I103,Approp,2,FALSE) -> 101 | I103: =RIGHT(J103,3) -> 011 | J103: 001-011 | K103: 1011 | L103: Disability Accommodations | M103: Disability Accommodations | R103: 0 | S103: 56016 | T103: =IF(C103="#1",S103,IF(C103="#2",SUM(S103),IF(C103="#3",SUM(S103,U103),IF(C103="#4",SUM(S103,U103:V103),IF(C103="#5",SUM(S103,U103:W103),IF(C103="#6",SUM(S103,U103:X103),IF(C103="#7",SUM(S103,U103:Y103),IF(C103="#8",SUM(S103,U103:Z103),IF(C103="#9",SUM(S103,U103:AA103),IF(C103="#10",SUM(S103,U103:AB103),ERROR)))))))))) -> 56016 | AD103: 56016 | AE103: District | AF103: Yes | AG103: Ongoing
A104: 26Disability Accommodations | B104: Earmark | C104: ='Alloc#vlookup'!$B$1 -> #4 | D104: 26 | E104: error | F104: Lake Washington | G104: 001 | H104: 101 | I104: 011 | J104: 001-011 | K104: 1011 | L104: Disability Accommodations | M104: Disability Accommodations | R104: 0 | S104: 42405 | T104: =IF(C104="#1",S104,IF(C104="#2",SUM(S104),IF(C104="#3",SUM(S104,U104),IF(C104="#4",SUM(S104,U104:V104),IF(C104="#5",SUM(S104,U104:W104),IF(C104="#6",SUM(S104,U104:X104),IF(C104="#7",SUM(S104,U104:Y104),IF(C104="#8",SUM(S104,U104:Z104),IF(C104="#9",SUM(S104,U104:AA104),IF(C104="#10",SUM(S104,U104:AB104),ERROR)))))))))) -> 42405 | AD104: 42405 | AE104: District | AF104: Yes | AG104: Ongoing
A105: 13Disability Accommodations | B105: Earmark | C105: ='Alloc#vlookup'!$B$1 -> #4 | D105: 13 | E105: error | F105: Lower Columbia | G105: 001 | H105: 101 | I105: 011 | J105: 001-011 | K105: 1011 | L105: Disability Accommodations | M105: Disability Accommodations | R105: 0 | S105: 46653 | T105: =IF(C105="#1",S105,IF(C105="#2",SUM(S105),IF(C105="#3",SUM(S105,U105),IF(C105="#4",SUM(S105,U105:V105),IF(C105="#5",SUM(S105,U105:W105),IF(C105="#6",SUM(S105,U105:X105),IF(C105="#7",SUM(S105,U105:Y105),IF(C105="#8",SUM(S105,U105:Z105),IF(C105="#9",SUM(S105,U105:AA105),IF(C105="#10",SUM(S105,U105:AB105),ERROR)))))))))) -> 46653 | AD105: 46653 | AE105: District | AF105: Yes | AG105: Ongoing
A106: 3Disability Accommodations | B106: Earmark | C106: ='Alloc#vlookup'!$B$1 -> #4 | D106: 3 | E106: error | F106: Olympic | G106: 001 | H106: 101 | I106: 011 | J106: 001-011 | K106: 1011 | L106: Disability Accommodations | M106: Disability Accommodations | R106: 0 | S106: 88744 | T106: =IF(C106="#1",S106,IF(C106="#2",SUM(S106),IF(C106="#3",SUM(S106,U106),IF(C106="#4",SUM(S106,U106:V106),IF(C106="#5",SUM(S106,U106:W106),IF(C106="#6",SUM(S106,U106:X106),IF(C106="#7",SUM(S106,U106:Y106),IF(C106="#8",SUM(S106,U106:Z106),IF(C106="#9",SUM(S106,U106:AA106),IF(C106="#10",SUM(S106,U106:AB106),ERROR)))))))))) -> 88744 | AD106: 88744 | AE106: District | AF106: Yes | AG106: Ongoing
A107: 1Disability Accommodations | B107: Earmark | C107: ='Alloc#vlookup'!$B$1 -> #4 | D107: 1 | E107: error | F107: Peninsula | G107: 001 | H107: 101 | I107: 011 | J107: 001-011 | K107: 1011 | L107: Disability Accommodations | M107: Disability Accommodations | R107: 0 | S107: 26592 | T107: =IF(C107="#1",S107,IF(C107="#2",SUM(S107),IF(C107="#3",SUM(S107,U107),IF(C107="#4",SUM(S107,U107:V107),IF(C107="#5",SUM(S107,U107:W107),IF(C107="#6",SUM(S107,U107:X107),IF(C107="#7",SUM(S107,U107:Y107),IF(C107="#8",SUM(S107,U107:Z107),IF(C107="#9",SUM(S107,U107:AA107),IF(C107="#10",SUM(S107,U107:AB107),ERROR)))))))))) -> 26592 | AD107: 26592 | AE107: District | AF107: Yes | AG107: Ongoing
A108: 11Disability Accommodations | B108: Earmark | C108: ='Alloc#vlookup'!$B$1 -> #4 | D108: 11 | E108: error | F108: Pierce | G108: 001 | H108: 101 | I108: 011 | J108: 001-011 | K108: 1011 | L108: Disability Accommodations | M108: Disability Accommodations | R108: 0 | S108: 87485 | T108: =IF(C108="#1",S108,IF(C108="#2",SUM(S108),IF(C108="#3",SUM(S108,U108),IF(C108="#4",SUM(S108,U108:V108),IF(C108="#5",SUM(S108,U108:W108),IF(C108="#6",SUM(S108,U108:X108),IF(C108="#7",SUM(S108,U108:Y108),IF(C108="#8",SUM(S108,U108:Z108),IF(C108="#9",SUM(S108,U108:AA108),IF(C108="#10",SUM(S108,U108:AB108),ERROR)))))))))) -> 87485 | AD108: 87485 | AE108: District | AF108: Yes | AG108: Ongoing
A109: 27Disability Accommodations | B109: Earmark | C109: ='Alloc#vlookup'!$B$1 -> #4 | D109: 27 | E109: error | F109: Renton | G109: 001 | H109: 101 | I109: 011 | J109: 001-011 | K109: 1011 | L109: Disability Accommodations | M109: Disability Accommodations | R109: 0 | S109: 27457 | T109: =IF(C109="#1",S109,IF(C109="#2",SUM(S109),IF(C109="#3",SUM(S109,U109),IF(C109="#4",SUM(S109,U109:V109),IF(C109="#5",SUM(S109,U109:W109),IF(C109="#6",SUM(S109,U109:X109),IF(C109="#7",SUM(S109,U109:Y109),IF(C109="#8",SUM(S109,U109:Z109),IF(C109="#9",SUM(S109,U109:AA109),IF(C109="#10",SUM(S109,U109:AB109),ERROR)))))))))) -> 27457 | AD109: 27457 | AE109: District | AF109: Yes | AG109: Ongoing
A110: 6Disability Accommodations | B110: Earmark | C110: ='Alloc#vlookup'!$B$1 -> #4 | D110: 6 | E110: error | F110: Seattle | G110: 001 | H110: 101 | I110: 011 | J110: 001-011 | K110: 1011 | L110: Disability Accommodations | M110: Disability Accommodations | R110: 0 | S110: 108805 | T110: =IF(C110="#1",S110,IF(C110="#2",SUM(S110),IF(C110="#3",SUM(S110,U110),IF(C110="#4",SUM(S110,U110:V110),IF(C110="#5",SUM(S110,U110:W110),IF(C110="#6",SUM(S110,U110:X110),IF(C110="#7",SUM(S110,U110:Y110),IF(C110="#8",SUM(S110,U110:Z110),IF(C110="#9",SUM(S110,U110:AA110),IF(C110="#10",SUM(S110,U110:AB110),ERROR)))))))))) -> 108805 | AD110: 108805 | AE110: District | AF110: Yes | AG110: Ongoing
A111: 7Disability Accommodations | B111: Earmark | C111: ='Alloc#vlookup'!$B$1 -> #4 | D111: 7 | E111: error | F111: Shoreline | G111: 001 | H111: 101 | I111: 011 | J111: 001-011 | K111: 1011 | L111: Disability Accommodations | M111: Disability Accommodations | R111: 0 | S111: 60736 | T111: =IF(C111="#1",S111,IF(C111="#2",SUM(S111),IF(C111="#3",SUM(S111,U111),IF(C111="#4",SUM(S111,U111:V111),IF(C111="#5",SUM(S111,U111:W111),IF(C111="#6",SUM(S111,U111:X111),IF(C111="#7",SUM(S111,U111:Y111),IF(C111="#8",SUM(S111,U111:Z111),IF(C111="#9",SUM(S111,U111:AA111),IF(C111="#10",SUM(S111,U111:AB111),ERROR)))))))))) -> 60736 | AD111: 60736 | AE111: District | AF111: Yes | AG111: Ongoing
A112: 4Disability Accommodations | B112: Earmark | C112: ='Alloc#vlookup'!$B$1 -> #4 | D112: 4 | E112: error | F112: Skagit Valley | G112: 001 | H112: 101 | I112: 011 | J112: 001-011 | K112: 1011 | L112: Disability Accommodations | M112: Disability Accommodations | R112: 0 | S112: 53734 | T112: =IF(C112="#1",S112,IF(C112="#2",SUM(S112),IF(C112="#3",SUM(S112,U112),IF(C112="#4",SUM(S112,U112:V112),IF(C112="#5",SUM(S112,U112:W112),IF(C112="#6",SUM(S112,U112:X112),IF(C112="#7",SUM(S112,U112:Y112),IF(C112="#8",SUM(S112,U112:Z112),IF(C112="#9",SUM(S112,U112:AA112),IF(C112="#10",SUM(S112,U112:AB112),ERROR)))))))))) -> 53734 | AD112: 53734 | AE112: District | AF112: Yes | AG112: Ongoing
A113: 24Disability Accommodations | B113: Earmark | C113: ='Alloc#vlookup'!$B$1 -> #4 | D113: 24 | E113: error | F113: South Puget Sound | G113: 001 | H113: 101 | I113: 011 | J113: 001-011 | K113: 1011 | L113: Disability Accommodations | M113: Disability Accommodations | R113: 0 | S113: 19747 | T113: =IF(C113="#1",S113,IF(C113="#2",SUM(S113),IF(C113="#3",SUM(S113,U113),IF(C113="#4",SUM(S113,U113:V113),IF(C113="#5",SUM(S113,U113:W113),IF(C113="#6",SUM(S113,U113:X113),IF(C113="#7",SUM(S113,U113:Y113),IF(C113="#8",SUM(S113,U113:Z113),IF(C113="#9",SUM(S113,U113:AA113),IF(C113="#10",SUM(S113,U113:AB113),ERROR)))))))))) -> 19747 | AD113: 19747 | AE113: District | AF113: Yes | AG113: Ongoing
A114: 17Disability Accommodations | B114: Earmark | C114: ='Alloc#vlookup'!$B$1 -> #4 | D114: 17 | E114: error | F114: Spokane | G114: 001 | H114: 101 | I114: 011 | J114: 001-011 | K114: 1011 | L114: Disability Accommodations | M114: Disability Accommodations | R114: 0 | S114: 219814 | T114: =IF(C114="#1",S114,IF(C114="#2",SUM(S114),IF(C114="#3",SUM(S114,U114),IF(C114="#4",SUM(S114,U114:V114),IF(C114="#5",SUM(S114,U114:W114),IF(C114="#6",SUM(S114,U114:X114),IF(C114="#7",SUM(S114,U114:Y114),IF(C114="#8",SUM(S114,U114:Z114),IF(C114="#9",SUM(S114,U114:AA114),IF(C114="#10",SUM(S114,U114:AB114),ERROR)))))))))) -> 219814 | AD114: 219814 | AE114: District | AF114: Yes | AG114: Ongoing
A115: 22Disability Accommodations | B115: Earmark | C115: ='Alloc#vlookup'!$B$1 -> #4 | D115: 22 | E115: error | F115: Tacoma | G115: 001 | H115: 101 | I115: 011 | J115: 001-011 | K115: 1011 | L115: Disability Accommodations | M115: Disability Accommodations | R115: 0 | S115: 80404 | T115: =IF(C115="#1",S115,IF(C115="#2",SUM(S115),IF(C115="#3",SUM(S115,U115),IF(C115="#4",SUM(S115,U115:V115),IF(C115="#5",SUM(S115,U115:W115),IF(C115="#6",SUM(S115,U115:X115),IF(C115="#7",SUM(S115,U115:Y115),IF(C115="#8",SUM(S115,U115:Z115),IF(C115="#9",SUM(S115,U115:AA115),IF(C115="#10",SUM(S115,U115:AB115),ERROR)))))))))) -> 80404 | AD115: 80404 | AE115: District | AF115: Yes | AG115: Ongoing
